Workbook

Sheet Contents
B1: REGULATORY REPORTING STATEMENT
B2: Australian Distribution Co.
B3: Category Analysis RIN response 2014-15
B4: CONTENTS
E7: 1. Business details | L7: 2. Expenditure
E27: 4. Alternative control services | L27: 5. Network information | S27: 6. Service & quality

Sheet Business & other details
A1: HIDE THIS COLUMN | C1: =(LOOKUP(dms_Model,dms_Model_List,dms_Worksheet_List)) -> REGULATORY REPORTING STATEMENT | L1: Data in these columns used for data validation and database purposes.
C2: =dms_TradingName -> SA Power Networks | L2: Date last modified:
C3: =CONCATENATE("Category Analysis RIN response ",CRY) -> Category Analysis RIN response 2014-15 | L3: 14 April 2015 | M3: merged cell C46/47
C4: BUSINESS & OTHER DETAILS | L4: 17 April 2015 | M4: adjusted dms_RYE to automate based on dms_Model (NB: EB & CA refer to CRCP_y5)
L5: 14 May 2015 | M5: adapted this cover for use in CA & EB RINs
C7: Instructions
C8: Complete the following business details regulatory template before entering data or values in any other regulatory template. This regulatory template is linked to other cells within the spreadsheet and automatically generates column headings.
C10: SUBMISSION PARTICULARS INPUT SHEETS
C12: Entity details
C14: Trading name | D14: SA Power Networks
C15: ACN / ABN | D15: =INDEX(dms_ABN_List,MATCH(dms_TradingName,dms_TradingName_List)) -> 13332330749
L17: dms_Model_List | M17: dms_Worksheet_List | O17: dms_RYE_List1 | P17: dms_RYE_List2
C18: Business address | D18: Address 1 | F18: 1 Anzac Highway | L18: CA | M18: REGULATORY REPORTING STATEMENT | O18: dms_RYE | P18: =CONCATENATE(LEFT(CRY, 2) &IF(CRY>"2009-10",,"") &RIGHT(CRY,2)) -> 2015
E19: Address 2 | L19: CAM/Service change Backcast | M19: REGULATORY REPORTING STATEMENT | O19: dms_RYE | P19: =CONCATENATE(LEFT(CRCP_y5, 2) &IF(CRCP_y5>"2009-10",,"") &RIGHT(CRCP_y5,2)) -> 2016
D20: Suburb | F20: Keswick | L20: CPI | M20: CPI | O20: dms_RYE | P20: =CONCATENATE(LEFT(CRCP_y5, 2) &IF(CRCP_y5>"2009-10",,"") &RIGHT(CRCP_y5,2)) -> 2016
E21: State | F21: =INDEX(dms_State_List,MATCH(dms_TradingName,dms_TradingName_List)) -> SA | G21: p/code | H21: 5035 | L21: EB | M21: REGULATORY REPORTING STATEMENT | O21: dms_RYE | P21: =CONCATENATE(LEFT(CRY, 2) &IF(CRY>"2009-10",,"") &RIGHT(CRY,2)) -> 2015
L22: PTRM | M22: POST TAX REVENUE MODEL | O22: FRCP | P22: =CONCATENATE(LEFT(FRCP_y5, 2) &IF(FRCP_y1>"2009-10",,"") &RIGHT(FRCP_y5,2)) -> 2021
C23: Postal address | D23: Address 1 | F23: GPO Box 77 | L23: Reset | M23: REGULATORY REPORTING STATEMENT | O23: FRCP | P23: =CONCATENATE(LEFT(CRCP_y5, 2) &IF(CRCP_y5>"2009-10",,"") &RIGHT(CRCP_y5,2)) -> 2016
E24: Address 2 | L24: RFM | M24: ROLL FORWARD MODEL | O24: CRCP | P24: =CONCATENATE(LEFT(CRCP_y5, 2) &IF(CRCP_y1>"2009-10",,"") &RIGHT(CRCP_y5,2)) -> 2016
D25: Suburb | F25: Adelaide | L25: WACC | M25: WEIGHTED AVERAGE COST OF CAPITAL | O25: dms_RYE | P25: =CONCATENATE(LEFT(CRCP_y5, 2) &IF(CRCP_y5>"2009-10",,"") &RIGHT(CRCP_y5,2)) -> 2016
E26: State | F26: SA | G26: p/code | H26: 5001
L28: dms_TradingName_List | M28: dms_ABN_List | N28: dms_State_List | O28: dms_Sector_List | P28: dms_Segment_List | Q28: dms_FormControl | R28: dms_CRCPlength_List | S28: dms_FRCPlength_List | T28: dms_JurisdictionList
C29: Contact name/s | D29: Richard Sibly | G29: Kelly Bernhardt | L29: ActewAGL Distribution | M29: 76670568688 | N29: ACT | O29: Electricity | P29: Distribution | Q29: Revenue cap | R29: 5 | S29: 6 | T29: ACT
C30: Contact phone/s | D30: 08 8404 5613 | G30: 08 8404 5664 | L30: ActewAGL Distribution (Tx Assets) | M30: 76670568688 | N30: ACT | O30: Electricity | P30: Distribution | Q30: Revenue cap | R30: 5 | S30: 5 | T30: ACT
C31: Contact email address/s | D31: richard.sibly@sapowernetworks.com.au | G31: kelly.bernhardt@sapowernetworks.com.au | L31: AGN | M31: 78551685 | N31: SA | O31: Gas | P31: Distribution | Q31: Revenue cap | R31: 5 | S31: 5 | T31: SA
L32: Ausgrid | M32: 67505337385 | N32: NSW | O32: Electricity | P32: Distribution | Q32: Revenue cap | R32: 5 | S32: 5 | T32: NSW
A33: KEEP VISIBLE FOR RESET, PTRM & RFMS | C33: Regulatory control period details | L33: Ausgrid (Tx Assets) | M33: 67505337385 | N33: NSW | O33: Electricity | P33: Distribution | Q33: Revenue cap | R33: 5 | S33: 5 | T33: NSW
L34: AusNet (D) | M34: 91064651118 | N34: Vic | O34: Electricity | P34: Distribution | Q34: Revenue cap | R34: 5 | S34: 5 | T34: Vic
C35: Forthcoming regulatory control period | D35: =CONCATENATE(IF(dms_RPT="Calendar",CRCP_y5+1,(LEFT(CRCP_y5,4)+1&"-"&IF(MID(CRCP_y5,6,2)<"09","0"&RIGHT(CRCP_y5,1)+1,RIGHT(CRCP_y5,2)+1)))) -> 2016-17 | E35: =CONCATENATE(IF(dms_RPT="Calendar",FRCP_y1+1,(LEFT(FRCP_y1,4)+1&"-"&IF(MID(FRCP_y1,6,2)<"09","0"&RIGHT(FRCP_y1,1)+1,RIGHT(FRCP_y1,2)+1)))) -> 2017-18 | F35: =CONCATENATE(IF(dms_RPT="Calendar",FRCP_y2+1,(LEFT(FRCP_y2,4)+1&"-"&IF(MID(FRCP_y2,6,2)<"09","0"&RIGHT(FRCP_y2,1)+1,RIGHT(FRCP_y2,2)+1)))) -> 2018-19 | G35: =CONCATENATE(IF(dms_RPT="Calendar",FRCP_y3+1,(LEFT(FRCP_y3,4)+1&"-"&IF(MID(FRCP_y3,6,2)<"09","0"&RIGHT(FRCP_y3,1)+1,RIGHT(FRCP_y3,2)+1)))) -> 2019-20 | H35: =CONCATENATE(IF(dms_RPT="Calendar",FRCP_y4+1,(LEFT(FRCP_y4,4)+1&"-"&IF(MID(FRCP_y4,6,2)<"09","0"&RIGHT(FRCP_y4,1)+1,RIGHT(FRCP_y4,2)+1)))) -> 2020-21 | L35: AusNet (T) | M35: 78079798173 | N35: Vic | O35: Electricity | P35: Transmission | Q35: Revenue cap | R35: 5 | S35: 5 | T35: Vic
L36: Australian Distribution Co. | M36: 11222333444 | N36: - | O36: Electricity | P36: Distribution | Q36: Revenue cap | R36: 5 | S36: 5 | T36: -
L37: Australian Transmission Co. | M37: 11222333444 | N37: - | O37: Electricity | P37: Transmission | Q37: Revenue cap | R37: 5 | S37: 5 | T37: -
C38: Current regulatory control period | D38: 2011-12 | E38: =CONCATENATE(IF(dms_RPT="Calendar",CRCP_y1+1,(LEFT(CRCP_y1,4)+1&"-"&IF(MID(CRCP_y1,6,2)<"09","0"&RIGHT(CRCP_y1,1)+1,RIGHT(CRCP_y1,2)+1)))) -> 2012-13 | F38: =CONCATENATE(IF(dms_RPT="Calendar",CRCP_y2+1,(LEFT(CRCP_y2,4)+1&"-"&IF(MID(CRCP_y2,6,2)<"09","0"&RIGHT(CRCP_y2,1)+1,RIGHT(CRCP_y2,2)+1)))) -> 2013-14 | G38: =CONCATENATE(IF(dms_RPT="Calendar",CRCP_y3+1,(LEFT(CRCP_y3,4)+1&"-"&IF(MID(CRCP_y3,6,2)<"09","0"&RIGHT(CRCP_y3,1)+1,RIGHT(CRCP_y3,2)+1)))) -> 2014-15 | H38: =CONCATENATE(IF(dms_RPT="Calendar",CRCP_y4+1,(LEFT(CRCP_y4,4)+1&"-"&IF(MID(CRCP_y4,6,2)<"09","0"&RIGHT(CRCP_y4,1)+1,RIGHT(CRCP_y4,2)+1)))) -> 2015-16 | L38: CitiPower | M38: 76064651056 | N38: Vic | O38: Electricity | P38: Distribution | Q38: Revenue cap | R38: 5 | S38: 5 | T38: Vic
L39: Directlink | M39: 16779340889 | N39: NSW | O39: Electricity | P39: Transmission | Q39: Revenue cap | R39: 10 | S39: 5 | T39: Qld
L40: ElectraNet | M40: 41094482416 | N40: SA | O40: Electricity | P40: Transmission | Q40: Revenue cap | R40: 5 | S40: 5 | T40: SA
C41: Previous regulatory control period | D41: =CONCATENATE(IF(dms_RPT="Calendar",PRCP_y2-1,(LEFT(PRCP_y2,4)-1&"-"&IF(MID(PRCP_y2,3,1)="0","0"&RIGHT(PRCP_y2,2)-1,RIGHT(PRCP_y2,2)-1)))) -> 2006-07 | E41: =CONCATENATE(IF(dms_RPT="Calendar",PRCP_y3-1,(LEFT(PRCP_y3,4)-1&"-"&IF(MID(PRCP_y3,3,1)="0","0"&RIGHT(PRCP_y3,2)-1,RIGHT(PRCP_y3,2)-1)))) -> 2007-08 | F41: =CONCATENATE(IF(dms_RPT="Calendar",PRCP_y4-1,(LEFT(PRCP_y4,4)-1&"-"&IF(MID(PRCP_y4,3,1)="0","0"&RIGHT(PRCP_y4,2)-1,RIGHT(PRCP_y4,2)-1)))) -> 2008-09 | G41: =CONCATENATE(IF(dms_RPT="Calendar",PRCP_y5-1,(LEFT(PRCP_y5,4)-1&"-"&IF(MID(PRCP_y5,3,1)="0","0"&RIGHT(PRCP_y5,2)-1,RIGHT(PRCP_y5,2)-1)))) -> 2009-10 | H41: =CONCATENATE(IF(dms_RPT="Calendar",CRCP_y1-1,(LEFT(CRCP_y1,4)-1&"-"&IF(MID(CRCP_y1,3,1)="0","0"&RIGHT(CRCP_y1,2)-1,RIGHT(CRCP_y1,2)-1)))) -> 2010-11 | L41: Endeavour Energy | M41: 59253130878 | N41: NSW | O41: Electricity | P41: Distribution | Q41: Revenue cap | R41: 5 | S41: 5 | T41: NSW
L42: Energex | M42: 40078849055 | N42: Qld | O42: Electricity | P42: Distribution | Q42: Revenue cap | R42: 5 | S42: 5 | T42: Qld
L43: Ergon Energy | M43: 50087646062 | N43: Qld | O43: Electricity | P43: Distribution | Q43: Revenue cap | R43: 5 | S43: 5 | T43: Qld
A44: KEEP VISIBLE FOR CA & EB ONLY | L44: Essential Energy | M44: 37428185226 | N44: NSW | O44: Electricity | P44: Distribution | Q44: Revenue cap | R44: 5 | S44: 5 | T44: NSW
C45: Current regulatory year | D45: 2014-15 | L45: Jemena Electricity | M45: 82064651083 | N45: Vic | O45: Electricity | P45: Distribution | Q45: Revenue cap | R45: 5 | S45: 5 | T45: Vic
L46: Murraylink | M46: 79181207909 | N46: NSW | O46: Electricity | P46: Transmission | Q46: Revenue cap | R46: 5 | S46: 5 | T46: SA
L47: Powercor Australia | M47: 89064651109 | N47: Vic | O47: Electricity | P47: Distribution | Q47: Revenue cap | R47: 5 | S47: 5 | T47: Vic
L48: Powerlink | M48: 82078849233 | N48: Qld | O48: Electricity | P48: Transmission | Q48: Revenue cap | R48: 5 | S48: 5 | T48: Qld
L49: Qld,SA &ACT Gas Reset | M49: 22222222222 | N49: - | O49: Gas | P49: Distribution | Q49: ? | R49: 5 | S49: 5 | T49: -
C50: Sector | D50: =INDEX(dms_Sector_List,MATCH(dms_TradingName,dms_TradingName_List)) -> Electricity | L50: SA Power Networks | M50: 13332330749 | N50: SA | O50: Electricity | P50: Distribution | Q50: Revenue cap | R50: 5 | S50: 5 | T50: SA
C51: Segment | D51: =INDEX(dms_Segment_List,MATCH(dms_TradingName,dms_TradingName_List)) -> Distribution | L51: TasNetworks (D) | M51: 24167357299 | N51: Tas | O51: Electricity | P51: Distribution | Q51: Revenue cap | R51: 5 | S51: 5 | T51: Tas
C52: Source | D52: Reporting | L52: TasNetworks (T) | M52: 24167357299 | N52: Tas | O52: Electricity | P52: Transmission | Q52: Revenue cap | R52: 5 | S52: 5 | T52: Tas
C53: Regulatory Year Ending | D53: =(LOOKUP(dms_Model,dms_Model_List,dms_RYE_List2)) -> 2015 | L53: TransGrid | M53: 19622755774 | N53: NSW | O53: Electricity | P53: Transmission | Q53: Revenue cap | R53: 5 | S53: 5 | T53: NSW
C54: Reporting Period Type | D54: =IF(LEN(CRCP_y1)>4,"Financial","Calendar") -> Financial | L54: United Energy | M54: 70064651029 | N54: Vic | O54: Electricity | P54: Distribution | Q54: Revenue cap | R54: 5 | S54: 5 | T54: Vic
C55: Model or RIN Type | D55: CA | L55: Victorian DNSP Backcasting | M55: 33333333666 | N55: Vic | O55: Electricity | P55: Distribution | Q55: ? | R55: 5 | S55: 5 | T55: Vic
C56: Security Classification | D56: =IF(dms_DataQuality="Public","Public","Confidential") -> Public | L56: Victorian DNSP Reset | M56: 33333333333 | N56: Vic | O56: Electricity | P56: Distribution | Q56: ? | R56: 5 | S56: 5 | T56: Vic
C57: Data quality (actual, estimate, public, consolidated) | D57: Public
C58: EBSS - First application of scheme in forthcoming period? | D58: No
C59: Amended RIN submission - amendment reason
A60: HIDE THESE ROWS | C60: Template - version no. | D60: 3
C61: Dollar $ real (the last month before the FRCP_y1) | D61: =CONCATENATE(IF(dms_RPT="Financial","June ","December "),(dms_RYE)) -> June 2015 | L61: dms_SourceList | M61: dms_FormControl
C62: Form of control | D62: =INDEX(dms_FormControl_List,MATCH(dms_TradingName,dms_TradingName_List)) -> Revenue cap | L62: After appeal | M62: Revenue cap
C63: Length of current reg control period | D63: =INDEX(dms_CRCPlength_List,MATCH(dms_TradingName,dms_TradingName_List)) -> 5 | L63: Draft decision | M63: Revenue yield
C64: Length of forthcoming reg control period | D64: =INDEX(dms_FRCPlength_List,MATCH(dms_TradingName,dms_TradingName_List)) -> 5 | L64: Final decision | M64: Weighted average price cap
C65: RIN response - version no. | D65: 1 | L65: Pass through decision
C66: Jurisdiction | D66: =INDEX(dms_JurisdictionList,MATCH(dms_TradingName,dms_TradingName_List)) -> SA | L66: PTRM annual update
L67: PTRM interim update 1
L68: PTRM interim update 2
L69: PTRM interim update 3
L70: PTRM interim update 4
L71: Regulatory proposal
L72: Reporting
L73: Revised regulatory proposal
L74: RFM annual update
L75: WACC annual update
L79: Notes
L80: RFM - Base year is usually CRCP_y1 | M80: EG. Victorian 2016-20 - base year = 2011
L81: RFM - Form of Control Field is not relevant
L82: PTRM - capture base year input by NSP | M82: ='[Published version - PTRM - TNSP - version 3 - January 2015 - Appendix A.xlsm]PTRM input'!Q7

Sheet 2.1 Expenditure summary
B1: =(LOOKUP(dms_Model,dms_Model_List,dms_Worksheet_List)) -> REGULATORY REPORTING STATEMENT
B2: Australian Distribution Co.
B3: =CONCATENATE("Category Analysis RIN response ",CRY) -> Category Analysis RIN response 2014-15
B4: 2.1 EXPENDITURE SUMMARY & RECONCILIATION
B11: TABLE 2.1.1 - STANDARD CONTROL SERVICES CAPEX
C14: Actual ($0's)
C15: =CRY -> 2014-15
A16: ED_EXP211_00001 | B16: Replacement expenditure | C16: 87641869.67
A17: ED_EXP211_00002 | B17: Connections | C17: 64356543
A18: ED_EXP211_00003 | B18: Augmentation Expenditure | C18: 99556164.76
A19: ED_EXP211_00004 | B19: Non-network | C19: 104617563
A20: ED_EXP211_00005 | B20: capitalised network overheads | C20: 9073957.62
A21: ED_EXP211_00006 | B21: capitalised corporate overheads | C21: -18253075.62
A22: ED_EXP211_00007 | B22: Metering | C22: 0
A23: ED_EXP211_00008 | B23: Public Lighting | C23: 0
A24: ED_EXP211_00002
A25: ED_EXP211_00003
A26: ED_EXP211_00004
A27: ED_EXP211_00005
A28: ED_EXP211_00006
A29: ED_EXP211_00007
A30: ED_EXP211_00008
A31: ED_EXP211_00009 | B31: balancing item | C31: -124098.049
A32: ED_EXP211_00010 | B32: TOTAL GROSS CAPEX (includes capcons) | C32: =+SUM(C16:C31) -> 346868924.4
A33: ED_EXP211_00011 | B33: capcons | C33: 37626000
B35: TABLE 2.1.2 - STANDARD CONTROL SERVICES OPEX
C38: Actual ($0's)
C39: =CRY -> 2014-15
A40: ED_EXP212_00001 | B40: Vegetation management | C40: 45571827
A41: ED_EXP212_00002 | B41: Maintenance | C41: 31028710
A42: ED_EXP212_00003 | B42: Emergency response | C42: 32087787
A43: ED_EXP212_00004 | B43: Non-network | C43: 34078617
A44: ED_EXP212_00005 | B44: network overheads | C44: 79171915.53
A45: ED_EXP212_00006 | B45: corporate overheads | C45: 65880082.84
A46: ED_EXP212_00007 | B46: Metering | C46: 0
A47: ED_EXP212_00008 | B47: Public Lighting | C47: 0
A48: ED_EXP211_00002
A49: ED_EXP211_00003
A50: ED_EXP211_00004
A51: ED_EXP211_00005
A52: ED_EXP211_00006
A53: ED_EXP211_00007
A54: ED_EXP211_00008
A55: ED_EXP212_00009 | B55: balancing item | C55: -36962640.65
B56: TOTAL OPEX | C56: =+SUM(C40:C55) -> 250856298.7
B58: TABLE 2.1.3 - ALTERNATIVE CONTROL SERVICES CAPEX
C61: Actual ($0's)
C62: =CRY -> 2014-15
A63: ED_EXP213_00001 | B63: Connections | C63: 0
A64: ED_EXP213_00002 | B64: capitalised network overheads | C64: 552081.91
A65: ED_EXP213_00003 | B65: capitalised corporate overheads | C65: -133664.2403
A66: ED_EXP213_00004 | B66: Metering | C66: 9863000
A67: ED_EXP213_00005 | B67: Public lighting | C67: 0
A68: ED_EXP213_00006 | B68: Fee and quoted | C68: 0
A69: ED_EXP211_00002
A70: ED_EXP211_00003
A71: ED_EXP211_00004
A72: ED_EXP211_00005
A73: ED_EXP211_00006
A74: ED_EXP211_00007
A75: ED_EXP211_00008
A76: ED_EXP213_00007 | B76: balancing item | C76: -5966081.91
B77: TOTAL CAPEX | C77: =+SUM(C63:C76) -> 4315335.76
B79: TABLE 2.1.4 - ALTERNATIVE CONTROL SERVICES OPEX
C82: Actual ($0's)
C83: =CRY -> 2014-15
A84: ED_EXP214_00001 | B84: Connections | C84: 0
A85: ED_EXP214_00002 | B85: network overheads | C85: 258567.8654
A86: ED_EXP214_00003 | B86: corporate overheads | C86: 848480.6347
A87: ED_EXP214_00004 | B87: Metering | C87: 5555761
A88: ED_EXP214_00005 | B88: Public lighting | C88: 0
A89: ED_EXP214_00006 | B89: Fee and quoted | C89: 0
A90: ED_EXP211_00002 | B90: Non-Network | C90: 152000.0001
A91: ED_EXP211_00003
A92: ED_EXP211_00004
A93: ED_EXP211_00005
A94: ED_EXP211_00006
A95: ED_EXP211_00007
A96: ED_EXP211_00008
A97: ED_EXP214_00007 | B97: balancing item | C97: -1163903.84
B98: TOTAL OPEX | C98: =+SUM(C84:C97) -> 5650905.66
B100: TABLE 2.1.5 - DUAL FUNCTION ASSETS CAPEX
C103: Actual ($0's)
C104: =CRY -> 2014-15
A105: ED_EXP215_00001 | B105: Replacement expenditure | C105: 0
A106: ED_EXP215_00002 | B106: Connections | C106: 0
A107: ED_EXP215_00003 | B107: Augmentation Expenditure | C107: 0
A108: ED_EXP215_00004 | B108: Non-network | C108: 0
A109: ED_EXP215_00005 | B109: Capitalised network overheads | C109: 0
A110: ED_EXP215_00006 | B110: Capitalised corporate overheads | C110: 0
A111: ED_EXP211_00002
A112: ED_EXP211_00003
A113: ED_EXP211_00004
A114: ED_EXP211_00005
A115: ED_EXP211_00006
A116: ED_EXP211_00007
A117: ED_EXP211_00008
A118: ED_EXP215_00007 | B118: balancing item | C118: 0
A119: ED_EXP215_00008 | B119: TOTAL GROSS CAPEX (includes capcons) | C119: =SUM(C105:C118) -> 0
A120: ED_EXP215_00009 | B120: capcons | C120: 0
B122: TABLE 2.1.6 - DUAL FUNCTION ASSETS OPEX
C125: Actual ($0's)
C126: =CRY -> 2014-15
A127: ED_EXP216_00001 | B127: Vegetation management | C127: 0
A128: ED_EXP216_00002 | B128: Maintenance | C128: 0
A129: ED_EXP216_00003 | B129: Emergency response | C129: 0
A130: ED_EXP216_00004 | B130: Non-network | C130: 0
A131: ED_EXP216_00005 | B131: Network overheads | C131: 0
A132: ED_EXP216_00006 | B132: Corporate overheads | C132: 0
A133: ED_EXP211_00002
A134: ED_EXP211_00003
A135: ED_EXP211_00004
A136: ED_EXP211_00005
A137: ED_EXP211_00006
A138: ED_EXP211_00007
A139: ED_EXP211_00008
A140: ED_EXP216_00007 | B140: balancing item | C140: 0
B141: TOTAL OPEX | C141: =SUM(C127:C140) -> 0

Sheet 2.2 Repex
B1: =(LOOKUP(dms_Model,dms_Model_List,dms_Worksheet_List)) -> REGULATORY REPORTING STATEMENT
B2: Australian Distribution Co.
B3: =CONCATENATE("Category Analysis RIN response ",CRY) -> Category Analysis RIN response 2014-15
B4: 2.2 REPEX
B6: TABLE 2.2.1 - REPLACEMENT EXPENDITURE, VOLUMES AND ASSET FAILURES BY ASSET CATEGORY | H6: Table 2.2.2 - SELECTED ASSET CHARACTERISTICS
D9: EXPENDITURE ($0's) | E9: ASSET REPLACEMENTS | F9: ASSET FAILURES | J9: ASSET VOLUMES CURRENTLY IN COMMISSION | K9: ASSET REPLACEMENTS
B10: ASSET GROUP | C10: ASSET CATEGORY | D10: =CRY -> 2014-15 | E10: =CRY -> 2014-15 | F10: =CRY -> 2014-15 | H10: ASSET GROUP | I10: METRIC | J10: =CRY -> 2014-15 | K10: =CRY -> 2014-15
A11: ED_REP221_00001 | B11: POLES BY: HIGHEST OPERATING VOLTAGE ; MATERIAL TYPE; STAKING (IF WOOD) | C11: Staking of a wooden pole | D11: 0 | E11: 0 | F11: 0 | G11: ED_REP222_00001 | H11: TOTAL POLES BY: FEEDER TYPE | I11: Total CBD poles | J11: 339 | K11: 5
A12: ED_REP221_00002 | C12: ˂ = 1 kV; Wood | D12: 0 | E12: 0 | F12: 0 | G12: ED_REP222_00002 | I12: Total urban poles | J12: 257998 | K12: 1313
A13: ED_REP221_00003 | C13: > 1 kV & < = 11 kV; Wood | D13: 0 | E13: 0 | F13: 0 | G13: ED_REP222_00003 | I13: Total rural long poles | J13: 372686 | K13: 515
A14: ED_REP221_00004 | C14: ˃ 11 kV & < = 22 kV; Wood | D14: 0 | E14: 0 | F14: 0 | G14: ED_REP222_00004 | I14: Total rural short poles | J14: 114837 | K14: 324
A15: ED_REP221_00005 | C15: > 22 kV & < = 66 kV; Wood | D15: 0 | E15: 0 | F15: 0 | G15: ED_REP222_00005 | H15: OVERHEAD CONDUCTORS BY: CONDUCTOR LENGTH BY FEEDER TYPE | I15: Conductors CBD (km) | J15: 65 | K15: 0.06
A16: ED_REP221_00006 | C16: > 66 kV & < = 132 kV; Wood | D16: 0 | E16: 0 | F16: 0 | G16: ED_REP222_00006 | I16: Conductors urban (km) | J16: 55318 | K16: 14.64
A17: ED_REP221_00007 | C17: > 132 kV; Wood | D17: 0 | E17: 0 | F17: 0 | G17: ED_REP222_00007 | I17: Conductors rural long (km) | J17: 87563 | K17: 62.24
A18: ED_REP221_00008 | C18: ˂ = 1 kV; Concrete | D18: 0 | E18: 0 | F18: 0 | G18: ED_REP222_00008 | I18: Conductors rural short (km) | J18: 31473 | K18: 55.605
A19: ED_REP221_00009 | C19: > 1 kV & < = 11 kV; Concrete | D19: 0 | E19: 0 | F19: 0 | G19: ED_REP222_00009 | H19: OVERHEAD CONDUCTORS BY: CONDUCTOR LENGTH MATERIAL TYPE | I19: OH conductor LV ABC | J19: 7898 | K19: 0
A20: ED_REP221_00010 | C20: ˃ 11 kV & < = 22 kV; Concrete | D20: 0 | E20: 0 | F20: 0 | G20: ED_REP222_00010 | I20: OH conductor steel | J20: 45155 | K20: 34.91
A21: ED_REP221_00011 | C21: > 22 kV & < = 66 kV; Concrete | D21: 0 | E21: 0 | F21: 0 | G21: ED_REP222_00011 | I21: OH conductor ACSR | J21: 40011 | K21: 46.775
A22: ED_REP221_00012 | C22: > 66 kV & < = 132 kV; Concrete | D22: 0 | E22: 0 | F22: 0 | G22: ED_REP222_00012 | I22: OH conductor AAAC | J22: 6216 | K22: 9
A23: ED_REP221_00013 | C23: > 132 kV; Concrete | D23: 0 | E23: 0 | F23: 0 | G23: ED_REP222_00013 | I23: OH conductor AAC | J23: 30605 | K23: 28.2
A24: ED_REP221_00014 | C24: ˂ = 1 kV; Steel | D24: 0 | E24: 0 | F24: 0 | G24: ED_REP222_00014 | I24: OH conductor HDBC | J24: 44535 | K24: 13.66
A25: ED_REP221_00015 | C25: > 1 kV & < = 11 kV; Steel | D25: 0 | E25: 0 | F25: 0 | G25: ED_REP222_00015 | I25: Other | J25: 0 | K25: 0
A26: ED_REP221_00016 | C26: ˃ 11 kV & < = 22 kV; Steel | D26: 0 | E26: 0 | F26: 0 | G26: ED_REP222_00016 | H26: UNDERGROUND CABLES BY: CABLE LENGTH BY FEEDER TYPE | I26: Cable CBD (km) | J26: 265 | K26: 0.11
A27: ED_REP221_00017 | C27: > 22 kV & < = 66 kV; Steel | D27: 0 | E27: 0 | F27: 0 | G27: ED_REP222_00017 | I27: Cable urban (km) | J27: 10394 | K27: 4.62
A28: ED_REP221_00018 | C28: > 66 kV & < = 132 kV; Steel | D28: 0 | E28: 0 | F28: 0 | G28: ED_REP222_00018 | I28: Cable rural long (km) | J28: 3062 | K28: 0.76
A29: ED_REP221_00019 | C29: > 132 kV; Steel | D29: 0 | E29: 0 | F29: 0 | G29: ED_REP222_00019 | I29: Cable rural short (km) | J29: 3250 | K29: 0.62
A30: ED_REP221_00020 | C30: Other | D30: 0 | E30: 0 | F30: 0 | G30: ED_REP222_00020 | H30: TRANSFORMERS BY: TOTAL MVA | I30: Total MVA replaced | J30: 20.7 | K30: 0
A31: ED_REP221_00021 | B31: POLE TOP STRUCTURES BY: HIGHEST OPERATING VOLTAGE | C31: ˂ = 1 kV | D31: 3087465.611 | E31: 3117 | F31: 3040 | G31: ED_REP222_00021 | I31: Total MVA disposed of | J31: 32.75 | K31: 0
A32: ED_REP221_00022 | C32: > 1 kV & < = 11 kV | D32: 9912894.929 | E32: 5282 | F32: 791
A33: ED_REP221_00023 | C33: ˃ 11 kV & < = 22 kV | D33: 3702562.898 | E33: 1607 | F33: 471
A34: ED_REP221_00024 | C34: > 22 kV & < = 66 kV | D34: 1726821.994 | E34: 410 | F34: 60
A35: ED_REP221_00025 | C35: > 66 kV & < = 132 kV | D35: 0 | E35: 0 | F35: 0
A36: ED_REP221_00026 | C36: > 132 kV | D36: 0 | E36: 0 | F36: 0
A37: ED_REP221_00027 | C37: Other | D37: 0 | E37: 0 | F37: 0
A38: ED_REP221_00028 | B38: OVERHEAD CONDUCTORS BY: HIGHEST OPERATING VOLTAGE; NUMBER OF PHASES (AT HV) | C38: ˂ = 1 kV | D38: 772764.6842 | E38: 18.32 | F38: 916
A39: ED_REP221_00029 | C39: > 1 kV & < = 11 kV | D39: 1445036.774 | E39: 73.795 | F39: 165
A40: ED_REP221_00030 | C40: ˃ 11 kV & < = 22 kV ; SWER | D40: 202706.3544 | E40: 27.3 | F40: 53
A41: ED_REP221_00031 | C41: ˃ 11 kV & < = 22 kV ; Single-Phase | D41: 0 | E41: 0 | F41: 0
A42: ED_REP221_00032 | C42: ˃ 11 kV & < = 22 kV ; Multiple-Phase | D42: 0 | E42: 0 | F42: 0
A43: ED_REP221_00033 | C43: > 22 kV & < = 66 kV | D43: 143807.2811 | E43: 13.13 | F43: 4
A44: ED_REP221_00034 | C44: > 66 kV & < = 132 kV | D44: 0 | E44: 0 | F44: 0
A45: ED_REP221_00035 | C45: > 132 kV | D45: 0 | E45: 0 | F45: 0
A46: ED_REP221_00036 | C46: Other | D46: 0 | E46: 0 | F46: 0
A47: ED_REP221_00037 | B47: UNDERGROUND CABLES BY: HIGHEST OPERATING VOLTAGE | C47: ˂ = 1 kV | D47: 848870.0739 | E47: 4.93 | F47: 468
A48: ED_REP221_00038 | C48: > 1 kV & < = 11 kV | D48: 6449204.793 | E48: 1.03 | F48: 104
A49: ED_REP221_00039 | C49: > 11 kV & < = 22 kV | D49: 88788.50064 | E49: 0.07 | F49: 7
A50: ED_REP221_00040 | C50: > 22 kV & < = 33 kV | D50: 601380.9846 | E50: 0.08 | F50: 8
A51: ED_REP221_00041 | C51: > 33 kV & < = 66 kV | D51: 0 | E51: 0 | F51: 0
A52: ED_REP221_00042 | C52: > 66 kV & < = 132 kV | D52: 0 | E52: 0 | F52: 0
A53: ED_REP221_00043 | C53: > 132 kV | D53: 0 | E53: 0 | F53: 0
A54: ED_REP221_00044 | C54: Other | D54: 0 | E54: 0 | F54: 0
A55: ED_REP221_00045 | B55: SERVICE LINES BY: CONNECTION VOLTAGE; CUSTOMER TYPE; CONNECTION COMPLEXITY | C55: ˂ = 11 kV ; Residential ; Simple Type | D55: 4569986.827 | E55: 8196 | F55: 5999
A56: ED_REP221_00046 | C56: ˂ = 11 kV ; Commercial & Industrial ; Simple Type | D56: 0 | E56: 0 | F56: 0
A57: ED_REP221_00047 | C57: ˂ = 11 kV ; Residential ; Complex Type | D57: 0 | E57: 0 | F57: 0
A58: ED_REP221_00048 | C58: ˂ = 11 kV ; Commercial & Industrial ; Complex Type | D58: 564829.8326 | E58: 906 | F58: 664
A59: ED_REP221_00049 | C59: ˂ = 11 kV ; Subdivision ; Complex Type | D59: 0 | E59: 0 | F59: 0
A60: ED_REP221_00050 | C60: > 11 kV & < = 22 kV ; Commercial & Industrial | D60: 0 | E60: 0 | F60: 0
A61: ED_REP221_00051 | C61: > 11 kV & < = 22 kV ; Subdivision | D61: 0 | E61: 0 | F61: 0
A62: ED_REP221_00052 | C62: > 22 kV & < = 33 kV ; Commercial & Industrial | D62: 0 | E62: 0 | F62: 0
A63: ED_REP221_00053 | C63: > 22 kV & < = 33 kV ; Subdivision | D63: 0 | E63: 0 | F63: 0
A64: ED_REP221_00054 | C64: > 33 kV & < = 66 kV ; Commercial & Industrial | D64: 0 | E64: 0 | F64: 0
A65: ED_REP221_00055 | C65: > 33 kV & < = 66 kV ; Subdivision | D65: 0 | E65: 0 | F65: 0
A66: ED_REP221_00056 | C66: > 66 kV & < = 132 kV ; Commercial & Industrial | D66: 0 | E66: 0 | F66: 0
A67: ED_REP221_00057 | C67: > 66 kV & < = 132 kV ; Subdivision | D67: 0 | E67: 0 | F67: 0
A68: ED_REP221_00058 | C68: > 132 kV ; Commercial & Industrial | D68: 0 | E68: 0 | F68: 0
A69: ED_REP221_00059 | C69: > 132 kV ; Subdivision | D69: 0 | E69: 0 | F69: 0
A70: ED_REP221_00060 | C70: Other | D70: 0 | E70: 0 | F70: 0
A71: ED_REP221_00061 | B71: TRANSFORMERS BY: MOUNTING TYPE; HIGHEST OPERATING VOLTAGE ; AMPERE RATING; NUMBER OF PHASES (AT LV) | C71: Pole Mounted ; < = 22kV ; < = 60 kVA ; Single Phase | D71: 2534828.054 | E71: 186 | F71: 118
A72: ED_REP221_00062 | C72: Pole Mounted ; < = 22kV ; > 60 kVA and < = 600 kVA ; Single Phase | D72: 204421.6172 | E72: 15 | F72: 6
A73: ED_REP221_00063 | C73: Pole Mounted ; < = 22kV ; > 600 kVA ; Single Phase | D73: 0 | E73: 0 | F73: 0
A74: ED_REP221_00064 | C74: Pole Mounted ; < = 22kV ; < = 60 kVA ; Multiple Phase | D74: 545124.3126 | E74: 40 | F74: 19
A75: ED_REP221_00065 | C75: Pole Mounted ; < = 22kV ; > 60 kVA and < = 600 kVA ; Multiple Phase | D75: 858570.7923 | E75: 63 | F75: 30
A76: ED_REP221_00066 | C76: Pole Mounted ; < = 22kV ; > 600 kVA ; Multiple Phase | D76: 40884.32345 | E76: 3 | F76: 1
A77: ED_REP221_00073 | C77: Kiosk Mounted ; < = 22kV ; < = 60 kVA ; Single Phase | D77: 0 | E77: 0 | F77: 0
A78: ED_REP221_00074 | C78: Kiosk Mounted ; < = 22kV ; > 60 kVA and < = 600 kVA ; Single Phase | D78: 0 | E78: 0 | F78: 0
A79: ED_REP221_00075 | C79: Kiosk Mounted ; < = 22kV ; > 600 kVA ; Single Phase | D79: 0 | E79: 0 | F79: 0
A80: ED_REP221_00076 | C80: Kiosk Mounted ; < = 22kV ; < = 60 kVA ; Multiple Phase | D80: 0 | E80: 0 | F80: 0
A81: ED_REP221_00077 | C81: Kiosk Mounted ; < = 22kV ; > 60 kVA and < = 600 kVA ; Multiple Phase | D81: 530085.0709 | E81: 28 | F81: 13
A82: ED_REP221_00078 | C82: Kiosk Mounted ; < = 22kV ; > 600 kVA ; Multiple Phase | D82: 0 | E82: 0 | F82: 0
A83: ED_REP221_00085 | C83: Ground Outdoor / Indoor Chamber Mounted; ˂ 22 kV ; < = 60 kVA ; Single Phase | D83: 0 | E83: 0 | F83: 0
A84: ED_REP221_00086 | C84: Ground Outdoor / Indoor Chamber Mounted; ˂ 22 kV ; > 60 kVA and < = 600 kVA ; Single Phase | D84: 0 | E84: 0 | F84: 0
A85: ED_REP221_00087 | C85: Ground Outdoor / Indoor Chamber Mounted; ˂ 22 kV ; > 600 kVA ; Single Phase | D85: 0 | E85: 0 | F85: 0
A86: ED_REP221_00088 | C86: Ground Outdoor / Indoor Chamber Mounted; ˂ 22 kV ; < = 60 kVA ; Multiple Phase | D86: 0 | E86: 0 | F86: 0
A87: ED_REP221_00089 | C87: Ground Outdoor / Indoor Chamber Mounted; ˂ 22 kV ; > 60 kVA and < = 600 kVA ; Multiple Phase | D87: 0 | E87: 0 | F87: 0
A88: ED_REP221_00090 | C88: Ground Outdoor / Indoor Chamber Mounted; ˂ 22 kV ; > 600 kVA ; Multiple Phase | D88: 117829.8693 | E88: 1 | F88: 0
A89: ED_REP221_00091 | C89: Ground Outdoor / Indoor Chamber Mounted; > = 22 kV & < = 33 kV ; < = 15 MVA | D89: 376757.0422 | E89: 5 | F89: 1
A90: ED_REP221_00092 | C90: Ground Outdoor / Indoor Chamber Mounted; > = 22 kV & < = 33 kV ; > 15 MVA and < = 40 MVA | D90: 0 | E90: 0 | F90: 0
A91: ED_REP221_00093 | C91: Ground Outdoor / Indoor Chamber Mounted; > = 22 kV & < = 33 kV ; > 40 MVA | D91: 0 | E91: 0 | F91: 0
A92: ED_REP221_00094 | C92: Ground Outdoor / Indoor Chamber Mounted; > 33 kV & < = 66 kV ; < = 15 MVA | D92: 0 | E92: 0 | F92: 0
A93: ED_REP221_00095 | C93: Ground Outdoor / Indoor Chamber Mounted; > 33 kV & < = 66 kV ; > 15 MVA and < = 40 MVA | D93: 0 | E93: 0 | F93: 0
A94: ED_REP221_00096 | C94: Ground Outdoor / Indoor Chamber Mounted; > 33 kV & < = 66 kV ; > 40 MVA | D94: 0 | E94: 0 | F94: 0
A95: ED_REP221_00097 | C95: Ground Outdoor / Indoor Chamber Mounted; > 66 kV & < = 132 kV ; < = 100 MVA | D95: 0 | E95: 0 | F95: 0
A96: ED_REP221_00098 | C96: Ground Outdoor / Indoor Chamber Mounted; > 66 kV & < = 132 kV ; > 100 MVA | D96: 0 | E96: 0 | F96: 0
A97: ED_REP221_00099 | C97: Ground Outdoor / Indoor Chamber Mounted; > 132 kV ; < = 100 MVA | D97: 0 | E97: 0 | F97: 0
A98: ED_REP221_00100 | C98: Ground Outdoor / Indoor Chamber Mounted; > 132 kV ; > 100 MVA | D98: 0 | E98: 0 | F98: 0
A99: ED_REP221_00101 | C99: Other | D99: 0 | E99: 0 | F99: 0
A100: ED_REP221_00102 | B100: SWITCHGEAR BY: HIGHEST OPERATING VOLTAGE ; SWITCH FUNCTION | C100: ˂ = 11 kV ; FUSE | D100: 0 | E100: 0 | F100: 0
A101: ED_REP221_00103 | C101: ˂ = 11 kV ; Switch | D101: 0 | E101: 0 | F101: 0
A102: ED_REP221_00104 | C102: ˂ = 11 kV ; Circuit Breaker | D102: 0 | E102: 0 | F102: 10
A103: ED_REP221_00105 | C103: > 11 kV & < = 22 kV ; Switch | D103: 0 | E103: 0 | F103: 0
A104: ED_REP221_00106 | C104: > 11 kV & < = 22 kV ; Circuit Breaker | D104: 0 | E104: 0 | F104: 0
A105: ED_REP221_00107 | C105: > 22 kV & < = 33 kV ; Switch | D105: 790597.7051 | E105: 8 | F105: 0
A106: ED_REP221_00108 | C106: > 22 kV & < = 33 kV ; Circuit Breaker | D106: 1529891.343 | E106: 2 | F106: 0
A107: ED_REP221_00109 | C107: > 33 kV & < = 66 kV ; Switch | D107: 133345.9748 | E107: 3 | F107: 3
A108: ED_REP221_00110 | C108: > 33 kV & < = 66 kV ; Circuit Breaker | D108: 761055.5745 | E108: 3 | F108: 0
A109: ED_REP221_00111 | C109: > 66 kV & < = 132 kV ; Switch | D109: 0 | E109: 0 | F109: 0
A110: ED_REP221_00112 | C110: > 66 kV & < = 132 kV ; Circuit Breaker | D110: 0 | E110: 0 | F110: 0
A111: ED_REP221_00113 | C111: > 132 kV ; Switch | D111: 0 | E111: 0 | F111: 0
A112: ED_REP221_00114 | C112: > 132 kV ; Circuit Breaker | D112: 0 | E112: 0 | F112: 0
A113: ED_REP221_00115 | C113: Other | D113: 0 | E113: 0 | F113: 0
A114: ED_REP221_00116 | B114: PUBLIC LIGHTING BY: ASSET TYPE ; LIGHTING OBLIGATION | C114: Luminaires ; Major Road | D114: 0 | E114: 0 | F114: 0
A115: ED_REP221_00117 | C115: Luminaires ; Minor Road | D115: 0 | E115: 0 | F115: 0
A116: ED_REP221_00118 | C116: Brackets ; Major Road | D116: 0 | E116: 0 | F116: 0
A117: ED_REP221_00119 | C117: Brackets ; Minor Road | D117: 0 | E117: 0 | F117: 0
A118: ED_REP221_00120 | C118: Lamps ; Major Road | D118: 0 | E118: 0 | F118: 0
A119: ED_REP221_00121 | C119: Lamps ; Minor Road | D119: 0 | E119: 0 | F119: 0
A120: ED_REP221_00122 | C120: Poles / Columns ; Major Road | D120: 0 | E120: 0 | F120: 0
A121: ED_REP221_00123 | C121: Poles / Columns ; Minor Road | D121: 0 | E121: 0 | F121: 0
A122: ED_REP221_00124 | C122: Other | D122: 0 | E122: 0 | F122: 0
A123: ED_REP221_00125 | B123: SCADA, NETWORK CONTROL AND PROTECTION SYSTEMS BY: FUNCTION | C123: Field Devices | D123: 1671716.557 | E123: 12 | F123: 37
A124: ED_REP221_00126 | C124: Local Network Wiring Assets | D124: 0 | E124: 0 | F124: 0
A125: ED_REP221_00127 | C125: Communications Network Assets | D125: 1809293.966 | E125: 66 | F125: 17
A126: ED_REP221_00128 | C126: Master Station Assets | D126: 0 | E126: 0 | F126: 0
A127: ED_REP221_00129 | C127: Communications Site Infrastructure | D127: 635145.4789 | E127: 5 | F127: 16
A128: ED_REP221_00130 | C128: Communications Linear Assets | D128: 1952444.546 | E128: 1.3 | F128: 0
A129: ED_REP221_00131 | C129: AFLC | D129: 0 | E129: 0 | F129: 0
A130: ED_REP221_00124 | C130: Other | D130: 1340367.357 | E130: 16 | F130: 0
A131: ED_REP221_00132 | B131: OTHER BY: DNSP DEFINED | C131: ˂ ≈ 11 kV ; STOBIE Pole | D131: 16859774.61 | E131: 1889 | F131: 107
A132: ED_REP221_00133 | C132: > 11 kV & <≈ 33 kV ; STOBIE Pole | D132: 2139057.313 | E132: 267 | F132: 18
A133: ED_REP221_00134 | C133: > 33 kV & <≈ 66 kV ; STOBIE Pole | D133: 45912.26006 | E133: 1 | F133: 0
A134: ED_REP221_00135 | C134: Pole REFURBISHED; STOBIE Pole | D134: 3937261.568 | E134: 3717 | F134: 0
A135: ED_REP221_00136 | C135: POLE MOUNTED TRANSFORMER; > 22 kV ; < ≈ 60 kVA | D135: 80500.01797 | E135: 8 | F135: 4
A136: ED_REP221_00137 | C136: POLE MOUNTED TRANSFORMER ; > 22 kV ; > 60 kVA and < ≈ 600 kVA | D136: 80500.01797 | E136: 8 | F136: 4
A137: ED_REP221_00138 | C137: KIOSK MOUNTED TRANSFORMER; > 22 kV ; > 60 kVA and < ≈ 600 kVA | D137: 0 | E137: 0 | F137: 0
A138: ED_REP221_00139 | C138: OTHER - Non Category Substation asset replacement/refurbishment | D138: 7883758.403 | E138: 115 | F138: 4
A139: ED_REP221_00140 | C139: Recloser ;SWITCHGEAR | D139: 3268340.872 | E139: 182 | F139: 125
A140: ED_REP221_00141 | C140: Sectionalizer ;SWITCHGEAR | D140: 29350.39109 | E140: 15 | F140: 15
A141: ED_REP221_00142 | C141: >= 11 kV & < ≈ 22 kV ; LOAD BREAK SWITCH; GROUND LEVEL (Switching Cubical);SWITCHGEAR | D141: 3367933.096 | E141: 42 | F141: 9
A142: ED_REP221_00143 | C142: > 22 kV & < ≈ 33 kV ; LOAD BREAK SWITCH; GROUND LEVEL (Switching Cubical);SWITCHGEAR | D142: 0 | E142: 0 | F142: 0
A143: ED_REP221_00144
A144: ED_REP221_00145
A145: ED_REP221_00146
A146: ED_REP221_00147

Sheet 2.3 Augex
B1: =(LOOKUP(dms_Model,dms_Model_List,dms_Worksheet_List)) -> REGULATORY REPORTING STATEMENT | K1: New line on new route - single circuit | L1: New line on new route - dual circuit | O1: Worksheet navigation
B2: Australian Distribution Co.
B3: =CONCATENATE("Category Analysis RIN response ",CRY) -> Category Analysis RIN response 2014-15
B4: 2.3 AUGEX PROJECT DATA
B7: TABLE 2.3.1 - AUGEX ASSET DATA - SUBTRANSMISSION SUBSTATIONS, SWITCHING STATIONS AND ZONE SUBSTATIONS
B8: NOTE: DNSP MUST PROVIDE EXPENDITURE INFORMATION ON A PROJECT CLOSE BASIS.
A9: AUG231 | B9: AUG231_1 | M9: AUG231_2 | N9: AUG231_3 | O9: AUG231_4 | P9: AUG231_5 | Q9: AUG231_6 | R9: ED_AUG231_00001 | S9: ED_AUG231_00002 | T9: ED_AUG231_00003 | U9: ED_AUG231_00004 | V9: ED_AUG231_00005 | W9: ED_AUG231_00006 | X9: ED_AUG231_00007 | Y9: ED_AUG231_00008 | Z9: ED_AUG231_00009 | AK9: ED_AUG231_00010 | AL9: ED_AUG231_00011 | AM9: ED_AUG231_00012 | AN9: ED_AUG231_00013 | AO9: ED_AUG231_00014 | AP9: ED_AUG231_00015 | AQ9: ED_AUG231_00016 | AR9: ED_AUG231_00017 | AS9: ED_AUG231_00018 | AT9: ED_AUG231_00019 | AU9: ED_AUG231_00020 | AV9: ED_AUG231_00021 | AW9: ED_AUG231_00022 | AX9: ED_AUG231_00023
B10: PROJECT DESCRIPTION AND CHANGES | V10: PLANT AND EQUIPMENT EXPENDITURE AND VOLUME | AP10: OTHER EXPENDITURE | AR10: TOTAL DIRECT EXPENDITURE ($0's) | AS10: YEARS INCURRED | AT10: ALL RELATED PARTY CONTRACTS | AV10: ALL NON RELATED PARTYCONTRACTS | AW10: LAND AND EASEMENTS
B11: SUBSTATION ID | M11: SUBSTATION TYPE | N11: PROJECT ID | O11: PROJECT TYPE | P11: PROJECT TRIGGER | Q11: VOLTAGE (KV) | R11: SUBSTATION RATING NORMAL CYCLIC (MVA) | T11: SUBSTATION RATING N-1 EMERGENCY (MVA) | V11: TRANSFORMERS | Y11: SWITCHGEAR | AK11: CAPACITORS | AM11: OTHER PLANT ITEM | AN11: INSTALLATION (LABOUR) | AP11: CIVIL WORKS | AQ11: OTHER DIRECT | AT11: RELATED PARTY MARGINS | AU11: TOTAL | AW11: LAND PURCHASE | AX11: EASEMENTS
R12: PRE | S12: POST | T12: PRE | U12: POST | V12: UNITS ADDED | W12: MVA ADDED | X12: EXPENDITURE ($0's) | Y12: UNITS ADDED | Z12: EXPENDITURE ($0's) | AK12: MVAR ADDED | AL12: EXPENDITURE ($0's) | AM12: EXPENDITURE ($0's) | AN12: VOLUME | AO12: EXPENDITURE ($0's) | AP12: EXPENDITURE ($0's) | AT12: EXPENDITURE ($0's) | AW12: EXPENDITURE ($0's)
A13: AUG231_1 | B13: Glenelg North Zone Substation | M13: Zone substation | N13: NW-11587 | O13: Other | P13: Demand growth | Q13: 66/11 | S13: 27.9 | U13: 15 | V13: 0 | W13: 0 | X13: 0 | Y13: 10 | Z13: 277482.7683 | AK13: 0 | AL13: 0 | AM13: 467921.6558 | AN13: 8929 | AO13: 903849.7425 | AP13: 773161.2333 | AQ13: 73777.50793 | AR13: =SUM(X13,Z13,AL13,AM13,AO13,AP13,AQ13) -> 2496192.908 | AS13: 2011, 2012, 2013, 2014, 2015 | AT13: 0 | AU13: 2766082.143 | AV13: 269889.2347 | AW13: 0 | AX13: 0
A14: AUG231_2 | B14: Virginia Substation | M14: Zone substation | N14: NW-9244 | O14: Other | P14: Demand growth | Q14: 66/11 | S14: 14.9 | U14: 0 | V14: 0 | W14: 0 | X14: 0 | Y14: 7 | Z14: 155118.0626 | AK14: 0 | AL14: 0 | AM14: 887603.0203 | AN14: 9345.26 | AO14: 951397.9365 | AP14: 294008.0493 | AQ14: 206823.4745 | AR14: =SUM(X14,Z14,AL14,AM14,AO14,AP14,AQ14) -> 2494950.543 | AS14: 2009, 2010, 2011, 2012, 2013, 2014, 2015 | AT14: 0 | AU14: 3318321.127 | AV14: 823370.5836 | AW14: 0 | AX14: 0
A15: AUG231_3 | B15: Kilburn South | M15: Zone substation | N15: CP-13646 | O15: Substation upgrade - capacity | P15: Demand growth | Q15: 66/11 | R15: 14.3 | S15: 36.4 | U15: 0 | V15: 1 | W15: 22.1 | X15: 893072.2648 | Y15: 22 | Z15: 798192.515 | AK15: 0 | AL15: 0 | AM15: 890287.1114 | AN15: 17233.77 | AO15: 1958806.716 | AP15: 1077473.718 | AQ15: 62207.34955 | AR15: 5680039.675 | AS15: 2012, 2013, 2014, 2015 | AT15: 0 | AU15: 6878731.461 | AV15: 1198691.786 | AW15: 0 | AX15: 0
A16: AUG231_4 | B16: Smithfield West | M16: Zone substation | N16: CP-13020 | O16: New substation establishment | P16: Demand growth | Q16: 66/11 | S16: 36.2 | U16: 0 | V16: 1 | W16: 36.2 | X16: 881816.5209 | Y16: 21 | Z16: 820035.6421 | AK16: 0 | AL16: 0 | AM16: 848469.1548 | AN16: 19884.89 | AO16: 2061591.696 | AP16: 2369495.749 | AQ16: 117359.4251 | AR16: 7098768.187 | AS16: 2011, 2012, 2013, 2014, 2015 | AT16: 0 | AU16: 7594027.11 | AV16: 495258.9226 | AW16: 0 | AX16: 0
A17: AUG231_5 | AR17: 0
A18: AUG231_6 | AR18: 0
A19: AUG231_7 | AR19: 0
A20: AUG231_8 | AR20: 0
A21: AUG231_9 | AR21: 0
A22: AUG231_10 | AR22: 0
A23: AUG231_11 | AR23: 0
A24: AUG231_12 | AR24: 0
A25: AUG231_13 | AR25: 0
A26: AUG231_14 | AR26: 0
A27: AUG231_15 | AR27: 0
A28: AUG231_16 | AR28: 0
A29: AUG231_17 | AR29: 0
A30: AUG231_18 | AR30: 0
A31: AUG231_19 | AR31: 0
A32: AUG231_20 | AR32: 0
A33: AUG231_21 | AR33: 0
A34: AUG231_22 | AR34: 0
A35: AUG231_23 | AR35: 0
A36: AUG231_24 | AR36: 0
A37: AUG231_25 | AR37: 0
A38: AUG231_26 | AR38: 0
A39: AUG231_27 | AR39: 0
A40: AUG231_28 | AR40: 0
A41: AUG231_29 | AR41: 0
A42: AUG231_30 | AR42: 0
A43: AUG231_31 | AR43: 0
A44: AUG231_32 | AR44: 0
A45: AUG231_33 | AR45: 0
A46: AUG231_34 | AR46: 0
A47: AUG231_35 | AR47: 0
A48: AUG231_36 | AR48: 0
A49: AUG231_37 | AR49: 0
A50: AUG231_38 | AR50: 0
A51: AUG231_39 | AR51: 0
A52: AUG231_40 | AR52: 0
A53: AUG231_41 | AR53: 0
A54: AUG231_42 | AR54: 0
A55: AUG231_43 | AR55: 0
A56: AUG231_44 | AR56: 0
A57: AUG231_45 | AR57: 0
A58: AUG231_46 | AR58: 0
A59: AUG231_47 | AR59: 0
A60: AUG231_48 | AR60: 0
A61: AUG231_49 | AR61: 0
A62: AUG231_50 | AR62: 0
A63: AUG231_51 | AR63: 0
A64: AUG231_52 | AR64: 0
N65: Non material projects - [actual] | AR65: 48782345.94
N66: Non material projects - [forecast]
A68: AUG232 | B68: AUG232_1 | C68: AUG232_2 | D68: AUG232_3 | E68: AUG232_4 | F68: AUG232_5 | G68: AUG232_6 | H68: AUG232_7 | I68: AUG232_8 | J68: AUG232_9 | K68: AUG232_10 | L68: AUG232_11 | M68: AUG232_2 | N68: AUG232_3 | O68: AUG232_4 | P68: AUG232_5 | Q68: AUG232_6 | R68: ED_AUG232_00001 | S68: ED_AUG232_00002 | T68: ED_AUG232_00003 | U68: ED_AUG232_00004 | V68: ED_AUG232_00005 | W68: ED_AUG232_00006 | X68: ED_AUG232_00007 | Y68: ED_AUG232_00008 | Z68: ED_AUG232_00009 | AK68: ED_AUG232_00010 | AL68: ED_AUG232_00011 | AM68: ED_AUG232_00012 | AN68: ED_AUG232_00013 | AO68: ED_AUG232_00014 | AP68: ED_AUG232_00015 | AQ68: ED_AUG232_00016 | AR68: ED_AUG232_00017 | AS68: ED_AUG232_00018 | AT68: ED_AUG232_00019 | AU68: ED_AUG232_00020 | AV68: ED_AUG232_00021
B69: TABLE 2.3.2 - AUGEX ASSET DATA - SUBTRANSMISSION LINES
B70: NOTE: DNSP MUST PROVIDE EXPENDITURE INFORMATION ON A PROJECT CLOSE BASIS.
B71: PROJECT DESCRIPTION AND CHANGES | R71: PLANT AND EQUIPMENT EXPENDITURE AND VOLUME | AN71: OTHER EXPENDITURE | AP71: TOTAL DIRECT EXPENDITURE ($0's) | AQ71: YEARS INCURRED | AR71: ALL RELATED PARTY CONTRACTS | AT71: ALL NON RELATED PARTYCONTRACTS | AU71: LAND AND EASEMENTS
B72: LINE ID | M72: PROJECT ID | N72: PROJECT TYPE | O72: PROJECT TRIGGER | P72: VOLTAGE (KV) | Q72: ROUTE LINE LENGTH ADDED | R72: POLES/TOWERS (INCLUDING STRUCTURES, AND CIVIL WORKS) | U72: OVERHEAD LINES | X72: UNDERGROUND CABLES | AK72: OTHER PLANT ITEM | AL72: INSTALLATION (LABOUR) | AN72: CIVIL WORKS | AO72: OTHER DIRECT | AR72: RELATED PARTY MARGINS | AS72: TOTAL | AU72: LAND PURCHASE | AV72: EASEMENTS
Q73: KM ADDED | R73: POLES/TOWERS ADDED | S73: POLES/TOWERS UPGRADED | T73: EXPENDITURE ($0's) | U73: CIRCUIT KM ADDED | V73: CIRCUIT KM UPGRADED | W73: EXPENDITURE ($0's) | X73: CIRCUIT KM ADDED | Y73: CIRCUIT KM UPGRADED | Z73: EXPENDITURE ($0's) | AK73: EXPENDITURE ($0's) | AL73: VOLUME | AM73: EXPENDITURE ($0's) | AN73: EXPENDITURE ($0's) | AR73: EXPENDITURE ($0's) | AU73: EXPENDITURE ($0's)
A74: AUG232_1 | B74: Morphettville - Glenelg North 66kV Line | M74: NW-11587 | N74: New line on new route - single circuit | O74: Demand growth | P74: 66 | Q74: 1.4 | R74: 0 | S74: 1 | T74: 37107.23013 | U74: 0 | V74: 0 | W74: 0 | X74: 1.4 | Y74: 0 | Z74: 1040550.434 | AK74: 0 | AL74: 8265 | AM74: 1011288.084 | AN74: 1481393.945 | AO74: 0 | AP74: =SUM(T74,W74,Z74,AK74,AM74,AN74,AO74) -> 3570339.693 | AQ74: 2011, 2012, 2013, 2014, 2015 | AR74: 0 | AS74: 4678454.387 | AT74: 1105108.034 | AU74: 0 | AV74: 3006.659248 | AX74: New line on new route - single circuit
A75: AUG232_2 | B75: Bolivar to Virginia 66kV Line Uprate | M75: NW-9244 | N75: Line rebuild over existing route - single circuit | O75: Demand growth | P75: 66 | Q75: 0 | R75: 2 | S75: 13 | T75: 408424.4176 | U75: 0 | V75: 14.2 | W75: 190.6737489 | X75: 0 | Y75: 0 | Z75: 0 | AK75: 0 | AL75: 8598.78 | AM75: 827292.1049 | AN75: 0 | AO75: 0 | AP75: 1235907.196 | AQ75: 2009, 2010, 2011, 2012, 2013, 2014, 2015 | AR75: 0 | AS75: 1235907.196 | AT75: 0 | AU75: 0 | AV75: 0 | AX75: New line on new route - dual circuit
A76: AUG232_3 | B76: Smithfield West Sub Establishment | M76: CP-13020 | N76: New line on new route - single circuit | O76: Demand growth | P76: 66 | Q76: 0.18 | R76: 1 | S76: 0 | T76: 42272.86469 | U76: 0.18 | V76: 0 | W76: 4983.292623 | X76: 0 | Y76: 0 | Z76: 0 | AK76: 0 | AL76: 399 | AM76: 41327.40448 | AN76: 0 | AO76: 0 | AP76: 88583.56179 | AQ76: 2011, 2012, 2013, 2014, 2015 | AR76: 0 | AS76: 88583.56179 | AT76: 0 | AU76: 0 | AV76: 0 | AX76: New line on new route - other
A77: AUG232_4 | AP77: 0 | AX77: Line rebuild over existing route - single circuit
A78: AUG232_5 | AP78: 0 | AX78: Line rebuild over existing route - dual circuit
A79: AUG232_6 | AP79: 0 | AX79: Reconductor - Single circuit
A80: AUG232_7 | AP80: 0 | AX80: Reconductor - Dual circuit
A81: AUG232_8 | AP81: 0 | AX81: Reconductor - Other
A82: AUG232_9 | AP82: 0 | AX82: Line upgrade - raising/retensoring
A83: AUG232_10 | AP83: 0 | AX83: Line upgrade - voltage upgrade
A84: AUG232_11 | AP84: 0 | AX84: Line upgrade - capacity
A85: AUG232_12 | AP85: 0 | AX85: String spare circuit
A86: AUG232_13 | AP86: 0 | AX86: Other
A87: AUG232_14 | AP87: 0
A88: AUG232_15 | AP88: 0
A89: AUG232_16 | AP89: 0
A90: AUG232_17 | AP90: 0
A91: AUG232_18 | AP91: 0
A92: AUG232_19 | AP92: 0
A93: AUG232_20 | AP93: 0
A94: AUG232_21 | AP94: 0
A95: AUG232_22 | AP95: 0
A96: AUG232_23 | AP96: 0
A97: AUG232_24 | AP97: 0
A98: AUG232_25 | AP98: 0
A99: AUG232_26 | AP99: 0
A100: AUG232_27 | AP100: 0
A101: AUG232_28 | AP101: 0
A102: AUG232_29 | AP102: 0
A103: AUG232_30 | AP103: 0
A104: AUG232_31 | AP104: 0
A105: AUG232_32 | AP105: 0
A106: AUG232_33 | AP106: 0
A107: AUG232_34 | AP107: 0
A108: AUG232_35 | AP108: 0
A109: AUG232_36 | AP109: 0
A110: AUG232_37 | AP110: 0
A111: AUG232_38 | AP111: 0
A112: AUG232_39 | AP112: 0
A113: AUG232_40 | AP113: 0
A114: AUG232_41 | AP114: 0
A115: AUG232_42 | AP115: 0
A116: AUG232_43 | AP116: 0
A117: AUG232_44 | AP117: 0
A118: AUG232_45 | AP118: 0
A119: AUG232_46 | AP119: 0
A120: AUG232_47 | AP120: 0
A121: AUG232_48 | AP121: 0
A122: AUG232_49 | AP122: 0
A123: AUG232_50 | AP123: 0
A124: AUG232_51 | AP124: 0
A125: AUG232_52 | AP125: 0
A126: AUG232_53 | AP126: 0
A127: AUG232_54 | AP127: 0
M128: Non material projects - [actual] | AP128: 3515792.521
M129: Non material projects - [forecast]
B132: TABLE 2.3.3 - AUGEX DATA - HV/LV FEEDERS AND DISTRIBUTION SUBSTATIONS
B133: NOTE: DNSP MUST PROVIDE EXPENDITURE INFORMATION ON AN AS INCURRED BASIS.
B134: Table 2.3.3.1 Descriptor Metrics
M137: UNITS ADDED | N137: UNITS UPGRADED | AK137: UNITS UPGRADED
B138: PROJECT TYPE | M138: =CRY -> 2014-15 | N138: =CRY -> 2014-15 | Z138: PROJECT TYPE | AB138: DNSP NAME | AC138: SERVICE CATEGORY | AD138: SERVICE SUB-CATEGORY | AE138: ASSET CATEGORY | AF138: ASSET SUB-CATEGORY | AG138: DATA TYPE | AH138: MEASUREMENT | AI138: DENOMINATION | AK138: 2014-15
A139: ED_AUG2331_00001 | B139: HV Feeder Augmentations - Overhead Lines (Circuit Line Length in KM) | M139: 9.08 | N139: 0 | Y139: ED_AUG2333_00001 | Z139: HV Feeder Augmentations - Overhead Lines (Circuit Line Length in KM) | AB139: DNSP NAME | AC139: AUGMENTATION | AD139: HV FEEDER PROJECTS | AE139: HV FEEDERS | AF139: OVERHEAD | AG139: DESCRIPTOR METRIC | AH139: KM UPGRADED | AI139: 0's | AK139: =N139 -> 0
A140: ED_AUG2331_00002 | B140: HV Feeder Augmentations - Underground Cables (Circuit Line Length in KM) | M140: 5.563 | N140: 0 | Y140: ED_AUG2333_00002 | Z140: HV Feeder Augmentations - Underground Cables (Circuit Line Length in KM) | AB140: DNSP NAME | AC140: AUGMENTATION | AD140: HV FEEDER PROJECTS | AE140: HV FEEDERS | AF140: UNDERGROUND | AG140: DESCRIPTOR METRIC | AH140: KM UPGRADED | AI140: 0's | AK140: =N140 -> 0
A141: ED_AUG2331_00003 | B141: LV Feeder Augmentations - Overhead Lines (Circuit Line Length in KM) | M141: 0 | N141: 0 | Y141: ED_AUG2333_00003 | Z141: LV Feeder Augmentations - Overhead Lines (Circuit Line Length in KM) | AB141: DNSP NAME | AC141: AUGMENTATION | AD141: LV FEEDER PROJECTS | AE141: HV FEEDERS | AF141: OVERHEAD | AG141: DESCRIPTOR METRIC | AH141: KM UPGRADED | AI141: 0's | AK141: 0
A142: ED_AUG2331_00004 | B142: LV Feeder Augmentations - Underground Cables (Circuit Line Length in KM) | M142: 0 | N142: 0 | Y142: ED_AUG2333_00004 | Z142: LV Feeder Augmentations - Underground Cables (Circuit Line Length in KM) | AB142: DNSP NAME | AC142: AUGMENTATION | AD142: LV FEEDER PROJECTS | AE142: HV FEEDERS | AF142: UNDERGROUND | AG142: DESCRIPTOR METRIC | AH142: KM UPGRADED | AI142: 0's | AK142: 0
A143: ED_AUG2331_00005 | B143: Distribution Substation Augmentations - Pole Mounted | M143: 55 | N143: 92 | Y143: ED_AUG2333_00005 | Z143: Distribution Substation Augmentations - Pole Mounted | AB143: DNSP NAME | AC143: AUGMENTATION | AD143: SUBSTATION AUGMENTATIONS | AE143: SUBSTATIONS | AF143: POLE MOUNTED | AG143: DESCRIPTOR METRIC | AH143: VOLUME UPGRADED | AI143: 0's | AK143: 92
A144: ED_AUG2331_00006 | B144: Distribution Substation Augmentations - Ground Mounted | M144: 4 | N144: 5 | Y144: ED_AUG2333_00006 | Z144: Distribution Substation Augmentations - Ground Mounted | AB144: DNSP NAME | AC144: AUGMENTATION | AD144: SUBSTATION AUGMENTATIONS | AE144: SUBSTATIONS | AF144: GROUND MOUNTED | AG144: DESCRIPTOR METRIC | AH144: VOLUME UPGRADED | AI144: 0's | AK144: 5
A145: ED_AUG2331_00007 | B145: Distribution Substation Augmentations - Indoor | M145: 0 | N145: 0 | Y145: ED_AUG2333_00007 | Z145: Distribution Substation Augmentations - Indoor | AB145: DNSP NAME | AC145: AUGMENTATION | AD145: SUBSTATION AUGMENTATIONS | AE145: SUBSTATIONS | AF145: INDOOR | AG145: DESCRIPTOR METRIC | AH145: VOLUME UPGRADED | AI145: 0's | AK145: 0
B147: Table 2.3.3.2 Cost Metrics
M150: TOTAL DIRECT EXPENDITURE ($0's)
B151: PROJECT TYPE | M151: =CRY -> 2014-15
A152: ED_AUG2332_00001 | B152: HV Feeder Augmentations - Overhead Lines | M152: 2670731.308
A153: ED_AUG2332_00002 | B153: HV Feeder Augmentations - Underground Cables | M153: 1591718.792
A154: ED_AUG2332_00003 | B154: HV Feeder Non-Material Projects | M154: 15411264.21
A155: ED_AUG2332_00004 | B155: LV Feeder Augmentations - Overhead Lines | M155: 0
A156: ED_AUG2332_00005 | B156: LV Feeder Augmentations - Underground Cables | M156: 0
A157: ED_AUG2332_00006 | B157: LV Feeder Non-Material Projects | M157: 358880.0942
A158: ED_AUG2332_00007 | B158: Distribution Substation Augmentations - Pole Mounted | M158: 3872333.52
A159: ED_AUG2332_00008 | B159: Distribution Substation Augmentations - Ground Mounted | M159: 826872.7252
A160: ED_AUG2332_00009 | B160: Distribution Substation Augmentations - Indoor | M160: 0
B168: TABLE 2.3.4 - AUGEX DATA - TOTAL EXPENDITURE
B170: AUGMENTATION CAPEX | M170: Expenditure ($0's)
B171: AS INCURRED ($0's) | M171: =CRY -> 2014-15
A172: ED_AUG234_00001 | B172: Subtransmission Substations, Switching Stations, Zone Substations | M172: 52794915.51
A173: ED_AUG234_00002 | B173: Subtransmission Lines | M173: 10118310.66
A174: ED_AUG234_00003 | B174: HV Feeders | M174: 19673714.31
A175: ED_AUG234_00004 | B175: HV Feeders - Land Purchases and Easements | M175: 0
A176: ED_AUG234_00005 | B176: Distribution Substations | M176: 4699206.245
A177: ED_AUG234_00006 | B177: Distribution Substations - Land Purchases And Easements | M177: 0
A178: ED_AUG234_00007 | B178: LV Feeders | M178: 358880.0942
A179: ED_AUG234_00008 | B179: LV Feeders - Land Purchases And Easements | M179: 0
A180: ED_AUG234_00009 | B180: Other Assets | M180: 11911137.94

Sheet 2.5 Connections
B1: =(LOOKUP(dms_Model,dms_Model_List,dms_Worksheet_List)) -> REGULATORY REPORTING STATEMENT
B2: Australian Distribution Co.
B3: =CONCATENATE("Category Analysis RIN response ",CRY) -> Category Analysis RIN response 2014-15
B4: 2.5 CONNECTIONS
B9: TABLE 2.5.1 DESCRIPTOR METRICS | F9: TABLE 2.5.2 COST METRICS BY CONNECTION CLASSIFICATION
B10: <<<GROUP-ROW>>>
D12: VOLUMES AND EXPENDITURE | H12: EXPENDITURE ($0's) | J12: VOLUMES (000s)
B13: CONNECTION SUBCATEGORY | C13: DESCRIPTOR METRIC | D13: =CRY -> 2014-15 | F13: CONNECTION SUBCATEGORY | G13: CONNECTION CLASSICIATION | H13: =CRY -> 2014-15 | J13: =CRY -> 2014-15
A14: ED_CON251_00001 | B14: RESIDENTIAL | C14: Underground connections (0's) | D14: 9931 | E14: ED_CON252_00001 | F14: RESIDENTIAL | G14: Simple connection LV | H14: 10346011 | J14: 10.268
A15: ED_CON251_00002 | C15: Overhead connections (0's) | D15: 425 | E15: ED_CON252_00002 | G15: Complex connection LV | H15: 2376231 | J15: 0.088
A16: ED_CON251_00003 | C16: Distribution substation installed (MVA added) | D16: 1.924 | E16: ED_CON252_00003 | G16: Complex connection HV | H16: 0 | J16: 0
A17: ED_CON251_00004 | C17: Distribution substations installed (0's) | D17: 37 | E17: ED_CON252_00004 | F17: COMMERCIAL/INDUSTRIAL | G17: Simple connection LV | H17: 1072971 | J17: 1.11
A18: ED_CON251_00005 | C18: Distribution substation installed (total spend $0's) | D18: 733535.8871 | E18: ED_CON252_00005 | G18: Complex connection HV (customer connected at LV, minor HV works) | H18: 28671577 | J18: 0.117
A19: ED_CON251_00006 | C19: Augmentation HV (net circuit KM added) | D19: 7.275 | E19: ED_CON252_00006 | G19: Complex connection HV (customer connected at LV, upstream asset works) | H19: 5864469 | J19: 0.007
A20: ED_CON251_00007 | C20: Augmentation HV (total spend $0's) | D20: 1029660.313 | E20: ED_CON252_00007 | G20: Complex connection HV (customer connected at HV) | H20: 2737816 | J20: 0.008
A21: ED_CON251_00008 | C21: Augmentation LV (net circuit KM added) | D21: 1.388 | E21: ED_CON252_00008 | G21: Complex connection sub-transmission
A22: ED_CON251_00009 | C22: Augmentation LV (total spend $0's) | D22: 225820.7384 | E22: ED_CON252_00009 | F22: SUBDIVISION | G22: Complex connection LV | H22: 4111320 | J22: 0.136
A23: ED_CON251_00010 | C23: Mean days to connect residential customer with LV single phase connection (0's) | D23: 13.1 | E23: ED_CON252_00010 | G23: Complex connection HV (no upstream asset works) | H23: 3577134 | J23: 0.075
A24: ED_CON251_00011 | C24: Volume of GSL breaches for residential customers (0's) | D24: 141 | E24: ED_CON252_00011 | G24: Complex connection HV (with upstream asset works) | H24: 957484 | J24: 0.015
A25: ED_CON251_00012 | C25: Volume of customer complaints relating to connection services (0's) | D25: 128 | E25: ED_CON252_00012 | F25: EMBEDDED GENERATION | G25: Simple connection LV | H25: 1056397 | J25: 10.923
A26: ED_CON251_00013 | C26: GSL payments ($0's) | D26: 37620 | E26: ED_CON252_00013 | G26: Complex connection HV (small capacity) | H26: 98570 | J26: 0.044
A27: ED_CON251_00014 | B27: COMMERCIAL/INDUSTRIAL | C27: Underground connections (0's) | D27: 1037 | E27: ED_CON252_00014 | G27: Complex connection HV (large capacity)
A28: ED_CON251_00015 | C28: Overhead connections (0's) | D28: 206
A29: ED_CON251_00016 | C29: Distribution substation installed (MVA added) | D29: 102.716
A30: ED_CON251_00017 | C30: Distribution substations installed (0's) | D30: 243
A31: ED_CON251_00018 | C31: Distribution substation installed total spend ($0's) | D31: 11574883.47
A32: ED_CON251_00019 | C32: Augmentation HV (net circuit KM added) | D32: 49.401
A33: ED_CON251_00020 | C33: Augmentation HV (total spend $0's) | D33: 8838997.965
A34: ED_CON251_00021 | C34: Augmentation LV (net circuit KM added) | D34: 4.535
A35: ED_CON251_00022 | C35: Augmentation LV (total spend $0's) | D35: 1447919.725
A36: ED_CON251_00023 | B36: SUBDIVISION | C36: Underground connections (0's) | D36: 177
A37: ED_CON251_00024 | C37: Overhead connections (0's) | D37: 49
A38: ED_CON251_00025 | C38: Distribution substation installed (MVA added) | D38: 25.724
A39: ED_CON251_00026 | C39: Distribution substations installed (0's) | D39: 98
A40: ED_CON251_00027 | C40: Distribution substation installed (total spend $0's) | D40: 2274256.387
A41: ED_CON251_00028 | C41: Augmentation HV (net circuit KM added) | D41: 7.767
A42: ED_CON251_00029 | C42: Augmentation HV (total spend $0's) | D42: 1287787.471
A43: ED_CON251_00030 | C43: Augmentation LV (net circuit KM added) | D43: 5.612
A44: ED_CON251_00031 | C44: Augmentation LV (total spend $0's) | D44: 1452266.306
A45: ED_CON251_00032 | C45: Cost per lot ($) | D45: 1250
A46: ED_CON251_00033 | B46: EMBEDDED GENERATION | C46: Underground connections (0's) | D46: 10520
A47: ED_CON251_00034 | C47: Overhead connections (0's) | D47: 448
A48: ED_CON251_00035 | C48: Distribution substation installed (MVA added) | D48: 0
A49: ED_CON251_00036 | C49: Distribution substations installed (0's) | D49: 0
A50: ED_CON251_00037 | C50: Distribution substation installed (total spend $0's) | D50: 0
A51: ED_CON251_00038 | C51: Augmentation HV (net circuit KM added) | D51: 0
A52: ED_CON251_00039 | C52: Augmentation HV (total spend $0's) | D52: 0
A53: ED_CON251_00040 | C53: Augmentation LV (net circuit KM added) | D53: 0
A54: ED_CON251_00041 | C54: Augmentation LV (total spend $0's) | D54: 0

Sheet 2.6 Non-network
B1: =(LOOKUP(dms_Model,dms_Model_List,dms_Worksheet_List)) -> REGULATORY REPORTING STATEMENT
B2: Australian Distribution Co.
B3: =CONCATENATE("Category Analysis RIN response ",CRY) -> Category Analysis RIN response 2014-15
B4: 2.6 NON NETWORK EXPENDITURE
B9: TABLE 2.6.1 NON-NETWORK EXPENDITURE | G9: TABLE 2.6.2 ANNUAL DESCRIPTOR METRICS - IT & COMMUNICATIONS EXPENDITURE | K9: TABLE 2.6.3 ANNUAL DESCRIPTOR METRICS - MOTOR VEHICLES
E12: EXPENDITURE ($0's) | I12: VOLUMES | L12: ASSET REPORTING CATEGORY | N12: VOLUMES / %
A13: ED_NON261_00001 | B13: SERVICE SUBCATEGORY | C13: ASSET CATEGORY | D13: ASSET REPORTING CATEGORY | E13: =CRY -> 2014-15 | G13: NON-NETWORK CATEGORY | H13: DESCRIPTOR METRIC | I13: =CRY -> 2014-15 | K13: NON-NETWORK CATEGORY | L13: ASSET CATEGORY | M13: DESCRIPTOR METRIC | N13: =CRY -> 2014-15
A14: ED_NON261_00002 | B14: IT & COMMUNICATIONS | C14: Client device expenditure | D14: Opex | E14: 2996479 | F14: ED_NON262_00001 | G14: IT & COMMUNICATIONS | H14: Employee numbers | I14: 1872 | J14: ED_NON263_00001 | K14: MOTOR VEHICLES | L14: CAR | M14: Average kilometres travelled (0's) | N14: 15762.678
A15: ED_NON261_00003 | D15: Capex | E15: 1152944 | F15: ED_NON262_00002 | H15: User numbers | I15: 1829 | J15: ED_NON263_00002 | M15: Number purchased | N15: 2
A16: ED_NON261_00004 | C16: Recurrent expenditure | D16: Opex | E16: 8668779 | F16: ED_NON262_00003 | H16: Number of devices | I16: 5005 | J16: ED_NON263_00003 | M16: Number leased | N16: 1
A17: ED_NON261_00005 | D17: Capex | E17: 19918981 | J17: ED_NON263_00004 | M17: Number in fleet | N17: 99
A18: ED_NON261_00006 | C18: Non-recurrent expenditure | D18: Opex | E18: 370742 | J18: ED_NON263_00005 | M18: Proportion of total fleet expenditure allocated as regulatory expenditure (%) | N18: 0.8012
A19: ED_NON261_00007 | D19: Capex | E19: 23624075 | J19: ED_NON263_00006 | L19: LIGHT COMMERCIAL VEHICLE | M19: Average kilometres travelled (0's) | N19: 23706.373
A20: ED_NON261_00008 | B20: MOTOR VEHICLES | C20: Car | D20: Opex | E20: 484666 | J20: ED_NON263_00007 | M20: Number purchased | N20: 75
A21: ED_NON261_00009 | D21: Capex | E21: 51974 | J21: ED_NON263_00008 | M21: Number leased | N21: 26
A22: ED_NON261_00010 | C22: Light commercial vehicle | D22: Opex | E22: 3955837 | J22: ED_NON263_00009 | M22: Number in fleet | N22: 418
A23: ED_NON261_00011 | D23: Capex | E23: 4415710 | J23: ED_NON263_00010 | M23: Proportion of total fleet expenditure allocated as regulatory expenditure (%) | N23: 0.8851
A24: ED_NON261_00012 | C24: Elevated work platform (LCV) | D24: Opex | J24: ED_NON263_00011 | L24: ELEVATED WORK PLATFORM (LCV) | M24: Average kilometres travelled (0's) | N24: 0
A25: ED_NON261_00013 | D25: Capex | J25: ED_NON263_00012 | M25: Number purchased | N25: 0
A26: ED_NON261_00014 | C26: Elevated work platform (HCV) | D26: Opex | E26: 6478817 | J26: ED_NON263_00013 | M26: Number leased | N26: 0
A27: ED_NON261_00015 | D27: Capex | E27: 11155586 | J27: ED_NON263_00014 | M27: Number in fleet | N27: 0
A28: ED_NON261_00016 | C28: Heavy commercial vehicle | D28: Opex | E28: 1209399 | J28: ED_NON263_00015 | M28: Proportion of total fleet expenditure allocated as regulatory expenditure (%) | N28: 0
A29: ED_NON261_00017 | D29: Capex | E29: 989134 | J29: ED_NON263_00016 | L29: ELEVATED WORK PLATFORM (HCV) | M29: Average kilometres travelled (0's) | N29: 16770.167
A30: ED_NON261_00018 | B30: BUILDINGS AND PROPERTY | C30: Total buildings and property expenditure | D30: Opex | E30: 3941000 | J30: ED_NON263_00017 | M30: Number purchased | N30: 26
A31: ED_NON261_00019 | D31: Capex | E31: 4639000 | J31: ED_NON263_00018 | M31: Number leased | N31: 2
A32: ED_NON261_00020 | B32: OTHER | C32: Other expenditure | D32: Opex | E32: =SUM(E34,E36,E38,E40,E42,E44,E46,E48,E50,E52) -> 6124898 | J32: ED_NON263_00019 | M32: Number in fleet | N32: 120
A33: ED_NON261_00021 | D33: Capex | E33: =SUM(E35,E37,E39,E41,E43,E45,E47,E49,E51,E53) -> 38670159 | J33: ED_NON263_00020 | M33: Proportion of total fleet expenditure allocated as regulatory expenditure (%) | N33: 0.9083
A34: ED_NON261_00022 | B34: OTHER - DNSP nominated | C34: Network Telephony (A80) | D34: Opex | E34: 3155000 | J34: ED_NON263_00021 | L34: HEAVY COMMERCIAL VEHICLE | M34: Average kilometres travelled (0's) | N34: 10407.998
A35: ED_NON261_00023 | D35: Capex | J35: ED_NON263_00022 | M35: Number purchased | N35: 3
A36: ED_NON261_00024 | C36: TEC Vehicles | D36: Opex | E36: 505804 | J36: ED_NON263_00023 | M36: Number leased | N36: 0
A37: ED_NON261_00025 | D37: Capex | E37: 1915495 | J37: ED_NON263_00024 | M37: Number in fleet | N37: 74
A38: ED_NON261_00026 | C38: Cranes | D38: Opex | E38: 1306030 | J38: ED_NON263_00025 | M38: Proportion of total fleet expenditure allocated as regulatory expenditure (%) | N38: 0.8687
A39: ED_NON261_00027 | D39: Capex | E39: 3003140
A40: ED_NON261_00028 | C40: Other Commercial Vehicles | D40: Opex | E40: 1158064
A41: ED_NON261_00029 | D41: Capex | E41: 2530446
A42: ED_NON261_00030 | C42: ADMS | D42: Opex
A43: ED_NON261_00031 | D43: Capex | E43: 8999989
A44: ED_NON261_00032 | C44: Vegetation Management Data | D44: Opex
A45: ED_NON261_00033 | D45: Capex | E45: 3172954
A46: ED_NON261_00034 | C46: Asset Information | D46: Opex
A47: ED_NON261_00035 | D47: Capex | E47: 1797771
A48: ED_NON261_00036 | C48: Other Network Strategic | D48: Opex
A49: ED_NON261_00037 | D49: Capex | E49: 6916441
A50: ED_NON261_00038 | C50: Non Network Telecommunications | D50: Opex
A51: ED_NON261_00039 | D51: Capex | E51: 542923
A52: ED_NON261_00040 | C52: Non Network Other Plant and Tools | D52: Opex
A53: ED_NON261_00041 | D53: Capex | E53: 9791000
A54: ED_NON261_00042 | D54: Opex
A55: ED_NON261_00043 | D55: Capex

Sheet 2.7 Vegetation management
B1: =(LOOKUP(dms_Model,dms_Model_List,dms_Worksheet_List)) -> REGULATORY REPORTING STATEMENT
B2: Australian Distribution Co.
B3: =CONCATENATE("Category Analysis RIN response ",CRY) -> Category Analysis RIN response 2014-15
B4: 2.7 VEGETATION MANAGEMENT
B6: TABLE 2.7.3 - DESCRIPTOR METRICS ACROSS ALL ZONES - UNPLANNED VEGETATION EVENTS | I6: TABLE 2.7.1 - DESCRIPTOR METRICS BY ZONE | N6: TABLE 2.7.2 - EXPENDITURE METRICS BY ZONE
C9: VOLUMES | L9: VOLUMES | P9: EXPENDITURE ($0's)
B10: DESCRIPTOR METRIC | C10: =CRY -> 2014-15 | I10: ZONES | J10: ASSET | K10: ASSET SUBCATEGORY | L10: =CRY -> 2014-15 | N10: ZONES | O10: SERVICE SUBCATEGORY | P10: =CRY -> 2014-15
A11: ED_VEG273_00001 | B11: Number of fire starts caused by vegetation grow-ins (NSP responsibility) (0's) | C11: 1 | H11: ED_VEG271_00001 | I11: ZONE 1 | J11: Route line length within zone (KM) | K11: Urban and CBD | M11: ED_VEG272_00001 | N11: =I11 -> ZONE 1 | O11: Tree trimming (excluding hazard trees)
A12: ED_VEG273_00002 | B12: Number of fire starts caused by vegetation blow-ins and fall-ins (NSP responsibility) (0's) | C12: 7 | H12: ED_VEG271_00002 | K12: Rural | M12: ED_VEG272_00002 | O12: Hazard tree cutting
A13: ED_VEG273_00003 | B13: Number of fire starts caused by vegetation grow-ins (other party responsibility) (0's) | H13: ED_VEG271_00003 | J13: Number of maintenance spans (0's) | K13: Urban and CBD | M13: ED_VEG272_00003 | O13: Ground clearance
A14: ED_VEG273_00004 | B14: Number of fire starts caused by vegetation blow-ins and fall-ins (other party responsibility) (0's) | H14: ED_VEG271_00004 | K14: Rural | M14: ED_VEG272_00004 | O14: Vegetation corridor clearance
H15: ED_VEG271_00005 | J15: Total length of maintenance spans (KM) | K15: Urban and CBD | M15: ED_VEG272_00005 | O15: Inspection
H16: ED_VEG271_00006 | K16: Rural | M16: ED_VEG272_00006 | O16: Audit
H17: ED_VEG271_00007 | J17: Length of vegetation corridors (KM) | K17: Urban and CBD | M17: ED_VEG272_00007 | O17: Contractor liaison expenditure
H18: ED_VEG271_00008 | K18: Rural | M18: ED_VEG272_00008 | O18: Tree replacement program costs
H19: ED_VEG271_00009 | J19: Average number of trees per maintenance span (0's) | K19: Urban and CBD | M19: ED_VEG272_00009 | O19: Other vegetation management costs not specified in sheet
H20: ED_VEG271_00010 | K20: Rural | M20: ED_VEG272_00010 | N20: =I23 -> ZONE 2 | O20: Tree trimming (excluding hazard trees)
H21: ED_VEG271_00011 | J21: Average frequency of cutting cycle (years) | K21: Urban and CBD | M21: ED_VEG272_00011 | O21: Hazard tree cutting
H22: ED_VEG271_00012 | K22: Rural | M22: ED_VEG272_00012 | O22: Ground clearance
H23: ED_VEG271_00013 | I23: ZONE 2 | J23: Route line length within zone (KM) | K23: Urban and CBD | M23: ED_VEG272_00013 | O23: Vegetation corridor clearance
H24: ED_VEG271_00014 | K24: Rural | M24: ED_VEG272_00014 | O24: Inspection
H25: ED_VEG271_00015 | J25: Number of maintenance spans (0's) | K25: Urban and CBD | M25: ED_VEG272_00015 | O25: Audit
H26: ED_VEG271_00016 | K26: Rural | M26: ED_VEG272_00016 | O26: Contractor liaison expenditure
H27: ED_VEG271_00017 | J27: Total length of maintenance spans (KM) | K27: Urban and CBD | M27: ED_VEG272_00017 | O27: Tree replacement program costs
H28: ED_VEG271_00018 | K28: Rural | M28: ED_VEG272_00018 | O28: Other vegetation management costs not specified in sheet
H29: ED_VEG271_00019 | J29: Length of vegetation corridors (KM) | K29: Urban and CBD | M29: ED_VEG272_00019 | N29: =I35 -> ZONE 3 | O29: Tree trimming (excluding hazard trees)
H30: ED_VEG271_00020 | K30: Rural | M30: ED_VEG272_00020 | O30: Hazard tree cutting
H31: ED_VEG271_00021 | J31: Average number of trees per maintenance span (0's) | K31: Urban and CBD | M31: ED_VEG272_00021 | O31: Ground clearance
H32: ED_VEG271_00022 | K32: Rural | M32: ED_VEG272_00022 | O32: Vegetation corridor clearance
H33: ED_VEG271_00023 | J33: Average frequency of cutting cycle (years) | K33: Urban and CBD | M33: ED_VEG272_00023 | O33: Inspection
H34: ED_VEG271_00024 | K34: Rural | M34: ED_VEG272_00024 | O34: Audit
H35: ED_VEG271_00025 | I35: ZONE 3 | J35: Route line length within zone (KM) | K35: Urban and CBD | M35: ED_VEG272_00025 | O35: Contractor liaison expenditure
H36: ED_VEG271_00026 | K36: Rural | M36: ED_VEG272_00026 | O36: Tree replacement program costs
H37: ED_VEG271_00027 | J37: Number of maintenance spans (0's) | K37: Urban and CBD | M37: ED_VEG272_00027 | O37: Other vegetation management costs not specified in sheet
H38: ED_VEG271_00028 | K38: Rural | M38: ED_VEG272_00028 | N38: =I47 -> ZONE 4 | O38: Tree trimming (excluding hazard trees)
H39: ED_VEG271_00029 | J39: Total length of maintenance spans (KM) | K39: Urban and CBD | M39: ED_VEG272_00029 | O39: Hazard tree cutting
H40: ED_VEG271_00030 | K40: Rural | M40: ED_VEG272_00030 | O40: Ground clearance
H41: ED_VEG271_00031 | J41: Length of vegetation corridors (KM) | K41: Urban and CBD | M41: ED_VEG272_00031 | O41: Vegetation corridor clearance
H42: ED_VEG271_00032 | K42: Rural | M42: ED_VEG272_00032 | O42: Inspection
H43: ED_VEG271_00033 | J43: Average number of trees per maintenance span (0's) | K43: Urban and CBD | M43: ED_VEG272_00033 | O43: Audit
H44: ED_VEG271_00034 | K44: Rural | M44: ED_VEG272_00034 | O44: Contractor liaison expenditure
H45: ED_VEG271_00035 | J45: Average frequency of cutting cycle (years) | K45: Urban and CBD | M45: ED_VEG272_00035 | O45: Tree replacement program costs
H46: ED_VEG271_00036 | K46: Rural | M46: ED_VEG272_00036 | O46: Other vegetation management costs not specified in sheet
H47: ED_VEG271_00037 | I47: ZONE 4 | J47: Route line length within zone (KM) | K47: Urban and CBD | M47: ED_VEG272_00037 | N47: =I59 -> ZONE 5 | O47: Tree trimming (excluding hazard trees)
H48: ED_VEG271_00038 | K48: Rural | M48: ED_VEG272_00038 | O48: Hazard tree cutting
H49: ED_VEG271_00039 | J49: Number of maintenance spans (0's) | K49: Urban and CBD | M49: ED_VEG272_00039 | O49: Ground clearance
H50: ED_VEG271_00040 | K50: Rural | M50: ED_VEG272_00040 | O50: Vegetation corridor clearance
H51: ED_VEG271_00041 | J51: Total length of maintenance spans (KM) | K51: Urban and CBD | M51: ED_VEG272_00041 | O51: Inspection
H52: ED_VEG271_00042 | K52: Rural | M52: ED_VEG272_00042 | O52: Audit
H53: ED_VEG271_00043 | J53: Length of vegetation corridors (KM) | K53: Urban and CBD | M53: ED_VEG272_00043 | O53: Contractor liaison expenditure
H54: ED_VEG271_00044 | K54: Rural | M54: ED_VEG272_00044 | O54: Tree replacement program costs
H55: ED_VEG271_00045 | J55: Average number of trees per maintenance span (0's) | K55: Urban and CBD | M55: ED_VEG272_00045 | O55: Other vegetation management costs not specified in sheet
H56: ED_VEG271_00046 | K56: Rural | M56: ED_VEG272_00046 | N56: =I71 -> ZONE 6 | O56: Tree trimming (excluding hazard trees)
H57: ED_VEG271_00047 | J57: Average frequency of cutting cycle (years) | K57: Urban and CBD | M57: ED_VEG272_00047 | O57: Hazard tree cutting
H58: ED_VEG271_00048 | K58: Rural | M58: ED_VEG272_00048 | O58: Ground clearance
H59: ED_VEG271_00049 | I59: ZONE 5 | J59: Route line length within zone (KM) | K59: Urban and CBD | M59: ED_VEG272_00049 | O59: Vegetation corridor clearance
H60: ED_VEG271_00050 | K60: Rural | M60: ED_VEG272_00050 | O60: Inspection
H61: ED_VEG271_00051 | J61: Number of maintenance spans (0's) | K61: Urban and CBD | M61: ED_VEG272_00051 | O61: Audit
H62: ED_VEG271_00052 | K62: Rural | M62: ED_VEG272_00052 | O62: Contractor liaison expenditure
H63: ED_VEG271_00053 | J63: Total length of maintenance spans (KM) | K63: Urban and CBD | M63: ED_VEG272_00053 | O63: Tree replacement program costs
H64: ED_VEG271_00054 | K64: Rural | M64: ED_VEG272_00054 | O64: Other vegetation management costs not specified in sheet
H65: ED_VEG271_00055 | J65: Length of vegetation corridors (KM) | K65: Urban and CBD | M65: ED_VEG272_00055 | N65: =I83 -> ZONE 7 | O65: Tree trimming (excluding hazard trees)
H66: ED_VEG271_00056 | K66: Rural | M66: ED_VEG272_00056 | O66: Hazard tree cutting
H67: ED_VEG271_00057 | J67: Average number of trees per maintenance span (0's) | K67: Urban and CBD | M67: ED_VEG272_00057 | O67: Ground clearance
H68: ED_VEG271_00058 | K68: Rural | M68: ED_VEG272_00058 | O68: Vegetation corridor clearance
H69: ED_VEG271_00059 | J69: Average frequency of cutting cycle (years) | K69: Urban and CBD | M69: ED_VEG272_00059 | O69: Inspection
H70: ED_VEG271_00060 | K70: Rural | M70: ED_VEG272_00060 | O70: Audit
H71: ED_VEG271_00061 | I71: ZONE 6 | J71: Route line length within zone (KM) | K71: Urban and CBD | M71: ED_VEG272_00061 | O71: Contractor liaison expenditure
H72: ED_VEG271_00062 | K72: Rural | M72: ED_VEG272_00062 | O72: Tree replacement program costs
H73: ED_VEG271_00063 | J73: Number of maintenance spans (0's) | K73: Urban and CBD | M73: ED_VEG272_00063 | O73: Other vegetation management costs not specified in sheet
H74: ED_VEG271_00064 | K74: Rural | M74: ED_VEG272_00064 | N74: =I95 -> ZONE 8 | O74: Tree trimming (excluding hazard trees)
H75: ED_VEG271_00065 | J75: Total length of maintenance spans (KM) | K75: Urban and CBD | M75: ED_VEG272_00065 | O75: Hazard tree cutting
H76: ED_VEG271_00066 | K76: Rural | M76: ED_VEG272_00066 | O76: Ground clearance
H77: ED_VEG271_00067 | J77: Length of vegetation corridors (KM) | K77: Urban and CBD | M77: ED_VEG272_00067 | O77: Vegetation corridor clearance
H78: ED_VEG271_00068 | K78: Rural | M78: ED_VEG272_00068 | O78: Inspection
H79: ED_VEG271_00069 | J79: Average number of trees per maintenance span (0's) | K79: Urban and CBD | M79: ED_VEG272_00069 | O79: Audit
H80: ED_VEG271_00070 | K80: Rural | M80: ED_VEG272_00070 | O80: Contractor liaison expenditure
H81: ED_VEG271_00071 | J81: Average frequency of cutting cycle (years) | K81: Urban and CBD | M81: ED_VEG272_00071 | O81: Tree replacement program costs
H82: ED_VEG271_00072 | K82: Rural | M82: ED_VEG272_00072 | O82: Other vegetation management costs not specified in sheet
H83: ED_VEG271_00073 | I83: ZONE 7 | J83: Route line length within zone (KM) | K83: Urban and CBD | M83: ED_VEG272_00073 | N83: =I107 -> ZONE 9 | O83: Tree trimming (excluding hazard trees)
H84: ED_VEG271_00074 | K84: Rural | M84: ED_VEG272_00074 | O84: Hazard tree cutting
H85: ED_VEG271_00075 | J85: Number of maintenance spans (0's) | K85: Urban and CBD | M85: ED_VEG272_00075 | O85: Ground clearance
H86: ED_VEG271_00076 | K86: Rural | M86: ED_VEG272_00076 | O86: Vegetation corridor clearance
H87: ED_VEG271_00077 | J87: Total length of maintenance spans (KM) | K87: Urban and CBD | M87: ED_VEG272_00077 | O87: Inspection
H88: ED_VEG271_00078 | K88: Rural | M88: ED_VEG272_00078 | O88: Audit
H89: ED_VEG271_00079 | J89: Length of vegetation corridors (KM) | K89: Urban and CBD | M89: ED_VEG272_00079 | O89: Contractor liaison expenditure
H90: ED_VEG271_00080 | K90: Rural | M90: ED_VEG272_00080 | O90: Tree replacement program costs
H91: ED_VEG271_00081 | J91: Average number of trees per maintenance span (0's) | K91: Urban and CBD | M91: ED_VEG272_00081 | O91: Other vegetation management costs not specified in sheet
H92: ED_VEG271_00082 | K92: Rural | M92: ED_VEG272_00082 | N92: =I119 -> ZONE 10 | O92: Tree trimming (excluding hazard trees)
H93: ED_VEG271_00083 | J93: Average frequency of cutting cycle (years) | K93: Urban and CBD | M93: ED_VEG272_00083 | O93: Hazard tree cutting
H94: ED_VEG271_00084 | K94: Rural | M94: ED_VEG272_00084 | O94: Ground clearance
H95: ED_VEG271_00085 | I95: ZONE 8 | J95: Route line length within zone (KM) | K95: Urban and CBD | M95: ED_VEG272_00085 | O95: Vegetation corridor clearance
H96: ED_VEG271_00086 | K96: Rural | M96: ED_VEG272_00086 | O96: Inspection
H97: ED_VEG271_00087 | J97: Number of maintenance spans (0's) | K97: Urban and CBD | M97: ED_VEG272_00087 | O97: Audit
H98: ED_VEG271_00088 | K98: Rural | M98: ED_VEG272_00088 | O98: Contractor liaison expenditure
H99: ED_VEG271_00089 | J99: Total length of maintenance spans (KM) | K99: Urban and CBD | M99: ED_VEG272_00089 | O99: Tree replacement program costs
H100: ED_VEG271_00090 | K100: Rural | M100: ED_VEG272_00090 | O100: Other vegetation management costs not specified in sheet
H101: ED_VEG271_00091 | J101: Length of vegetation corridors (KM) | K101: Urban and CBD | M101: ED_VEG272_00091 | N101: =I131 -> ZONE 11 | O101: Tree trimming (excluding hazard trees)
H102: ED_VEG271_00092 | K102: Rural | M102: ED_VEG272_00092 | O102: Hazard tree cutting
H103: ED_VEG271_00093 | J103: Average number of trees per maintenance span (0's) | K103: Urban and CBD | M103: ED_VEG272_00093 | O103: Ground clearance
H104: ED_VEG271_00094 | K104: Rural | M104: ED_VEG272_00094 | O104: Vegetation corridor clearance
H105: ED_VEG271_00095 | J105: Average frequency of cutting cycle (years) | K105: Urban and CBD | M105: ED_VEG272_00095 | O105: Inspection
H106: ED_VEG271_00096 | K106: Rural | M106: ED_VEG272_00096 | O106: Audit
H107: ED_VEG271_00097 | I107: ZONE 9 | J107: Route line length within zone (KM) | K107: Urban and CBD | M107: ED_VEG272_00097 | O107: Contractor liaison expenditure
H108: ED_VEG271_00098 | K108: Rural | M108: ED_VEG272_00098 | O108: Tree replacement program costs
H109: ED_VEG271_00099 | J109: Number of maintenance spans (0's) | K109: Urban and CBD | M109: ED_VEG272_00099 | O109: Other vegetation management costs not specified in sheet
H110: ED_VEG271_00100 | K110: Rural | M110: ED_VEG272_00100 | N110: =I143 -> ZONE 12 | O110: Tree trimming (excluding hazard trees)
H111: ED_VEG271_00101 | J111: Total length of maintenance spans (KM) | K111: Urban and CBD | M111: ED_VEG272_00101 | O111: Hazard tree cutting
H112: ED_VEG271_00102 | K112: Rural | M112: ED_VEG272_00102 | O112: Ground clearance
H113: ED_VEG271_00103 | J113: Length of vegetation corridors (KM) | K113: Urban and CBD | M113: ED_VEG272_00103 | O113: Vegetation corridor clearance
H114: ED_VEG271_00104 | K114: Rural | M114: ED_VEG272_00104 | O114: Inspection
H115: ED_VEG271_00105 | J115: Average number of trees per maintenance span (0's) | K115: Urban and CBD | M115: ED_VEG272_00105 | O115: Audit
H116: ED_VEG271_00106 | K116: Rural | M116: ED_VEG272_00106 | O116: Contractor liaison expenditure
H117: ED_VEG271_00107 | J117: Average frequency of cutting cycle (years) | K117: Urban and CBD | M117: ED_VEG272_00107 | O117: Tree replacement program costs
H118: ED_VEG271_00108 | K118: Rural | M118: ED_VEG272_00108 | O118: Other vegetation management costs not specified in sheet
H119: ED_VEG271_00109 | I119: ZONE 10 | J119: Route line length within zone (KM) | K119: Urban and CBD | M119: ED_VEG272_00109 | N119: =I155 -> ZONE 13 | O119: Tree trimming (excluding hazard trees)
H120: ED_VEG271_00110 | K120: Rural | M120: ED_VEG272_00110 | O120: Hazard tree cutting
H121: ED_VEG271_00111 | J121: Number of maintenance spans (0's) | K121: Urban and CBD | M121: ED_VEG272_00111 | O121: Ground clearance
H122: ED_VEG271_00112 | K122: Rural | M122: ED_VEG272_00112 | O122: Vegetation corridor clearance
H123: ED_VEG271_00113 | J123: Total length of maintenance spans (KM) | K123: Urban and CBD | M123: ED_VEG272_00113 | O123: Inspection
H124: ED_VEG271_00114 | K124: Rural | M124: ED_VEG272_00114 | O124: Audit
H125: ED_VEG271_00115 | J125: Length of vegetation corridors (KM) | K125: Urban and CBD | M125: ED_VEG272_00115 | O125: Contractor liaison expenditure
H126: ED_VEG271_00116 | K126: Rural | M126: ED_VEG272_00116 | O126: Tree replacement program costs
H127: ED_VEG271_00117 | J127: Average number of trees per maintenance span (0's) | K127: Urban and CBD | M127: ED_VEG272_00117 | O127: Other vegetation management costs not specified in sheet
H128: ED_VEG271_00118 | K128: Rural | M128: ED_VEG272_00118 | N128: =I167 -> ZONE 14 | O128: Tree trimming (excluding hazard trees)
H129: ED_VEG271_00119 | J129: Average frequency of cutting cycle (years) | K129: Urban and CBD | M129: ED_VEG272_00119 | O129: Hazard tree cutting
H130: ED_VEG271_00120 | K130: Rural | M130: ED_VEG272_00120 | O130: Ground clearance
H131: ED_VEG271_00121 | I131: ZONE 11 | J131: Route line length within zone (KM) | K131: Urban and CBD | M131: ED_VEG272_00121 | O131: Vegetation corridor clearance
H132: ED_VEG271_00122 | K132: Rural | M132: ED_VEG272_00122 | O132: Inspection
H133: ED_VEG271_00123 | J133: Number of maintenance spans (0's) | K133: Urban and CBD | M133: ED_VEG272_00123 | O133: Audit
H134: ED_VEG271_00124 | K134: Rural | M134: ED_VEG272_00124 | O134: Contractor liaison expenditure
H135: ED_VEG271_00125 | J135: Total length of maintenance spans (KM) | K135: Urban and CBD | M135: ED_VEG272_00125 | O135: Tree replacement program costs
H136: ED_VEG271_00126 | K136: Rural | M136: ED_VEG272_00126 | O136: Other vegetation management costs not specified in sheet
H137: ED_VEG271_00127 | J137: Length of vegetation corridors (KM) | K137: Urban and CBD | M137: ED_VEG272_00127 | N137: =I179 -> ZONE 15 | O137: Tree trimming (excluding hazard trees)
H138: ED_VEG271_00128 | K138: Rural | M138: ED_VEG272_00128 | O138: Hazard tree cutting
H139: ED_VEG271_00129 | J139: Average number of trees per maintenance span (0's) | K139: Urban and CBD | M139: ED_VEG272_00129 | O139: Ground clearance
H140: ED_VEG271_00130 | K140: Rural | M140: ED_VEG272_00130 | O140: Vegetation corridor clearance
H141: ED_VEG271_00131 | J141: Average frequency of cutting cycle (years) | K141: Urban and CBD | M141: ED_VEG272_00131 | O141: Inspection
H142: ED_VEG271_00132 | K142: Rural | M142: ED_VEG272_00132 | O142: Audit
H143: ED_VEG271_00133 | I143: ZONE 12 | J143: Route line length within zone (KM) | K143: Urban and CBD | M143: ED_VEG272_00133 | O143: Contractor liaison expenditure
H144: ED_VEG271_00134 | K144: Rural | M144: ED_VEG272_00134 | O144: Tree replacement program costs
H145: ED_VEG271_00135 | J145: Number of maintenance spans (0's) | K145: Urban and CBD | M145: ED_VEG272_00135 | O145: Other vegetation management costs not specified in sheet
H146: ED_VEG271_00136 | K146: Rural | M146: ED_VEG272_00136 | N146: =I191 -> ZONE 16 | O146: Tree trimming (excluding hazard trees)
H147: ED_VEG271_00137 | J147: Total length of maintenance spans (KM) | K147: Urban and CBD | M147: ED_VEG272_00137 | O147: Hazard tree cutting
H148: ED_VEG271_00138 | K148: Rural | M148: ED_VEG272_00138 | O148: Ground clearance
H149: ED_VEG271_00139 | J149: Length of vegetation corridors (KM) | K149: Urban and CBD | M149: ED_VEG272_00139 | O149: Vegetation corridor clearance
H150: ED_VEG271_00140 | K150: Rural | M150: ED_VEG272_00140 | O150: Inspection
H151: ED_VEG271_00141 | J151: Average number of trees per maintenance span (0's) | K151: Urban and CBD | M151: ED_VEG272_00141 | O151: Audit
H152: ED_VEG271_00142 | K152: Rural | M152: ED_VEG272_00142 | O152: Contractor liaison expenditure
H153: ED_VEG271_00143 | J153: Average frequency of cutting cycle (years) | K153: Urban and CBD | M153: ED_VEG272_00143 | O153: Tree replacement program costs
H154: ED_VEG271_00144 | K154: Rural | M154: ED_VEG272_00144 | O154: Other vegetation management costs not specified in sheet
H155: ED_VEG271_00145 | I155: ZONE 13 | J155: Route line length within zone (KM) | K155: Urban and CBD | M155: ED_VEG272_00145 | N155: =I203 -> ZONE 17 | O155: Tree trimming (excluding hazard trees)
H156: ED_VEG271_00146 | K156: Rural | M156: ED_VEG272_00146 | O156: Hazard tree cutting
H157: ED_VEG271_00147 | J157: Number of maintenance spans (0's) | K157: Urban and CBD | M157: ED_VEG272_00147 | O157: Ground clearance
H158: ED_VEG271_00148 | K158: Rural | M158: ED_VEG272_00148 | O158: Vegetation corridor clearance
H159: ED_VEG271_00149 | J159: Total length of maintenance spans (KM) | K159: Urban and CBD | M159: ED_VEG272_00149 | O159: Inspection
H160: ED_VEG271_00150 | K160: Rural | M160: ED_VEG272_00150 | O160: Audit
H161: ED_VEG271_00151 | J161: Length of vegetation corridors (KM) | K161: Urban and CBD | M161: ED_VEG272_00151 | O161: Contractor liaison expenditure
H162: ED_VEG271_00152 | K162: Rural | M162: ED_VEG272_00152 | O162: Tree replacement program costs
H163: ED_VEG271_00153 | J163: Average number of trees per maintenance span (0's) | K163: Urban and CBD | M163: ED_VEG272_00153 | O163: Other vegetation management costs not specified in sheet
H164: ED_VEG271_00154 | K164: Rural | M164: ED_VEG272_00154 | N164: =I215 -> ZONE 18 | O164: Tree trimming (excluding hazard trees)
H165: ED_VEG271_00155 | J165: Average frequency of cutting cycle (years) | K165: Urban and CBD | M165: ED_VEG272_00155 | O165: Hazard tree cutting
H166: ED_VEG271_00156 | K166: Rural | M166: ED_VEG272_00156 | O166: Ground clearance
H167: ED_VEG271_00157 | I167: ZONE 14 | J167: Route line length within zone (KM) | K167: Urban and CBD | M167: ED_VEG272_00157 | O167: Vegetation corridor clearance
H168: ED_VEG271_00158 | K168: Rural | M168: ED_VEG272_00158 | O168: Inspection
H169: ED_VEG271_00159 | J169: Number of maintenance spans (0's) | K169: Urban and CBD | M169: ED_VEG272_00159 | O169: Audit
H170: ED_VEG271_00160 | K170: Rural | M170: ED_VEG272_00160 | O170: Contractor liaison expenditure
H171: ED_VEG271_00161 | J171: Total length of maintenance spans (KM) | K171: Urban and CBD | M171: ED_VEG272_00161 | O171: Tree replacement program costs
H172: ED_VEG271_00162 | K172: Rural | M172: ED_VEG272_00162 | O172: Other vegetation management costs not specified in sheet
H173: ED_VEG271_00163 | J173: Length of vegetation corridors (KM) | K173: Urban and CBD
H174: ED_VEG271_00164 | K174: Rural
H175: ED_VEG271_00165 | J175: Average number of trees per maintenance span (0's) | K175: Urban and CBD
H176: ED_VEG271_00166 | K176: Rural
H177: ED_VEG271_00167 | J177: Average frequency of cutting cycle (years) | K177: Urban and CBD
H178: ED_VEG271_00168 | K178: Rural
H179: ED_VEG271_00169 | I179: ZONE 15 | J179: Route line length within zone (KM) | K179: Urban and CBD
H180: ED_VEG271_00170 | K180: Rural
H181: ED_VEG271_00171 | J181: Number of maintenance spans (0's) | K181: Urban and CBD
H182: ED_VEG271_00172 | K182: Rural
H183: ED_VEG271_00173 | J183: Total length of maintenance spans (KM) | K183: Urban and CBD
H184: ED_VEG271_00174 | K184: Rural
H185: ED_VEG271_00175 | J185: Length of vegetation corridors (KM) | K185: Urban and CBD
H186: ED_VEG271_00176 | K186: Rural
H187: ED_VEG271_00177 | J187: Average number of trees per maintenance span (0's) | K187: Urban and CBD
H188: ED_VEG271_00178 | K188: Rural
H189: ED_VEG271_00179 | J189: Average frequency of cutting cycle (years) | K189: Urban and CBD
H190: ED_VEG271_00180 | K190: Rural
H191: ED_VEG271_00181 | I191: ZONE 16 | J191: Route line length within zone (KM) | K191: Urban and CBD
H192: ED_VEG271_00182 | K192: Rural
H193: ED_VEG271_00183 | J193: Number of maintenance spans (0's) | K193: Urban and CBD
H194: ED_VEG271_00184 | K194: Rural
H195: ED_VEG271_00185 | J195: Total length of maintenance spans (KM) | K195: Urban and CBD
H196: ED_VEG271_00186 | K196: Rural
H197: ED_VEG271_00187 | J197: Length of vegetation corridors (KM) | K197: Urban and CBD
H198: ED_VEG271_00188 | K198: Rural
H199: ED_VEG271_00189 | J199: Average number of trees per maintenance span (0's) | K199: Urban and CBD
H200: ED_VEG271_00190 | K200: Rural
H201: ED_VEG271_00191 | J201: Average frequency of cutting cycle (years) | K201: Urban and CBD
H202: ED_VEG271_00192 | K202: Rural
H203: ED_VEG271_00193 | I203: ZONE 17 | J203: Route line length within zone (KM) | K203: Urban and CBD
... 23 more rows

Sheet 2.8 Maintenance
B1: =(LOOKUP(dms_Model,dms_Model_List,dms_Worksheet_List)) -> REGULATORY REPORTING STATEMENT
B2: Australian Distribution Co.
B3: =CONCATENATE("Category Analysis RIN response ",CRY) -> Category Analysis RIN response 2014-15
B4: 2.8 MAINTENANCE
B8: TABLE 2.8.1 - DESCRIPTOR METRICS FOR ROUTINE AND NON-ROUTINE MAINTENANCE | K8: TABLE 2.8.2 - COST METRICS FOR ROUTINE AND NON-ROUTINE MAINTENANCE
E11: ASSET QUANTITY - AT YEAR END (0s) | F11: ASSET QUANTITY - INSPECTED/ MAINTAINED | G11: AVERAGE AGE OF ASSET GROUP | H11: INSPECTION CYCLE (YEARS) | I11: MAINTENANCE CYCLE (YEARS) | M11: ROUTINE MAINTENANCE EXPENDITURE ($0's) | N11: NON-ROUTINE MAINTENANCE EXPENDITURE ($0's)
B12: MAINTENANCE ACTIVITY | C12: MAINTENANCE ASSET CATEGORY | D12: UNIT OF MEASURE - ASSET QUANTITY | E12: =CRY -> 2014-15 | F12: =CRY -> 2014-15 | G12: =CRY -> 2014-15 | K12: MAINTENANCE ACTIVITY | L12: MAINTENANCE ASSET CATEGORY | M12: =CRY -> 2014-15 | N12: =CRY -> 2014-15
A13: ED_MAI281_00001 | B13: Pole top, overhead line & service line maintenance | C13: Pole tops and overhead lines | D13: Number of poles | E13: 745860 | F13: 3725 | G13: 46 | H13: 5 | I13: 0 | J13: ED_MAI282_00001 | K13: Pole top, overhead line & service line maintenance | L13: Pole tops and overhead lines | M13: 160020 | N13: 981877
A14: ED_MAI281_00002 | C14: Service lines | D14: Number of customers | E14: 758917 | F14: 0 | G14: 29.2 | H14: 0 | I14: 0 | J14: ED_MAI282_00002 | L14: Service lines | M14: 0 | N14: 0
A15: ED_MAI281_00003 | B15: Pole inspection and treatment | C15: All poles | D15: Number of poles | E15: 745860 | F15: 89710 | G15: 46 | H15: 5 | I15: 0 | J15: ED_MAI282_00003 | K15: Pole inspection and treatment | L15: All poles | M15: 6346702 | N15: 0
A16: ED_MAI281_00004 | B16: Overhead asset inspection | C16: All overhead assets | D16: Line patrolled (route KM) | E16: 65355 | F16: 49861 | G16: 0 | H16: 5 | I16: 0 | J16: ED_MAI282_00004 | K16: Overhead asset inspection | L16: All overhead assets | M16: 6472355 | N16: 0
A17: ED_MAI281_00005 | B17: Network underground cable maintenance: by voltage | C17: LV - 11 to 22 KV | D17: Length (KM) | E17: 16800 | F17: 0.94 | G17: 39.5 | H17: 0 | I17: 0 | J17: ED_MAI282_00005 | K17: Network underground cable maintenance: by voltage | L17: LV - 11 to 22 KV | M17: 183638 | N17: 499489
A18: ED_MAI281_00006 | C18: 33 KV and above | D18: Length (KM) | E18: 170 | F18: 0.19 | G18: 28.5 | H18: 0.5 | I18: 0 | J18: ED_MAI282_00006 | L18: 33 KV and above | M18: 87835 | N18: 0
A19: ED_MAI281_00007 | B19: Network underground cable maintenance: by location | C19: Cbd | D19: Length (KM) | E19: 509 | F19: 1.13 | G19: 30.6 | H19: 0 | I19: 0 | J19: ED_MAI282_00007 | K19: Network underground cable maintenance: by location | L19: CBD | M19: 271473 | N19: 499489
A20: ED_MAI281_00008 | C20: Non-CBD | D20: Length (KM) | E20: 16461 | F20: 0 | G20: 20.6 | H20: 0 | I20: 0 | J20: ED_MAI282_00008 | L20: Non-CBD | M20: 0
A21: ED_MAI281_00009 | B21: Distribution substation equipment & property maintenance | C21: Distribution substation transformers | D21: Number of installed transformers | E21: 74624 | F21: 400 | G21: 29 | H21: 5 | I21: 0 | J21: ED_MAI282_00009 | K21: Distribution substation equipment & property maintenance | L21: Distribution substation transformers | M21: 0 | N21: 864463
A22: ED_MAI281_00010 | C22: Distribution substation switchgear (within-substations and stand-alone switchgear) | D22: Number of switches | E22: 8235 | F22: 4623 | G22: 13.2 | H22: 1 | I22: 0 | J22: ED_MAI282_00010 | L22: Distribution substation switchgear (within-substations and stand-alone switchgear) | M22: 302035 | N22: 56601
A23: ED_MAI281_00011 | C23: Distribution substation - other equipment | D23: Earth mat | E23: 0 | F23: 0 | G23: 0 | H23: 0 | I23: 0 | J23: ED_MAI282_00011 | L23: Distribution substation - other equipment | M23: 0 | N23: 0
A24: ED_MAI281_00012 | C24: Distribution substation - property | D24: Number of distribution substation properties maintained | E24: 1420 | F24: 58 | G24: 37 | H24: 0 | I24: 0 | J24: ED_MAI282_00012 | L24: Distribution substation - property | M24: 0 | N24: 48188
A25: ED_MAI281_00013 | B25: Zone substation equipment maintenance | C25: Transformers - zone substation | D25: Number of zone substation transformers | E25: 697 | F25: 668 | G25: 34.9 | H25: 0.5 | I25: 6 | J25: ED_MAI282_00013 | K25: Zone substation equipment maintenance | L25: Transformers - zone substation | M25: 642767 | N25: 1209551
A26: ED_MAI281_00014 | C26: Transformers - distribution | D26: Number of distribution transformers within zone substations | E26: 285 | F26: 0 | G26: 15.5 | H26: 0.5 | I26: 0 | J26: ED_MAI282_00014 | L26: Transformers - distribution | M26: 0 | N26: 0
A27: ED_MAI281_00015 | C27: Transformers - HV | D27: Number of HV transformers | E27: 0 | F27: 0 | G27: 0 | H27: 0 | I27: 0 | J27: ED_MAI282_00015 | L27: Transformers - HV | M27: 0 | N27: 0
A28: ED_MAI281_00016 | C28: Zone substation - other equipment | D28: DNSP to nominate | E28: 339 | F28: 552 | G28: 4.4 | H28: 0.5 | I28: 10 | J28: ED_MAI282_00016 | L28: Zone substation - other equipment | M28: 930780 | N28: 843950
A29: ED_MAI281_00017 | B29: Zone substation property maintenance | C29: All zone substation properties | D29: Number of zone substation properties maintained | E29: 407 | F29: 1373 | G29: 41 | H29: 0.5 | I29: 0.5 | J29: ED_MAI282_00017 | K29: Zone substation property maintenance | L29: All zone substation properties | M29: 1152193 | N29: 614640
A30: ED_MAI281_00018 | B30: Public lighting maintenance | C30: Minor roads | D30: Number of public lights maintained | E30: 0 | F30: 0 | G30: 0 | H30: 0 | I30: 0 | J30: ED_MAI282_00018 | K30: Public lighting maintenance | L30: Minor roads | M30: 0 | N30: 0
A31: ED_MAI281_00019 | C31: Major roads | D31: Number of public lights maintained | E31: 0 | F31: 0 | G31: 0 | H31: 0 | I31: 0 | J31: ED_MAI282_00019 | L31: Major roads
A32: ED_MAI281_00020 | B32: SCADA & network control maintenance | C32: SCADA & network control maintenance | D32: Number of systems | E32: 319 | F32: 375 | G32: 8.7 | H32: 0 | I32: 0 | J32: ED_MAI282_00020 | K32: SCADA & network control maintenance | L32: SCADA & network control maintenance | M32: 0 | N32: 535098
A33: ED_MAI281_00021 | B33: Protection systems maintenance | C33: Protection systems maintenance | D33: Number of systems | E33: 2963 | F33: 600 | G33: 32.7 | H33: 0.5 | I33: 4.5 | J33: ED_MAI282_00021 | K33: Protection systems maintenance | L33: Protection systems maintenance | M33: 1107097 | N33: 339057
A34: ED_MAI281_00022 | B34: Subtransmission asset maintenance - for DNSPs with dual function assets | C34: Subtransmission asset maintenance - for DNSPs with dual function assets | D34: <DNSP to nominate> | E34: 0 | F34: 0 | G34: 0 | H34: 0 | I34: 0 | J34: ED_MAI282_00022 | K34: Subtransmission asset maintenance - for DNSPs with dual function assets | L34: Subtransmission asset maintenance - for DNSPs with dual function assets | M34: 0 | N34: 0
A35: ED_MAI281_00023 | B35: Various assets | C35: includes rates, electricity, communications equip, metering | D35: Units not quoted as various UOM | E35: 5089 | F35: 345 | G35: 9.9 | H35: 1.5 | I35: 1.5 | J35: ED_MAI282_00023 | K35: Various assets | L35: includes rates, electricity, communications equip, metering | M35: 678196 | N35: 2328383
A36: ED_MAI281_00024 | B36: Ground clearance - access tracks | C36: Ground clearance - access tracks | D36: Units not quoted | E36: 0 | F36: 0 | G36: 0 | H36: 0 | I36: 0 | J36: ED_MAI282_00024 | K36: Ground clearance - access tracks | L36: Ground clearance - access tracks | M36: 0 | N36: 0
A37: ED_MAI281_00025 | B37: Other | C37: (1) Substation asset inspection | D37: No. of sites | E37: 400 | F37: 761 | G37: 41 | H37: 0.5 | I37: 0 | J37: ED_MAI282_00025 | K37: Other | L37: Total Other - Categories as identified in table 2.8.1 (1), (2), (3) & (4). | M37: =3743435+2 -> 3743437 | N37: =900357+1 -> 900358
A38: ED_MAI281_00026 | C38: (2) Zone substation equipment maintenance (switchgear) | D38: No. of CBs and disconnectors | E38: 5901 | F38: 844 | G38: 33.5 | H38: 0.5 | I38: 4.5
A39: ED_MAI281_00027 | C39: (3) Numbers of signages and IDs replaced | D39: No. of sites | E39: 74624 | F39: 1042 | G39: 0 | H39: 0 | I39: 0
A40: ED_MAI281_00028 | C40: (4) Power Station Maintenance, Asset Records Feeder Diagram Maintenance, Compliance auditing, Asset location Services, Customer Service Penalities | D40: Units not quoted as various UOM | E40: 0 | F40: 0 | G40: 0 | H40: 0 | I40: 0

Sheet 2.9 Emergency Response
B1: =(LOOKUP(dms_Model,dms_Model_List,dms_Worksheet_List)) -> REGULATORY REPORTING STATEMENT
B2: Australian Distribution Co.
B3: =CONCATENATE("Category Analysis RIN response ",CRY) -> Category Analysis RIN response 2014-15
B4: 2.9 EMERGENCY RESPONSE
B6: TABLE 2.9.1 - EMERGENCY RESPONSE EXPENDITURE (OPEX)
D9: EXPENDITURE ($0's)
D10: =CRY -> 2014-15
A11: ED_EME291_99999 | B11: (A) TOTAL EMERGENCY RESPONSE EXPENDITURE ($0's) | C11: Total Expenditure | D11: 32087787
A12: ED_EME291_00002 | B12: (B) MAJOR EVENTS O&M EXPENDITURE ($0's)
A13: ED_EME291_00003
A14: ED_EME291_00004
A15: ED_EME291_00005
A16: ED_EME291_00006
A17: ED_EME291_00007
A18: ED_EME291_00008
A19: ED_EME291_00009
A20: ED_EME291_00010
A21: ED_EME291_00011
A22: ED_EME291_00012
A23: ED_EME291_00013
A24: ED_EME291_00014
A25: ED_EME291_00015
A26: ED_EME291_00016
A27: ED_EME291_00017
A28: ED_EME291_00018
A29: ED_EME291_00019
A30: ED_EME291_00020
A31: ED_EME291_00021
A32: ED_EME291_00022
A33: ED_EME291_00023
A34: ED_EME291_00024
A35: ED_EME291_00025
A36: ED_EME291_00026
A37: ED_EME291_00027
A38: ED_EME291_00028
A39: ED_EME291_00029
A40: ED_EME291_00030
A41: ED_EME291_00031
A42: ED_EME291_00032
A43: ED_EME291_00033
A44: ED_EME291_00034
A45: ED_EME291_00035
A46: ED_EME291_00036
A47: ED_EME291_00037
A48: ED_EME291_00038
A49: ED_EME291_00039
A50: ED_EME291_00040
A51: ED_EME291_00041
A52: ED_EME291_00042
A53: ED_EME291_00043
A54: ED_EME291_00044
A55: ED_EME291_00045 | B55: (C) MAJOR EVENT DAYS O&M EXPENDITURE ($0's) | C55: The data range for (C ) Major Event days in the locked template does not allow for data to be inputted past this row as the cells have been protected. An unlocked version of this worksheet "2.9 Emergency Response (2)" has been included at the end of this template with the details for major event days.
A56: ED_EME291_00046
A57: ED_EME291_00047
A58: ED_EME291_00048
A59: ED_EME291_00049
A60: ED_EME291_00050
A61: ED_EME291_00051
A62: ED_EME291_00052
A63: ED_EME291_00053
A64: ED_EME291_00054
A65: ED_EME291_00055
A66: ED_EME291_00056
A67: ED_EME291_00057
A68: ED_EME291_00058
A69: ED_EME291_00059
A70: ED_EME291_00060
A71: ED_EME291_00061
A72: ED_EME291_00062
A73: ED_EME291_00063
A74: ED_EME291_00064
A75: ED_EME291_00065
A76: ED_EME291_00066
A77: ED_EME291_00067
A78: ED_EME291_00068
A79: ED_EME291_00069
A80: ED_EME291_00070
A81: ED_EME291_00071
A82: ED_EME291_00072
A83: ED_EME291_00073
A84: ED_EME291_00074
A85: ED_EME291_00075
A86: ED_EME291_00076
A87: ED_EME291_00077
A88: ED_EME291_00078
A89: ED_EME291_00079
A90: ED_EME291_00080
A91: ED_EME291_00081
A92: ED_EME291_00082
A93: ED_EME291_00083
A94: ED_EME291_00084
A95: ED_EME291_00085
A96: ED_EME291_00086
A97: ED_EME291_00087
A98: ED_EME291_00088
A99: ED_EME291_00089
A100: ED_EME291_00090
A101: ED_EME291_00091
A102: ED_EME291_00092
A103: ED_EME291_00093
A104: ED_EME291_00094
A105: ED_EME291_00095
A106: ED_EME291_00096
A107: ED_EME291_00097
A108: ED_EME291_00098
A109: ED_EME291_00099
A110: ED_EME291_00100
A111: ED_EME291_00101
A112: ED_EME291_00102
A113: ED_EME291_00103
A114: ED_EME291_00104
A115: ED_EME291_00105
A116: ED_EME291_00106
A117: ED_EME291_00107
A118: ED_EME291_00108
A119: ED_EME291_00109
A120: ED_EME291_00110
A121: ED_EME291_00111
A122: ED_EME291_00112
A123: ED_EME291_00113
A124: ED_EME291_00114
A125: ED_EME291_00115
A126: ED_EME291_00116
A127: ED_EME291_00117
A128: ED_EME291_00118
A129: ED_EME291_00119
A130: ED_EME291_00120
A131: ED_EME291_00121
A132: ED_EME291_00122
A133: ED_EME291_00123
A134: ED_EME291_00124
A135: ED_EME291_00125
A136: ED_EME291_00126
A137: ED_EME291_00127
A138: ED_EME291_00128
A139: ED_EME291_00129
A140: ED_EME291_00130
A141: ED_EME291_00131
A142: ED_EME291_00132
A143: ED_EME291_00133
A144: ED_EME291_00134
A145: ED_EME291_00135
A146: ED_EME291_00136
A147: ED_EME291_00137
A148: ED_EME291_00138
A149: ED_EME291_00139
A150: ED_EME291_00140
A151: ED_EME291_00141
A152: ED_EME291_00142
A153: ED_EME291_00143
A154: ED_EME291_00144
A155: ED_EME291_00145
A156: ED_EME291_00146
A157: ED_EME291_00147
A158: ED_EME291_00148
A159: ED_EME291_00149
A160: ED_EME291_00150
A161: ED_EME291_00151
A162: ED_EME291_00152
A163: ED_EME291_00153
A164: ED_EME291_00154
A165: ED_EME291_00155
A166: ED_EME291_00156
A167: ED_EME291_00157
A168: ED_EME291_00158
A169: ED_EME291_00159
A170: ED_EME291_00160
A171: ED_EME291_00161
A172: ED_EME291_00162
A173: ED_EME291_00163
A174: ED_EME291_00164
A175: ED_EME291_00165
A176: ED_EME291_00166
A177: ED_EME291_00167
A178: ED_EME291_00168
A179: ED_EME291_00169
A180: ED_EME291_00170
A181: ED_EME291_00171
A182: ED_EME291_00172
A183: ED_EME291_00173
A184: ED_EME291_00174
A185: ED_EME291_00175
A186: ED_EME291_00176
A187: ED_EME291_00177
A188: ED_EME291_00178
A189: ED_EME291_00179
A190: ED_EME291_00180
A191: ED_EME291_00181
A192: ED_EME291_00182
A193: ED_EME291_00183
A194: ED_EME291_00184
A195: ED_EME291_00185
A196: ED_EME291_00186
A197: ED_EME291_00187
A198: ED_EME291_00188
A199: ED_EME291_00189
A200: ED_EME291_00190
A201: ED_EME291_00191
A202: ED_EME291_00192
A203: ED_EME291_00193
... 400 more rows

Sheet 2.10 Overheads
B1: =(LOOKUP(dms_Model,dms_Model_List,dms_Worksheet_List)) -> REGULATORY REPORTING STATEMENT
B2: Australian Distribution Co.
B3: =CONCATENATE("Category Analysis RIN response ",CRY) -> Category Analysis RIN response 2014-15
B4: 2.10 OVERHEADS
B8: TABLE 2.10.1 - NETWORK OVERHEADS EXPENDITURE
E10: EXPENDITURE ($0's)
A11: OVE2101 | E11: =CRY -> 2014-15
A12: ED_OVE2101_00001 | B12: NETWORK OVERHEADS | C12: Total Overhead Expenditure - Standard Control Services | D12: Network management
A13: ED_OVE2101_00002 | D13: Network planning | E13: -200686.84
A14: ED_OVE2101_00003 | D14: Network control and operational switching | E14: 10199263.29
A15: ED_OVE2101_00004 | D15: Quality and standard functions | E15: 9637149.86
A16: ED_OVE2101_00005 | D16: Project governance and related functions | E16: 0
A17: ED_OVE2101_00006 | D17: Other Network Overheads | E17: 1710247.12
A18: ED_OVE2101_00007 | D18: Network Telephony | E18: 5860534.63
A19: ED_OVE2101_00008 | D19: Demand Management | E19: 2669305.17
A20: ED_OVE2101_00009 | D20: Guaranteed Service Level Payments | E20: 3713691.06
A21: ED_OVE2101_00010 | D21: Call Centre | E21: 3158852.86
A22: ED_OVE2101_00011 | D22: Full Retail Contestability | E22: 17340798.57
A23: ED_OVE2101_00012 | D23: Network Insurance | E23: 2645505.06
A24: ED_OVE2101_00013 | D24: Distribution Licence Fee | E24: 3326815.89
A25: ED_OVE2101_00014 | D25: Substation Property Maintenance | E25: 7388833.103
A26: ED_OVE2101_00015 | D26: Other Network Operation Costs | E26: 1868339.92
A27: ED_OVE2101_00016 | D27: Other Customer Services | E27: 6434012.121
A28: ED_OVE2101_00017
A29: ED_OVE2101_00018 | D29: Network Management (cell $E$12 is locked and will not allow input of data) | E29: 3419253.71
A30: ED_OVE2101_00019
A31: ED_OVE2101_00020
A32: ED_OVE2101_00021
A33: ED_OVE2101_00022
A34: ED_OVE2101_00023
A35: ED_OVE2101_00024
A36: ED_OVE2101_00025
A37: ED_OVE2101_00026
A38: ED_OVE2101_00027
A39: ED_OVE2101_00028
A40: ED_OVE2101_00029 | B40: NETWORK OVERHEADS | C40: Total Overhead Expenditure - Alternative Control Services | D40: Network management
A41: ED_OVE2101_00030 | D41: Network planning | E41: 0
A42: ED_OVE2101_00031 | D42: Network control and operational switching | E42: 0
A43: ED_OVE2101_00032 | D43: Quality and standard functions | E43: 0
A44: ED_OVE2101_00033 | D44: Project governance and related functions | E44: 0
A45: ED_OVE2101_00034 | D45: Other Customer Services | E45: 142705.715
A46: ED_OVE2101_00035
A47: ED_OVE2101_00036 | D47: Network Management (cell $E$40 is locked and will not allow input of data) | E47: 115862.15
A48: ED_OVE2101_00037
A49: ED_OVE2101_00038
A50: ED_OVE2101_00039
A51: ED_OVE2101_00040
A52: ED_OVE2101_00041
A53: ED_OVE2101_00042
A54: ED_OVE2101_00043
A55: ED_OVE2101_00044
A56: ED_OVE2101_00045
A57: ED_OVE2101_00046
A58: ED_OVE2101_00047
A59: ED_OVE2101_00048
A60: ED_OVE2101_00049
A61: ED_OVE2101_00050
A62: ED_OVE2101_00051
A63: ED_OVE2101_00052
A64: ED_OVE2101_00053
A65: ED_OVE2101_00054
A66: ED_OVE2101_00055
A67: ED_OVE2101_00056
A68: ED_OVE2101_00057 | B68: NETWORK OVERHEADS | C68: Total Overhead Expenditure - Negotiated Services | D68: Total | E68: 737842.22
A69: ED_OVE2101_00058 | C69: Total Overhead Expenditure - Unregulated Services | D69: Total | E69: 7274.73
A70: ED_OVE2101_00059 | B70: NETWORK OVERHEADS | C70: Capitalised Overheads - Standard Control Services | D70: Network management
A71: ED_OVE2101_00060 | D71: Network planning | E71: 0
A72: ED_OVE2101_00061 | D72: Network control and operational switching | E72: 0
A73: ED_OVE2101_00062 | D73: Quality and standard functions | E73: 0
A74: ED_OVE2101_00063 | D74: Project governance and related functions | E74: 0
A75: ED_OVE2101_00064
A76: ED_OVE2101_00065 | D76: Network Management (cell $E$70 is locked and will not allow input of data) | E76: 9626039.53
A77: ED_OVE2101_00066
A78: ED_OVE2101_00067
A79: ED_OVE2101_00068
A80: ED_OVE2101_00069
A81: ED_OVE2101_00070
A82: ED_OVE2101_00071
A83: ED_OVE2101_00072
A84: ED_OVE2101_00073
A85: ED_OVE2101_00074
A86: ED_OVE2101_00075
A87: ED_OVE2101_00076
A88: ED_OVE2101_00077
A89: ED_OVE2101_00078
A90: ED_OVE2101_00079
A91: ED_OVE2101_00080
A92: ED_OVE2101_00081
A93: ED_OVE2101_00082
A94: ED_OVE2101_00083
A95: ED_OVE2101_00084
A96: ED_OVE2101_00085
A97: ED_OVE2101_00086
B105: TABLE 2.10.2 - CORPORATE OVERHEADS EXPENDITURE
E107: EXPENDITURE ($0's)
A108: OVE2102 | E108: =CRY -> 2014-15
A109: ED_OVE2102_00002 | B109: CORPORATE OVERHEADS | C109: Total Overhead Expenditure - Standard Control Services
A110: ED_OVE2102_00003 | D110: CEO, Planning and Audit | E110: 3424353.395
A111: ED_OVE2102_00004 | D111: Communications | E111: 1948927.141
A112: ED_OVE2102_00005 | D112: Regulation and Company Secretary | E112: 8089791.272
A113: ED_OVE2102_00006 | D113: Finance | E113: 23407539.26
A114: ED_OVE2102_00007 | D114: HR and Training | E114: 9692695.101
A115: ED_OVE2102_00008 | D115: Property | E115: 6332939.133
A116: ED_OVE2102_00009 | D116: Information Systems | E116: 11921208.59
A117: ED_OVE2102_00010 | D117: Risk Management | E117: 7536802.978
A118: ED_OVE2102_00011 | D118: Other Allocated Costs | E118: -6474174.028
A119: ED_OVE2102_00012
A120: ED_OVE2102_00013
A121: ED_OVE2102_00014
A122: ED_OVE2102_00015
A123: ED_OVE2102_00016
A124: ED_OVE2102_00017
A125: ED_OVE2102_00018
A126: ED_OVE2102_00019
A127: ED_OVE2102_00020
A128: ED_OVE2102_00021
A129: ED_OVE2102_00022
A130: ED_OVE2102_00023 | B130: CORPORATE OVERHEADS | C130: Total Overhead Expenditure - Alternative Control Services
A131: ED_OVE2102_00024 | D131: CEO, Planning and Audit | E131: 53816.568
A132: ED_OVE2102_00025 | D132: Communications | E132: 44803.825
A133: ED_OVE2102_00026 | D133: Regulation and Company Secretary | E133: 122329.991
A134: ED_OVE2102_00027 | D134: Finance | E134: 456763.367
A135: ED_OVE2102_00028 | D135: HR and Training | E135: 92920.218
A136: ED_OVE2102_00029 | D136: Property | E136: 37751.765
A137: ED_OVE2102_00030 | D137: Information Systems | E137: 115271.943
A138: ED_OVE2102_00031 | D138: Risk Management | E138: 57203.048
A139: ED_OVE2102_00032 | D139: Other Allocated Costs | E139: -132380.09
A140: ED_OVE2102_00033
A141: ED_OVE2102_00034
A142: ED_OVE2102_00035
A143: ED_OVE2102_00036
A144: ED_OVE2102_00037
A145: ED_OVE2102_00038
A146: ED_OVE2102_00039
A147: ED_OVE2102_00040
A148: ED_OVE2102_00041
A149: ED_OVE2102_00042
A150: ED_OVE2102_00043
A151: ED_OVE2102_00044 | B151: CORPORATE OVERHEADS | C151: Total Overhead Expenditure - Negotiated Services | D151: Total | E151: 3490992.093
A152: ED_OVE2102_00045 | C152: Total Overhead Expenditure - Unregulated Services | D152: Total | E152: 2693656.797
A153: ED_OVE2102_00046 | B153: CORPORATE OVERHEADS | C153: Capitalised Overheads - Standard Control Services
A154: ED_OVE2102_00047 | D154: Other Allocated Costs - Standard Control | E154: -18253075.62
A155: ED_OVE2102_00048 | D155: Other Allocated Costs - Alternative Control | E155: -133664.24
A156: ED_OVE2102_00049
A157: ED_OVE2102_00050
A158: ED_OVE2102_00051
A159: ED_OVE2102_00052
A160: ED_OVE2102_00053
A161: ED_OVE2102_00054
A162: ED_OVE2102_00055
A163: ED_OVE2102_00056
A164: ED_OVE2102_00057
A165: ED_OVE2102_00058
A166: ED_OVE2102_00059
A167: ED_OVE2102_00060
A168: ED_OVE2102_00061
A169: ED_OVE2102_00062
A170: ED_OVE2102_00063
A171: ED_OVE2102_00064
A172: ED_OVE2102_00065
A173: ED_OVE2102_00066

Sheet 2.11 Labour
B1: =(LOOKUP(dms_Model,dms_Model_List,dms_Worksheet_List)) -> REGULATORY REPORTING STATEMENT
B2: Australian Distribution Co.
B3: =CONCATENATE("Category Analysis RIN response ",CRY) -> Category Analysis RIN response 2014-15
B4: 2.11 LABOUR
B6: TABLE 2.11.1 - COST METRICS PER ANNUM | J6: TABLE 2.11.2 - EXTRA DESCRIPTOR METRICS FOR CURRENT YEAR
E10: ASL (0'S) | F10: TOTAL LABOUR EXPENDITURE ($0's) | G10: AVERAGE PRODUCTIVE WORK HOURS PER ASL (0'S) | H10: STAND-DOWN OCCURENCES PER ASL (0'S) | M10: AVERAGE PRODUCTIVE WORK HOURS ORDINARY TIME (0's) | O10: AVERAGE PRODUCTIVE WORK HOURS OVERTIME (0's)
M11: PER ASL | N11: HOURLY RATE PER ASL | O11: PER ASL | P11: HOURLY RATE PER ASL
E12: =CRY -> 2014-15 | F12: =CRY -> 2014-15 | G12: =CRY -> 2014-15 | H12: =CRY -> 2014-15 | M12: =CRY -> 2014-15 | N12: =CRY -> 2014-15 | O12: =CRY -> 2014-15 | P12: =CRY -> 2014-15
A13: ED_LAB2111_00001 | B13: CORPORATE OVERHEADS INTERNAL LABOUR COSTS | C13: LABOUR CLASSIFICATION LEVEL | D13: Executive manager | E13: 27.8 | F13: 9639.3 | G13: 1901.3 | H13: 0 | I13: ED_LAB2112_00001 | J13: CORPORATE OVERHEADS INTERNAL LABOUR COSTS | K13: LABOUR CLASSIFICATION LEVEL | L13: Executive manager | M13: 1900.4 | N13: 182.3 | O13: 0.9 | P13: 222.3
A14: ED_LAB2111_00002 | D14: Employee (optional) | E14: 27.8 | F14: 9639.3 | G14: 1901.3 | H14: 0 | I14: ED_LAB2112_00002 | L14: Employee (optional) | M14: 1900.4 | N14: 182.3 | O14: 0.9 | P14: 222.3
A15: ED_LAB2111_00003 | D15: Labour hire (optional) | E15: 0 | F15: 0 | G15: 0 | H15: 0 | I15: ED_LAB2112_00003 | L15: Labour hire (optional) | M15: 0 | N15: 0 | O15: 0 | P15: 0
A16: ED_LAB2111_00004 | D16: Senior manager | E16: 14.9 | F16: 3106.4 | G16: 1805.6 | H16: 0 | I16: ED_LAB2112_00004 | L16: Senior manager | M16: 1805.4 | N16: 115.6 | O16: 0.3 | P16: 133.1
A17: ED_LAB2111_00005 | D17: Employee (optional) | E17: 14.9 | F17: 3106.4 | G17: 1805.6 | H17: 0 | I17: ED_LAB2112_00005 | L17: Employee (optional) | M17: 1805.4 | N17: 115.6 | O17: 0.3 | P17: 133.1
A18: ED_LAB2111_00006 | D18: Labour hire (optional) | E18: 0 | F18: 0 | G18: 0 | H18: 0 | I18: ED_LAB2112_00006 | L18: Labour hire (optional) | M18: 0 | N18: 0 | O18: 0 | P18: 0
A19: ED_LAB2111_00007 | D19: Manager | E19: 20.8 | F19: 3013.3 | G19: 1642.7 | H19: 0.1 | I19: ED_LAB2112_00007 | L19: Manager | M19: 1611.1 | N19: 88.1 | O19: 31.5 | P19: 91.4
A20: ED_LAB2111_00008 | D20: Employee (optional) | E20: 19.8 | F20: 2829.5 | G20: 1628 | H20: 0.1 | I20: ED_LAB2112_00008 | L20: Employee (optional) | M20: 1595.8 | N20: 87.7 | O20: 32.2 | P20: 90.5
A21: ED_LAB2111_00009 | D21: Labour hire (optional) | E21: 1 | F21: 183.8 | G21: 1933.5 | H21: 0 | I21: ED_LAB2112_00009 | L21: Labour hire (optional) | M21: 1914.9 | N21: 95.5 | O21: 18.6 | P21: 108.8
A22: ED_LAB2111_00010 | D22: Professional | E22: 34.8 | F22: 4753.7 | G22: 1662.3 | H22: 0.5 | I22: ED_LAB2112_00010 | L22: Professional | M22: 1606.5 | N22: 81.9 | O22: 55.7 | P22: 85.9
A23: ED_LAB2111_00011 | D23: Employee (optional) | E23: 32.6 | F23: 4371.3 | G23: 1646 | H23: 0.5 | I23: ED_LAB2112_00011 | L23: Employee (optional) | M23: 1586.4 | N23: 81.3 | O23: 59.5 | P23: 84.7
A24: ED_LAB2111_00012 | D24: Labour hire (optional) | E24: 2.2 | F24: 382.4 | G24: 1903.7 | H24: 0 | I24: ED_LAB2112_00012 | L24: Labour hire (optional) | M24: 1903.7 | N24: 90.9 | O24: 0 | P24: 103.4
A25: ED_LAB2111_00013 | D25: Semi professional | E25: 123.9 | F25: 16992.6 | G25: 1604.7 | H25: 0.1 | I25: ED_LAB2112_00013 | L25: Semi professional | M25: 1583.7 | N25: 85.3 | O25: 21 | P25: 86.3
A26: ED_LAB2111_00014 | D26: Employee (optional) | E26: 111.3 | F26: 14828 | G26: 1575.5 | H26: 0.1 | I26: ED_LAB2112_00014 | L26: Employee (optional) | M26: 1552.1 | N26: 84.5 | O26: 23.4 | P26: 84.2
A27: ED_LAB2111_00015 | D27: Labour hire (optional) | E27: 12.6 | F27: 2164.6 | G27: 1862.5 | H27: 0 | I27: ED_LAB2112_00015 | L27: Labour hire (optional) | M27: 1862.5 | N27: 92.4 | O27: 0 | P27: 105.1
A28: ED_LAB2111_00016 | D28: Support staff | E28: 157.7 | F28: 16750.8 | G28: 1589 | H28: 0 | I28: ED_LAB2112_00016 | L28: Support staff | M28: 1573.6 | N28: 66.7 | O28: 15.5 | P28: 66.5
A29: ED_LAB2111_00017 | D29: Employee (optional) | E29: 144.2 | F29: 14950.9 | G29: 1563.7 | H29: 0 | I29: ED_LAB2112_00017 | L29: Employee (optional) | M29: 1547.1 | N29: 66.3 | O29: 16.7 | P29: 65.1
A30: ED_LAB2111_00018 | D30: Labour hire (optional) | E30: 13.5 | F30: 1799.9 | G30: 1859.3 | H30: 0 | I30: ED_LAB2112_00018 | L30: Labour hire (optional) | M30: 1856.5 | N30: 71.5 | O30: 2.8 | P30: 81.4
A31: ED_LAB2111_00019 | D31: Intern, junior staff, apprentice | E31: 0.4 | F31: 6.3 | G31: 1545.3 | H31: 0 | I31: ED_LAB2112_00019 | L31: Intern, junior staff, apprentice | M31: 1545.3 | N31: 11.5 | O31: 0 | P31: 0
A32: ED_LAB2111_00020 | D32: Employee (optional) | E32: 0.4 | F32: 6.3 | G32: 1545.3 | H32: 0 | I32: ED_LAB2112_00020 | L32: Employee (optional) | M32: 1545.3 | N32: 11.5 | O32: 0 | P32: 0
A33: ED_LAB2111_00021 | D33: Labour hire (optional) | E33: 0 | F33: 0 | G33: 0 | H33: 0 | I33: ED_LAB2112_00021 | L33: Labour hire (optional) | M33: 0 | N33: 0 | O33: 0 | P33: 0
A34: ED_LAB2111_00022 | B34: NETWORK OVERHEADS INTERNAL LABOUR COSTS | C34: LABOUR CLASSIFICATION LEVEL | D34: Executive manager | E34: 19.6 | F34: 5375.4 | G34: 1902.3 | H34: 0 | I34: ED_LAB2112_00022 | J34: NETWORK OVERHEADS INTERNAL LABOUR COSTS | K34: LABOUR CLASSIFICATION LEVEL | L34: Executive manager | M34: 1899.8 | N34: 144.3 | O34: 2.5 | P34: 174.6
A35: ED_LAB2111_00023 | D35: Employee (optional) | E35: 19.6 | F35: 5375.4 | G35: 1902.3 | H35: 0 | I35: ED_LAB2112_00023 | L35: Employee (optional) | M35: 1899.8 | N35: 144.3 | O35: 2.5 | P35: 174.6
A36: ED_LAB2111_00024 | D36: Labour hire (optional) | E36: 0 | F36: 0 | G36: 0 | H36: 0 | I36: ED_LAB2112_00024 | L36: Labour hire (optional) | M36: 0 | N36: 0 | O36: 0 | P36: 0
A37: ED_LAB2111_00025 | D37: Senior manager | E37: 32.9 | F37: 5705.4 | G37: 1778.7 | H37: 0 | I37: ED_LAB2112_00025 | L37: Senior manager | M37: 1760.5 | N37: 97.4 | O37: 18.2 | P37: 109.5
A38: ED_LAB2111_00026 | D38: Employee (optional) | E38: 32.9 | F38: 5705.4 | G38: 1778.7 | H38: 0 | I38: ED_LAB2112_00026 | L38: Employee (optional) | M38: 1760.5 | N38: 97.4 | O38: 18.2 | P38: 109.5
A39: ED_LAB2111_00027 | D39: Labour hire (optional) | E39: 0 | F39: 0 | G39: 0 | H39: 0 | I39: ED_LAB2112_00027 | L39: Labour hire (optional) | M39: 0 | N39: 0 | O39: 0 | P39: 0
A40: ED_LAB2111_00028 | D40: Manager | E40: 81.2 | F40: 11060.6 | G40: 1649.2 | H40: 3.9 | I40: ED_LAB2112_00028 | L40: Manager | M40: 1560.6 | N40: 82.4 | O40: 88.6 | P40: 85.5
A41: ED_LAB2111_00029 | D41: Employee (optional) | E41: 81.2 | F41: 11060.6 | G41: 1649.2 | H41: 3.9 | I41: ED_LAB2112_00029 | L41: Employee (optional) | M41: 1560.6 | N41: 82.4 | O41: 88.6 | P41: 85.5
A42: ED_LAB2111_00030 | D42: Labour hire (optional) | E42: 0 | F42: 0 | G42: 0 | H42: 0 | I42: ED_LAB2112_00030 | L42: Labour hire (optional) | M42: 0 | N42: 0 | O42: 0 | P42: 0
A43: ED_LAB2111_00031 | D43: Professional | E43: 100.8 | F43: 12583.7 | G43: 1615.2 | H43: 0.1 | I43: ED_LAB2112_00031 | L43: Professional | M43: 1573.8 | N43: 77.2 | O43: 41.3 | P43: 77.8
A44: ED_LAB2111_00032 | D44: Employee (optional) | E44: 91.5 | F44: 11138.8 | G44: 1585.8 | H44: 0.1 | I44: ED_LAB2112_00032 | L44: Employee (optional) | M44: 1545.3 | N44: 76.8 | O44: 40.5 | P44: 76.2
A45: ED_LAB2111_00033 | D45: Labour hire (optional) | E45: 9.3 | F45: 1444.9 | G45: 1904 | H45: 0 | I45: ED_LAB2112_00033 | L45: Labour hire (optional) | M45: 1854.4 | N45: 81.5 | O45: 49.6 | P45: 93.1
A46: ED_LAB2111_00034 | D46: Semi professional | E46: 325.5 | F46: 42680.3 | G46: 1650.8 | H46: 3.4 | I46: ED_LAB2112_00034 | L46: Semi professional | M46: 1580.6 | N46: 79.3 | O46: 70.2 | P46: 81.8
A47: ED_LAB2111_00035 | D47: Employee (optional) | E47: 298.6 | F47: 38258.1 | G47: 1629.2 | H47: 3.7 | I47: ED_LAB2112_00035 | L47: Employee (optional) | M47: 1554.9 | N47: 78.6 | O47: 74.3 | P47: 80.3
A48: ED_LAB2111_00036 | D48: Labour hire (optional) | E48: 26.9 | F48: 4422.2 | G48: 1890.9 | H48: 0 | I48: ED_LAB2112_00036 | L48: Labour hire (optional) | M48: 1865.9 | N48: 86.7 | O48: 25.1 | P48: 98.8
A49: ED_LAB2111_00037 | D49: Support staff | E49: 168.1 | F49: 19409.2 | G49: 1644.6 | H49: 3.7 | I49: ED_LAB2112_00037 | L49: Support staff | M49: 1600.5 | N49: 70 | O49: 44.1 | P49: 71.6
A50: ED_LAB2111_00038 | D50: Employee (optional) | E50: 138.1 | F50: 15192.4 | G50: 1594.2 | H50: 4.1 | I50: ED_LAB2112_00038 | L50: Employee (optional) | M50: 1545.3 | N50: 69 | O50: 48.9 | P50: 68.7
A51: ED_LAB2111_00039 | D51: Labour hire (optional) | E51: 30 | F51: 4216.8 | G51: 1876.6 | H51: 1.9 | I51: ED_LAB2112_00039 | L51: Labour hire (optional) | M51: 1854.4 | N51: 74.7 | O51: 22.2 | P51: 85.1
A52: ED_LAB2111_00040 | D52: Intern, junior staff, apprentice | E52: 16.7 | F52: 1514.7 | G52: 1568.5 | H52: 0.6 | I52: ED_LAB2112_00040 | L52: Intern, junior staff, apprentice | M52: 1552.7 | N52: 57.7 | O52: 15.8 | P52: 56
A53: ED_LAB2111_00041 | D53: Employee (optional) | E53: 16.3 | F53: 1469.3 | G53: 1561.5 | H53: 0.6 | I53: ED_LAB2112_00041 | L53: Employee (optional) | M53: 1545.3 | N53: 57.6 | O53: 16.2 | P53: 55.7
A54: ED_LAB2111_00042 | D54: Labour hire (optional) | E54: 0.4 | F54: 45.4 | G54: 1854.4 | H54: 0 | I54: ED_LAB2112_00042 | L54: Labour hire (optional) | M54: 1854.4 | N54: 61.4 | O54: 0 | P54: 69.8
A55: ED_LAB2111_00043 | B55: TOTAL DIRECT NETWORK LABOUR INTERNAL LABOUR COSTS | C55: LABOUR CLASSIFICATION LEVEL | D55: Skilled electrical worker | E55: 535.1 | F55: 68352.6 | G55: 1909.6 | H55: 55.9 | I55: ED_LAB2112_00043 | J55: TOTAL DIRECT NETWORK LABOUR INTERNAL LABOUR COSTS | K55: LABOUR CLASSIFICATION LEVEL | L55: Skilled electrical worker | M55: 1553.8 | N55: 63.9 | O55: 355.7 | P55: 79.7
A56: ED_LAB2111_00044 | D56: Employee (optional) | E56: 520.4 | F56: 65958.3 | G56: 1905.1 | H56: 56.4 | I56: ED_LAB2112_00044 | L56: Employee (optional) | M56: 1545.3 | N56: 63.5 | O56: 359.7 | P56: 79.4
A57: ED_LAB2111_00045 | D57: Labour hire (optional) | E57: 14.7 | F57: 2394.3 | G57: 2068.3 | H57: 37.9 | I57: ED_LAB2112_00045 | L57: Labour hire (optional) | M57: 1854.4 | N57: 77.3 | O57: 213.9 | P57: 89.3
A58: ED_LAB2111_00046 | D58: Skilled non electical worker | E58: 26.2 | F58: 2508.7 | G58: 1699.5 | H58: 3.6 | I58: ED_LAB2112_00046 | L58: Skilled non electical worker | M58: 1572.4 | N58: 56 | O58: 127.1 | P58: 58.9
A59: ED_LAB2111_00047 | D59: Employee (optional) | E59: 23.9 | F59: 2231.2 | G59: 1671.5 | H59: 3.6 | I59: ED_LAB2112_00047 | L59: Employee (optional) | M59: 1545.3 | N59: 55.7 | O59: 126.2 | P59: 58
A60: ED_LAB2111_00048 | D60: Labour hire (optional) | E60: 2.3 | F60: 277.5 | G60: 1991 | H60: 3.3 | I60: ED_LAB2112_00048 | L60: Labour hire (optional) | M60: 1854.4 | N60: 58.9 | O60: 136.6 | P60: 67.7
A61: ED_LAB2111_00049 | D61: Apprentice | E61: 129.6 | F61: 7216.6 | G61: 1722.7 | H61: 21.3 | I61: ED_LAB2112_00049 | L61: Apprentice | M61: 1565 | N61: 32.2 | O61: 157.8 | P61: 33.6
A62: ED_LAB2111_00050 | D62: Employee (optional) | E62: 128.2 | F62: 7120.7 | G62: 1718.5 | H62: 21.5 | I62: ED_LAB2112_00050 | L62: Employee (optional) | M62: 1561.6 | N62: 32.2 | O62: 156.9 | P62: 33.6
A63: ED_LAB2111_00051 | D63: Labour hire (optional) | E63: 1.4 | F63: 95.9 | G63: 2111.9 | H63: 0 | I63: ED_LAB2112_00051 | L63: Labour hire (optional) | M63: 1873.9 | N63: 31.9 | O63: 238 | P63: 37
A64: ED_LAB2111_00052 | D64: Unskilled worker | E64: 56.1 | F64: 4917.8 | G64: 1736.3 | H64: 13.1 | I64: ED_LAB2112_00052 | L64: Unskilled worker | M64: 1609.2 | N64: 50.2 | O64: 127 | P64: 53.5
A65: ED_LAB2111_00053 | D65: Employee (optional) | E65: 44.5 | F65: 3700.3 | G65: 1684.1 | H65: 15.5 | I65: ED_LAB2112_00053 | L65: Employee (optional) | M65: 1545.3 | N65: 49.2 | O65: 138.7 | P65: 51.4
A66: ED_LAB2111_00054 | D66: Labour hire (optional) | E66: 11.6 | F66: 1217.5 | G66: 1936.5 | H66: 3.9 | I66: ED_LAB2112_00054 | L66: Labour hire (optional) | M66: 1854.4 | N66: 53.9 | O66: 82.1 | P66: 61.7

Sheet 2.12 Input tables
B1: =(LOOKUP(dms_Model,dms_Model_List,dms_Worksheet_List)) -> REGULATORY REPORTING STATEMENT
B2: Australian Distribution Co.
B3: =CONCATENATE("Category Analysis RIN response ",CRY) -> Category Analysis RIN response 2014-15
B4: 2.12 INPUT TABLES
E5: 1
M7: DIRECT MATERIAL EXPENDITURE | N7: DIRECT LABOUR EXPENDITURE | O7: CONTRACT EXPENDITURE | P7: OTHER EXPENDITURE | Q7: RELATED PARTY CONTRACT EXPENDITURE | R7: RELATED PARTY CONTRACT MARGIN EXPENDITURE
E8: DNSP NAME | F8: SERVICE | G8: SERVICE SUBCATEGORY | H8: DATA CATEGORY | I8: DATA SUBCATEGORY | J8: MEASUREMENT | K8: DENOMINATION | M8: =CRY -> 2014-15 | N8: 2014-15 | O8: 2014-15 | P8: 2014-15 | Q8: 2014-15 | R8: 2014-15
A9: ED_INP212_00001 | B9: VEGETATION MANAGEMENT | C9: ='2.7 Vegetation management'!I11 -> ZONE 1 | E9: DNSP NAME | F9: INPUT COSTS | G9: VEGETATION MANAGEMENT | H9: DIRECT MATERIAL COST | I9: =$C$9 -> ZONE 1 | J9: EXPENDITURE | K9: $0's
A10: ED_INP212_00002 | C10: ='2.7 Vegetation management'!I23 -> ZONE 2 | E10: DNSP NAME | F10: INPUT COSTS | G10: VEGETATION MANAGEMENT | H10: DIRECT MATERIAL COST | I10: =$C$10 -> ZONE 2 | J10: EXPENDITURE | K10: $0's
A11: ED_INP212_00003 | C11: ='2.7 Vegetation management'!I35 -> ZONE 3 | E11: DNSP NAME | F11: INPUT COSTS | G11: VEGETATION MANAGEMENT | H11: DIRECT MATERIAL COST | I11: =$C$11 -> ZONE 3 | J11: EXPENDITURE | K11: $0's
A12: ED_INP212_00004 | C12: ='2.7 Vegetation management'!I47 -> ZONE 4 | E12: DNSP NAME | F12: INPUT COSTS | G12: VEGETATION MANAGEMENT | H12: DIRECT MATERIAL COST | I12: =$C$12 -> ZONE 4 | J12: EXPENDITURE | K12: $0's
A13: ED_INP212_00005 | C13: ='2.7 Vegetation management'!I59 -> ZONE 5 | E13: DNSP NAME | F13: INPUT COSTS | G13: VEGETATION MANAGEMENT | H13: DIRECT MATERIAL COST | I13: =$C$13 -> ZONE 5 | J13: EXPENDITURE | K13: $0's
A14: ED_INP212_00006 | C14: ='2.7 Vegetation management'!I71 -> ZONE 6 | E14: DNSP NAME | F14: INPUT COSTS | G14: VEGETATION MANAGEMENT | H14: DIRECT MATERIAL COST | I14: =$C$14 -> ZONE 6 | J14: EXPENDITURE | K14: $0's
A15: ED_INP212_00007 | C15: ='2.7 Vegetation management'!I83 -> ZONE 7 | E15: DNSP NAME | F15: INPUT COSTS | G15: VEGETATION MANAGEMENT | H15: DIRECT MATERIAL COST | I15: =$C$15 -> ZONE 7 | J15: EXPENDITURE | K15: $0's
A16: ED_INP212_00008 | C16: ='2.7 Vegetation management'!I95 -> ZONE 8 | E16: DNSP NAME | F16: INPUT COSTS | G16: VEGETATION MANAGEMENT | H16: DIRECT MATERIAL COST | I16: =$C$16 -> ZONE 8 | J16: EXPENDITURE | K16: $0's
A17: ED_INP212_00009 | C17: ='2.7 Vegetation management'!I107 -> ZONE 9 | E17: DNSP NAME | F17: INPUT COSTS | G17: VEGETATION MANAGEMENT | H17: DIRECT MATERIAL COST | I17: =$C$17 -> ZONE 9 | J17: EXPENDITURE | K17: $0's
A18: ED_INP212_00010 | C18: ='2.7 Vegetation management'!I119 -> ZONE 10 | E18: DNSP NAME | F18: INPUT COSTS | G18: VEGETATION MANAGEMENT | H18: DIRECT MATERIAL COST | I18: =$C$18 -> ZONE 10 | J18: EXPENDITURE | K18: $0's
A19: ED_INP212_00011 | C19: ='2.7 Vegetation management'!I131 -> ZONE 11 | E19: DNSP NAME | F19: INPUT COSTS | G19: VEGETATION MANAGEMENT | H19: DIRECT MATERIAL COST | I19: =$C$19 -> ZONE 11 | J19: EXPENDITURE | K19: $0's
A20: ED_INP212_00012 | C20: ='2.7 Vegetation management'!I143 -> ZONE 12 | E20: DNSP NAME | F20: INPUT COSTS | G20: VEGETATION MANAGEMENT | H20: DIRECT MATERIAL COST | I20: =$C$20 -> ZONE 12 | J20: EXPENDITURE | K20: $0's
A21: ED_INP212_00013 | C21: ='2.7 Vegetation management'!I155 -> ZONE 13 | E21: DNSP NAME | F21: INPUT COSTS | G21: VEGETATION MANAGEMENT | H21: DIRECT MATERIAL COST | I21: =$C$21 -> ZONE 13 | J21: EXPENDITURE | K21: $0's
A22: ED_INP212_00014 | C22: ='2.7 Vegetation management'!I167 -> ZONE 14 | E22: DNSP NAME | F22: INPUT COSTS | G22: VEGETATION MANAGEMENT | H22: DIRECT MATERIAL COST | I22: =$C$22 -> ZONE 14 | J22: EXPENDITURE | K22: $0's
A23: ED_INP212_00015 | C23: ='2.7 Vegetation management'!I179 -> ZONE 15 | E23: DNSP NAME | F23: INPUT COSTS | G23: VEGETATION MANAGEMENT | H23: DIRECT MATERIAL COST | I23: =$C$23 -> ZONE 15 | J23: EXPENDITURE | K23: $0's
A24: ED_INP212_00016 | C24: ='2.7 Vegetation management'!I191 -> ZONE 16 | E24: DNSP NAME | F24: INPUT COSTS | G24: VEGETATION MANAGEMENT | H24: DIRECT MATERIAL COST | I24: =$C$24 -> ZONE 16 | J24: EXPENDITURE | K24: $0's
A25: ED_INP212_00017 | C25: ='2.7 Vegetation management'!I203 -> ZONE 17 | E25: DNSP NAME | F25: INPUT COSTS | G25: VEGETATION MANAGEMENT | H25: DIRECT MATERIAL COST | I25: =$C$25 -> ZONE 17 | J25: EXPENDITURE | K25: $0's
A26: ED_INP212_00018 | C26: ='2.7 Vegetation management'!I215 -> ZONE 18 | E26: DNSP NAME | F26: INPUT COSTS | G26: VEGETATION MANAGEMENT | H26: DIRECT MATERIAL COST | I26: =$C$26 -> ZONE 18 | J26: EXPENDITURE | K26: $0's
A27: ED_INP212_00019 | B27: ROUTINE MAINTENANCE | C27: Pole top, overhead line & service line maintenance | E27: DNSP NAME | F27: INPUT COSTS | G27: ROUTINE MAINTENANCE | H27: DIRECT MATERIAL COST | I27: =$C$27 -> Pole top, overhead line & service line maintenance | J27: EXPENDITURE | K27: $0's | M27: 9488 | N27: 115224 | O27: 3389 | P27: 31919
A28: ED_INP212_00020 | C28: Pole inspection and treatment | E28: DNSP NAME | F28: INPUT COSTS | G28: ROUTINE MAINTENANCE | H28: DIRECT MATERIAL COST | I28: =$C$28 -> Pole inspection and treatment | J28: EXPENDITURE | K28: $0's | M28: 15 | N28: 346974 | O28: 5999714 | P28: 0
A29: ED_INP212_00021 | C29: Overhead asset inspection | E29: DNSP NAME | F29: INPUT COSTS | G29: ROUTINE MAINTENANCE | H29: DIRECT MATERIAL COST | I29: =$C$29 -> Overhead asset inspection | J29: EXPENDITURE | K29: $0's | M29: 26187 | N29: 1215003 | O29: 5212298 | P29: 18867
A30: ED_INP212_00022 | C30: Network underground cable maintenance | E30: DNSP NAME | F30: INPUT COSTS | G30: ROUTINE MAINTENANCE | H30: DIRECT MATERIAL COST | I30: =$C$30 -> Network underground cable maintenance | J30: EXPENDITURE | K30: $0's | M30: 19272 | N30: 239089 | O30: 5741 | P30: 7372
A31: ED_INP212_00023 | C31: Distribution substation equipment & property maintenance | E31: DNSP NAME | F31: INPUT COSTS | G31: ROUTINE MAINTENANCE | H31: DIRECT MATERIAL COST | I31: =$C$31 -> Distribution substation equipment & property maintenance | J31: EXPENDITURE | K31: $0's | M31: 650 | N31: 294926 | O31: 5721 | P31: 738
A32: ED_INP212_00024 | C32: Zone substation equipment maintenance | E32: DNSP NAME | F32: INPUT COSTS | G32: ROUTINE MAINTENANCE | H32: DIRECT MATERIAL COST | I32: =$C$32 -> Zone substation equipment maintenance | J32: EXPENDITURE | K32: $0's | M32: 63417 | N32: 1228629 | O32: 226685 | P32: 54815
A33: ED_INP212_00025 | C33: Zone substation property maintenance | E33: DNSP NAME | F33: INPUT COSTS | G33: ROUTINE MAINTENANCE | H33: DIRECT MATERIAL COST | I33: =$C$33 -> Zone substation property maintenance | J33: EXPENDITURE | K33: $0's | M33: 30285 | N33: 155952 | O33: 962325 | P33: 3632
A34: ED_INP212_00026 | C34: Public lighting maintenance | E34: DNSP NAME | F34: INPUT COSTS | G34: ROUTINE MAINTENANCE | H34: DIRECT MATERIAL COST | I34: =$C$34 -> Public lighting maintenance | J34: EXPENDITURE | K34: $0's | M34: 0 | N34: 0 | O34: 0 | P34: 0
A35: ED_INP212_00027 | C35: Scada & network control maintenance | E35: DNSP NAME | F35: INPUT COSTS | G35: ROUTINE MAINTENANCE | H35: DIRECT MATERIAL COST | I35: =$C$35 -> Scada & network control maintenance | J35: EXPENDITURE | K35: $0's | M35: 0 | N35: 0 | O35: 0 | P35: 0
A36: ED_INP212_00028 | C36: Protection systems maintenance | E36: DNSP NAME | F36: INPUT COSTS | G36: ROUTINE MAINTENANCE | H36: DIRECT MATERIAL COST | I36: =$C$36 -> Protection systems maintenance | J36: EXPENDITURE | K36: $0's | M36: 22940 | N36: 1004620 | O36: 33976 | P36: 45561
A37: ED_INP212_00029 | C37: Subtransmission asset maintenance - for dnsps with dual function assets | E37: DNSP NAME | F37: INPUT COSTS | G37: ROUTINE MAINTENANCE | H37: DIRECT MATERIAL COST | I37: =$C$37 -> Subtransmission asset maintenance - for dnsps with dual function assets | J37: EXPENDITURE | K37: $0's | M37: 0 | N37: 0 | O37: 0 | P37: 0
A38: ED_INP212_00031 | C38: Other | E38: DNSP NAME | F38: INPUT COSTS | G38: ROUTINE MAINTENANCE | H38: DIRECT MATERIAL COST | I38: =$C$38 -> Other | J38: EXPENDITURE | K38: $0's | M38: 370561 | N38: 3029016 | O38: 940607 | P38: 81446
A39: ED_INP212_00032 | B39: NON-ROUTINE MAINTENANCE | C39: Pole top, overhead line & service line maintenance | E39: DNSP NAME | F39: INPUT COSTS | G39: NON-ROUTINE MAINTENANCE | H39: DIRECT MATERIAL COST | I39: =$C$39 -> Pole top, overhead line & service line maintenance | J39: EXPENDITURE | K39: $0's | M39: 60865 | N39: 626682 | O39: 155990 | P39: 138341
A40: ED_INP212_00033 | C40: Pole inspection and treatment | E40: DNSP NAME | F40: INPUT COSTS | G40: NON-ROUTINE MAINTENANCE | H40: DIRECT MATERIAL COST | I40: =$C$40 -> Pole inspection and treatment | J40: EXPENDITURE | K40: $0's | M40: 0 | N40: 0 | O40: 0 | P40: 0
A41: ED_INP212_00034 | C41: Overhead asset inspection | E41: DNSP NAME | F41: INPUT COSTS | G41: NON-ROUTINE MAINTENANCE | H41: DIRECT MATERIAL COST | I41: =$C$41 -> Overhead asset inspection | J41: EXPENDITURE | K41: $0's | M41: 0 | N41: 0 | O41: 0 | P41: 0
A42: ED_INP212_00035 | C42: Network underground cable maintenance | E42: DNSP NAME | F42: INPUT COSTS | G42: NON-ROUTINE MAINTENANCE | H42: DIRECT MATERIAL COST | I42: =$C$42 -> Network underground cable maintenance | J42: EXPENDITURE | K42: $0's | M42: 78750 | N42: 315092 | O42: 57436 | P42: 48211
A43: ED_INP212_00036 | C43: Distribution substation equipment & property maintenance | E43: DNSP NAME | F43: INPUT COSTS | G43: NON-ROUTINE MAINTENANCE | H43: DIRECT MATERIAL COST | I43: =$C$43 -> Distribution substation equipment & property maintenance | J43: EXPENDITURE | K43: $0's | M43: 113242 | N43: 269011 | O43: 525772 | P43: 61227
A44: ED_INP212_00037 | C44: Zone substation equipment maintenance | E44: DNSP NAME | F44: INPUT COSTS | G44: NON-ROUTINE MAINTENANCE | H44: DIRECT MATERIAL COST | I44: =$C$44 -> Zone substation equipment maintenance | J44: EXPENDITURE | K44: $0's | M44: 51814 | N44: 1625154 | O44: 314198 | P44: 62335
A45: ED_INP212_00038 | C45: Zone substation property maintenance | E45: DNSP NAME | F45: INPUT COSTS | G45: NON-ROUTINE MAINTENANCE | H45: DIRECT MATERIAL COST | I45: =$C$45 -> Zone substation property maintenance | J45: EXPENDITURE | K45: $0's | M45: 60839 | N45: 179374 | O45: 367407 | P45: 7020
A46: ED_INP212_00039 | C46: Public lighting maintenance | E46: DNSP NAME | F46: INPUT COSTS | G46: NON-ROUTINE MAINTENANCE | H46: DIRECT MATERIAL COST | I46: =$C$46 -> Public lighting maintenance | J46: EXPENDITURE | K46: $0's | M46: 0 | N46: 0 | O46: 0 | P46: 0
A47: ED_INP212_00040 | C47: SCADA & network control maintenance | E47: DNSP NAME | F47: INPUT COSTS | G47: NON-ROUTINE MAINTENANCE | H47: DIRECT MATERIAL COST | I47: =$C$47 -> SCADA & network control maintenance | J47: EXPENDITURE | K47: $0's | M47: 88663 | N47: 336570 | O47: 94567 | P47: 15298
A48: ED_INP212_00041 | C48: Protection systems maintenance | E48: DNSP NAME | F48: INPUT COSTS | G48: NON-ROUTINE MAINTENANCE | H48: DIRECT MATERIAL COST | I48: =$C$48 -> Protection systems maintenance | J48: EXPENDITURE | K48: $0's | M48: 73623 | N48: 239951 | O48: 10004 | P48: 15478
A49: ED_INP212_00042 | C49: Subtransmission asset maintenance - for DNSP with dual function assets | E49: DNSP NAME | F49: INPUT COSTS | G49: NON-ROUTINE MAINTENANCE | H49: DIRECT MATERIAL COST | I49: =$C$49 -> Subtransmission asset maintenance - for DNSP with dual function assets | J49: EXPENDITURE | K49: $0's | M49: 0 | N49: 0 | O49: 0 | P49: 0
A50: ED_INP212_00044 | C50: Other | E50: DNSP NAME | F50: INPUT COSTS | G50: NON-ROUTINE MAINTENANCE | H50: DIRECT MATERIAL COST | I50: =$C$50 -> Other | J50: EXPENDITURE | K50: $0's | M50: 150769 | N50: 1573274 | O50: 1337321 | P50: 167377
A51: ED_INP212_00045 | B51: OVERHEADS | C51: Network overheads | E51: DNSP NAME | F51: INPUT COSTS | G51: OVERHEADS | H51: DIRECT MATERIAL COST | I51: =$C$51 -> Network overheads | J51: EXPENDITURE | K51: $0's | M51: 3166516.249 | N51: 36465142.29 | O51: 10116527.45 | P51: 24123216.94 | Q51: 15185120
A52: ED_INP212_00046 | C52: Corporate overheads | E52: DNSP NAME | F52: INPUT COSTS | G52: OVERHEADS | H52: DIRECT MATERIAL COST | I52: =$C$52 -> Corporate overheads | J52: EXPENDITURE | K52: $0's | M52: 4109283.039 | N52: 26430443.6 | O52: -69817.161 | P52: 17732557.13 | Q52: 139357
A53: ED_INP212_00047 | B53: AUGMENTATION | C53: Subtransmission substations, switching stations, zone substations | E53: DNSP NAME | F53: INPUT COSTS | G53: AUGMENTATION | H53: DIRECT MATERIAL COST | I53: =$C$53 -> Subtransmission substations, switching stations, zone substations | J53: EXPENDITURE | K53: $0's | M53: 12560812.11 | N53: 21884605.9 | O53: 15939082.99 | P53: 2410414.513
A54: ED_INP212_00048 | C54: Subtransmission lines | E54: DNSP NAME | F54: INPUT COSTS | G54: AUGMENTATION | H54: DIRECT MATERIAL COST | I54: =$C$54 -> Subtransmission lines | J54: EXPENDITURE | K54: $0's | M54: 2756434.201 | N54: 2718810.215 | O54: 4273510.413 | P54: 369555.8354
A55: ED_INP212_00049 | C55: HV feeders | E55: DNSP NAME | F55: INPUT COSTS | G55: AUGMENTATION | H55: DIRECT MATERIAL COST | I55: =$C$55 -> HV feeders | J55: EXPENDITURE | K55: $0's | M55: 3827113.344 | N55: 6236658.337 | O55: 8623199.648 | P55: 986742.9773
A56: ED_INP212_00050 | C56: Distribution substations | E56: DNSP NAME | F56: INPUT COSTS | G56: AUGMENTATION | H56: DIRECT MATERIAL COST | I56: =$C$56 -> Distribution substations | J56: EXPENDITURE | K56: $0's | M56: 1905284.981 | N56: 700899.9942 | O56: 1946346.809 | P56: 146674.4603
A57: ED_INP212_00051 | C57: LV feeders | E57: DNSP NAME | F57: INPUT COSTS | G57: AUGMENTATION | H57: DIRECT MATERIAL COST | I57: =$C$57 -> LV feeders | J57: EXPENDITURE | K57: $0's | M57: 96562.32385 | N57: 112235.2647 | O57: 16106.44462 | P57: 133976.0611
A58: ED_INP212_00052 | C58: Other assets | E58: DNSP NAME | F58: INPUT COSTS | G58: AUGMENTATION | H58: DIRECT MATERIAL COST | I58: =$C$58 -> Other assets | J58: EXPENDITURE | K58: $0's | M58: 5681313.573 | N58: 4760663.631 | O58: 1137063.463 | P58: 332097.2693
A59: ED_INP212_00053 | B59: CONNECTIONS | C59: Simple and complex customer connections | E59: DNSP NAME | F59: INPUT COSTS | G59: CONNECTIONS | H59: DIRECT MATERIAL COST | I59: =$C$59 -> Simple and complex customer connections | J59: EXPENDITURE | K59: $0's | M59: 15753958 | N59: 33035979 | O59: 1555764 | P59: 14010842
A60: ED_INP212_00054 | B60: EMERGENCY RESPONSE | C60: Major storms | E60: DNSP NAME | F60: INPUT COSTS | G60: EMERGENCY RESPONSE | H60: DIRECT MATERIAL COST | I60: =$C$60 -> Major storms | J60: EXPENDITURE | K60: $0's
A61: ED_INP212_00055 | C61: Major event days | E61: DNSP NAME | F61: INPUT COSTS | G61: EMERGENCY RESPONSE | H61: DIRECT MATERIAL COST | I61: =$C$61 -> Major event days | J61: EXPENDITURE | K61: $0's | M61: 2707848 | N61: 19735537 | O61: 6711821 | P61: 2932581
A62: ED_INP212_00056 | B62: PUBLIC LIGHTING | C62: All public lighting services | E62: DNSP NAME | F62: INPUT COSTS | G62: PUBLIC LIGHTING | H62: DIRECT MATERIAL COST | I62: =$C$62 -> All public lighting services | J62: EXPENDITURE | K62: $0's
A63: ED_INP212_00057 | B63: METERING | C63: All metering services | E63: DNSP NAME | F63: INPUT COSTS | G63: METERING | H63: DIRECT MATERIAL COST | I63: =$C$63 -> All metering services | J63: EXPENDITURE | K63: $0's | M63: 6411.483062 | N63: 4082.751022 | O63: 3879.279157 | P63: 1045.247069
A64: ED_INP212_00058 | B64: FEE-BASED SERVICES | C64: All fee-based services | E64: DNSP NAME | F64: INPUT COSTS | G64: FEE-BASED SERVICES | H64: DIRECT MATERIAL COST | I64: =$C$64 -> All fee-based services | J64: EXPENDITURE | K64: $0's
A65: ED_INP212_00059 | B65: QUOTED SERVICES | C65: All quoted services | E65: DNSP NAME | F65: INPUT COSTS | G65: QUOTED SERVICES | H65: DIRECT MATERIAL COST | I65: =$C$65 -> All quoted services | J65: EXPENDITURE | K65: $0's
A66: ED_INP212_00060 | B66: REPLACEMENT | C66: Poles | E66: DNSP NAME | F66: INPUT COSTS | G66: REPLACEMENT | H66: DIRECT MATERIAL COST | I66: =$C$66 -> Poles | J66: EXPENDITURE | K66: $0's | M66: 3200765.407 | N66: 4285357.578 | O66: 14402487.04 | P66: 1093395.724
A67: ED_INP212_00061 | C67: Pole top structures | E67: DNSP NAME | F67: INPUT COSTS | G67: REPLACEMENT | H67: DIRECT MATERIAL COST | I67: =$C$67 -> Pole top structures | J67: EXPENDITURE | K67: $0's | M67: 2176898.814 | N67: 12030505.12 | O67: 1684861.531 | P67: 2537479.967
A68: ED_INP212_00062 | C68: Overhead conductors | E68: DNSP NAME | F68: INPUT COSTS | G68: REPLACEMENT | H68: DIRECT MATERIAL COST | I68: =$C$68 -> Overhead conductors | J68: EXPENDITURE | K68: $0's | M68: 162539.3976 | N68: 1834418.5 | O68: 228039.856 | P68: 339317.34
A69: ED_INP212_00063 | C69: Underground cables | E69: DNSP NAME | F69: INPUT COSTS | G69: REPLACEMENT | H69: DIRECT MATERIAL COST | I69: =$C$69 -> Underground cables | J69: EXPENDITURE | K69: $0's | M69: 256841.1102 | N69: 2912113.085 | O69: 4386972.861 | P69: 432317.2954
A70: ED_INP212_00064 | C70: Service lines | E70: DNSP NAME | F70: INPUT COSTS | G70: REPLACEMENT | H70: DIRECT MATERIAL COST | I70: =$C$70 -> Service lines | J70: EXPENDITURE | K70: $0's | M70: 168491.9447 | N70: 3806872.152 | O70: 379409.3029 | P70: 780043.2598
A71: ED_INP212_00065 | C71: Transformers | E71: DNSP NAME | F71: INPUT COSTS | G71: REPLACEMENT | H71: DIRECT MATERIAL COST | I71: =$C$71 -> Transformers | J71: EXPENDITURE | K71: $0's | M71: 1988365.497 | N71: 2316804.312 | O71: 577787.8081 | P71: 486543.5006
A72: ED_INP212_00066 | C72: Switchgear | E72: DNSP NAME | F72: INPUT COSTS | G72: REPLACEMENT | H72: DIRECT MATERIAL COST | I72: =$C$72 -> Switchgear | J72: EXPENDITURE | K72: $0's | M72: 3377165.745 | N72: 4589670.408 | O72: 1463860.17 | P72: 449818.1916
A73: ED_INP212_00067 | C73: Public lighting | E73: DNSP NAME | F73: INPUT COSTS | G73: REPLACEMENT | H73: DIRECT MATERIAL COST | I73: =$C$74 -> SCADA network control and protection systems | J73: EXPENDITURE | K73: $0's | M73: 0 | N73: 0 | O73: 0 | P73: 0
A74: ED_INP212_00068 | C74: SCADA network control and protection systems | E74: DNSP NAME | F74: INPUT COSTS | G74: REPLACEMENT | H74: DIRECT MATERIAL COST | I74: =$C$74 -> SCADA network control and protection systems | J74: EXPENDITURE | K74: $0's | M74: 1135982.745 | N74: 3480006.57 | O74: 2703986.344 | P74: 88992.77676
A75: ED_INP212_00069 | C75: Other | E75: DNSP NAME | F75: INPUT COSTS | G75: REPLACEMENT | H75: DIRECT MATERIAL COST | I75: =$C$75 -> Other | J75: EXPENDITURE | K75: $0's | M75: 1721439.612 | N75: 4271726.679 | O75: 1785469.721 | P75: 105122.3026
A76: ED_INP212_00070 | B76: NON-NETWORK EXPENDITURE | C76: IT and communications | E76: DNSP NAME | F76: INPUT COSTS | G76: NON-NETWORK | H76: DIRECT MATERIAL COST | I76: =$C$76 -> IT and communications | J76: EXPENDITURE | K76: $0's | M76: 10750454 | N76: 15443725 | O76: 19380 | P76: 28892450 | Q76: 1625991
A77: ED_INP212_00071 | C77: Motor vehicles | E77: DNSP NAME | F77: INPUT COSTS | G77: NON-NETWORK | H77: DIRECT MATERIAL COST | I77: =$C$77 -> Motor vehicles | J77: EXPENDITURE | K77: $0's | M77: 20140971 | N77: 3332397 | O77: 235337 | P77: 5032418
A78: ED_INP212_00072 | C78: Buildings and property | E78: DNSP NAME | F78: INPUT COSTS | G78: NON-NETWORK | H78: DIRECT MATERIAL COST | I78: =$C$78 -> Buildings and property | J78: EXPENDITURE | K78: $0's | M78: 103628 | N78: 1572701 | O78: -160844 | P78: 7064515
A79: ED_INP212_00073 | C79: Other | E79: DNSP NAME | F79: INPUT COSTS | G79: NON-NETWORK | H79: DIRECT MATERIAL COST | I79: =$C$79 -> Other | J79: EXPENDITURE | K79: $0's | M79: 13661176 | N79: 14669719 | O79: 10347157 | P79: 6117005

Sheet 4.1 Public lighting
B1: =(LOOKUP(dms_Model,dms_Model_List,dms_Worksheet_List)) -> REGULATORY REPORTING STATEMENT
B2: Australian Distribution Co.
B3: =CONCATENATE("Category Analysis RIN response ",CRY) -> Category Analysis RIN response 2014-15
B4: 4.1 PUBLIC LIGHTING
B6: TABLE 4.1.1 - DESCRIPTOR METRICS OVER 2013-14 YEAR
C9: LIGHT TYPE | D9: VOLUME (0's)
A10: PUB411 | D10: =CRY -> 2014-15
A11: ED_PUB411_00001 | B11: POPULATION OF LIGHTS | C11: THESE SERVICES ARE NEGOTIATED SERVICES FOR SA POWER NETWORKS
A12: ED_PUB411_00002
A13: ED_PUB411_00003
A14: ED_PUB411_00004
A15: ED_PUB411_00005
A16: ED_PUB411_00006
A17: ED_PUB411_00007
A18: ED_PUB411_00008
A19: ED_PUB411_00009
A20: ED_PUB411_00010
A21: ED_PUB411_00011
A22: ED_PUB411_00012
A23: ED_PUB411_00013
A24: ED_PUB411_00014
A25: ED_PUB411_00015
A26: ED_PUB411_00016
A27: ED_PUB411_00017
A28: ED_PUB411_00018
A29: ED_PUB411_00019
A30: ED_PUB411_00020
A31: ED_PUB411_00021
A32: ED_PUB411_00022
A33: ED_PUB411_00023
A34: ED_PUB411_00024
A35: ED_PUB411_00025
A36: ED_PUB411_00026
A37: ED_PUB411_00027
A38: ED_PUB411_00028
A39: ED_PUB411_00029
A40: ED_PUB411_00030
A41: ED_PUB411_00031
A42: ED_PUB411_00032
A43: ED_PUB411_00033
A44: ED_PUB411_00034
A45: ED_PUB411_00035
A46: ED_PUB411_00036
A47: ED_PUB411_00037
A48: ED_PUB411_00038
A49: ED_PUB411_00039
A50: ED_PUB411_00040
A51: ED_PUB411_00041
A52: ED_PUB411_00042
A53: ED_PUB411_00043
A54: ED_PUB411_00044
A55: ED_PUB411_00045
A56: ED_PUB411_00046
A57: ED_PUB411_00047
A58: ED_PUB411_00048
A59: ED_PUB411_00049
A60: ED_PUB411_00050
A61: ED_PUB411_00051
A62: ED_PUB411_00052
A63: ED_PUB411_00053
A64: ED_PUB411_00054
A65: ED_PUB411_00055
A66: ED_PUB411_00056
A67: ED_PUB411_00057
A68: ED_PUB411_00058
A69: ED_PUB411_00059
A70: ED_PUB411_00060
A71: ED_PUB411_00061
A72: ED_PUB411_00062
A73: ED_PUB411_00063
A74: ED_PUB411_00064
A75: ED_PUB411_00065
A76: ED_PUB411_00066
A77: ED_PUB411_00067
A78: ED_PUB411_00068
A79: ED_PUB411_00069
A80: ED_PUB411_00070
A81: ED_PUB411_00071
A82: ED_PUB411_00072
A83: ED_PUB411_00073
A84: ED_PUB411_00074
A85: ED_PUB411_00075
A86: ED_PUB411_00076
A87: ED_PUB411_00077
A88: ED_PUB411_00078
A89: ED_PUB411_00079
A90: ED_PUB411_00080
A91: ED_PUB411_00081
A92: ED_PUB411_00082
A93: ED_PUB411_00083
A94: ED_PUB411_00084
A95: ED_PUB411_00085
A96: ED_PUB411_00086
A97: ED_PUB411_00087
A98: ED_PUB411_00088
A99: ED_PUB411_00089
A100: ED_PUB411_00090
A101: ED_PUB411_00091
A102: ED_PUB411_00092
A103: ED_PUB411_00093
A104: ED_PUB411_00094
A105: ED_PUB411_00095
A106: ED_PUB411_00096
A107: ED_PUB411_00097
A108: ED_PUB411_00098
A109: ED_PUB411_00099
A110: ED_PUB411_00100
A111: ED_PUB411_00101
A112: ED_PUB411_00102
B117: TABLE 4.1.2 - DESCRIPTOR METRICS ANNUALLY
D120: VOLUMES & EXPENDITURE
A121: PUB412 | B121: SERVICE/SERVICE QUALITY - Volumes and Expenditure | C121: DESCRIPTOR METRIC | D121: =CRY -> 2014-15
A122: ED_PUB412_00001 | B122: LIGHT INSTALLATION | C122: Major road light installation (volume)
A123: ED_PUB412_00002 | C123: Minor road light installation (volume)
A124: ED_PUB412_00003 | C124: Number of poles installed
A125: ED_PUB412_00004 | C125: Total cost ($'s)
A126: ED_PUB412_00005 | B126: LIGHT REPLACEMENT | C126: Major road light replacement (volume)
A127: ED_PUB412_00006 | C127: Minor road light replacement (volume)
A128: ED_PUB412_00007 | C128: Number of poles replaced
A129: ED_PUB412_00008 | C129: Total cost ($'s)
A130: ED_PUB412_00009 | B130: LIGHT MAINTENANCE | C130: Major road light maintenance (volume)
A131: ED_PUB412_00010 | C131: Minor road light maintenance (volume)
A132: ED_PUB412_00011 | C132: Number of poles installed
A133: ED_PUB412_00012 | C133: Total cost ($'s)
A134: ED_PUB412_00013 | B134: QUALITY OF SUPPLY | C134: Mean days to rectify/replace public lighting assets (days)
A135: ED_PUB412_00014 | C135: GSO breaches (volume 0's)
A136: ED_PUB412_00015 | C136: GSL payments ($0's)
A137: ED_PUB412_00016 | C137: Customer complaints (volume 0's)
B143: TABLE 4.1.3 - COST METRICS
D146: AVERAGE UNIT COST ($)
A147: PUB413 | B147: ROAD TYPE | C147: LIGHT TYPE | D147: =CRY -> 2014-15
A148: PUB413_00001 | B148: LIGHT INSTALLATION - Major Road | C148: DNSP to enter description
A149: PUB413_00002
A150: PUB413_00003
A151: PUB413_00004
A152: PUB413_00005
A153: PUB413_00006
A154: PUB413_00007
A155: PUB413_00008
A156: PUB413_00009
A157: PUB413_00010
A158: PUB413_00011
A159: PUB413_00012
A160: PUB413_00013
A161: PUB413_00014
A162: PUB413_00015
A163: PUB413_00010 | B163: LIGHT INSTALLATION - Minor Road | C163: DNSP to enter description
A164: PUB413_00011
A165: PUB413_00012
A166: PUB413_00013
A167: PUB413_00014
A168: PUB413_00014
A169: PUB413_00015
A170: PUB413_00016
A171: PUB413_00017
A172: PUB413_00018
A173: PUB413_00019
A174: PUB413_00020
A175: PUB413_00021
A176: PUB413_00022
A177: PUB413_00023
A178: PUB413_00024 | B178: LIGHT REPLACEMENT - Major Road | C178: DNSP to enter description
A179: PUB413_00025
A180: PUB413_00026
A181: PUB413_00027
A182: PUB413_00028
A183: PUB413_00029
A184: PUB413_00030
A185: PUB413_00025
A186: PUB413_00026
A187: PUB413_00027
A188: PUB413_00028
A189: PUB413_00029
A190: PUB413_00030
A191: PUB413_00025
A192: PUB413_00031
A193: PUB413_00032 | B193: LIGHT REPLACEMENT - Minor Road | C193: DNSP to enter description
A194: PUB413_00033
A195: PUB413_00034
A196: PUB413_00035
A197: PUB413_00036
A198: PUB413_00036
A199: PUB413_00033
A200: PUB413_00034
A201: PUB413_00035
A202: PUB413_00036
A203: PUB413_00033
A204: PUB413_00034
A205: PUB413_00035
A206: PUB413_00036
A207: PUB413_00037
A208: PUB413_00038 | B208: LIGHT MAINTENANCE - Major Road | C208: DNSP to enter description
A209: PUB413_00039
A210: PUB413_00040
A211: PUB413_00041
A212: PUB413_00042
A213: PUB413_00043
A214: PUB413_00044
A215: PUB413_00039
A216: PUB413_00040
... 21 more rows

Sheet 4.2 Metering
B1: =(LOOKUP(dms_Model,dms_Model_List,dms_Worksheet_List)) -> REGULATORY REPORTING STATEMENT
B2: Australian Distribution Co.
B3: =CONCATENATE("Category Analysis RIN response ",CRY) -> Category Analysis RIN response 2014-15
B4: 4.2 METERING
B7: TABLE 4.2.1 - METERING DESCRIPTOR METRIC | F7: TABLE 4.2.2 - COST METRICS
D10: VOLUMES (0's) | H10: EXPENDITURE ($0's) | J10: VOLUMES (0's)
B11: ASSET CATEGORY | C11: ASSET SUBCATEGORY | D11: =CRY -> 2014-15 | F11: SERVICE SUBCATEGORY | G11: METER TYPE | H11: =CRY -> 2014-15 | J11: =CRY -> 2014-15
A12: ED_MET421_00001 | B12: Meter Type 4 | C12: Single phase meter population | D12: 0 | E12: ED_MET422_00001 | F12: Meter purchase | G12: Meter Type 4 | H12: 0 | I12: ED_MET422_00001 | J12: 0
A13: ED_MET421_00002 | C13: Multi phase meter population | D13: 1306 | E13: ED_MET422_00002 | G13: Meter Type 5 | H13: 357840 | I13: ED_MET422_00002 | J13: 1066
A14: ED_MET421_00003 | C14: Current transformer connected meter population | D14: 1232 | E14: ED_MET422_00003 | G14: Meter Type 6 | H14: 3308974 | I14: ED_MET422_00003 | J14: 33493
A15: ED_MET421_00004 | C15: Direct connect meter population | D15: 74 | E15: ED_MET422_00004 | F15: Meter testing | G15: Meter Type 4 | H15: 33325.31123 | I15: ED_MET422_00004 | J15: 48
A16: ED_MET421_00005 | B16: Meter Type 5 | C16: Single phase meter population | D16: 160 | E16: ED_MET422_00005 | G16: Meter Type 5 | H16: 409.7282822 | I16: ED_MET422_00005 | J16: 2
A17: ED_MET421_00006 | C17: Multi phase meter population | D17: 6262 | E17: ED_MET422_00006 | G17: Meter Type 6 | H17: 266273.1442 | I17: ED_MET422_00006 | J17: 1203
A18: ED_MET421_00007 | C18: Current transformer connected meter population | D18: 5665 | E18: ED_MET422_00007 | F18: Meter investigation | G18: Meter Type 4 | H18: 28450.99603 | I18: ED_MET422_00007 | J18: 251
A19: ED_MET421_00008 | C19: Direct connect meter population | D19: 757 | E19: ED_MET422_00008 | G19: Meter Type 5 | H19: 102998.0984 | I19: ED_MET422_00008 | J19: 1909
A20: ED_MET421_00009 | B20: Meter Type 6 | C20: Single phase meter population | D20: 912422 | E20: ED_MET422_00009 | G20: Meter Type 6 | H20: 681884.9906 | I20: ED_MET422_00009 | J20: 7977
A21: ED_MET421_00010 | C21: Multi phase meter population | D21: 200585 | E21: ED_MET422_00010 | F21: Scheduled meter reading | G21: Meter Type 4 | I21: ED_MET422_00010
A22: ED_MET421_00011 | C22: Current transformer connected meter population | D22: 1366 | E22: ED_MET422_00011 | G22: Meter Type 5 | I22: ED_MET422_00011
A23: ED_MET421_00012 | C23: Direct connect meter population | D23: 1111641 | E23: ED_MET422_00012 | G23: Meter Type 6 | I23: ED_MET422_00012
E24: ED_MET422_00013 | F24: Special meter reading | G24: Meter Type 4 | I24: ED_MET422_00013
E25: ED_MET422_00014 | G25: Meter Type 5 | I25: ED_MET422_00014
E26: ED_MET422_00015 | G26: Meter Type 6 | I26: ED_MET422_00015
E27: ED_MET422_00016 | F27: New meter installation | G27: Meter Type 4 | H27: 22981.99359 | I27: ED_MET422_00016 | J27: 102
E28: ED_MET422_00017 | G28: Meter Type 5 | H28: 68794.20459 | I28: ED_MET422_00017 | J28: 67
E29: ED_MET422_00018 | G29: Meter Type 6 | H29: 3516940.844 | I29: ED_MET422_00018 | J29: 11389
E30: ED_MET422_00019 | F30: Meter replacement | G30: Meter Type 4 | H30: 165656.738 | I30: ED_MET422_00019 | J30: 87
E31: ED_MET422_00020 | G31: Meter Type 5 | H31: 734263.8436 | I31: ED_MET422_00020 | J31: 711
E32: ED_MET422_00021 | G32: Meter Type 6 | H32: 5354362.376 | I32: ED_MET422_00021 | J32: 23473
E33: ED_MET422_00022 | F33: Meter maintenance | G33: Meter Type 4 | H33: 225447.6842 | I33: ED_MET422_00022 | J33: 210
E34: ED_MET422_00023 | G34: Meter Type 5 | H34: 650409.597 | I34: ED_MET422_00023 | J34: 1261
E35: ED_MET422_00024 | G35: Meter Type 6 | H35: 0 | I35: ED_MET422_00024 | J35: 0
E36: ED_MET422_00025 | F36: Remote meter reading | G36: Meter Type 4 | I36: ED_MET422_00025
E37: ED_MET422_00026 | F37: Remote meter re-configuration | G37: Meter Type 4 | I37: ED_MET422_00026
E38: ED_MET422_00027 | F38: Other metering | G38: Meter Type 4
E39: ED_MET422_00028 | G39: Meter Type 5
E40: ED_MET422_00029 | G40: Meter Type 6
E41: ED_MET422_00030 | G41: Meter Type 7
E42: ED_MET422_00031 | F42: IT infrastructure capex | G42: Meter Type 4
E43: ED_MET422_00032 | F43: IT infrastructure opex | G43: Meter Type 4
E44: ED_MET422_00033 | F44: Communications infrastructure capex | G44: Meter Type 4
E45: ED_MET422_00034 | F45: Communications infrastructure opex | G45: Meter Type 4

Sheet 4.3 Fee-based services
B1: =(LOOKUP(dms_Model,dms_Model_List,dms_Worksheet_List)) -> REGULATORY REPORTING STATEMENT
B2: Australian Distribution Co.
B3: =CONCATENATE("Category Analysis RIN response ",CRY) -> Category Analysis RIN response 2014-15
B4: 4.3 ANCILLARY SERVICES - FEE BASED SERVICES
B6: TABLE 4.3.1 - COST METRICS FOR FEE-BASED SERVICES
D9: EXPENDITURE ($0's) | F9: VOLUMES (0's)
B10: SERVICE | C10: SERVICE SUBCATEGORY | D10: =CRY -> 2014-15 | F10: =CRY -> 2014-15
A11: ED_FEE431_00001 | B11: Common Fee-Based Services | C11: Energisation | E11: ED_FEE431_00001
A12: ED_FEE431_00002 | B12: Common Fee-Based Services | C12: De-energisation | E12: ED_FEE431_00002
A13: ED_FEE431_00003 | B13: Common Fee-Based Services | C13: Re-energisation | E13: ED_FEE431_00003
A14: ED_FEE431_00004 | B14: Miscellaneous Fee-Based Services | C14: THESE SERVICES ARE NEGOTIATED SERVICES FOR SA POWER NETWORKS | E14: ED_FEE431_00004
A15: ED_FEE431_00005 | B15: Miscellaneous Fee-Based Services | E15: ED_FEE431_00005
A16: ED_FEE431_00006 | B16: Miscellaneous Fee-Based Services | E16: ED_FEE431_00006
A17: ED_FEE431_00007 | B17: Miscellaneous Fee-Based Services | E17: ED_FEE431_00007
A18: ED_FEE431_00008 | B18: Miscellaneous Fee-Based Services | E18: ED_FEE431_00008
A19: ED_FEE431_00009 | B19: Miscellaneous Fee-Based Services | E19: ED_FEE431_00009
A20: ED_FEE431_00010 | B20: Miscellaneous Fee-Based Services | E20: ED_FEE431_00010
A21: ED_FEE431_00011 | B21: Miscellaneous Fee-Based Services | E21: ED_FEE431_00011
A22: ED_FEE431_00012 | B22: Miscellaneous Fee-Based Services | E22: ED_FEE431_00012
A23: ED_FEE431_00013 | B23: Miscellaneous Fee-Based Services | E23: ED_FEE431_00013
A24: ED_FEE431_00014 | B24: Miscellaneous Fee-Based Services | E24: ED_FEE431_00014
A25: ED_FEE431_00015 | B25: Miscellaneous Fee-Based Services | E25: ED_FEE431_00015
A26: ED_FEE431_00016 | B26: Miscellaneous Fee-Based Services | E26: ED_FEE431_00016
A27: ED_FEE431_00017 | B27: Miscellaneous Fee-Based Services | E27: ED_FEE431_00017
A28: ED_FEE431_00018 | B28: Miscellaneous Fee-Based Services | E28: ED_FEE431_00018
A29: ED_FEE431_00019 | B29: Miscellaneous Fee-Based Services | E29: ED_FEE431_00019
A30: ED_FEE431_00020 | B30: Miscellaneous Fee-Based Services | E30: ED_FEE431_00020
A31: ED_FEE431_00021 | B31: Miscellaneous Fee-Based Services | E31: ED_FEE431_00021
A32: ED_FEE431_00022 | B32: Miscellaneous Fee-Based Services | E32: ED_FEE431_00022
A33: ED_FEE431_00023 | B33: Miscellaneous Fee-Based Services | E33: ED_FEE431_00023
A34: ED_FEE431_00024 | B34: Miscellaneous Fee-Based Services | E34: ED_FEE431_00024
A35: ED_FEE431_00025 | B35: Miscellaneous Fee-Based Services | E35: ED_FEE431_00025
A36: ED_FEE431_00026 | B36: Miscellaneous Fee-Based Services | E36: ED_FEE431_00026
A37: ED_FEE431_00027 | B37: Miscellaneous Fee-Based Services | E37: ED_FEE431_00027
A38: ED_FEE431_00028 | B38: Miscellaneous Fee-Based Services | E38: ED_FEE431_00028
A39: ED_FEE431_00029 | B39: Miscellaneous Fee-Based Services | E39: ED_FEE431_00029
A40: ED_FEE431_00030 | B40: Miscellaneous Fee-Based Services | E40: ED_FEE431_00030
A41: ED_FEE431_00031 | B41: Miscellaneous Fee-Based Services | E41: ED_FEE431_00031
A42: ED_FEE431_00032 | B42: Miscellaneous Fee-Based Services | E42: ED_FEE431_00032
A43: ED_FEE431_00033 | B43: Miscellaneous Fee-Based Services | E43: ED_FEE431_00033
A44: ED_FEE431_00034 | B44: Miscellaneous Fee-Based Services | E44: ED_FEE431_00034
A45: ED_FEE431_00035 | B45: Miscellaneous Fee-Based Services | E45: ED_FEE431_00035
A46: ED_FEE431_00036 | B46: Miscellaneous Fee-Based Services | E46: ED_FEE431_00036
A47: ED_FEE431_00037 | B47: Miscellaneous Fee-Based Services | E47: ED_FEE431_00037
A48: ED_FEE431_00038 | B48: Miscellaneous Fee-Based Services | E48: ED_FEE431_00038
A49: ED_FEE431_00039 | B49: Miscellaneous Fee-Based Services | E49: ED_FEE431_00039
A50: ED_FEE431_00040 | B50: Miscellaneous Fee-Based Services | E50: ED_FEE431_00040
A51: ED_FEE431_00041 | B51: Miscellaneous Fee-Based Services | E51: ED_FEE431_00041
A52: ED_FEE431_00042 | B52: Miscellaneous Fee-Based Services | E52: ED_FEE431_00042
A53: ED_FEE431_00043 | B53: Miscellaneous Fee-Based Services | E53: ED_FEE431_00043
A54: ED_FEE431_00044 | B54: Miscellaneous Fee-Based Services | E54: ED_FEE431_00044
A55: ED_FEE431_00045 | B55: Miscellaneous Fee-Based Services | E55: ED_FEE431_00045
A56: ED_FEE431_00046 | B56: Miscellaneous Fee-Based Services | E56: ED_FEE431_00046
A57: ED_FEE431_00047 | B57: Miscellaneous Fee-Based Services | E57: ED_FEE431_00047
A58: ED_FEE431_00048 | B58: Miscellaneous Fee-Based Services | E58: ED_FEE431_00048
A59: ED_FEE431_00049 | B59: Miscellaneous Fee-Based Services | E59: ED_FEE431_00049
A60: ED_FEE431_00050 | B60: Miscellaneous Fee-Based Services | E60: ED_FEE431_00050
A61: ED_FEE431_00051 | B61: Miscellaneous Fee-Based Services | E61: ED_FEE431_00051
A62: ED_FEE431_00052 | B62: Miscellaneous Fee-Based Services | E62: ED_FEE431_00052
A63: ED_FEE431_00053 | B63: Miscellaneous Fee-Based Services | E63: ED_FEE431_00053
A64: ED_FEE431_00054 | B64: Miscellaneous Fee-Based Services | E64: ED_FEE431_00054
A65: ED_FEE431_00055 | B65: Miscellaneous Fee-Based Services | E65: ED_FEE431_00055
A66: ED_FEE431_00056 | B66: Miscellaneous Fee-Based Services | E66: ED_FEE431_00056
A67: ED_FEE431_00057 | B67: Miscellaneous Fee-Based Services | E67: ED_FEE431_00057
A68: ED_FEE431_00058 | B68: Miscellaneous Fee-Based Services | E68: ED_FEE431_00058
A69: ED_FEE431_00059 | B69: Miscellaneous Fee-Based Services | E69: ED_FEE431_00059
A70: ED_FEE431_00060 | B70: Miscellaneous Fee-Based Services | E70: ED_FEE431_00060
A71: ED_FEE431_00061 | B71: Miscellaneous Fee-Based Services | E71: ED_FEE431_00061
A72: ED_FEE431_00062 | B72: Miscellaneous Fee-Based Services | E72: ED_FEE431_00062
A73: ED_FEE431_00063 | B73: Miscellaneous Fee-Based Services | E73: ED_FEE431_00063
A74: ED_FEE431_00064 | B74: Miscellaneous Fee-Based Services | E74: ED_FEE431_00064
A75: ED_FEE431_00065 | B75: Miscellaneous Fee-Based Services | E75: ED_FEE431_00065
A76: ED_FEE431_00066 | B76: Miscellaneous Fee-Based Services | E76: ED_FEE431_00066
A77: ED_FEE431_00067 | B77: Miscellaneous Fee-Based Services | E77: ED_FEE431_00067
A78: ED_FEE431_00068 | B78: Miscellaneous Fee-Based Services | E78: ED_FEE431_00068
A79: ED_FEE431_00069 | B79: Miscellaneous Fee-Based Services | E79: ED_FEE431_00069
A80: ED_FEE431_00070 | B80: Miscellaneous Fee-Based Services | E80: ED_FEE431_00070
A81: ED_FEE431_00071 | B81: Miscellaneous Fee-Based Services | E81: ED_FEE431_00071
A82: ED_FEE431_00072 | B82: Miscellaneous Fee-Based Services | E82: ED_FEE431_00072
A83: ED_FEE431_00073 | B83: Miscellaneous Fee-Based Services | E83: ED_FEE431_00073
A84: ED_FEE431_00074 | B84: Miscellaneous Fee-Based Services | E84: ED_FEE431_00074
A85: ED_FEE431_00075 | B85: Miscellaneous Fee-Based Services | E85: ED_FEE431_00075
A86: ED_FEE431_00076 | B86: Miscellaneous Fee-Based Services | E86: ED_FEE431_00076
A87: ED_FEE431_00077 | B87: Miscellaneous Fee-Based Services | E87: ED_FEE431_00077
A88: ED_FEE431_00078 | B88: Miscellaneous Fee-Based Services | E88: ED_FEE431_00078
A89: ED_FEE431_00079 | B89: Miscellaneous Fee-Based Services | E89: ED_FEE431_00079
A90: ED_FEE431_00080 | B90: Miscellaneous Fee-Based Services | E90: ED_FEE431_00080
A91: ED_FEE431_00081 | B91: Miscellaneous Fee-Based Services | E91: ED_FEE431_00081
A92: ED_FEE431_00082 | B92: Miscellaneous Fee-Based Services | E92: ED_FEE431_00082
A93: ED_FEE431_00083 | B93: Miscellaneous Fee-Based Services | E93: ED_FEE431_00083
A94: ED_FEE431_00084 | B94: Miscellaneous Fee-Based Services | E94: ED_FEE431_00084
A95: ED_FEE431_00085 | B95: Miscellaneous Fee-Based Services | E95: ED_FEE431_00085
A96: ED_FEE431_00086 | B96: Miscellaneous Fee-Based Services | E96: ED_FEE431_00086
A97: ED_FEE431_00087 | B97: Miscellaneous Fee-Based Services | E97: ED_FEE431_00087
A98: ED_FEE431_00088 | B98: Miscellaneous Fee-Based Services | E98: ED_FEE431_00088
A99: ED_FEE431_00089 | B99: Miscellaneous Fee-Based Services | E99: ED_FEE431_00089
A100: ED_FEE431_00090 | B100: Miscellaneous Fee-Based Services | E100: ED_FEE431_00090
A101: ED_FEE431_00091 | B101: Miscellaneous Fee-Based Services | E101: ED_FEE431_00091
A102: ED_FEE431_00092 | B102: Miscellaneous Fee-Based Services | E102: ED_FEE431_00092
A103: ED_FEE431_00093 | B103: Miscellaneous Fee-Based Services | E103: ED_FEE431_00093
A104: ED_FEE431_00094 | B104: Miscellaneous Fee-Based Services | E104: ED_FEE431_00094
A105: ED_FEE431_00095 | B105: Miscellaneous Fee-Based Services | E105: ED_FEE431_00095
A106: ED_FEE431_00096 | B106: Miscellaneous Fee-Based Services | E106: ED_FEE431_00096
A107: ED_FEE431_00097 | B107: Miscellaneous Fee-Based Services | E107: ED_FEE431_00097
A108: ED_FEE431_00098 | B108: Miscellaneous Fee-Based Services | E108: ED_FEE431_00098
A109: ED_FEE431_00099 | B109: Miscellaneous Fee-Based Services | E109: ED_FEE431_00099
A110: ED_FEE431_00100 | B110: Miscellaneous Fee-Based Services | E110: ED_FEE431_00100
A111: ED_FEE431_00101 | B111: Miscellaneous Fee-Based Services | E111: ED_FEE431_00101
A112: ED_FEE431_00102 | B112: Miscellaneous Fee-Based Services | E112: ED_FEE431_00102
A113: ED_FEE431_00103 | B113: Miscellaneous Fee-Based Services | E113: ED_FEE431_00103
A114: ED_FEE431_00104 | B114: Miscellaneous Fee-Based Services | E114: ED_FEE431_00104
A115: ED_FEE431_00105 | B115: Miscellaneous Fee-Based Services | E115: ED_FEE431_00105
A116: ED_FEE431_00106 | B116: Miscellaneous Fee-Based Services | E116: ED_FEE431_00106
A117: ED_FEE431_00107 | B117: Miscellaneous Fee-Based Services | E117: ED_FEE431_00107
A118: ED_FEE431_00108 | B118: Miscellaneous Fee-Based Services | E118: ED_FEE431_00108
A119: ED_FEE431_00109 | B119: Miscellaneous Fee-Based Services | E119: ED_FEE431_00109
A120: ED_FEE431_00110 | B120: Miscellaneous Fee-Based Services | E120: ED_FEE431_00110
A121: ED_FEE431_00111 | B121: Miscellaneous Fee-Based Services | E121: ED_FEE431_00111
A122: ED_FEE431_00112 | B122: Miscellaneous Fee-Based Services | E122: ED_FEE431_00112
A123: ED_FEE431_00113 | B123: Miscellaneous Fee-Based Services | E123: ED_FEE431_00113
A124: ED_FEE431_00114 | B124: Miscellaneous Fee-Based Services | E124: ED_FEE431_00114
A125: ED_FEE431_00115 | B125: Miscellaneous Fee-Based Services | E125: ED_FEE431_00115
A126: ED_FEE431_00116 | B126: Miscellaneous Fee-Based Services | E126: ED_FEE431_00116
A127: ED_FEE431_00117 | B127: Miscellaneous Fee-Based Services | E127: ED_FEE431_00117
A128: ED_FEE431_00118 | B128: Miscellaneous Fee-Based Services | E128: ED_FEE431_00118
A129: ED_FEE431_00119 | B129: Miscellaneous Fee-Based Services | E129: ED_FEE431_00119
A130: ED_FEE431_00120 | B130: Miscellaneous Fee-Based Services | E130: ED_FEE431_00120
A131: ED_FEE431_00121 | B131: Miscellaneous Fee-Based Services | E131: ED_FEE431_00121
A132: ED_FEE431_00122 | B132: Miscellaneous Fee-Based Services | E132: ED_FEE431_00122
A133: ED_FEE431_00123 | B133: Miscellaneous Fee-Based Services | E133: ED_FEE431_00123
A134: ED_FEE431_00124 | B134: Miscellaneous Fee-Based Services | E134: ED_FEE431_00124
A135: ED_FEE431_00125 | B135: Miscellaneous Fee-Based Services | E135: ED_FEE431_00125
A136: ED_FEE431_00126 | B136: Miscellaneous Fee-Based Services | E136: ED_FEE431_00126
A137: ED_FEE431_00127 | B137: Miscellaneous Fee-Based Services | E137: ED_FEE431_00127
A138: ED_FEE431_00128 | B138: Miscellaneous Fee-Based Services | E138: ED_FEE431_00128
A139: ED_FEE431_00129 | B139: Miscellaneous Fee-Based Services | E139: ED_FEE431_00129
A140: ED_FEE431_00130 | B140: Miscellaneous Fee-Based Services | E140: ED_FEE431_00130
A141: ED_FEE431_00131 | B141: Miscellaneous Fee-Based Services | E141: ED_FEE431_00131
A142: ED_FEE431_00132 | B142: Miscellaneous Fee-Based Services | E142: ED_FEE431_00132
A143: ED_FEE431_00133 | B143: Miscellaneous Fee-Based Services | E143: ED_FEE431_00133
A144: ED_FEE431_00134 | B144: Miscellaneous Fee-Based Services | E144: ED_FEE431_00134
A145: ED_FEE431_00135 | B145: Miscellaneous Fee-Based Services | E145: ED_FEE431_00135
A146: ED_FEE431_00136 | B146: Miscellaneous Fee-Based Services | E146: ED_FEE431_00136
A147: ED_FEE431_00137 | B147: Miscellaneous Fee-Based Services | E147: ED_FEE431_00137
A148: ED_FEE431_00138 | B148: Miscellaneous Fee-Based Services | E148: ED_FEE431_00138
A149: ED_FEE431_00139 | B149: Miscellaneous Fee-Based Services | E149: ED_FEE431_00139
A150: ED_FEE431_00140 | B150: Miscellaneous Fee-Based Services | E150: ED_FEE431_00140
A151: ED_FEE431_00141 | B151: Miscellaneous Fee-Based Services | E151: ED_FEE431_00141
A152: ED_FEE431_00142 | B152: Miscellaneous Fee-Based Services | E152: ED_FEE431_00142
A153: ED_FEE431_00143 | B153: Miscellaneous Fee-Based Services | E153: ED_FEE431_00143
A154: ED_FEE431_00144 | B154: Miscellaneous Fee-Based Services | E154: ED_FEE431_00144
A155: ED_FEE431_00145 | B155: Miscellaneous Fee-Based Services | E155: ED_FEE431_00145
A156: ED_FEE431_00146 | B156: Miscellaneous Fee-Based Services | E156: ED_FEE431_00146
A157: ED_FEE431_00147 | B157: Miscellaneous Fee-Based Services | E157: ED_FEE431_00147
A158: ED_FEE431_00148 | B158: Miscellaneous Fee-Based Services | E158: ED_FEE431_00148
A159: ED_FEE431_00149 | B159: Miscellaneous Fee-Based Services | E159: ED_FEE431_00149
A160: ED_FEE431_00150 | B160: Miscellaneous Fee-Based Services | E160: ED_FEE431_00150
A161: ED_FEE431_00151 | B161: Miscellaneous Fee-Based Services | E161: ED_FEE431_00151
A162: ED_FEE431_00152 | B162: Miscellaneous Fee-Based Services | E162: ED_FEE431_00152
A163: ED_FEE431_00153 | B163: Miscellaneous Fee-Based Services | E163: ED_FEE431_00153
A164: ED_FEE431_00154 | B164: Miscellaneous Fee-Based Services | E164: ED_FEE431_00154
A165: ED_FEE431_00155 | B165: Miscellaneous Fee-Based Services | E165: ED_FEE431_00155
A166: ED_FEE431_00156 | B166: Miscellaneous Fee-Based Services | E166: ED_FEE431_00156
A167: ED_FEE431_00157 | B167: Miscellaneous Fee-Based Services | E167: ED_FEE431_00157
A168: ED_FEE431_00158 | B168: Miscellaneous Fee-Based Services | E168: ED_FEE431_00158
A169: ED_FEE431_00159 | B169: Miscellaneous Fee-Based Services | E169: ED_FEE431_00159
A170: ED_FEE431_00160 | B170: Miscellaneous Fee-Based Services | E170: ED_FEE431_00160
A171: ED_FEE431_00161 | B171: Miscellaneous Fee-Based Services | E171: ED_FEE431_00161
A172: ED_FEE431_00162 | B172: Miscellaneous Fee-Based Services | E172: ED_FEE431_00162
A173: ED_FEE431_00163 | B173: Miscellaneous Fee-Based Services | E173: ED_FEE431_00163
A174: ED_FEE431_00164 | B174: Miscellaneous Fee-Based Services | E174: ED_FEE431_00164
A175: ED_FEE431_00165 | B175: Miscellaneous Fee-Based Services | E175: ED_FEE431_00165
A176: ED_FEE431_00166 | B176: Miscellaneous Fee-Based Services | E176: ED_FEE431_00166
A177: ED_FEE431_00167 | B177: Miscellaneous Fee-Based Services | E177: ED_FEE431_00167
A178: ED_FEE431_00168 | B178: Miscellaneous Fee-Based Services | E178: ED_FEE431_00168
A179: ED_FEE431_00169 | B179: Miscellaneous Fee-Based Services | E179: ED_FEE431_00169
A180: ED_FEE431_00170 | B180: Miscellaneous Fee-Based Services | E180: ED_FEE431_00170
A181: ED_FEE431_00171 | B181: Miscellaneous Fee-Based Services | E181: ED_FEE431_00171
A182: ED_FEE431_00172 | B182: Miscellaneous Fee-Based Services | E182: ED_FEE431_00172
A183: ED_FEE431_00173 | B183: Miscellaneous Fee-Based Services | E183: ED_FEE431_00173
A184: ED_FEE431_00174 | B184: Miscellaneous Fee-Based Services | E184: ED_FEE431_00174
A185: ED_FEE431_00175 | B185: Miscellaneous Fee-Based Services | E185: ED_FEE431_00175
A186: ED_FEE431_00176 | B186: Miscellaneous Fee-Based Services | E186: ED_FEE431_00176
A187: ED_FEE431_00177 | B187: Miscellaneous Fee-Based Services | E187: ED_FEE431_00177
A188: ED_FEE431_00178 | B188: Miscellaneous Fee-Based Services | E188: ED_FEE431_00178
A189: ED_FEE431_00179 | B189: Miscellaneous Fee-Based Services | E189: ED_FEE431_00179
A190: ED_FEE431_00180 | B190: Miscellaneous Fee-Based Services | E190: ED_FEE431_00180
A191: ED_FEE431_00181 | B191: Miscellaneous Fee-Based Services | E191: ED_FEE431_00181
A192: ED_FEE431_00182 | B192: Miscellaneous Fee-Based Services | E192: ED_FEE431_00182
A193: ED_FEE431_00183 | B193: Miscellaneous Fee-Based Services | E193: ED_FEE431_00183
A194: ED_FEE431_00184 | B194: Miscellaneous Fee-Based Services | E194: ED_FEE431_00184
A195: ED_FEE431_00185 | B195: Miscellaneous Fee-Based Services | E195: ED_FEE431_00185
A196: ED_FEE431_00186 | B196: Miscellaneous Fee-Based Services | E196: ED_FEE431_00186
A197: ED_FEE431_00187 | B197: Miscellaneous Fee-Based Services | E197: ED_FEE431_00187
A198: ED_FEE431_00188 | B198: Miscellaneous Fee-Based Services | E198: ED_FEE431_00188
A199: ED_FEE431_00189 | B199: Miscellaneous Fee-Based Services | E199: ED_FEE431_00189
A200: ED_FEE431_00190 | B200: Miscellaneous Fee-Based Services | E200: ED_FEE431_00190
A201: ED_FEE431_00191 | B201: Miscellaneous Fee-Based Services | E201: ED_FEE431_00191
A202: ED_FEE431_00192 | B202: Miscellaneous Fee-Based Services | E202: ED_FEE431_00192
A203: ED_FEE431_00193 | B203: Miscellaneous Fee-Based Services | E203: ED_FEE431_00193
... 278 more rows

Sheet 4.4 Quoted services
B1: =(LOOKUP(dms_Model,dms_Model_List,dms_Worksheet_List)) -> REGULATORY REPORTING STATEMENT
B2: Australian Distribution Co.
B3: =CONCATENATE("Category Analysis RIN response ",CRY) -> Category Analysis RIN response 2014-15
B4: 4.4 ANCILLARY SERVICES - QUOTED SERVICES
B6: TABLE 4.4.1 - COST METRICS FOR QUOTED SERVICES
D9: EXPENDITURE ($0's) | F9: VOLUMES (0's)
B10: SERVICE | C10: SERVICE SUBCATEGORY | D10: =CRY -> 2014-15 | F10: =CRY -> 2014-15
A11: ED_QUO441_00001 | B11: Quoted Services | C11: THESE SERVICES ARE NEGOTIATED SERVICES FOR SA POWER NETWORKS | E11: ED_QUO441_00001
A12: ED_QUO441_00002 | B12: Quoted Services | E12: ED_QUO441_00002
A13: ED_QUO441_00003 | B13: Quoted Services | E13: ED_QUO441_00003
A14: ED_QUO441_00004 | B14: Quoted Services | E14: ED_QUO441_00004
A15: ED_QUO441_00005 | B15: Quoted Services | E15: ED_QUO441_00005
A16: ED_QUO441_00006 | B16: Quoted Services | E16: ED_QUO441_00006
A17: ED_QUO441_00007 | B17: Quoted Services | E17: ED_QUO441_00007
A18: ED_QUO441_00008 | B18: Quoted Services | E18: ED_QUO441_00008
A19: ED_QUO441_00009 | B19: Quoted Services | E19: ED_QUO441_00009
A20: ED_QUO441_00010 | B20: Quoted Services | E20: ED_QUO441_00010
A21: ED_QUO441_00011 | B21: Quoted Services | E21: ED_QUO441_00011
A22: ED_QUO441_00012 | B22: Quoted Services | E22: ED_QUO441_00012
A23: ED_QUO441_00013 | B23: Quoted Services | E23: ED_QUO441_00013
A24: ED_QUO441_00014 | B24: Quoted Services | E24: ED_QUO441_00014
A25: ED_QUO441_00015 | B25: Quoted Services | E25: ED_QUO441_00015
A26: ED_QUO441_00016 | B26: Quoted Services | E26: ED_QUO441_00016
A27: ED_QUO441_00017 | B27: Quoted Services | E27: ED_QUO441_00017
A28: ED_QUO441_00018 | B28: Quoted Services | E28: ED_QUO441_00018
A29: ED_QUO441_00019 | B29: Quoted Services | E29: ED_QUO441_00019
A30: ED_QUO441_00020 | B30: Quoted Services | E30: ED_QUO441_00020
A31: ED_QUO441_00021 | B31: Quoted Services | E31: ED_QUO441_00021
A32: ED_QUO441_00022 | B32: Quoted Services | E32: ED_QUO441_00022
A33: ED_QUO441_00023 | B33: Quoted Services | E33: ED_QUO441_00023
A34: ED_QUO441_00024 | B34: Quoted Services | E34: ED_QUO441_00024
A35: ED_QUO441_00025 | B35: Quoted Services | E35: ED_QUO441_00025
A36: ED_QUO441_00026 | B36: Quoted Services | E36: ED_QUO441_00026
A37: ED_QUO441_00027 | B37: Quoted Services | E37: ED_QUO441_00027
A38: ED_QUO441_00028 | B38: Quoted Services | E38: ED_QUO441_00028
A39: ED_QUO441_00029 | B39: Quoted Services | E39: ED_QUO441_00029
A40: ED_QUO441_00030 | B40: Quoted Services | E40: ED_QUO441_00030
A41: ED_QUO441_00031 | B41: Quoted Services | E41: ED_QUO441_00031
A42: ED_QUO441_00032 | B42: Quoted Services | E42: ED_QUO441_00032
A43: ED_QUO441_00033 | B43: Quoted Services | E43: ED_QUO441_00033
A44: ED_QUO441_00034 | B44: Quoted Services | E44: ED_QUO441_00034
A45: ED_QUO441_00035 | B45: Quoted Services | E45: ED_QUO441_00035
A46: ED_QUO441_00036 | B46: Quoted Services | E46: ED_QUO441_00036
A47: ED_QUO441_00037 | B47: Quoted Services | E47: ED_QUO441_00037
A48: ED_QUO441_00038 | B48: Quoted Services | E48: ED_QUO441_00038
A49: ED_QUO441_00039 | B49: Quoted Services | E49: ED_QUO441_00039
A50: ED_QUO441_00040 | B50: Quoted Services | E50: ED_QUO441_00040
A51: ED_QUO441_00041 | B51: Quoted Services | E51: ED_QUO441_00041
A52: ED_QUO441_00042 | B52: Quoted Services | E52: ED_QUO441_00042
A53: ED_QUO441_00043 | B53: Quoted Services | E53: ED_QUO441_00043
A54: ED_QUO441_00044 | B54: Quoted Services | E54: ED_QUO441_00044
A55: ED_QUO441_00045 | B55: Quoted Services | E55: ED_QUO441_00045
A56: ED_QUO441_00046 | B56: Quoted Services | E56: ED_QUO441_00046
A57: ED_QUO441_00047 | B57: Quoted Services | E57: ED_QUO441_00047
A58: ED_QUO441_00048 | B58: Quoted Services | E58: ED_QUO441_00048
A59: ED_QUO441_00049 | B59: Quoted Services | E59: ED_QUO441_00049
A60: ED_QUO441_00050 | B60: Quoted Services | E60: ED_QUO441_00050
A61: ED_QUO441_00051 | B61: Quoted Services | E61: ED_QUO441_00051
A62: ED_QUO441_00052 | B62: Quoted Services | E62: ED_QUO441_00052
A63: ED_QUO441_00053 | B63: Quoted Services | E63: ED_QUO441_00053
A64: ED_QUO441_00054 | B64: Quoted Services | E64: ED_QUO441_00054
A65: ED_QUO441_00055 | B65: Quoted Services | E65: ED_QUO441_00055
A66: ED_QUO441_00056 | B66: Quoted Services | E66: ED_QUO441_00056
A67: ED_QUO441_00057 | B67: Quoted Services | E67: ED_QUO441_00057
A68: ED_QUO441_00058 | B68: Quoted Services | E68: ED_QUO441_00058
A69: ED_QUO441_00059 | B69: Quoted Services | E69: ED_QUO441_00059
A70: ED_QUO441_00060 | B70: Quoted Services | E70: ED_QUO441_00060
A71: ED_QUO441_00061 | B71: Quoted Services | E71: ED_QUO441_00061
A72: ED_QUO441_00062 | B72: Quoted Services | E72: ED_QUO441_00062
A73: ED_QUO441_00063 | B73: Quoted Services | E73: ED_QUO441_00063
A74: ED_QUO441_00064 | B74: Quoted Services | E74: ED_QUO441_00064
A75: ED_QUO441_00065 | B75: Quoted Services | E75: ED_QUO441_00065
A76: ED_QUO441_00066 | B76: Quoted Services | E76: ED_QUO441_00066
A77: ED_QUO441_00067 | B77: Quoted Services | E77: ED_QUO441_00067
A78: ED_QUO441_00068 | B78: Quoted Services | E78: ED_QUO441_00068
A79: ED_QUO441_00069 | B79: Quoted Services | E79: ED_QUO441_00069
A80: ED_QUO441_00070 | B80: Quoted Services | E80: ED_QUO441_00070
A81: ED_QUO441_00071 | B81: Quoted Services | E81: ED_QUO441_00071
A82: ED_QUO441_00072 | B82: Quoted Services | E82: ED_QUO441_00072
A83: ED_QUO441_00073 | B83: Quoted Services | E83: ED_QUO441_00073
A84: ED_QUO441_00074 | B84: Quoted Services | E84: ED_QUO441_00074
A85: ED_QUO441_00075 | B85: Quoted Services | E85: ED_QUO441_00075
A86: ED_QUO441_00076 | B86: Quoted Services | E86: ED_QUO441_00076
A87: ED_QUO441_00077 | B87: Quoted Services | E87: ED_QUO441_00077
A88: ED_QUO441_00078 | B88: Quoted Services | E88: ED_QUO441_00078
A89: ED_QUO441_00079 | B89: Quoted Services | E89: ED_QUO441_00079
A90: ED_QUO441_00080 | B90: Quoted Services | E90: ED_QUO441_00080
A91: ED_QUO441_00081 | B91: Quoted Services | E91: ED_QUO441_00081
A92: ED_QUO441_00082 | B92: Quoted Services | E92: ED_QUO441_00082
A93: ED_QUO441_00083 | B93: Quoted Services | E93: ED_QUO441_00083
A94: ED_QUO441_00084 | B94: Quoted Services | E94: ED_QUO441_00084
A95: ED_QUO441_00085 | B95: Quoted Services | E95: ED_QUO441_00085
A96: ED_QUO441_00086 | B96: Quoted Services | E96: ED_QUO441_00086
A97: ED_QUO441_00087 | B97: Quoted Services | E97: ED_QUO441_00087
A98: ED_QUO441_00088 | B98: Quoted Services | E98: ED_QUO441_00088
A99: ED_QUO441_00089 | B99: Quoted Services | E99: ED_QUO441_00089
A100: ED_QUO441_00090 | B100: Quoted Services | E100: ED_QUO441_00090
A101: ED_QUO441_00091 | B101: Quoted Services | E101: ED_QUO441_00091
A102: ED_QUO441_00092 | B102: Quoted Services | E102: ED_QUO441_00092
A103: ED_QUO441_00093 | B103: Quoted Services | E103: ED_QUO441_00093
A104: ED_QUO441_00094 | B104: Quoted Services | E104: ED_QUO441_00094
A105: ED_QUO441_00095 | B105: Quoted Services | E105: ED_QUO441_00095
A106: ED_QUO441_00096 | B106: Quoted Services | E106: ED_QUO441_00096
A107: ED_QUO441_00097 | B107: Quoted Services | E107: ED_QUO441_00097
A108: ED_QUO441_00098 | B108: Quoted Services | E108: ED_QUO441_00098
A109: ED_QUO441_00099 | B109: Quoted Services | E109: ED_QUO441_00099
A110: ED_QUO441_00100 | B110: Quoted Services | E110: ED_QUO441_00100
A111: ED_QUO441_00101 | B111: Quoted Services | E111: ED_QUO441_00101
A112: ED_QUO441_00102 | B112: Quoted Services | E112: ED_QUO441_00102
A113: ED_QUO441_00103 | B113: Quoted Services | E113: ED_QUO441_00103
A114: ED_QUO441_00104 | B114: Quoted Services | E114: ED_QUO441_00104
A115: ED_QUO441_00105 | B115: Quoted Services | E115: ED_QUO441_00105
A116: ED_QUO441_00106 | B116: Quoted Services | E116: ED_QUO441_00106
A117: ED_QUO441_00107 | B117: Quoted Services | E117: ED_QUO441_00107
A118: ED_QUO441_00108 | B118: Quoted Services | E118: ED_QUO441_00108
A119: ED_QUO441_00109 | B119: Quoted Services | E119: ED_QUO441_00109
A120: ED_QUO441_00110 | B120: Quoted Services | E120: ED_QUO441_00110
A121: ED_QUO441_00111 | B121: Quoted Services | E121: ED_QUO441_00111
A122: ED_QUO441_00112 | B122: Quoted Services | E122: ED_QUO441_00112
A123: ED_QUO441_00113 | B123: Quoted Services | E123: ED_QUO441_00113
A124: ED_QUO441_00114 | B124: Quoted Services | E124: ED_QUO441_00114
A125: ED_QUO441_00115 | B125: Quoted Services | E125: ED_QUO441_00115
A126: ED_QUO441_00116 | B126: Quoted Services | E126: ED_QUO441_00116
A127: ED_QUO441_00117 | B127: Quoted Services | E127: ED_QUO441_00117
A128: ED_QUO441_00118 | B128: Quoted Services | E128: ED_QUO441_00118
A129: ED_QUO441_00119 | B129: Quoted Services | E129: ED_QUO441_00119
A130: ED_QUO441_00120 | B130: Quoted Services | E130: ED_QUO441_00120
A131: ED_QUO441_00121 | B131: Quoted Services | E131: ED_QUO441_00121
A132: ED_QUO441_00122 | B132: Quoted Services | E132: ED_QUO441_00122
A133: ED_QUO441_00123 | B133: Quoted Services | E133: ED_QUO441_00123
A134: ED_QUO441_00124 | B134: Quoted Services | E134: ED_QUO441_00124
A135: ED_QUO441_00125 | B135: Quoted Services | E135: ED_QUO441_00125
A136: ED_QUO441_00126 | B136: Quoted Services | E136: ED_QUO441_00126
A137: ED_QUO441_00127 | B137: Quoted Services | E137: ED_QUO441_00127
A138: ED_QUO441_00128 | B138: Quoted Services | E138: ED_QUO441_00128
A139: ED_QUO441_00129 | B139: Quoted Services | E139: ED_QUO441_00129
A140: ED_QUO441_00130 | B140: Quoted Services | E140: ED_QUO441_00130
A141: ED_QUO441_00131 | B141: Quoted Services | E141: ED_QUO441_00131
A142: ED_QUO441_00132 | B142: Quoted Services | E142: ED_QUO441_00132
A143: ED_QUO441_00133 | B143: Quoted Services | E143: ED_QUO441_00133
A144: ED_QUO441_00134 | B144: Quoted Services | E144: ED_QUO441_00134
A145: ED_QUO441_00135 | B145: Quoted Services | E145: ED_QUO441_00135
A146: ED_QUO441_00136 | B146: Quoted Services | E146: ED_QUO441_00136
A147: ED_QUO441_00137 | B147: Quoted Services | E147: ED_QUO441_00137
A148: ED_QUO441_00138 | B148: Quoted Services | E148: ED_QUO441_00138
A149: ED_QUO441_00139 | B149: Quoted Services | E149: ED_QUO441_00139
A150: ED_QUO441_00140 | B150: Quoted Services | E150: ED_QUO441_00140
A151: ED_QUO441_00141 | B151: Quoted Services | E151: ED_QUO441_00141
A152: ED_QUO441_00142 | B152: Quoted Services | E152: ED_QUO441_00142
A153: ED_QUO441_00143 | B153: Quoted Services | E153: ED_QUO441_00143
A154: ED_QUO441_00144 | B154: Quoted Services | E154: ED_QUO441_00144
A155: ED_QUO441_00145 | B155: Quoted Services | E155: ED_QUO441_00145
A156: ED_QUO441_00146 | B156: Quoted Services | E156: ED_QUO441_00146
A157: ED_QUO441_00147 | B157: Quoted Services | E157: ED_QUO441_00147
A158: ED_QUO441_00148 | B158: Quoted Services | E158: ED_QUO441_00148
A159: ED_QUO441_00149 | B159: Quoted Services | E159: ED_QUO441_00149
A160: ED_QUO441_00150 | B160: Quoted Services | E160: ED_QUO441_00150
A161: ED_QUO441_00151 | B161: Quoted Services | E161: ED_QUO441_00151
A162: ED_QUO441_00152 | B162: Quoted Services | E162: ED_QUO441_00152
A163: ED_QUO441_00153 | B163: Quoted Services | E163: ED_QUO441_00153
A164: ED_QUO441_00154 | B164: Quoted Services | E164: ED_QUO441_00154
A165: ED_QUO441_00155 | B165: Quoted Services | E165: ED_QUO441_00155
A166: ED_QUO441_00156 | B166: Quoted Services | E166: ED_QUO441_00156
A167: ED_QUO441_00157 | B167: Quoted Services | E167: ED_QUO441_00157
A168: ED_QUO441_00158 | B168: Quoted Services | E168: ED_QUO441_00158
A169: ED_QUO441_00159 | B169: Quoted Services | E169: ED_QUO441_00159
A170: ED_QUO441_00160 | B170: Quoted Services | E170: ED_QUO441_00160
A171: ED_QUO441_00161 | B171: Quoted Services | E171: ED_QUO441_00161
A172: ED_QUO441_00162 | B172: Quoted Services | E172: ED_QUO441_00162
A173: ED_QUO441_00163 | B173: Quoted Services | E173: ED_QUO441_00163
A174: ED_QUO441_00164 | B174: Quoted Services | E174: ED_QUO441_00164
A175: ED_QUO441_00165 | B175: Quoted Services | E175: ED_QUO441_00165
A176: ED_QUO441_00166 | B176: Quoted Services | E176: ED_QUO441_00166
A177: ED_QUO441_00167 | B177: Quoted Services | E177: ED_QUO441_00167
A178: ED_QUO441_00168 | B178: Quoted Services | E178: ED_QUO441_00168
A179: ED_QUO441_00169 | B179: Quoted Services | E179: ED_QUO441_00169
A180: ED_QUO441_00170 | B180: Quoted Services | E180: ED_QUO441_00170
A181: ED_QUO441_00171 | B181: Quoted Services | E181: ED_QUO441_00171
A182: ED_QUO441_00172 | B182: Quoted Services | E182: ED_QUO441_00172
A183: ED_QUO441_00173 | B183: Quoted Services | E183: ED_QUO441_00173
A184: ED_QUO441_00174 | B184: Quoted Services | E184: ED_QUO441_00174
A185: ED_QUO441_00175 | B185: Quoted Services | E185: ED_QUO441_00175
A186: ED_QUO441_00176 | B186: Quoted Services | E186: ED_QUO441_00176
A187: ED_QUO441_00177 | B187: Quoted Services | E187: ED_QUO441_00177
A188: ED_QUO441_00178 | B188: Quoted Services | E188: ED_QUO441_00178
A189: ED_QUO441_00179 | B189: Quoted Services | E189: ED_QUO441_00179
A190: ED_QUO441_00180 | B190: Quoted Services | E190: ED_QUO441_00180
A191: ED_QUO441_00181 | B191: Quoted Services | E191: ED_QUO441_00181
A192: ED_QUO441_00182 | B192: Quoted Services | E192: ED_QUO441_00182
A193: ED_QUO441_00183 | B193: Quoted Services | E193: ED_QUO441_00183
A194: ED_QUO441_00184 | B194: Quoted Services | E194: ED_QUO441_00184
A195: ED_QUO441_00185 | B195: Quoted Services | E195: ED_QUO441_00185
A196: ED_QUO441_00186 | B196: Quoted Services | E196: ED_QUO441_00186
A197: ED_QUO441_00187 | B197: Quoted Services | E197: ED_QUO441_00187
A198: ED_QUO441_00188 | B198: Quoted Services | E198: ED_QUO441_00188
A199: ED_QUO441_00189 | B199: Quoted Services | E199: ED_QUO441_00189
A200: ED_QUO441_00190 | B200: Quoted Services | E200: ED_QUO441_00190
A201: ED_QUO441_00191 | B201: Quoted Services | E201: ED_QUO441_00191
A202: ED_QUO441_00192 | B202: Quoted Services | E202: ED_QUO441_00192
A203: ED_QUO441_00193 | B203: Quoted Services | E203: ED_QUO441_00193
... 280 more rows

Sheet 5.2 Asset Age Profile
B1: =(LOOKUP(dms_Model,dms_Model_List,dms_Worksheet_List)) -> REGULATORY REPORTING STATEMENT
B2: Australian Distribution Co.
B3: =CONCATENATE("Category Analysis RIN response ",CRY) -> Category Analysis RIN response 2014-15
B4: 5.2 ASSET AGE PROFILE
B6: TABLE 5.2.1 - ASSET AGE PROFILE
E7: 1 | P7: 2 | AA7: 3
N9: ECONOMIC LIFE (YEARS) | AJ9: INSTALLED ASSETS -˃ QUANTITY CURRENTLY IN COMMISSION BY YEAR
B10: ASSET GROUP | C10: ASSET CATEGORY | E10: DNSP NAME | F10: SERVICE | G10: ASSET GROUP | H10: ASSET CATEGORY | I10: DATA TYPE | J10: DATA TYPE SUBCATEGORY | K10: MEASUREMENT | L10: DENOMINATION | N10: MEAN | P10: DNSP NAME | Q10: SERVICE | R10: ASSET GROUP | S10: ASSET CATEGORY | T10: DATA TYPE | U10: DATA TYPE SUBCATEGORY | V10: MEASUREMENT | W10: DENOMINATION | Y10: STANDARD DEVIATION | AA10: DNSP NAME | AB10: SERVICE | AC10: ASSET GROUP | AD10: ASSET CATEGORY | AE10: DATA TYPE | AF10: DATA TYPE SUBCATEGORY | AG10: MEASUREMENT | AH10: DENOMINATION | AJ10: 2014-15 | AK10: 2013-14 | AL10: 2012-13 | AM10: 2011-12 | AN10: 2010-11 | AO10: 2009-10 | AP10: 2008-09 | AQ10: 2007-08 | AR10: 2006-07 | AS10: 2005-06 | AT10: 2004-05 | AU10: 2003-04 | AV10: 2002-03 | AW10: 2001-02 | AX10: 2000-01 | AY10: 1999-00 | AZ10: 1998-99 | BA10: 1997-98 | BB10: 1996-97 | BC10: 1995-96 | BD10: 1994-95 | BE10: 1993-94 | BF10: 1992-93 | BG10: 1991-92 | BH10: 1990-91 | BI10: 1989-90 | BJ10: 1988-89 | BK10: 1987-88 | BL10: 1986-87 | BM10: 1985-86 | BN10: 1984-85 | BO10: 1983-84 | BP10: 1982-83 | BQ10: 1981-82 | BR10: 1980-81 | BS10: 1979-80 | BT10: 1978-79 | BU10: 1977-78 | BV10: 1976-77 | BW10: 1975-76 | BX10: 1974-75 | BY10: 1973-74 | BZ10: 1972-73 | CA10: 1971-72 | CB10: 1970-71 | CC10: 1969-70 | CD10: 1968-69 | CE10: 1967-68 | CF10: 1966-67 | CG10: 1965-66 | CH10: 1964-65 | CI10: 1963-64 | CJ10: 1962-63 | CK10: 1961-62 | CL10: 1960-61 | CM10: 1959-60 | CN10: 1958-59 | CO10: 1957-58 | CP10: 1956-57 | CQ10: 1955-56 | CR10: 1954-55 | CS10: 1953-54 | CT10: 1952-53 | CU10: 1951-52 | CV10: 1950-51 | CW10: 1949-50 | CX10: 1948-49 | CY10: 1947-48 | CZ10: 1946-47 | DA10: 1945-46 | DB10: 1944-45 | DC10: 1943-44 | DD10: 1942-43 | DE10: 1941-42 | DF10: 1940-41 | DG10: 1939-40 | DH10: 1938-39 | DI10: 1937-38 | DJ10: 1936-37 | DK10: 1935-36 | DL10: 1934-35 | DM10: 1933-34 | DN10: 1932-33 | DO10: 1931-32 | DP10: 1930-31 | DQ10: 1929-30 | DR10: 1928-29 | DS10: 1927-28 | DT10: 1926-27 | DU10: 1925-26 | DV10: 1924-25 | DW10: 1923-24 | DX10: 1922-23 | DY10: 1921-22 | DZ10: 1920-21 | EA10: 1919-20 | EB10: 1918-19 | EC10: 1917-18 | ED10: 1916-17 | EE10: 1915-16 | EF10: 1914-15 | EG10: 1913-14 | EH10: 1912-13 | EI10: 1911-12 | EJ10: 1910-11
A11: ED_ASS521_00001 | B11: POLES BY: HIGHEST OPERATING VOLTAGE ; MATERIAL TYPE; STAKING (IF WOOD) | C11: Staking of a wooden pole | E11: DNSP NAME | F11: REPEX | G11: POLES | H11: =C11 -> Staking of a wooden pole | I11: DESCRIPTOR METRIC | J11: MEAN ECONOMIC LIFE | K11: YEARS | L11: NUMBER
A12: ED_ASS521_00002 | C12: ˂ = 1 kV; Wood | E12: TNSP NAME | F12: REPEX | G12: POLES | H12: =C12 -> ˂ = 1 kV; Wood | I12: DESCRIPTOR METRIC | J12: MEAN ECONOMIC LIFE | K12: YEARS | L12: NUMBER
A13: ED_ASS521_00003 | C13: > 1 kV & < = 11 kV; Wood | E13: TNSP NAME | F13: REPEX | G13: POLES | H13: > 1 kV & < = 11 kV; Wood | I13: DESCRIPTOR METRIC | J13: MEAN ECONOMIC LIFE | K13: YEARS | L13: NUMBER
A14: ED_ASS521_00004 | C14: ˃ 11 kV & < = 22 kV; Wood | E14: DNSP NAME | F14: REPEX | G14: POLES | H14: ˃ 11 kV & < = 22 kV; Wood | I14: DESCRIPTOR METRIC | J14: MEAN ECONOMIC LIFE | K14: YEARS | L14: NUMBER
A15: ED_ASS521_00005 | C15: > 22 kV & < = 66 kV; Wood | E15: DNSP NAME | F15: REPEX | G15: POLES | H15: > 22 kV & < = 66 kV; Wood | I15: DESCRIPTOR METRIC | J15: MEAN ECONOMIC LIFE | K15: YEARS | L15: NUMBER
A16: ED_ASS521_00006 | C16: > 66 kV & < = 132 kV; Wood | E16: DNSP NAME | F16: REPEX | G16: POLES | H16: > 66 kV & < = 132 kV; Wood | I16: DESCRIPTOR METRIC | J16: MEAN ECONOMIC LIFE | K16: YEARS | L16: NUMBER
A17: ED_ASS521_00007 | C17: > 132 kV; Wood | E17: DNSP NAME | F17: REPEX | G17: POLES | H17: > 132 kV; Wood | I17: DESCRIPTOR METRIC | J17: MEAN ECONOMIC LIFE | K17: YEARS | L17: NUMBER
A18: ED_ASS521_00008 | C18: ˂ = 1 kV; Concrete | E18: DNSP NAME | F18: REPEX | G18: POLES | H18: ˂ = 1 kV; Concrete | I18: DESCRIPTOR METRIC | J18: MEAN ECONOMIC LIFE | K18: YEARS | L18: NUMBER
A19: ED_ASS521_00009 | C19: > 1 kV & < = 11 kV; Concrete | E19: DNSP NAME | F19: REPEX | G19: POLES | H19: > 1 kV & < = 11 kV; Concrete | I19: DESCRIPTOR METRIC | J19: MEAN ECONOMIC LIFE | K19: YEARS | L19: NUMBER
A20: ED_ASS521_00010 | C20: ˃ 11 kV & < = 22 kV; Concrete | E20: DNSP NAME | F20: REPEX | G20: POLES | H20: ˃ 11 kV & < = 22 kV; Concrete | I20: DESCRIPTOR METRIC | J20: MEAN ECONOMIC LIFE | K20: YEARS | L20: NUMBER
A21: ED_ASS521_00011 | C21: > 22 kV & < = 66 kV; Concrete
A22: ED_ASS521_00012 | C22: > 66 kV & < = 132 kV; Concrete
A23: ED_ASS521_00013 | C23: > 132 kV; Concrete
A24: ED_ASS521_00014 | C24: ˂ = 1 kV; Steel
A25: ED_ASS521_00015 | C25: > 1 kV & < = 11 kV; Steel
A26: ED_ASS521_00016 | C26: ˃ 11 kV & < = 22 kV; Steel
A27: ED_ASS521_00017 | C27: > 22 kV & < = 66 kV; Steel
A28: ED_ASS521_00018 | C28: > 66 kV & < = 132 kV; Steel
A29: ED_ASS521_00019 | C29: > 132 kV; Steel
A30: ED_ASS521_00020 | C30: Other | E30: DNSP NAME | F30: REPEX | G30: POLES | H30: Other | I30: DESCRIPTOR METRIC | J30: MEAN ECONOMIC LIFE | K30: YEARS | L30: NUMBER
A31: ED_ASS521_00021 | B31: POLE TOP STRUCTURES BY: Highest operating voltage | C31: ˂ = 1 kV | N31: 50 | Y31: 7.071 | AJ31: 11590 | AK31: 11590 | AL31: 11590 | AM31: 11590 | AN31: 11590 | AO31: 11590 | AP31: 11590 | AQ31: 11590 | AR31: 11590 | AS31: 14802 | AT31: 18013 | AU31: 27275 | AV31: 36537 | AW31: 26945 | AX31: 19432 | AY31: 20137 | AZ31: 18763 | BA31: 19530 | BB31: 20297 | BC31: 36521 | BD31: 52746 | BE31: 50190 | BF31: 47634 | BG31: 47377 | BH31: 58635 | BI31: 70096 | BJ31: 70041 | BK31: 70041 | BL31: 70041 | BM31: 73891 | BN31: 77740 | BO31: 77740 | BP31: 77740 | BQ31: 77740 | BR31: 96789 | BS31: 115837 | BT31: 115837 | BU31: 115837 | BV31: 115837 | BW31: 167720 | BX31: 219602 | BY31: 219602 | BZ31: 219602 | CA31: 219602 | CB31: 228196 | CC31: 235987 | CD31: 235184 | CE31: 235184 | CF31: 235184 | CG31: 233679 | CH31: 232174 | CI31: 232174 | CJ31: 232174 | CK31: 232174 | CL31: 213358 | CM31: 194542 | CN31: 194542 | CO31: 194542 | CP31: 194542 | CQ31: 164868 | CR31: 135193 | CS31: 135193 | CT31: 135193 | CU31: 135193 | CV31: 68503 | CW31: 1812 | CX31: 1812 | CY31: 1812 | CZ31: 1812 | DA31: 1513 | DB31: 1213 | DC31: 1213 | DD31: 1213 | DE31: 1213 | DF31: 1396 | DG31: 1579 | DH31: 1579 | DI31: 713 | DJ31: 0 | DK31: 0 | DL31: 0 | DM31: 0 | DN31: 0 | DO31: 0 | DP31: 0 | DQ31: 0 | DR31: 0 | DS31: 0 | DT31: 0 | DU31: 0 | DV31: 0 | DW31: 0 | DX31: 0 | DY31: 0 | DZ31: 0 | EA31: 0 | EB31: 0 | EC31: 0 | ED31: 0 | EE31: 0 | EF31: 0 | EG31: 0 | EH31: 0 | EI31: 0 | EJ31: 0
A32: ED_ASS521_00022 | C32: > 1 kV & < = 11 kV | N32: 50 | Y32: 7.071 | AJ32: 6007 | AK32: 6007 | AL32: 6007 | AM32: 6007 | AN32: 6007 | AO32: 6007 | AP32: 6007 | AQ32: 6007 | AR32: 6007 | AS32: 7672 | AT32: 9337 | AU32: 14138 | AV32: 18939 | AW32: 13967 | AX32: 10072 | AY32: 10438 | AZ32: 9726 | BA32: 10123 | BB32: 10521 | BC32: 18931 | BD32: 27341 | BE32: 26016 | BF32: 24691 | BG32: 24558 | BH32: 30394 | BI32: 36334 | BJ32: 36306 | BK32: 36306 | BL32: 36306 | BM32: 38301 | BN32: 40297 | BO32: 40297 | BP32: 40297 | BQ32: 40297 | BR32: 50170 | BS32: 60044 | BT32: 60044 | BU32: 60044 | BV32: 60044 | BW32: 86938 | BX32: 113831 | BY32: 113831 | BZ32: 113831 | CA32: 113831 | CB32: 118286 | CC32: 122324 | CD32: 121908 | CE32: 121908 | CF32: 121908 | CG32: 121128 | CH32: 120348 | CI32: 120348 | CJ32: 120348 | CK32: 120348 | CL32: 110594 | CM32: 100841 | CN32: 100841 | CO32: 100841 | CP32: 100841 | CQ32: 85459 | CR32: 70078 | CS32: 70078 | CT32: 70078 | CU32: 70078 | CV32: 35508 | CW32: 939 | CX32: 939 | CY32: 939 | CZ32: 939 | DA32: 784 | DB32: 629 | DC32: 629 | DD32: 29 | DE32: 0 | DF32: 0 | DG32: 0 | DH32: 0 | DI32: 0 | DJ32: 0 | DK32: 0 | DL32: 0 | DM32: 0 | DN32: 0 | DO32: 0 | DP32: 0 | DQ32: 0 | DR32: 0 | DS32: 0 | DT32: 0 | DU32: 0 | DV32: 0 | DW32: 0 | DX32: 0 | DY32: 0 | DZ32: 0 | EA32: 0 | EB32: 0 | EC32: 0 | ED32: 0 | EE32: 0 | EF32: 0 | EG32: 0 | EH32: 0 | EI32: 0 | EJ32: 0
A33: ED_ASS521_00023 | C33: ˃ 11 kV & < = 22 kV | N33: 50 | Y33: 7.071 | AJ33: 670 | AK33: 670 | AL33: 670 | AM33: 670 | AN33: 670 | AO33: 670 | AP33: 670 | AQ33: 670 | AR33: 670 | AS33: 855 | AT33: 1041 | AU33: 1576 | AV33: 2112 | AW33: 1557 | AX33: 1123 | AY33: 1164 | AZ33: 1084 | BA33: 1129 | BB33: 1173 | BC33: 2111 | BD33: 3049 | BE33: 2901 | BF33: 2753 | BG33: 2738 | BH33: 3389 | BI33: 4052 | BJ33: 4049 | BK33: 4049 | BL33: 4049 | BM33: 4271 | BN33: 4494 | BO33: 4494 | BP33: 4494 | BQ33: 4494 | BR33: 5595 | BS33: 6696 | BT33: 6696 | BU33: 6696 | BV33: 6696 | BW33: 9696 | BX33: 12695 | BY33: 12695 | BZ33: 12695 | CA33: 12695 | CB33: 13192 | CC33: 13642 | CD33: 13596 | CE33: 13596 | CF33: 13596 | CG33: 13509 | CH33: 13422 | CI33: 13422 | CJ33: 13422 | CK33: 13422 | CL33: 12334 | CM33: 11246 | CN33: 11246 | CO33: 11246 | CP33: 11246 | CQ33: 9531 | CR33: 7815 | CS33: 7815 | CT33: 7815 | CU33: 7815 | CV33: 3584 | CW33: 0 | CX33: 0 | CY33: 0 | CZ33: 0 | DA33: 0 | DB33: 0 | DC33: 0 | DD33: 0 | DE33: 0 | DF33: 0 | DG33: 0 | DH33: 0 | DI33: 0 | DJ33: 0 | DK33: 0 | DL33: 0 | DM33: 0 | DN33: 0 | DO33: 0 | DP33: 0 | DQ33: 0 | DR33: 0 | DS33: 0 | DT33: 0 | DU33: 0 | DV33: 0 | DW33: 0 | DX33: 0 | DY33: 0 | DZ33: 0 | EA33: 0 | EB33: 0 | EC33: 0 | ED33: 0 | EE33: 0 | EF33: 0 | EG33: 0 | EH33: 0 | EI33: 0 | EJ33: 0
A34: ED_ASS521_00024 | C34: > 22 kV & < = 66 kV | N34: 50 | Y34: 7.071 | AJ34: 1966 | AK34: 1966 | AL34: 1966 | AM34: 1966 | AN34: 1966 | AO34: 1966 | AP34: 1966 | AQ34: 1966 | AR34: 1966 | AS34: 2510 | AT34: 3055 | AU34: 4626 | AV34: 6197 | AW34: 4570 | AX34: 3296 | AY34: 3415 | AZ34: 3182 | BA34: 3312 | BB34: 3442 | BC34: 6194 | BD34: 8946 | BE34: 8513 | BF34: 8079 | BG34: 8036 | BH34: 9946 | BI34: 11889 | BJ34: 11880 | BK34: 11880 | BL34: 11880 | BM34: 12533 | BN34: 13186 | BO34: 13186 | BP34: 13186 | BQ34: 13186 | BR34: 16417 | BS34: 19648 | BT34: 19648 | BU34: 19648 | BV34: 19648 | BW34: 28449 | BX34: 37249 | BY34: 37249 | BZ34: 37249 | CA34: 37249 | CB34: 38707 | CC34: 40028 | CD34: 39892 | CE34: 39892 | CF34: 39892 | CG34: 39637 | CH34: 39382 | CI34: 39382 | CJ34: 39382 | CK34: 39382 | CL34: 36190 | CM34: 32998 | CN34: 32998 | CO34: 32998 | CP34: 32998 | CQ34: 27965 | CR34: 22931 | CS34: 22931 | CT34: 22931 | CU34: 22931 | CV34: 11619 | CW34: 307 | CX34: 307 | CY34: 307 | CZ34: 307 | DA34: 256 | DB34: 205 | DC34: 205 | DD34: 205 | DE34: 205 | DF34: 236 | DG34: 267 | DH34: 267 | DI34: 233 | DJ34: 0 | DK34: 0 | DL34: 0 | DM34: 0 | DN34: 0 | DO34: 0 | DP34: 0 | DQ34: 0 | DR34: 0 | DS34: 0 | DT34: 0 | DU34: 0 | DV34: 0 | DW34: 0 | DX34: 0 | DY34: 0 | DZ34: 0 | EA34: 0 | EB34: 0 | EC34: 0 | ED34: 0 | EE34: 0 | EF34: 0 | EG34: 0 | EH34: 0 | EI34: 0 | EJ34: 0
A35: ED_ASS521_00025 | C35: > 66 kV & < = 132 kV | N35: 0 | Y35: 0 | AJ35: 0 | AK35: 0 | AL35: 0 | AM35: 0 | AN35: 0 | AO35: 0 | AP35: 0 | AQ35: 0 | AR35: 0 | AS35: 0 | AT35: 0 | AU35: 0 | AV35: 0 | AW35: 0 | AX35: 0 | AY35: 0 | AZ35: 0 | BA35: 0 | BB35: 0 | BC35: 0 | BD35: 0 | BE35: 0 | BF35: 0 | BG35: 0 | BH35: 0 | BI35: 0 | BJ35: 0 | BK35: 0 | BL35: 0 | BM35: 0 | BN35: 0 | BO35: 0 | BP35: 0 | BQ35: 0 | BR35: 0 | BS35: 0 | BT35: 0 | BU35: 0 | BV35: 0 | BW35: 0 | BX35: 0 | BY35: 0 | BZ35: 0 | CA35: 0 | CB35: 0 | CC35: 0 | CD35: 0 | CE35: 0 | CF35: 0 | CG35: 0 | CH35: 0 | CI35: 0 | CJ35: 0 | CK35: 0 | CL35: 0 | CM35: 0 | CN35: 0 | CO35: 0 | CP35: 0 | CQ35: 0 | CR35: 0 | CS35: 0 | CT35: 0 | CU35: 0 | CV35: 0 | CW35: 0 | CX35: 0 | CY35: 0 | CZ35: 0 | DA35: 0 | DB35: 0 | DC35: 0 | DD35: 0 | DE35: 0 | DF35: 0 | DG35: 0 | DH35: 0 | DI35: 0 | DJ35: 0 | DK35: 0 | DL35: 0 | DM35: 0 | DN35: 0 | DO35: 0 | DP35: 0 | DQ35: 0 | DR35: 0 | DS35: 0 | DT35: 0 | DU35: 0 | DV35: 0 | DW35: 0 | DX35: 0 | DY35: 0 | DZ35: 0 | EA35: 0 | EB35: 0 | EC35: 0 | ED35: 0 | EE35: 0 | EF35: 0 | EG35: 0 | EH35: 0 | EI35: 0 | EJ35: 0
A36: ED_ASS521_00026 | C36: > 132 kV | N36: 0 | Y36: 0 | AJ36: 0 | AK36: 0 | AL36: 0 | AM36: 0 | AN36: 0 | AO36: 0 | AP36: 0 | AQ36: 0 | AR36: 0 | AS36: 0 | AT36: 0 | AU36: 0 | AV36: 0 | AW36: 0 | AX36: 0 | AY36: 0 | AZ36: 0 | BA36: 0 | BB36: 0 | BC36: 0 | BD36: 0 | BE36: 0 | BF36: 0 | BG36: 0 | BH36: 0 | BI36: 0 | BJ36: 0 | BK36: 0 | BL36: 0 | BM36: 0 | BN36: 0 | BO36: 0 | BP36: 0 | BQ36: 0 | BR36: 0 | BS36: 0 | BT36: 0 | BU36: 0 | BV36: 0 | BW36: 0 | BX36: 0 | BY36: 0 | BZ36: 0 | CA36: 0 | CB36: 0 | CC36: 0 | CD36: 0 | CE36: 0 | CF36: 0 | CG36: 0 | CH36: 0 | CI36: 0 | CJ36: 0 | CK36: 0 | CL36: 0 | CM36: 0 | CN36: 0 | CO36: 0 | CP36: 0 | CQ36: 0 | CR36: 0 | CS36: 0 | CT36: 0 | CU36: 0 | CV36: 0 | CW36: 0 | CX36: 0 | CY36: 0 | CZ36: 0 | DA36: 0 | DB36: 0 | DC36: 0 | DD36: 0 | DE36: 0 | DF36: 0 | DG36: 0 | DH36: 0 | DI36: 0 | DJ36: 0 | DK36: 0 | DL36: 0 | DM36: 0 | DN36: 0 | DO36: 0 | DP36: 0 | DQ36: 0 | DR36: 0 | DS36: 0 | DT36: 0 | DU36: 0 | DV36: 0 | DW36: 0 | DX36: 0 | DY36: 0 | DZ36: 0 | EA36: 0 | EB36: 0 | EC36: 0 | ED36: 0 | EE36: 0 | EF36: 0 | EG36: 0 | EH36: 0 | EI36: 0 | EJ36: 0
A37: ED_ASS521_00027 | C37: Other
A38: ED_ASS521_00028 | B38: OVERHEAD CONDUCTORS BY: HIGHEST OPERATING VOLTAGE; NUMBER OF PHASES (AT HV) | C38: ˂ = 1 kV | E38: DNSP NAME | F38: REPEX | G38: OVERHEAD CONDUCTORS | H38: ˂ = 1 kV | I38: DESCRIPTOR METRIC | J38: MEAN ECONOMIC LIFE | K38: YEARS | L38: NUMBER | N38: 60 | Y38: 8 | AJ38: 18.88 | AK38: 31 | AL38: 335.96 | AM38: 374.41 | AN38: 424.9 | AO38: 411.31 | AP38: 306.44 | AQ38: 0.15 | AR38: 0.15 | AS38: 0 | AT38: 0 | AU38: 0 | AV38: 0 | AW38: 4.55 | AX38: 4.55 | AY38: 0 | AZ38: 1.01 | BA38: 1.01 | BB38: 0 | BC38: 0 | BD38: 0 | BE38: 0 | BF38: 99.11 | BG38: 99.11 | BH38: 6.55 | BI38: 118.05 | BJ38: 317.93 | BK38: 336.17 | BL38: 625.41 | BM38: 623.51 | BN38: 236.51 | BO38: 315.32 | BP38: 244.78 | BQ38: 38.49 | BR38: 97.67 | BS38: 104.74 | BT38: 34.39 | BU38: 218.03 | BV38: 1014.71 | BW38: 1114.95 | BX38: 530.84 | BY38: 330.8 | BZ38: 391.35 | CA38: 770.43 | CB38: 967.66 | CC38: 1056.26 | CD38: 1578.22 | CE38: 1552 | CF38: 4140.08 | CG38: 4608.92 | CH38: 2062.78 | CI38: 1720.33 | CJ38: 1452.66 | CK38: 1651.9 | CL38: 1383.67 | CM38: 981.32 | CN38: 1759.47 | CO38: 1742.6 | CP38: 7510.53 | CQ38: 19320.41 | CR38: 12260.59 | CS38: 39.75 | CT38: 40.59 | CU38: 21.75 | CV38: 17.31 | CW38: 11.17 | CX38: 0 | CY38: 0 | CZ38: 39.49 | DA38: 39.49 | DB38: 0 | DC38: 0 | DD38: 0 | DE38: 0 | DF38: 92.93 | DG38: 92.93 | DH38: 0 | DI38: 0 | DJ38: 0 | DK38: 0 | DL38: 0 | DM38: 0 | DN38: 0 | DO38: 0 | DP38: 0 | DQ38: 0 | DR38: 0 | DS38: 0 | DT38: 0 | DU38: 0 | DV38: 0 | DW38: 0 | DX38: 0 | DY38: 0 | DZ38: 0 | EA38: 0 | EB38: 0 | EC38: 0 | ED38: 0 | EE38: 0 | EF38: 0 | EG38: 0 | EH38: 0 | EI38: 0 | EJ38: 0
A39: ED_ASS521_00029 | C39: > 1 kV & < = 11 kV | E39: DNSP NAME | F39: REPEX | G39: OVERHEAD CONDUCTORS | H39: > 1 kV & < = 11 kV | I39: DESCRIPTOR METRIC | J39: MEAN ECONOMIC LIFE | K39: YEARS | L39: NUMBER | N39: 60 | Y39: 8 | AJ39: 280.34 | AK39: 93 | AL39: 159.62 | AM39: 149.48 | AN39: 132 | AO39: 178.75 | AP39: 83.49 | AQ39: 0 | AR39: 0 | AS39: 0 | AT39: 0.01 | AU39: 0.01 | AV39: 0 | AW39: 0 | AX39: 3.3 | AY39: 3.3 | AZ39: 2.89 | BA39: 4.39 | BB39: 1.51 | BC39: 0 | BD39: 0 | BE39: 10.88 | BF39: 30.81 | BG39: 19.93 | BH39: 0.04 | BI39: 95.59 | BJ39: 232.78 | BK39: 282.76 | BL39: 500.09 | BM39: 415.16 | BN39: 334.55 | BO39: 364.36 | BP39: 96.69 | BQ39: 7.2 | BR39: 91.17 | BS39: 97.1 | BT39: 73.73 | BU39: 276.53 | BV39: 816.29 | BW39: 724.41 | BX39: 229.96 | BY39: 333.66 | BZ39: 571.48 | CA39: 807.22 | CB39: 1361.15 | CC39: 1208.6 | CD39: 1025.8 | CE39: 1019.72 | CF39: 2660.97 | CG39: 2970.08 | CH39: 1328.36 | CI39: 958.68 | CJ39: 982.03 | CK39: 1882.49 | CL39: 1672.73 | CM39: 1036 | CN39: 1686.67 | CO39: 1690.29 | CP39: 5750.7 | CQ39: 11944.78 | CR39: 6697.2 | CS39: 0 | CT39: 0 | CU39: 0 | CV39: 0 | CW39: 0 | CX39: 0 | CY39: 0 | CZ39: 0 | DA39: 0 | DB39: 0 | DC39: 0 | DD39: 0 | DE39: 0 | DF39: 0 | DG39: 0 | DH39: 0 | DI39: 0 | DJ39: 0 | DK39: 0 | DL39: 0 | DM39: 0 | DN39: 0 | DO39: 0 | DP39: 0 | DQ39: 0 | DR39: 0 | DS39: 0 | DT39: 0 | DU39: 0 | DV39: 0 | DW39: 0 | DX39: 0 | DY39: 0 | DZ39: 0 | EA39: 0 | EB39: 0 | EC39: 0 | ED39: 0 | EE39: 0 | EF39: 0 | EG39: 0 | EH39: 0 | EI39: 0 | EJ39: 0
A40: ED_ASS521_00030 | C40: ˃ 11 kV & < = 22 kV ; SWER | N40: 60 | Y40: 8 | AJ40: 52.32 | AK40: 23 | AL40: 9.95 | AM40: 8.55 | AN40: 33.25 | AO40: 5.16 | AP40: 10.79 | AQ40: 0 | AR40: 0 | AS40: 0 | AT40: 0 | AU40: 0 | AV40: 0 | AW40: 0 | AX40: 0 | AY40: 0 | AZ40: 0 | BA40: 0 | BB40: 0 | BC40: 5.67 | BD40: 5.67 | BE40: 0 | BF40: 0 | BG40: 0 | BH40: 24.78 | BI40: 83.48 | BJ40: 440.81 | BK40: 388.48 | BL40: 20.28 | BM40: 51.99 | BN40: 56.24 | BO40: 157.29 | BP40: 139.14 | BQ40: 12.34 | BR40: 61.29 | BS40: 48.95 | BT40: 69.01 | BU40: 71.1 | BV40: 374.41 | BW40: 501.85 | BX40: 478.33 | BY40: 551.9 | BZ40: 599.49 | CA40: 510.32 | CB40: 1653.18 | CC40: 1940.38 | CD40: 927.15 | CE40: 973.08 | CF40: 2840.57 | CG40: 3133.61 | CH40: 1408.57 | CI40: 976 | CJ40: 942.87 | CK40: 982.21 | CL40: 798.67 | CM40: 918.08 | CN40: 3327.67 | CO40: 2861.54 | CP40: 144.82 | CQ40: 319.28 | CR40: 174.46 | CS40: 0 | CT40: 0 | CU40: 0 | CV40: 0 | CW40: 0 | CX40: 0 | CY40: 0 | CZ40: 0 | DA40: 0 | DB40: 0 | DC40: 0 | DD40: 0 | DE40: 0 | DF40: 0 | DG40: 0 | DH40: 0 | DI40: 0 | DJ40: 0 | DK40: 0 | DL40: 0 | DM40: 0 | DN40: 0 | DO40: 0 | DP40: 0 | DQ40: 0 | DR40: 0 | DS40: 0 | DT40: 0 | DU40: 0 | DV40: 0 | DW40: 0 | DX40: 0 | DY40: 0 | DZ40: 0 | EA40: 0 | EB40: 0 | EC40: 0 | ED40: 0 | EE40: 0 | EF40: 0 | EG40: 0 | EH40: 0 | EI40: 0 | EJ40: 0
A41: ED_ASS521_00031 | C41: ˃ 11 kV & < = 22 kV ; Single-Phase | N41: 0 | Y41: 0 | AJ41: 0 | AK41: 0 | AL41: 0 | AM41: 0 | AN41: 0 | AO41: 0 | AP41: 0 | AQ41: 0 | AR41: 0 | AS41: 0 | AT41: 0 | AU41: 0 | AV41: 0 | AW41: 0 | AX41: 0 | AY41: 0 | AZ41: 0 | BA41: 0 | BB41: 0 | BC41: 0 | BD41: 0 | BE41: 0 | BF41: 0 | BG41: 0 | BH41: 0 | BI41: 0 | BJ41: 0 | BK41: 0 | BL41: 0 | BM41: 0 | BN41: 0 | BO41: 0 | BP41: 0 | BQ41: 0 | BR41: 0 | BS41: 0 | BT41: 0 | BU41: 0 | BV41: 0 | BW41: 0 | BX41: 0 | BY41: 0 | BZ41: 0 | CA41: 0 | CB41: 0 | CC41: 0 | CD41: 0 | CE41: 0 | CF41: 0 | CG41: 0 | CH41: 0 | CI41: 0 | CJ41: 0 | CK41: 0 | CL41: 0 | CM41: 0 | CN41: 0 | CO41: 0 | CP41: 0 | CQ41: 0 | CR41: 0 | CS41: 0 | CT41: 0 | CU41: 0 | CV41: 0 | CW41: 0 | CX41: 0 | CY41: 0 | CZ41: 0 | DA41: 0 | DB41: 0 | DC41: 0 | DD41: 0 | DE41: 0 | DF41: 0 | DG41: 0 | DH41: 0 | DI41: 0 | DJ41: 0 | DK41: 0 | DL41: 0 | DM41: 0 | DN41: 0 | DO41: 0 | DP41: 0 | DQ41: 0 | DR41: 0 | DS41: 0 | DT41: 0 | DU41: 0 | DV41: 0 | DW41: 0 | DX41: 0 | DY41: 0 | DZ41: 0 | EA41: 0 | EB41: 0 | EC41: 0 | ED41: 0 | EE41: 0 | EF41: 0 | EG41: 0 | EH41: 0 | EI41: 0 | EJ41: 0
A42: ED_ASS521_00032 | C42: ˃ 11 kV & < = 22 kV ; Multiple-Phase | N42: 0 | Y42: 0 | AJ42: 0 | AK42: 0 | AL42: 0 | AM42: 0 | AN42: 0 | AO42: 0 | AP42: 0 | AQ42: 0 | AR42: 0 | AS42: 0 | AT42: 0 | AU42: 0 | AV42: 0 | AW42: 0 | AX42: 0 | AY42: 0 | AZ42: 0 | BA42: 0 | BB42: 0 | BC42: 0 | BD42: 0 | BE42: 0 | BF42: 0 | BG42: 0 | BH42: 0 | BI42: 0 | BJ42: 0 | BK42: 0 | BL42: 0 | BM42: 0 | BN42: 0 | BO42: 0 | BP42: 0 | BQ42: 0 | BR42: 0 | BS42: 0 | BT42: 0 | BU42: 0 | BV42: 0 | BW42: 0 | BX42: 0 | BY42: 0 | BZ42: 0 | CA42: 0 | CB42: 0 | CC42: 0 | CD42: 0 | CE42: 0 | CF42: 0 | CG42: 0 | CH42: 0 | CI42: 0 | CJ42: 0 | CK42: 0 | CL42: 0 | CM42: 0 | CN42: 0 | CO42: 0 | CP42: 0 | CQ42: 0 | CR42: 0 | CS42: 0 | CT42: 0 | CU42: 0 | CV42: 0 | CW42: 0 | CX42: 0 | CY42: 0 | CZ42: 0 | DA42: 0 | DB42: 0 | DC42: 0 | DD42: 0 | DE42: 0 | DF42: 0 | DG42: 0 | DH42: 0 | DI42: 0 | DJ42: 0 | DK42: 0 | DL42: 0 | DM42: 0 | DN42: 0 | DO42: 0 | DP42: 0 | DQ42: 0 | DR42: 0 | DS42: 0 | DT42: 0 | DU42: 0 | DV42: 0 | DW42: 0 | DX42: 0 | DY42: 0 | DZ42: 0 | EA42: 0 | EB42: 0 | EC42: 0 | ED42: 0 | EE42: 0 | EF42: 0 | EG42: 0 | EH42: 0 | EI42: 0 | EJ42: 0
A43: ED_ASS521_00033 | C43: > 22 kV & < = 66 kV | N43: 60 | Y43: 8 | AJ43: 31.13 | AK43: 89 | AL43: 0.87 | AM43: 75.23 | AN43: 105.32 | AO43: 71.03 | AP43: 40.94 | AQ43: 10.85 | AR43: 11.72 | AS43: 42.86 | AT43: 64.21 | AU43: 24.84 | AV43: 47.15 | AW43: 173.47 | AX43: 165.86 | AY43: 41.04 | AZ43: 3.25 | BA43: 0 | BB43: 0 | BC43: 0 | BD43: 14.7 | BE43: 14.7 | BF43: 20.38 | BG43: 20.38 | BH43: 23.09 | BI43: 48.29 | BJ43: 88.18 | BK43: 175.13 | BL43: 113.9 | BM43: 438.96 | BN43: 597.82 | BO43: 168.83 | BP43: 13.47 | BQ43: 21.52 | BR43: 169.53 | BS43: 160.61 | BT43: 170.23 | BU43: 368.46 | BV43: 228.67 | BW43: 44.09 | BX43: 54.98 | BY43: 202.52 | BZ43: 412.86 | CA43: 306.52 | CB43: 470.95 | CC43: 619.64 | CD43: 424.19 | CE43: 448.27 | CF43: 719.83 | CG43: 840.65 | CH43: 538.44 | CI43: 415 | CJ43: 474.84 | CK43: 585.54 | CL43: 578.82 | CM43: 323.14 | CN43: 171.31 | CO43: 181.05 | CP43: 181.64 | CQ43: 324.77 | CR43: 319.48 | CS43: 144.18 | CT43: 254.38 | CU43: 318.9 | CV43: 635.54 | CW43: 505.28 | CX43: 0 | CY43: 70.43 | CZ43: 204.86 | DA43: 188 | DB43: 53.57 | DC43: 0 | DD43: 34.44 | DE43: 34.44 | DF43: 211.41 | DG43: 314.89 | DH43: 103.48 | DI43: 51.39 | DJ43: 50 | DK43: 9.57 | DL43: 9.57 | DM43: 0 | DN43: 0 | DO43: 0 | DP43: 236 | DQ43: 236 | DR43: 0 | DS43: 0 | DT43: 0 | DU43: 0 | DV43: 0 | DW43: 0 | DX43: 0 | DY43: 0 | DZ43: 0 | EA43: 0 | EB43: 0 | EC43: 0 | ED43: 0 | EE43: 0 | EF43: 0 | EG43: 0 | EH43: 0 | EI43: 0 | EJ43: 0
A44: ED_ASS521_00034 | C44: > 66 kV & < = 132 kV | N44: 60 | Y44: 8 | AJ44: 0 | AK44: 0 | AL44: 0 | AM44: 0 | AN44: 0 | AO44: 0 | AP44: 0 | AQ44: 0 | AR44: 33 | AS44: 0 | AT44: 0 | AU44: 0 | AV44: 0 | AW44: 0 | AX44: 0 | AY44: 0 | AZ44: 0 | BA44: 0 | BB44: 0 | BC44: 0 | BD44: 0 | BE44: 0 | BF44: 0 | BG44: 0 | BH44: 0 | BI44: 0 | BJ44: 0 | BK44: 0 | BL44: 0 | BM44: 0 | BN44: 0 | BO44: 0 | BP44: 0 | BQ44: 0 | BR44: 0 | BS44: 0 | BT44: 0 | BU44: 0 | BV44: 0 | BW44: 0 | BX44: 0 | BY44: 0 | BZ44: 0 | CA44: 0 | CB44: 0 | CC44: 0 | CD44: 0 | CE44: 0 | CF44: 0 | CG44: 0 | CH44: 0 | CI44: 0 | CJ44: 0 | CK44: 0 | CL44: 0 | CM44: 0 | CN44: 0 | CO44: 0 | CP44: 0 | CQ44: 0 | CR44: 0 | CS44: 0 | CT44: 0 | CU44: 0 | CV44: 0 | CW44: 0 | CX44: 0 | CY44: 0 | CZ44: 0 | DA44: 0 | DB44: 0 | DC44: 0 | DD44: 0 | DE44: 0 | DF44: 0 | DG44: 0 | DH44: 0 | DI44: 0 | DJ44: 0 | DK44: 0 | DL44: 0 | DM44: 0 | DN44: 0 | DO44: 0 | DP44: 0 | DQ44: 0 | DR44: 0 | DS44: 0 | DT44: 0 | DU44: 0 | DV44: 0 | DW44: 0 | DX44: 0 | DY44: 0 | DZ44: 0 | EA44: 0 | EB44: 0 | EC44: 0 | ED44: 0 | EE44: 0 | EF44: 0 | EG44: 0 | EH44: 0 | EI44: 0 | EJ44: 0
A45: ED_ASS521_00035 | C45: > 132 kV | N45: 0 | Y45: 0 | AJ45: 0 | AK45: 0 | AL45: 0 | AM45: 0 | AN45: 0 | AO45: 0 | AP45: 0 | AQ45: 0 | AR45: 0 | AS45: 0 | AT45: 0 | AU45: 0 | AV45: 0 | AW45: 0 | AX45: 0 | AY45: 0 | AZ45: 0 | BA45: 0 | BB45: 0 | BC45: 0 | BD45: 0 | BE45: 0 | BF45: 0 | BG45: 0 | BH45: 0 | BI45: 0 | BJ45: 0 | BK45: 0 | BL45: 0 | BM45: 0 | BN45: 0 | BO45: 0 | BP45: 0 | BQ45: 0 | BR45: 0 | BS45: 0 | BT45: 0 | BU45: 0 | BV45: 0 | BW45: 0 | BX45: 0 | BY45: 0 | BZ45: 0 | CA45: 0 | CB45: 0 | CC45: 0 | CD45: 0 | CE45: 0 | CF45: 0 | CG45: 0 | CH45: 0 | CI45: 0 | CJ45: 0 | CK45: 0 | CL45: 0 | CM45: 0 | CN45: 0 | CO45: 0 | CP45: 0 | CQ45: 0 | CR45: 0 | CS45: 0 | CT45: 0 | CU45: 0 | CV45: 0 | CW45: 0 | CX45: 0 | CY45: 0 | CZ45: 0 | DA45: 0 | DB45: 0 | DC45: 0 | DD45: 0 | DE45: 0 | DF45: 0 | DG45: 0 | DH45: 0 | DI45: 0 | DJ45: 0 | DK45: 0 | DL45: 0 | DM45: 0 | DN45: 0 | DO45: 0 | DP45: 0 | DQ45: 0 | DR45: 0 | DS45: 0 | DT45: 0 | DU45: 0 | DV45: 0 | DW45: 0 | DX45: 0 | DY45: 0 | DZ45: 0 | EA45: 0 | EB45: 0 | EC45: 0 | ED45: 0 | EE45: 0 | EF45: 0 | EG45: 0 | EH45: 0 | EI45: 0 | EJ45: 0
A46: ED_ASS521_00036 | C46: Other | E46: DNSP NAME | F46: REPEX | G46: OVERHEAD CONDUCTORS | H46: Other | I46: DESCRIPTOR METRIC | J46: MEAN ECONOMIC LIFE | K46: YEARS | L46: NUMBER
A47: ED_ASS521_00037 | B47: UNDERGROUND CABLES BY: HIGHEST OPERATING VOLTAGE | C47: ˂ = 1 kV | E47: DNSP NAME | F47: REPEX | G47: UNDERGROUND CABLES | H47: ˂ = 1 kV | I47: DESCRIPTOR METRIC | J47: MEAN ECONOMIC LIFE | K47: YEARS | L47: NUMBER | N47: 45 | Y47: 7 | AJ47: 98 | AK47: 138 | AL47: 0 | AM47: 112.06 | AN47: 126.02 | AO47: 89.97 | AP47: 100.2 | AQ47: 30.88 | AR47: 6.68 | AS47: 5.48 | AT47: 12.83 | AU47: 7.4 | AV47: 97.47 | AW47: 97.41 | AX47: 1.1 | AY47: 45.63 | AZ47: 50.09 | BA47: 51.57 | BB47: 47.97 | BC47: 2.12 | BD47: 0.15 | BE47: 14.65 | BF47: 14.69 | BG47: 0.17 | BH47: 445.38 | BI47: 450.04 | BJ47: 34.91 | BK47: 84.06 | BL47: 70.21 | BM47: 55.34 | BN47: 196.25 | BO47: 210.69 | BP47: 112.81 | BQ47: 65.62 | BR47: 334.62 | BS47: 393.43 | BT47: 154.76 | BU47: 151.02 | BV47: 360.48 | BW47: 532.5 | BX47: 302.69 | BY47: 218.94 | BZ47: 576.95 | CA47: 648.84 | CB47: 827.18 | CC47: 942.46 | CD47: 648.58 | CE47: 576.81 | CF47: 448.48 | CG47: 476.49 | CH47: 494.44 | CI47: 352.06 | CJ47: 230.46 | CK47: 172.35 | CL47: 309.82 | CM47: 324.05 | CN47: 123.11 | CO47: 58.03 | CP47: 106.27 | CQ47: 122.64 | CR47: 66.93 | CS47: 0.93 | CT47: 0.32 | CU47: 0.5 | CV47: 0.71 | CW47: 0.52 | CX47: 0 | CY47: 0 | CZ47: 0.24 | DA47: 0.24 | DB47: 0 | DC47: 0 | DD47: 0 | DE47: 0 | DF47: 1.93 | DG47: 4.62 | DH47: 2.69 | DI47: 0 | DJ47: 0 | DK47: 0 | DL47: 0 | DM47: 0 | DN47: 0 | DO47: 0 | DP47: 4.02 | DQ47: 4.02 | DR47: 0 | DS47: 0 | DT47: 0 | DU47: 0 | DV47: 0 | DW47: 0 | DX47: 0 | DY47: 0 | DZ47: 0 | EA47: 0 | EB47: 0 | EC47: 0 | ED47: 0 | EE47: 0 | EF47: 0 | EG47: 0 | EH47: 0 | EI47: 0 | EJ47: 0
A48: ED_ASS521_00038 | C48: > 1 kV & < = 11 kV | N48: 45 | Y48: 7 | AJ48: 20.3 | AK48: 63 | AL48: 49.99 | AM48: 144.82 | AN48: 173.37 | AO48: 159.02 | AP48: 140.95 | AQ48: 104.08 | AR48: 86.69 | AS48: 75.04 | AT48: 65.98 | AU48: 68.66 | AV48: 67.52 | AW48: 61.45 | AX48: 40.42 | AY48: 13.23 | AZ48: 3.09 | BA48: 11.7 | BB48: 10.92 | BC48: 2.31 | BD48: 1.61 | BE48: 3.76 | BF48: 5.18 | BG48: 1.62 | BH48: 106.23 | BI48: 107.1 | BJ48: 10.73 | BK48: 13.1 | BL48: 9.04 | BM48: 15.93 | BN48: 42.99 | BO48: 54.75 | BP48: 31.78 | BQ48: 12.37 | BR48: 75.13 | BS48: 85.12 | BT48: 37.13 | BU48: 38.43 | BV48: 72.2 | BW48: 104.78 | BX48: 65.52 | BY48: 46.65 | BZ48: 87.56 | CA48: 121.05 | CB48: 198.41 | CC48: 199.36 | CD48: 117.26 | CE48: 129.4 | CF48: 114.73 | CG48: 115.9 | CH48: 110.79 | CI48: 66.11 | CJ48: 48.75 | CK48: 46.72 | CL48: 69.7 | CM48: 65.74 | CN48: 30.8 | CO48: 14.21 | CP48: 16.34 | CQ48: 21.96 | CR48: 11.97 | CS48: 0.07 | CT48: 0 | CU48: 0 | CV48: 0 | CW48: 0 | CX48: 0.1 | CY48: 0.1 | CZ48: 0 | DA48: 0 | DB48: 0 | DC48: 0 | DD48: 0 | DE48: 0 | DF48: 0 | DG48: 0 | DH48: 0 | DI48: 0 | DJ48: 0 | DK48: 0 | DL48: 0 | DM48: 0 | DN48: 0 | DO48: 0 | DP48: 0 | DQ48: 0 | DR48: 0 | DS48: 0 | DT48: 0 | DU48: 0 | DV48: 0 | DW48: 0 | DX48: 0 | DY48: 0 | DZ48: 0 | EA48: 0 | EB48: 0 | EC48: 0 | ED48: 0 | EE48: 0 | EF48: 0 | EG48: 0 | EH48: 0 | EI48: 0 | EJ48: 0
A49: ED_ASS521_00039 | C49: > 11 kV & < = 22 kV | N49: 45 | Y49: 7 | AJ49: 0.07 | AK49: 3 | AL49: 0.05 | AM49: 0.16 | AN49: 0.62 | AO49: 0.84 | AP49: 0.64 | AQ49: 0.6 | AR49: 0.44 | AS49: 0.22 | AT49: 0.63 | AU49: 0.68 | AV49: 0.2 | AW49: 0.27 | AX49: 0.33 | AY49: 0.14 | AZ49: 0 | BA49: 0 | BB49: 0 | BC49: 0 | BD49: 0 | BE49: 0.15 | BF49: 0.15 | BG49: 0 | BH49: 0.57 | BI49: 0.57 | BJ49: 0.08 | BK49: 0.88 | BL49: 1.81 | BM49: 1.04 | BN49: 0.03 | BO49: 0 | BP49: 0 | BQ49: 0 | BR49: 0.36 | BS49: 0.36 | BT49: 0.05 | BU49: 0.12 | BV49: 0.35 | BW49: 0.84 | BX49: 1.35 | BY49: 1.3 | BZ49: 1.43 | CA49: 3.46 | CB49: 4.15 | CC49: 2.15 | CD49: 0.7 | CE49: 0.88 | CF49: 0.59 | CG49: 1.02 | CH49: 1.44 | CI49: 2.81 | CJ49: 6.19 | CK49: 5.09 | CL49: 5.08 | CM49: 3.84 | CN49: 0 | CO49: 0.49 | CP49: 0.49 | CQ49: 0.04 | CR49: 0.18 | CS49: 0.13 | CT49: 0 | CU49: 0 | CV49: 0 | CW49: 0 | CX49: 0 | CY49: 0 | CZ49: 0 | DA49: 0 | DB49: 0 | DC49: 0 | DD49: 0 | DE49: 0 | DF49: 0 | DG49: 0 | DH49: 0 | DI49: 0 | DJ49: 0 | DK49: 0 | DL49: 0 | DM49: 0 | DN49: 0 | DO49: 0 | DP49: 0 | DQ49: 0 | DR49: 0 | DS49: 0 | DT49: 0 | DU49: 0 | DV49: 0 | DW49: 0 | DX49: 0 | DY49: 0 | DZ49: 0 | EA49: 0 | EB49: 0 | EC49: 0 | ED49: 0 | EE49: 0 | EF49: 0 | EG49: 0 | EH49: 0 | EI49: 0 | EJ49: 0
A50: ED_ASS521_00040 | C50: > 22 kV & < = 33 kV | N50: 45 | Y50: 7 | AJ50: 0.08 | AK50: 3 | AL50: 1.39 | AM50: 4.78 | AN50: 3.88 | AO50: 1.79 | AP50: 7.81 | AQ50: 8.7 | AR50: 5.89 | AS50: 8.96 | AT50: 6.16 | AU50: 1.82 | AV50: 1.41 | AW50: 0.75 | AX50: 0.58 | AY50: 0.33 | AZ50: 0.02 | BA50: 0.21 | BB50: 0.19 | BC50: 0.75 | BD50: 0.74 | BE50: 0 | BF50: 0.22 | BG50: 0.74 | BH50: 0.56 | BI50: 0.92 | BJ50: 0.95 | BK50: 0.65 | BL50: 0.58 | BM50: 0.05 | BN50: 0.09 | BO50: 0.1 | BP50: 0.11 | BQ50: 0.05 | BR50: 0.27 | BS50: 0.28 | BT50: 0.19 | BU50: 0.17 | BV50: 0 | BW50: 0.01 | BX50: 0.01 | BY50: 2.02 | BZ50: 2.16 | CA50: 1.27 | CB50: 1.13 | CC50: 0 | CD50: 0 | CE50: 2.49 | CF50: 2.49 | CG50: 4 | CH50: 4.71 | CI50: 0.02 | CJ50: 2.62 | CK50: 2.8 | CL50: 3.93 | CM50: 4.49 | CN50: 0.75 | CO50: 1.55 | CP50: 2.09 | CQ50: 0.57 | CR50: 0.04 | CS50: 0.3 | CT50: 0.26 | CU50: 0.26 | CV50: 1.12 | CW50: 0.86 | CX50: 0 | CY50: 0 | CZ50: 0.61 | DA50: 0.61 | DB50: 0 | DC50: 0 | DD50: 0 | DE50: 0 | DF50: 1.3 | DG50: 3.03 | DH50: 1.74 | DI50: 0 | DJ50: 0 | DK50: 0 | DL50: 0 | DM50: 0 | DN50: 0 | DO50: 0 | DP50: 0.49 | DQ50: 0.49 | DR50: 0 | DS50: 0 | DT50: 0 | DU50: 0 | DV50: 0 | DW50: 0 | DX50: 0 | DY50: 0 | DZ50: 0 | EA50: 0 | EB50: 0 | EC50: 0 | ED50: 0 | EE50: 0 | EF50: 0 | EG50: 0 | EH50: 0 | EI50: 0 | EJ50: 0
A51: ED_ASS521_00041 | C51: > 33 kV & < = 66 kV | N51: 45 | Y51: 7 | AJ51: 6 | AK51: 0 | AL51: 0.14 | AM51: 0.9 | AN51: 3.31 | AO51: 2.62 | AP51: 0.55 | AQ51: 0.49 | AR51: 0.04 | AS51: 0.04 | AT51: 0.26 | AU51: 0.25 | AV51: 0.02 | AW51: 0.09 | AX51: 0.08 | AY51: 5.5 | AZ51: 0 | BA51: 0 | BB51: 1.04 | BC51: 1.09 | BD51: 0.05 | BE51: 0 | BF51: 0 | BG51: 2.21 | BH51: 3.55 | BI51: 1.4 | BJ51: 0.09 | BK51: 0.75 | BL51: 1.16 | BM51: 0.45 | BN51: 0.06 | BO51: 0.07 | BP51: 0 | BQ51: 0.07 | BR51: 0.07 | BS51: 5.55 | BT51: 6.08 | BU51: 0.65 | BV51: 0.23 | BW51: 0.12 | BX51: 0.49 | BY51: 1.92 | BZ51: 1.74 | CA51: 0.31 | CB51: 0.14 | CC51: 0.64 | CD51: 1.23 | CE51: 0.74 | CF51: 0.05 | CG51: 0.05 | CH51: 0.01 | CI51: 0.09 | CJ51: 0.14 | CK51: 0.05 | CL51: 0.01 | CM51: 0.01 | CN51: 0 | CO51: 0.02 | CP51: 0.01 | CQ51: 0.01 | CR51: 0.01 | CS51: 0 | CT51: 0.39 | CU51: 0.39 | CV51: 0 | CW51: 0 | CX51: 0 | CY51: 0 | CZ51: 0 | DA51: 0 | DB51: 0 | DC51: 0 | DD51: 0 | DE51: 0 | DF51: 0 | DG51: 0 | DH51: 0.29 | DI51: 0.29 | DJ51: 0 | DK51: 0 | DL51: 0 | DM51: 0 | DN51: 0 | DO51: 0 | DP51: 0 | DQ51: 0 | DR51: 0 | DS51: 0 | DT51: 0 | DU51: 0 | DV51: 0 | DW51: 0 | DX51: 0 | DY51: 0 | DZ51: 0 | EA51: 0 | EB51: 0 | EC51: 0 | ED51: 0 | EE51: 0 | EF51: 0 | EG51: 0 | EH51: 0 | EI51: 0 | EJ51: 0
A52: ED_ASS521_00042 | C52: > 66 kV & < = 132 kV | N52: 0 | Y52: 0 | AJ52: 0 | AK52: 0 | AL52: 0 | AM52: 0 | AN52: 0 | AO52: 0 | AP52: 0 | AQ52: 0 | AR52: 0 | AS52: 0 | AT52: 0 | AU52: 0 | AV52: 0 | AW52: 0 | AX52: 0 | AY52: 0 | AZ52: 0 | BA52: 0 | BB52: 0 | BC52: 0 | BD52: 0 | BE52: 0 | BF52: 0 | BG52: 0 | BH52: 0 | BI52: 0 | BJ52: 0 | BK52: 0 | BL52: 0 | BM52: 0 | BN52: 0 | BO52: 0 | BP52: 0 | BQ52: 0 | BR52: 0 | BS52: 0 | BT52: 0 | BU52: 0 | BV52: 0 | BW52: 0 | BX52: 0 | BY52: 0 | BZ52: 0 | CA52: 0 | CB52: 0 | CC52: 0 | CD52: 0 | CE52: 0 | CF52: 0 | CG52: 0 | CH52: 0 | CI52: 0 | CJ52: 0 | CK52: 0 | CL52: 0 | CM52: 0 | CN52: 0 | CO52: 0 | CP52: 0 | CQ52: 0 | CR52: 0 | CS52: 0 | CT52: 0 | CU52: 0 | CV52: 0 | CW52: 0 | CX52: 0 | CY52: 0 | CZ52: 0 | DA52: 0 | DB52: 0 | DC52: 0 | DD52: 0 | DE52: 0 | DF52: 0 | DG52: 0 | DH52: 0 | DI52: 0 | DJ52: 0 | DK52: 0 | DL52: 0 | DM52: 0 | DN52: 0 | DO52: 0 | DP52: 0 | DQ52: 0 | DR52: 0 | DS52: 0 | DT52: 0 | DU52: 0 | DV52: 0 | DW52: 0 | DX52: 0 | DY52: 0 | DZ52: 0 | EA52: 0 | EB52: 0 | EC52: 0 | ED52: 0 | EE52: 0 | EF52: 0 | EG52: 0 | EH52: 0 | EI52: 0 | EJ52: 0
A53: ED_ASS521_00043 | C53: > 132 kV | N53: 0 | Y53: 0 | AJ53: 0 | AK53: 0 | AL53: 0 | AM53: 0 | AN53: 0 | AO53: 0 | AP53: 0 | AQ53: 0 | AR53: 0 | AS53: 0 | AT53: 0 | AU53: 0 | AV53: 0 | AW53: 0 | AX53: 0 | AY53: 0 | AZ53: 0 | BA53: 0 | BB53: 0 | BC53: 0 | BD53: 0 | BE53: 0 | BF53: 0 | BG53: 0 | BH53: 0 | BI53: 0 | BJ53: 0 | BK53: 0 | BL53: 0 | BM53: 0 | BN53: 0 | BO53: 0 | BP53: 0 | BQ53: 0 | BR53: 0 | BS53: 0 | BT53: 0 | BU53: 0 | BV53: 0 | BW53: 0 | BX53: 0 | BY53: 0 | BZ53: 0 | CA53: 0 | CB53: 0 | CC53: 0 | CD53: 0 | CE53: 0 | CF53: 0 | CG53: 0 | CH53: 0 | CI53: 0 | CJ53: 0 | CK53: 0 | CL53: 0 | CM53: 0 | CN53: 0 | CO53: 0 | CP53: 0 | CQ53: 0 | CR53: 0 | CS53: 0 | CT53: 0 | CU53: 0 | CV53: 0 | CW53: 0 | CX53: 0 | CY53: 0 | CZ53: 0 | DA53: 0 | DB53: 0 | DC53: 0 | DD53: 0 | DE53: 0 | DF53: 0 | DG53: 0 | DH53: 0 | DI53: 0 | DJ53: 0 | DK53: 0 | DL53: 0 | DM53: 0 | DN53: 0 | DO53: 0 | DP53: 0 | DQ53: 0 | DR53: 0 | DS53: 0 | DT53: 0 | DU53: 0 | DV53: 0 | DW53: 0 | DX53: 0 | DY53: 0 | DZ53: 0 | EA53: 0 | EB53: 0 | EC53: 0 | ED53: 0 | EE53: 0 | EF53: 0 | EG53: 0 | EH53: 0 | EI53: 0 | EJ53: 0
A54: ED_ASS521_00044 | C54: Other | E54: DNSP NAME | F54: REPEX | G54: SERVICE LINES | H54: Other | I54: DESCRIPTOR METRIC | J54: MEAN ECONOMIC LIFE | K54: YEARS | L54: NUMBER
A55: ED_ASS521_00045 | B55: SERVICE LINES BY: CONNECTION VOLTAGE; CUSTOMER TYPE; CONNECTION COMPLEXITY | C55: ˂ = 11 kV ; Residential ; Simple Type | E55: DNSP NAME | F55: REPEX | G55: SERVICE LINES | H55: ˂ = 11 kV ; Residential ; Simple Type | I55: DESCRIPTOR METRIC | J55: MEAN ECONOMIC LIFE | K55: YEARS | L55: NUMBER | N55: 57 | Y55: 7.549834435 | AJ55: 13148 | AK55: 13315 | AL55: 5803 | AM55: 6454 | AN55: 7928 | AO55: 8539 | AP55: 8756 | AQ55: 8607 | AR55: 8302 | AS55: 8357 | AT55: 8631 | AU55: 9607 | AV55: 11477 | AW55: 13145 | AX55: 14986 | AY55: 14238 | AZ55: 11711 | BA55: 10625 | BB55: 10196 | BC55: 11618 | BD55: 14504 | BE55: 15997 | BF55: 16273 | BG55: 16491 | BH55: 15826 | BI55: 15392 | BJ55: 15612 | BK55: 16043 | BL55: 16566 | BM55: 16276 | BN55: 16247 | BO55: 15054 | BP55: 12707 | BQ55: 11648 | BR55: 10039 | BS55: 7843 | BT55: 6923 | BU55: 7564 | BV55: 11936 | BW55: 15690 | BX55: 15583 | BY55: 17652 | BZ55: 14908 | CA55: 15049 | CB55: 10068 | CC55: 8741 | CD55: 8708 | CE55: 9871 | CF55: 9873 | CG55: 9841 | CH55: 9840 | CI55: 6875 | CJ55: 6878 | CK55: 21947 | CL55: 17738.49834 | CM55: 3407.084693 | CN55: 3401.427768 | CO55: 1695.461026 | CP55: 1695.461026 | CQ55: 390.3277767 | CR55: 390.3277767 | CS55: 138.1905793 | CT55: 138.1905793 | CU55: 115.5628821 | CV55: 116.3710142 | CW55: 68.69122364 | CX55: 67.8830916 | CY55: 29.90088559 | CZ55: 29.90088559 | DA55: 9 | DB55: 9 | DC55: 3 | DD55: 3 | DE55: 14 | DF55: 14 | DG55: 0 | DH55: 0 | DI55: 0 | DJ55: 0 | DK55: 0 | DL55: 0 | DM55: 0 | DN55: 0 | DO55: 0 | DP55: 0 | DQ55: 0 | DR55: 0 | DS55: 0 | DT55: 0 | DU55: 0 | DV55: 0 | DW55: 0 | DX55: 0 | DY55: 0 | DZ55: 0 | EA55: 0 | EB55: 0 | EC55: 0 | ED55: 0 | EE55: 0 | EF55: 0 | EG55: 0 | EH55: 0 | EI55: 0 | EJ55: 0
A56: ED_ASS521_00046 | C56: ˂ = 11 kV ; Commercial & Industrial ; Simple Type | E56: DNSP NAME | F56: REPEX | G56: SERVICE LINES | H56: ˂ = 11 kV ; Commercial & Industrial ; Simple Type | I56: DESCRIPTOR METRIC | J56: MEAN ECONOMIC LIFE | K56: YEARS | L56: NUMBER | N56: 0 | Y56: 0 | AJ56: 0 | AK56: 0 | AL56: 0 | AM56: 0 | AN56: 0 | AO56: 0 | AP56: 0 | AQ56: 0 | AR56: 0 | AS56: 0 | AT56: 0 | AU56: 0 | AV56: 0 | AW56: 0 | AX56: 0 | AY56: 0 | AZ56: 0 | BA56: 0 | BB56: 0 | BC56: 0 | BD56: 0 | BE56: 0 | BF56: 0 | BG56: 0 | BH56: 0 | BI56: 0 | BJ56: 0 | BK56: 0 | BL56: 0 | BM56: 0 | BN56: 0 | BO56: 0 | BP56: 0 | BQ56: 0 | BR56: 0 | BS56: 0 | BT56: 0 | BU56: 0 | BV56: 0 | BW56: 0 | BX56: 0 | BY56: 0 | BZ56: 0 | CA56: 0 | CB56: 0 | CC56: 0 | CD56: 0 | CE56: 0 | CF56: 0 | CG56: 0 | CH56: 0 | CI56: 0 | CJ56: 0 | CK56: 0 | CL56: 0 | CM56: 0 | CN56: 0 | CO56: 0 | CP56: 0 | CQ56: 0 | CR56: 0 | CS56: 0 | CT56: 0 | CU56: 0 | CV56: 0 | CW56: 0 | CX56: 0 | CY56: 0 | CZ56: 0 | DA56: 0 | DB56: 0 | DC56: 0 | DD56: 0 | DE56: 0 | DF56: 0 | DG56: 0 | DH56: 0 | DI56: 0 | DJ56: 0 | DK56: 0 | DL56: 0 | DM56: 0 | DN56: 0 | DO56: 0 | DP56: 0 | DQ56: 0 | DR56: 0 | DS56: 0 | DT56: 0 | DU56: 0 | DV56: 0 | DW56: 0 | DX56: 0 | DY56: 0 | DZ56: 0 | EA56: 0 | EB56: 0 | EC56: 0 | ED56: 0 | EE56: 0 | EF56: 0 | EG56: 0 | EH56: 0 | EI56: 0 | EJ56: 0
A57: ED_ASS521_00047 | C57: ˂ = 11 kV ; Residential ; Complex Type | E57: DNSP NAME | F57: REPEX | G57: SERVICE LINES | H57: ˂ = 11 kV ; Residential ; Complex Type | I57: DESCRIPTOR METRIC | J57: MEAN ECONOMIC LIFE | K57: YEARS | L57: NUMBER | N57: 0 | Y57: 0 | AJ57: 0 | AK57: 0 | AL57: 0 | AM57: 0 | AN57: 0 | AO57: 0 | AP57: 0 | AQ57: 0 | AR57: 0 | AS57: 0 | AT57: 0 | AU57: 0 | AV57: 0 | AW57: 0 | AX57: 0 | AY57: 0 | AZ57: 0 | BA57: 0 | BB57: 0 | BC57: 0 | BD57: 0 | BE57: 0 | BF57: 0 | BG57: 0 | BH57: 0 | BI57: 0 | BJ57: 0 | BK57: 0 | BL57: 0 | BM57: 0 | BN57: 0 | BO57: 0 | BP57: 0 | BQ57: 0 | BR57: 0 | BS57: 0 | BT57: 0 | BU57: 0 | BV57: 0 | BW57: 0 | BX57: 0 | BY57: 0 | BZ57: 0 | CA57: 0 | CB57: 0 | CC57: 0 | CD57: 0 | CE57: 0 | CF57: 0 | CG57: 0 | CH57: 0 | CI57: 0 | CJ57: 0 | CK57: 0 | CL57: 0 | CM57: 0 | CN57: 0 | CO57: 0 | CP57: 0 | CQ57: 0 | CR57: 0 | CS57: 0 | CT57: 0 | CU57: 0 | CV57: 0 | CW57: 0 | CX57: 0 | CY57: 0 | CZ57: 0 | DA57: 0 | DB57: 0 | DC57: 0 | DD57: 0 | DE57: 0 | DF57: 0 | DG57: 0 | DH57: 0 | DI57: 0 | DJ57: 0 | DK57: 0 | DL57: 0 | DM57: 0 | DN57: 0 | DO57: 0 | DP57: 0 | DQ57: 0 | DR57: 0 | DS57: 0 | DT57: 0 | DU57: 0 | DV57: 0 | DW57: 0 | DX57: 0 | DY57: 0 | DZ57: 0 | EA57: 0 | EB57: 0 | EC57: 0 | ED57: 0 | EE57: 0 | EF57: 0 | EG57: 0 | EH57: 0 | EI57: 0 | EJ57: 0
A58: ED_ASS521_00048 | C58: ˂ = 11 kV ; Commercial & Industrial ; Complex Type | N58: 56 | Y58: 7.483314774 | AJ58: 1958 | AK58: 1709 | AL58: 901 | AM58: 864 | AN58: 844 | AO58: 831 | AP58: 868 | AQ58: 891 | AR58: 909 | AS58: 956 | AT58: 922 | AU58: 1349 | AV58: 1740 | AW58: 2211 | AX58: 2454 | AY58: 2137 | AZ58: 2025 | BA58: 1860 | BB58: 2012 | BC58: 2191 | BD58: 2126 | BE58: 1954 | BF58: 1909 | BG58: 1980 | BH58: 2048 | BI58: 2354 | BJ58: 2413 | BK58: 2354 | BL58: 2505 | BM58: 2251 | BN58: 1849 | BO58: 1836 | BP58: 1854 | BQ58: 1736 | BR58: 1608 | BS58: 1305 | BT58: 1070 | BU58: 1020 | BV58: 1111 | BW58: 1213 | BX58: 1197 | BY58: 1320 | BZ58: 1181 | CA58: 1402 | CB58: 933 | CC58: 943 | CD58: 937 | CE58: 1043 | CF58: 1045 | CG58: 1175 | CH58: 1173 | CI58: 781 | CJ58: 782 | CK58: 1481 | CL58: 977.1780687 | CM58: 271.4749591 | CN58: 268.8392799 | CO58: 135.7374795 | CP58: 135.7374795 | CQ58: 50.07790507 | CR58: 50.07790507 | CS58: 19.76759411 | CT58: 19.76759411 | CU58: 17.7908347 | CV58: 17.7908347 | CW58: 10.54271686 | CX58: 10.54271686 | CY58: 5.930278232 | CZ58: 5.930278232 | DA58: 2 | DB58: 2 | DC58: 0 | DD58: 0 | DE58: 6 | DF58: 6 | DG58: 0 | DH58: 0 | DI58: 0 | DJ58: 0 | DK58: 0 | DL58: 0 | DM58: 0 | DN58: 0 | DO58: 0 | DP58: 0 | DQ58: 0 | DR58: 0 | DS58: 0 | DT58: 0 | DU58: 0 | DV58: 0 | DW58: 0 | DX58: 0 | DY58: 0 | DZ58: 0 | EA58: 0 | EB58: 0 | EC58: 0 | ED58: 0 | EE58: 0 | EF58: 0 | EG58: 0 | EH58: 0 | EI58: 0 | EJ58: 0
A59: ED_ASS521_00049 | C59: ˂ = 11 kV ; Subdivision ; Complex Type | N59: 0 | Y59: 0 | AJ59: 0 | AK59: 0 | AL59: 0 | AM59: 0 | AN59: 0 | AO59: 0 | AP59: 0 | AQ59: 0 | AR59: 0 | AS59: 0 | AT59: 0 | AU59: 0 | AV59: 0 | AW59: 0 | AX59: 0 | AY59: 0 | AZ59: 0 | BA59: 0 | BB59: 0 | BC59: 0 | BD59: 0 | BE59: 0 | BF59: 0 | BG59: 0 | BH59: 0 | BI59: 0 | BJ59: 0 | BK59: 0 | BL59: 0 | BM59: 0 | BN59: 0 | BO59: 0 | BP59: 0 | BQ59: 0 | BR59: 0 | BS59: 0 | BT59: 0 | BU59: 0 | BV59: 0 | BW59: 0 | BX59: 0 | BY59: 0 | BZ59: 0 | CA59: 0 | CB59: 0 | CC59: 0 | CD59: 0 | CE59: 0 | CF59: 0 | CG59: 0 | CH59: 0 | CI59: 0 | CJ59: 0 | CK59: 0 | CL59: 0 | CM59: 0 | CN59: 0 | CO59: 0 | CP59: 0 | CQ59: 0 | CR59: 0 | CS59: 0 | CT59: 0 | CU59: 0 | CV59: 0 | CW59: 0 | CX59: 0 | CY59: 0 | CZ59: 0 | DA59: 0 | DB59: 0 | DC59: 0 | DD59: 0 | DE59: 0 | DF59: 0 | DG59: 0 | DH59: 0 | DI59: 0 | DJ59: 0 | DK59: 0 | DL59: 0 | DM59: 0 | DN59: 0 | DO59: 0 | DP59: 0 | DQ59: 0 | DR59: 0 | DS59: 0 | DT59: 0 | DU59: 0 | DV59: 0 | DW59: 0 | DX59: 0 | DY59: 0 | DZ59: 0 | EA59: 0 | EB59: 0 | EC59: 0 | ED59: 0 | EE59: 0 | EF59: 0 | EG59: 0 | EH59: 0 | EI59: 0 | EJ59: 0
A60: ED_ASS521_00050 | C60: > 11 kV & < = 22 kV ; Commercial & Industrial | N60: 0 | Y60: 0 | AJ60: 0 | AK60: 0 | AL60: 0 | AM60: 0 | AN60: 0 | AO60: 0 | AP60: 0 | AQ60: 0 | AR60: 0 | AS60: 0 | AT60: 0 | AU60: 0 | AV60: 0 | AW60: 0 | AX60: 0 | AY60: 0 | AZ60: 0 | BA60: 0 | BB60: 0 | BC60: 0 | BD60: 0 | BE60: 0 | BF60: 0 | BG60: 0 | BH60: 0 | BI60: 0 | BJ60: 0 | BK60: 0 | BL60: 0 | BM60: 0 | BN60: 0 | BO60: 0 | BP60: 0 | BQ60: 0 | BR60: 0 | BS60: 0 | BT60: 0 | BU60: 0 | BV60: 0 | BW60: 0 | BX60: 0 | BY60: 0 | BZ60: 0 | CA60: 0 | CB60: 0 | CC60: 0 | CD60: 0 | CE60: 0 | CF60: 0 | CG60: 0 | CH60: 0 | CI60: 0 | CJ60: 0 | CK60: 0 | CL60: 0 | CM60: 0 | CN60: 0 | CO60: 0 | CP60: 0 | CQ60: 0 | CR60: 0 | CS60: 0 | CT60: 0 | CU60: 0 | CV60: 0 | CW60: 0 | CX60: 0 | CY60: 0 | CZ60: 0 | DA60: 0 | DB60: 0 | DC60: 0 | DD60: 0 | DE60: 0 | DF60: 0 | DG60: 0 | DH60: 0 | DI60: 0 | DJ60: 0 | DK60: 0 | DL60: 0 | DM60: 0 | DN60: 0 | DO60: 0 | DP60: 0 | DQ60: 0 | DR60: 0 | DS60: 0 | DT60: 0 | DU60: 0 | DV60: 0 | DW60: 0 | DX60: 0 | DY60: 0 | DZ60: 0 | EA60: 0 | EB60: 0 | EC60: 0 | ED60: 0 | EE60: 0 | EF60: 0 | EG60: 0 | EH60: 0 | EI60: 0 | EJ60: 0
A61: ED_ASS521_00051 | C61: > 11 kV & < = 22 kV ; Subdivision | N61: 0 | Y61: 0 | AJ61: 0 | AK61: 0 | AL61: 0 | AM61: 0 | AN61: 0 | AO61: 0 | AP61: 0 | AQ61: 0 | AR61: 0 | AS61: 0 | AT61: 0 | AU61: 0 | AV61: 0 | AW61: 0 | AX61: 0 | AY61: 0 | AZ61: 0 | BA61: 0 | BB61: 0 | BC61: 0 | BD61: 0 | BE61: 0 | BF61: 0 | BG61: 0 | BH61: 0 | BI61: 0 | BJ61: 0 | BK61: 0 | BL61: 0 | BM61: 0 | BN61: 0 | BO61: 0 | BP61: 0 | BQ61: 0 | BR61: 0 | BS61: 0 | BT61: 0 | BU61: 0 | BV61: 0 | BW61: 0 | BX61: 0 | BY61: 0 | BZ61: 0 | CA61: 0 | CB61: 0 | CC61: 0 | CD61: 0 | CE61: 0 | CF61: 0 | CG61: 0 | CH61: 0 | CI61: 0 | CJ61: 0 | CK61: 0 | CL61: 0 | CM61: 0 | CN61: 0 | CO61: 0 | CP61: 0 | CQ61: 0 | CR61: 0 | CS61: 0 | CT61: 0 | CU61: 0 | CV61: 0 | CW61: 0 | CX61: 0 | CY61: 0 | CZ61: 0 | DA61: 0 | DB61: 0 | DC61: 0 | DD61: 0 | DE61: 0 | DF61: 0 | DG61: 0 | DH61: 0 | DI61: 0 | DJ61: 0 | DK61: 0 | DL61: 0 | DM61: 0 | DN61: 0 | DO61: 0 | DP61: 0 | DQ61: 0 | DR61: 0 | DS61: 0 | DT61: 0 | DU61: 0 | DV61: 0 | DW61: 0 | DX61: 0 | DY61: 0 | DZ61: 0 | EA61: 0 | EB61: 0 | EC61: 0 | ED61: 0 | EE61: 0 | EF61: 0 | EG61: 0 | EH61: 0 | EI61: 0 | EJ61: 0
A62: ED_ASS521_00052 | C62: > 22 kV & < = 33 kV ; Commercial & Industrial | N62: 0 | Y62: 0 | AJ62: 0 | AK62: 0 | AL62: 0 | AM62: 0 | AN62: 0 | AO62: 0 | AP62: 0 | AQ62: 0 | AR62: 0 | AS62: 0 | AT62: 0 | AU62: 0 | AV62: 0 | AW62: 0 | AX62: 0 | AY62: 0 | AZ62: 0 | BA62: 0 | BB62: 0 | BC62: 0 | BD62: 0 | BE62: 0 | BF62: 0 | BG62: 0 | BH62: 0 | BI62: 0 | BJ62: 0 | BK62: 0 | BL62: 0 | BM62: 0 | BN62: 0 | BO62: 0 | BP62: 0 | BQ62: 0 | BR62: 0 | BS62: 0 | BT62: 0 | BU62: 0 | BV62: 0 | BW62: 0 | BX62: 0 | BY62: 0 | BZ62: 0 | CA62: 0 | CB62: 0 | CC62: 0 | CD62: 0 | CE62: 0 | CF62: 0 | CG62: 0 | CH62: 0 | CI62: 0 | CJ62: 0 | CK62: 0 | CL62: 0 | CM62: 0 | CN62: 0 | CO62: 0 | CP62: 0 | CQ62: 0 | CR62: 0 | CS62: 0 | CT62: 0 | CU62: 0 | CV62: 0 | CW62: 0 | CX62: 0 | CY62: 0 | CZ62: 0 | DA62: 0 | DB62: 0 | DC62: 0 | DD62: 0 | DE62: 0 | DF62: 0 | DG62: 0 | DH62: 0 | DI62: 0 | DJ62: 0 | DK62: 0 | DL62: 0 | DM62: 0 | DN62: 0 | DO62: 0 | DP62: 0 | DQ62: 0 | DR62: 0 | DS62: 0 | DT62: 0 | DU62: 0 | DV62: 0 | DW62: 0 | DX62: 0 | DY62: 0 | DZ62: 0 | EA62: 0 | EB62: 0 | EC62: 0 | ED62: 0 | EE62: 0 | EF62: 0 | EG62: 0 | EH62: 0 | EI62: 0 | EJ62: 0
A63: ED_ASS521_00053 | C63: > 22 kV & < = 33 kV ; Subdivision | N63: 0 | Y63: 0 | AJ63: 0 | AK63: 0 | AL63: 0 | AM63: 0 | AN63: 0 | AO63: 0 | AP63: 0 | AQ63: 0 | AR63: 0 | AS63: 0 | AT63: 0 | AU63: 0 | AV63: 0 | AW63: 0 | AX63: 0 | AY63: 0 | AZ63: 0 | BA63: 0 | BB63: 0 | BC63: 0 | BD63: 0 | BE63: 0 | BF63: 0 | BG63: 0 | BH63: 0 | BI63: 0 | BJ63: 0 | BK63: 0 | BL63: 0 | BM63: 0 | BN63: 0 | BO63: 0 | BP63: 0 | BQ63: 0 | BR63: 0 | BS63: 0 | BT63: 0 | BU63: 0 | BV63: 0 | BW63: 0 | BX63: 0 | BY63: 0 | BZ63: 0 | CA63: 0 | CB63: 0 | CC63: 0 | CD63: 0 | CE63: 0 | CF63: 0 | CG63: 0 | CH63: 0 | CI63: 0 | CJ63: 0 | CK63: 0 | CL63: 0 | CM63: 0 | CN63: 0 | CO63: 0 | CP63: 0 | CQ63: 0 | CR63: 0 | CS63: 0 | CT63: 0 | CU63: 0 | CV63: 0 | CW63: 0 | CX63: 0 | CY63: 0 | CZ63: 0 | DA63: 0 | DB63: 0 | DC63: 0 | DD63: 0 | DE63: 0 | DF63: 0 | DG63: 0 | DH63: 0 | DI63: 0 | DJ63: 0 | DK63: 0 | DL63: 0 | DM63: 0 | DN63: 0 | DO63: 0 | DP63: 0 | DQ63: 0 | DR63: 0 | DS63: 0 | DT63: 0 | DU63: 0 | DV63: 0 | DW63: 0 | DX63: 0 | DY63: 0 | DZ63: 0 | EA63: 0 | EB63: 0 | EC63: 0 | ED63: 0 | EE63: 0 | EF63: 0 | EG63: 0 | EH63: 0 | EI63: 0 | EJ63: 0
A64: ED_ASS521_00054 | C64: > 33 kV & < = 66 kV ; Commercial & Industrial | N64: 0 | Y64: 0 | AJ64: 0 | AK64: 0 | AL64: 0 | AM64: 0 | AN64: 0 | AO64: 0 | AP64: 0 | AQ64: 0 | AR64: 0 | AS64: 0 | AT64: 0 | AU64: 0 | AV64: 0 | AW64: 0 | AX64: 0 | AY64: 0 | AZ64: 0 | BA64: 0 | BB64: 0 | BC64: 0 | BD64: 0 | BE64: 0 | BF64: 0 | BG64: 0 | BH64: 0 | BI64: 0 | BJ64: 0 | BK64: 0 | BL64: 0 | BM64: 0 | BN64: 0 | BO64: 0 | BP64: 0 | BQ64: 0 | BR64: 0 | BS64: 0 | BT64: 0 | BU64: 0 | BV64: 0 | BW64: 0 | BX64: 0 | BY64: 0 | BZ64: 0 | CA64: 0 | CB64: 0 | CC64: 0 | CD64: 0 | CE64: 0 | CF64: 0 | CG64: 0 | CH64: 0 | CI64: 0 | CJ64: 0 | CK64: 0 | CL64: 0 | CM64: 0 | CN64: 0 | CO64: 0 | CP64: 0 | CQ64: 0 | CR64: 0 | CS64: 0 | CT64: 0 | CU64: 0 | CV64: 0 | CW64: 0 | CX64: 0 | CY64: 0 | CZ64: 0 | DA64: 0 | DB64: 0 | DC64: 0 | DD64: 0 | DE64: 0 | DF64: 0 | DG64: 0 | DH64: 0 | DI64: 0 | DJ64: 0 | DK64: 0 | DL64: 0 | DM64: 0 | DN64: 0 | DO64: 0 | DP64: 0 | DQ64: 0 | DR64: 0 | DS64: 0 | DT64: 0 | DU64: 0 | DV64: 0 | DW64: 0 | DX64: 0 | DY64: 0 | DZ64: 0 | EA64: 0 | EB64: 0 | EC64: 0 | ED64: 0 | EE64: 0 | EF64: 0 | EG64: 0 | EH64: 0 | EI64: 0 | EJ64: 0
A65: ED_ASS521_00055 | C65: > 33 kV & < = 66 kV ; Subdivision | N65: 0 | Y65: 0 | AJ65: 0 | AK65: 0 | AL65: 0 | AM65: 0 | AN65: 0 | AO65: 0 | AP65: 0 | AQ65: 0 | AR65: 0 | AS65: 0 | AT65: 0 | AU65: 0 | AV65: 0 | AW65: 0 | AX65: 0 | AY65: 0 | AZ65: 0 | BA65: 0 | BB65: 0 | BC65: 0 | BD65: 0 | BE65: 0 | BF65: 0 | BG65: 0 | BH65: 0 | BI65: 0 | BJ65: 0 | BK65: 0 | BL65: 0 | BM65: 0 | BN65: 0 | BO65: 0 | BP65: 0 | BQ65: 0 | BR65: 0 | BS65: 0 | BT65: 0 | BU65: 0 | BV65: 0 | BW65: 0 | BX65: 0 | BY65: 0 | BZ65: 0 | CA65: 0 | CB65: 0 | CC65: 0 | CD65: 0 | CE65: 0 | CF65: 0 | CG65: 0 | CH65: 0 | CI65: 0 | CJ65: 0 | CK65: 0 | CL65: 0 | CM65: 0 | CN65: 0 | CO65: 0 | CP65: 0 | CQ65: 0 | CR65: 0 | CS65: 0 | CT65: 0 | CU65: 0 | CV65: 0 | CW65: 0 | CX65: 0 | CY65: 0 | CZ65: 0 | DA65: 0 | DB65: 0 | DC65: 0 | DD65: 0 | DE65: 0 | DF65: 0 | DG65: 0 | DH65: 0 | DI65: 0 | DJ65: 0 | DK65: 0 | DL65: 0 | DM65: 0 | DN65: 0 | DO65: 0 | DP65: 0 | DQ65: 0 | DR65: 0 | DS65: 0 | DT65: 0 | DU65: 0 | DV65: 0 | DW65: 0 | DX65: 0 | DY65: 0 | DZ65: 0 | EA65: 0 | EB65: 0 | EC65: 0 | ED65: 0 | EE65: 0 | EF65: 0 | EG65: 0 | EH65: 0 | EI65: 0 | EJ65: 0
A66: ED_ASS521_00056 | C66: > 66 kV & < = 132 kV ; Commercial & Industrial | N66: 0 | Y66: 0 | AJ66: 0 | AK66: 0 | AL66: 0 | AM66: 0 | AN66: 0 | AO66: 0 | AP66: 0 | AQ66: 0 | AR66: 0 | AS66: 0 | AT66: 0 | AU66: 0 | AV66: 0 | AW66: 0 | AX66: 0 | AY66: 0 | AZ66: 0 | BA66: 0 | BB66: 0 | BC66: 0 | BD66: 0 | BE66: 0 | BF66: 0 | BG66: 0 | BH66: 0 | BI66: 0 | BJ66: 0 | BK66: 0 | BL66: 0 | BM66: 0 | BN66: 0 | BO66: 0 | BP66: 0 | BQ66: 0 | BR66: 0 | BS66: 0 | BT66: 0 | BU66: 0 | BV66: 0 | BW66: 0 | BX66: 0 | BY66: 0 | BZ66: 0 | CA66: 0 | CB66: 0 | CC66: 0 | CD66: 0 | CE66: 0 | CF66: 0 | CG66: 0 | CH66: 0 | CI66: 0 | CJ66: 0 | CK66: 0 | CL66: 0 | CM66: 0 | CN66: 0 | CO66: 0 | CP66: 0 | CQ66: 0 | CR66: 0 | CS66: 0 | CT66: 0 | CU66: 0 | CV66: 0 | CW66: 0 | CX66: 0 | CY66: 0 | CZ66: 0 | DA66: 0 | DB66: 0 | DC66: 0 | DD66: 0 | DE66: 0 | DF66: 0 | DG66: 0 | DH66: 0 | DI66: 0 | DJ66: 0 | DK66: 0 | DL66: 0 | DM66: 0 | DN66: 0 | DO66: 0 | DP66: 0 | DQ66: 0 | DR66: 0 | DS66: 0 | DT66: 0 | DU66: 0 | DV66: 0 | DW66: 0 | DX66: 0 | DY66: 0 | DZ66: 0 | EA66: 0 | EB66: 0 | EC66: 0 | ED66: 0 | EE66: 0 | EF66: 0 | EG66: 0 | EH66: 0 | EI66: 0 | EJ66: 0
A67: ED_ASS521_00057 | C67: > 66 kV & < = 132 kV ; Subdivision | N67: 0 | Y67: 0 | AJ67: 0 | AK67: 0 | AL67: 0 | AM67: 0 | AN67: 0 | AO67: 0 | AP67: 0 | AQ67: 0 | AR67: 0 | AS67: 0 | AT67: 0 | AU67: 0 | AV67: 0 | AW67: 0 | AX67: 0 | AY67: 0 | AZ67: 0 | BA67: 0 | BB67: 0 | BC67: 0 | BD67: 0 | BE67: 0 | BF67: 0 | BG67: 0 | BH67: 0 | BI67: 0 | BJ67: 0 | BK67: 0 | BL67: 0 | BM67: 0 | BN67: 0 | BO67: 0 | BP67: 0 | BQ67: 0 | BR67: 0 | BS67: 0 | BT67: 0 | BU67: 0 | BV67: 0 | BW67: 0 | BX67: 0 | BY67: 0 | BZ67: 0 | CA67: 0 | CB67: 0 | CC67: 0 | CD67: 0 | CE67: 0 | CF67: 0 | CG67: 0 | CH67: 0 | CI67: 0 | CJ67: 0 | CK67: 0 | CL67: 0 | CM67: 0 | CN67: 0 | CO67: 0 | CP67: 0 | CQ67: 0 | CR67: 0 | CS67: 0 | CT67: 0 | CU67: 0 | CV67: 0 | CW67: 0 | CX67: 0 | CY67: 0 | CZ67: 0 | DA67: 0 | DB67: 0 | DC67: 0 | DD67: 0 | DE67: 0 | DF67: 0 | DG67: 0 | DH67: 0 | DI67: 0 | DJ67: 0 | DK67: 0 | DL67: 0 | DM67: 0 | DN67: 0 | DO67: 0 | DP67: 0 | DQ67: 0 | DR67: 0 | DS67: 0 | DT67: 0 | DU67: 0 | DV67: 0 | DW67: 0 | DX67: 0 | DY67: 0 | DZ67: 0 | EA67: 0 | EB67: 0 | EC67: 0 | ED67: 0 | EE67: 0 | EF67: 0 | EG67: 0 | EH67: 0 | EI67: 0 | EJ67: 0
A68: ED_ASS521_00058 | C68: > 132 kV ; Commercial & Industrial | N68: 0 | Y68: 0 | AJ68: 0 | AK68: 0 | AL68: 0 | AM68: 0 | AN68: 0 | AO68: 0 | AP68: 0 | AQ68: 0 | AR68: 0 | AS68: 0 | AT68: 0 | AU68: 0 | AV68: 0 | AW68: 0 | AX68: 0 | AY68: 0 | AZ68: 0 | BA68: 0 | BB68: 0 | BC68: 0 | BD68: 0 | BE68: 0 | BF68: 0 | BG68: 0 | BH68: 0 | BI68: 0 | BJ68: 0 | BK68: 0 | BL68: 0 | BM68: 0 | BN68: 0 | BO68: 0 | BP68: 0 | BQ68: 0 | BR68: 0 | BS68: 0 | BT68: 0 | BU68: 0 | BV68: 0 | BW68: 0 | BX68: 0 | BY68: 0 | BZ68: 0 | CA68: 0 | CB68: 0 | CC68: 0 | CD68: 0 | CE68: 0 | CF68: 0 | CG68: 0 | CH68: 0 | CI68: 0 | CJ68: 0 | CK68: 0 | CL68: 0 | CM68: 0 | CN68: 0 | CO68: 0 | CP68: 0 | CQ68: 0 | CR68: 0 | CS68: 0 | CT68: 0 | CU68: 0 | CV68: 0 | CW68: 0 | CX68: 0 | CY68: 0 | CZ68: 0 | DA68: 0 | DB68: 0 | DC68: 0 | DD68: 0 | DE68: 0 | DF68: 0 | DG68: 0 | DH68: 0 | DI68: 0 | DJ68: 0 | DK68: 0 | DL68: 0 | DM68: 0 | DN68: 0 | DO68: 0 | DP68: 0 | DQ68: 0 | DR68: 0 | DS68: 0 | DT68: 0 | DU68: 0 | DV68: 0 | DW68: 0 | DX68: 0 | DY68: 0 | DZ68: 0 | EA68: 0 | EB68: 0 | EC68: 0 | ED68: 0 | EE68: 0 | EF68: 0 | EG68: 0 | EH68: 0 | EI68: 0 | EJ68: 0
A69: ED_ASS521_00059 | C69: > 132 kV ; Subdivision | N69: 0 | Y69: 0 | AJ69: 0 | AK69: 0 | AL69: 0 | AM69: 0 | AN69: 0 | AO69: 0 | AP69: 0 | AQ69: 0 | AR69: 0 | AS69: 0 | AT69: 0 | AU69: 0 | AV69: 0 | AW69: 0 | AX69: 0 | AY69: 0 | AZ69: 0 | BA69: 0 | BB69: 0 | BC69: 0 | BD69: 0 | BE69: 0 | BF69: 0 | BG69: 0 | BH69: 0 | BI69: 0 | BJ69: 0 | BK69: 0 | BL69: 0 | BM69: 0 | BN69: 0 | BO69: 0 | BP69: 0 | BQ69: 0 | BR69: 0 | BS69: 0 | BT69: 0 | BU69: 0 | BV69: 0 | BW69: 0 | BX69: 0 | BY69: 0 | BZ69: 0 | CA69: 0 | CB69: 0 | CC69: 0 | CD69: 0 | CE69: 0 | CF69: 0 | CG69: 0 | CH69: 0 | CI69: 0 | CJ69: 0 | CK69: 0 | CL69: 0 | CM69: 0 | CN69: 0 | CO69: 0 | CP69: 0 | CQ69: 0 | CR69: 0 | CS69: 0 | CT69: 0 | CU69: 0 | CV69: 0 | CW69: 0 | CX69: 0 | CY69: 0 | CZ69: 0 | DA69: 0 | DB69: 0 | DC69: 0 | DD69: 0 | DE69: 0 | DF69: 0 | DG69: 0 | DH69: 0 | DI69: 0 | DJ69: 0 | DK69: 0 | DL69: 0 | DM69: 0 | DN69: 0 | DO69: 0 | DP69: 0 | DQ69: 0 | DR69: 0 | DS69: 0 | DT69: 0 | DU69: 0 | DV69: 0 | DW69: 0 | DX69: 0 | DY69: 0 | DZ69: 0 | EA69: 0 | EB69: 0 | EC69: 0 | ED69: 0 | EE69: 0 | EF69: 0 | EG69: 0 | EH69: 0 | EI69: 0 | EJ69: 0
A70: ED_ASS521_00060 | C70: Other | E70: DNSP NAME | F70: REPEX | G70: SERVICE LINES | H70: Other | I70: DESCRIPTOR METRIC | J70: MEAN ECONOMIC LIFE | K70: YEARS | L70: NUMBER
A71: ED_ASS521_00061 | B71: TRANSFORMERS BY: MOUNTING TYPE; HIGHEST OPERATING VOLTAGE ; AMPERE RATING; NUMBER OF PHASES (AT LV) | C71: Pole Mounted ; < = 22kV ; < = 60 kVA ; Single Phase | E71: DNSP NAME | F71: REPEX | G71: TRANSFORMERS | H71: Pole Mounted ; < = 22kV ; < = 60 kVA ; Single Phase | I71: DESCRIPTOR METRIC | J71: MEAN ECONOMIC LIFE | K71: YEARS | L71: NUMBER | N71: 55 | Y71: 7.416198487 | AJ71: 537 | AK71: 299 | AL71: 210 | AM71: 311 | AN71: 349 | AO71: 366 | AP71: 386 | AQ71: 408 | AR71: 440 | AS71: 455 | AT71: 438 | AU71: 421 | AV71: 467 | AW71: 510 | AX71: 600 | AY71: 661 | AZ71: 586 | BA71: 556 | BB71: 597 | BC71: 736 | BD71: 1023 | BE71: 1024 | BF71: 831 | BG71: 961 | BH71: 1240 | BI71: 1162 | BJ71: 924 | BK71: 935 | BL71: 973 | BM71: 1046 | BN71: 1060 | BO71: 1038 | BP71: 1104 | BQ71: 1107 | BR71: 998 | BS71: 880 | BT71: 789 | BU71: 693 | BV71: 705 | BW71: 937 | BX71: 872 | BY71: 611 | BZ71: 581 | CA71: 654 | CB71: 960 | CC71: 934 | CD71: 597 | CE71: 517 | CF71: 656 | CG71: 840 | CH71: 707 | CI71: 497 | CJ71: 516 | CK71: 491 | CL71: 587 | CM71: 536 | CN71: 515 | CO71: 409 | CP71: 148 | CQ71: 319 | CR71: 215 | CS71: 17 | CT71: 9 | CU71: 3 | CV71: 4 | CW71: 2 | CX71: 1 | CY71: 1 | CZ71: 0 | DA71: 0 | DB71: 0 | DC71: 0 | DD71: 0 | DE71: 0 | DF71: 0 | DG71: 1 | DH71: 1 | DI71: 1 | DJ71: 0 | DK71: 0 | DL71: 0 | DM71: 0 | DN71: 0 | DO71: 0 | DP71: 0 | DQ71: 0 | DR71: 0 | DS71: 0 | DT71: 0 | DU71: 0 | DV71: 0 | DW71: 0 | DX71: 0 | DY71: 0 | DZ71: 0 | EA71: 0 | EB71: 0 | EC71: 0 | ED71: 0 | EE71: 0 | EF71: 0 | EG71: 0 | EH71: 0 | EI71: 0 | EJ71: 0
A72: ED_ASS521_00062 | C72: Pole Mounted ; < = 22kV ; > 60 kVA and < = 600 kVA ; Single Phase | E72: DNSP NAME | F72: REPEX | G72: TRANSFORMERS | H72: Pole Mounted ; < = 22kV ; > 60 kVA and < = 600 kVA ; Single Phase | I72: DESCRIPTOR METRIC | J72: MEAN ECONOMIC LIFE | K72: YEARS | L72: NUMBER | N72: 55 | Y72: 7.416198487 | AJ72: 9 | AK72: 18 | AL72: 62 | AM72: 116 | AN72: 122 | AO72: 172 | AP72: 343 | AQ72: 449 | AR72: 465 | AS72: 480 | AT72: 479 | AU72: 442 | AV72: 335 | AW72: 460 | AX72: 467 | AY72: 249 | AZ72: 206 | BA72: 179 | BB72: 137 | BC72: 141 | BD72: 188 | BE72: 198 | BF72: 173 | BG72: 175 | BH72: 231 | BI72: 258 | BJ72: 232 | BK72: 225 | BL72: 215 | BM72: 230 | BN72: 249 | BO72: 245 | BP72: 295 | BQ72: 276 | BR72: 216 | BS72: 191 | BT72: 287 | BU72: 286 | BV72: 147 | BW72: 149 | BX72: 166 | BY72: 144 | BZ72: 131 | CA72: 161 | CB72: 153 | CC72: 122 | CD72: 116 | CE72: 141 | CF72: 153 | CG72: 181 | CH72: 156 | CI72: 79 | CJ72: 64 | CK72: 50 | CL72: 145 | CM72: 135 | CN72: 36 | CO72: 56 | CP72: 101 | CQ72: 293 | CR72: 222 | CS72: 9 | CT72: 14 | CU72: 7 | CV72: 14 | CW72: 14 | CX72: 0 | CY72: 0 | CZ72: 0 | DA72: 0 | DB72: 0 | DC72: 0 | DD72: 0 | DE72: 0 | DF72: 0 | DG72: 0 | DH72: 0 | DI72: 0 | DJ72: 0 | DK72: 0 | DL72: 0 | DM72: 0 | DN72: 0 | DO72: 0 | DP72: 0 | DQ72: 0 | DR72: 0 | DS72: 0 | DT72: 0 | DU72: 0 | DV72: 0 | DW72: 0 | DX72: 0 | DY72: 0 | DZ72: 0 | EA72: 0 | EB72: 0 | EC72: 0 | ED72: 0 | EE72: 0 | EF72: 0 | EG72: 0 | EH72: 0 | EI72: 0 | EJ72: 0
A73: ED_ASS521_00063 | C73: Pole Mounted ; < = 22kV ; > 600 kVA ; Single Phase | E73: DNSP NAME | F73: REPEX | G73: TRANSFORMERS | H73: Pole Mounted ; < = 22kV ; > 600 kVA ; Single Phase | I73: DESCRIPTOR METRIC | J73: MEAN ECONOMIC LIFE | K73: YEARS | L73: NUMBER | N73: 55 | Y73: 7.416198487 | AJ73: 0 | AK73: 0 | AL73: 0 | AM73: 0 | AN73: 0 | AO73: 0 | AP73: 1 | AQ73: 1 | AR73: 1 | AS73: 1 | AT73: 1 | AU73: 1 | AV73: 1 | AW73: 1 | AX73: 1 | AY73: 1 | AZ73: 1 | BA73: 1 | BB73: 0 | BC73: 0 | BD73: 0 | BE73: 1 | BF73: 1 | BG73: 0 | BH73: 0 | BI73: 1 | BJ73: 2 | BK73: 2 | BL73: 1 | BM73: 0 | BN73: 0 | BO73: 0 | BP73: 2 | BQ73: 3 | BR73: 2 | BS73: 1 | BT73: 4 | BU73: 8 | BV73: 5 | BW73: 2 | BX73: 4 | BY73: 2 | BZ73: 0 | CA73: 4 | CB73: 29 | CC73: 26 | CD73: 1 | CE73: 2 | CF73: 6 | CG73: 8 | CH73: 6 | CI73: 4 | CJ73: 13 | CK73: 11 | CL73: 6 | CM73: 6 | CN73: 6 | CO73: 8 | CP73: 7 | CQ73: 13 | CR73: 8 | CS73: 1 | CT73: 1 | CU73: 0 | CV73: 1 | CW73: 1 | CX73: 0 | CY73: 0 | CZ73: 0 | DA73: 0 | DB73: 0 | DC73: 0 | DD73: 0 | DE73: 0 | DF73: 0 | DG73: 0 | DH73: 0 | DI73: 0 | DJ73: 0 | DK73: 0 | DL73: 0 | DM73: 0 | DN73: 0 | DO73: 0 | DP73: 0 | DQ73: 0 | DR73: 0 | DS73: 0 | DT73: 0 | DU73: 0 | DV73: 0 | DW73: 0 | DX73: 0 | DY73: 0 | DZ73: 0 | EA73: 0 | EB73: 0 | EC73: 0 | ED73: 0 | EE73: 0 | EF73: 0 | EG73: 0 | EH73: 0 | EI73: 0 | EJ73: 0
A74: ED_ASS521_00064 | C74: Pole Mounted ; < = 22kV ; < = 60 kVA ; Multiple Phase | E74: DNSP NAME | F74: REPEX | G74: TRANSFORMERS | H74: Pole Mounted ; < = 22kV ; < = 60 kVA ; Multiple Phase | I74: DESCRIPTOR METRIC | J74: MEAN ECONOMIC LIFE | K74: YEARS | L74: NUMBER | N74: 55 | Y74: 7.416198487 | AJ74: 175 | AK74: 60 | AL74: 23 | AM74: 29 | AN74: 26 | AO74: 23 | AP74: 12 | AQ74: 2 | AR74: 2 | AS74: 3 | AT74: 1 | AU74: 2 | AV74: 0 | AW74: 1 | AX74: 3 | AY74: 3 | AZ74: 8 | BA74: 37 | BB74: 37 | BC74: 47 | BD74: 69 | BE74: 64 | BF74: 65 | BG74: 71 | BH74: 84 | BI74: 100 | BJ74: 85 | BK74: 67 | BL74: 66 | BM74: 70 | BN74: 77 | BO74: 63 | BP74: 80 | BQ74: 89 | BR74: 79 | BS74: 71 | BT74: 59 | BU74: 56 | BV74: 57 | BW74: 56 | BX74: 51 | BY74: 54 | BZ74: 51 | CA74: 42 | CB74: 44 | CC74: 34 | CD74: 36 | CE74: 35 | CF74: 35 | CG74: 40 | CH74: 31 | CI74: 23 | CJ74: 27 | CK74: 20 | CL74: 20 | CM74: 16 | CN74: 10 | CO74: 10 | CP74: 28 | CQ74: 56 | CR74: 32 | CS74: 2 | CT74: 1 | CU74: 0 | CV74: 0 | CW74: 0 | CX74: 0 | CY74: 0 | CZ74: 0 | DA74: 0 | DB74: 0 | DC74: 0 | DD74: 0 | DE74: 0 | DF74: 0 | DG74: 0 | DH74: 0 | DI74: 0 | DJ74: 0 | DK74: 0 | DL74: 0 | DM74: 0 | DN74: 0 | DO74: 0 | DP74: 0 | DQ74: 0 | DR74: 0 | DS74: 0 | DT74: 0 | DU74: 0 | DV74: 0 | DW74: 0 | DX74: 0 | DY74: 0 | DZ74: 0 | EA74: 0 | EB74: 0 | EC74: 0 | ED74: 0 | EE74: 0 | EF74: 0 | EG74: 0 | EH74: 0 | EI74: 0 | EJ74: 0
A75: ED_ASS521_00065 | C75: Pole Mounted ; < = 22kV ; > 60 kVA and < = 600 kVA ; Multiple Phase | E75: DNSP NAME | F75: REPEX | G75: TRANSFORMERS | H75: Pole Mounted ; < = 22kV ; > 60 kVA and < = 600 kVA ; Multiple Phase | I75: DESCRIPTOR METRIC | J75: MEAN ECONOMIC LIFE | K75: YEARS | L75: NUMBER | N75: 55 | Y75: 7.416198487 | AJ75: 366 | AK75: 220 | AL75: 191 | AM75: 270 | AN75: 333 | AO75: 280 | AP75: 101 | AQ75: 13 | AR75: 20 | AS75: 18 | AT75: 5 | AU75: 7 | AV75: 8 | AW75: 6 | AX75: 3 | AY75: 1 | AZ75: 11 | BA75: 35 | BB75: 38 | BC75: 47 | BD75: 60 | BE75: 44 | BF75: 54 | BG75: 55 | BH75: 65 | BI75: 64 | BJ75: 68 | BK75: 81 | BL75: 76 | BM75: 66 | BN75: 72 | BO75: 64 | BP75: 66 | BQ75: 65 | BR75: 56 | BS75: 51 | BT75: 71 | BU75: 76 | BV75: 55 | BW75: 51 | BX75: 47 | BY75: 32 | BZ75: 32 | CA75: 33 | CB75: 27 | CC75: 31 | CD75: 19 | CE75: 21 | CF75: 20 | CG75: 38 | CH75: 40 | CI75: 22 | CJ75: 7 | CK75: 7 | CL75: 36 | CM75: 34 | CN75: 6 | CO75: 8 | CP75: 32 | CQ75: 77 | CR75: 49 | CS75: 1 | CT75: 2 | CU75: 1 | CV75: 3 | CW75: 0 | CX75: 0 | CY75: 0 | CZ75: 0 | DA75: 0 | DB75: 0 | DC75: 0 | DD75: 0 | DE75: 0 | DF75: 0 | DG75: 0 | DH75: 0 | DI75: 0 | DJ75: 0 | DK75: 0 | DL75: 0 | DM75: 0 | DN75: 0 | DO75: 0 | DP75: 0 | DQ75: 0 | DR75: 0 | DS75: 0 | DT75: 0 | DU75: 0 | DV75: 0 | DW75: 0 | DX75: 0 | DY75: 0 | DZ75: 0 | EA75: 0 | EB75: 0 | EC75: 0 | ED75: 0 | EE75: 0 | EF75: 0 | EG75: 0 | EH75: 0 | EI75: 0 | EJ75: 0
A76: ED_ASS521_00066 | C76: Pole Mounted ; < = 22kV ; > 600 kVA ; Multiple Phase | E76: DNSP NAME | F76: REPEX | G76: TRANSFORMERS | H76: Pole Mounted ; < = 22kV ; > 600 kVA ; Multiple Phase | I76: DESCRIPTOR METRIC | J76: MEAN ECONOMIC LIFE | K76: YEARS | L76: NUMBER | N76: 55 | Y76: 7.416198487 | AJ76: 0 | AK76: 0 | AL76: 0 | AM76: 0 | AN76: 1 | AO76: 1 | AP76: 0 | AQ76: 0 | AR76: 0 | AS76: 0 | AT76: 0 | AU76: 0 | AV76: 1 | AW76: 1 | AX76: 1 | AY76: 0 | AZ76: 0 | BA76: 0 | BB76: 0 | BC76: 0 | BD76: 0 | BE76: 0 | BF76: 0 | BG76: 0 | BH76: 0 | BI76: 0 | BJ76: 0 | BK76: 0 | BL76: 0 | BM76: 0 | BN76: 0 | BO76: 0 | BP76: 0 | BQ76: 1 | BR76: 1 | BS76: 0 | BT76: 0 | BU76: 0 | BV76: 1 | BW76: 1 | BX76: 1 | BY76: 0 | BZ76: 0 | CA76: 0 | CB76: 1 | CC76: 4 | CD76: 0 | CE76: 0 | CF76: 0 | CG76: 0 | CH76: 0 | CI76: 1 | CJ76: 2 | CK76: 1 | CL76: 1 | CM76: 1 | CN76: 0 | CO76: 0 | CP76: 1 | CQ76: 2 | CR76: 1 | CS76: 0 | CT76: 0 | CU76: 0 | CV76: 0 | CW76: 0 | CX76: 0 | CY76: 0 | CZ76: 0 | DA76: 0 | DB76: 0 | DC76: 0 | DD76: 0 | DE76: 0 | DF76: 0 | DG76: 0 | DH76: 0 | DI76: 0 | DJ76: 0 | DK76: 0 | DL76: 0 | DM76: 0 | DN76: 0 | DO76: 0 | DP76: 0 | DQ76: 0 | DR76: 0 | DS76: 0 | DT76: 0 | DU76: 0 | DV76: 0 | DW76: 0 | DX76: 0 | DY76: 0 | DZ76: 0 | EA76: 0 | EB76: 0 | EC76: 0 | ED76: 0 | EE76: 0 | EF76: 0 | EG76: 0 | EH76: 0 | EI76: 0 | EJ76: 0
A77: ED_ASS521_00067 | C77: Kiosk Mounted ; < = 22kV ; < = 60 kVA ; Single Phase | N77: 50 | Y77: 7.071067812 | AJ77: 4 | AK77: 0 | AL77: 1 | AM77: 2 | AN77: 2 | AO77: 1 | AP77: 4 | AQ77: 8 | AR77: 9 | AS77: 10 | AT77: 7 | AU77: 6 | AV77: 8 | AW77: 5 | AX77: 3 | AY77: 7 | AZ77: 8 | BA77: 8 | BB77: 9 | BC77: 9 | BD77: 10 | BE77: 12 | BF77: 14 | BG77: 16 | BH77: 17 | BI77: 14 | BJ77: 19 | BK77: 31 | BL77: 25 | BM77: 8 | BN77: 4 | BO77: 2 | BP77: 1 | BQ77: 1 | BR77: 1 | BS77: 1 | BT77: 1 | BU77: 1 | BV77: 0 | BW77: 0 | BX77: 0 | BY77: 1 | BZ77: 1 | CA77: 0 | CB77: 2 | CC77: 2 | CD77: 0 | CE77: 0 | CF77: 0 | CG77: 1 | CH77: 1 | CI77: 2 | CJ77: 2 | CK77: 1 | CL77: 2 | CM77: 2 | CN77: 0 | CO77: 0 | CP77: 2 | CQ77: 3 | CR77: 2 | CS77: 1 | CT77: 0 | CU77: 0 | CV77: 0 | CW77: 0 | CX77: 0 | CY77: 0 | CZ77: 0 | DA77: 0 | DB77: 0 | DC77: 0 | DD77: 0 | DE77: 0 | DF77: 0 | DG77: 0 | DH77: 0 | DI77: 0 | DJ77: 0 | DK77: 0 | DL77: 0 | DM77: 0 | DN77: 0 | DO77: 0 | DP77: 0 | DQ77: 0 | DR77: 0 | DS77: 0 | DT77: 0 | DU77: 0 | DV77: 0 | DW77: 0 | DX77: 0 | DY77: 0 | DZ77: 0 | EA77: 0 | EB77: 0 | EC77: 0 | ED77: 0 | EE77: 0 | EF77: 0 | EG77: 0 | EH77: 0 | EI77: 0 | EJ77: 0
A78: ED_ASS521_00068 | C78: Kiosk Mounted ; < = 22kV ; > 60 kVA and < = 600 kVA ; Single Phase | N78: 50 | Y78: 7.071067812 | AJ78: 0 | AK78: 0 | AL78: 13 | AM78: 27 | AN78: 41 | AO78: 134 | AP78: 263 | AQ78: 245 | AR78: 210 | AS78: 253 | AT78: 263 | AU78: 238 | AV78: 218 | AW78: 172 | AX78: 153 | AY78: 167 | AZ78: 171 | BA78: 143 | BB78: 115 | BC78: 163 | BD78: 229 | BE78: 233 | BF78: 199 | BG78: 243 | BH78: 321 | BI78: 347 | BJ78: 305 | BK78: 277 | BL78: 341 | BM78: 378 | BN78: 304 | BO78: 190 | BP78: 162 | BQ78: 158 | BR78: 132 | BS78: 134 | BT78: 201 | BU78: 268 | BV78: 230 | BW78: 188 | BX78: 153 | BY78: 86 | BZ78: 48 | CA78: 43 | CB78: 38 | CC78: 21 | CD78: 6 | CE78: 17 | CF78: 30 | CG78: 79 | CH78: 80 | CI78: 32 | CJ78: 31 | CK78: 22 | CL78: 69 | CM78: 67 | CN78: 9 | CO78: 16 | CP78: 50 | CQ78: 104 | CR78: 63 | CS78: 4 | CT78: 6 | CU78: 2 | CV78: 5 | CW78: 5 | CX78: 0 | CY78: 0 | CZ78: 0 | DA78: 0 | DB78: 0 | DC78: 0 | DD78: 0 | DE78: 0 | DF78: 0 | DG78: 0 | DH78: 0 | DI78: 0 | DJ78: 0 | DK78: 0 | DL78: 0 | DM78: 0 | DN78: 0 | DO78: 0 | DP78: 0 | DQ78: 0 | DR78: 0 | DS78: 0 | DT78: 0 | DU78: 0 | DV78: 0 | DW78: 0 | DX78: 0 | DY78: 0 | DZ78: 0 | EA78: 0 | EB78: 0 | EC78: 0 | ED78: 0 | EE78: 0 | EF78: 0 | EG78: 0 | EH78: 0 | EI78: 0 | EJ78: 0
A79: ED_ASS521_00069 | C79: Kiosk Mounted ; < = 22kV ; > 600 kVA ; Single Phase | N79: 50 | Y79: 7.071067812 | AJ79: 0 | AK79: 0 | AL79: 2 | AM79: 1 | AN79: 0 | AO79: 11 | AP79: 33 | AQ79: 39 | AR79: 40 | AS79: 53 | AT79: 60 | AU79: 61 | AV79: 50 | AW79: 38 | AX79: 40 | AY79: 48 | AZ79: 53 | BA79: 36 | BB79: 20 | BC79: 23 | BD79: 27 | BE79: 31 | BF79: 25 | BG79: 18 | BH79: 28 | BI79: 35 | BJ79: 34 | BK79: 27 | BL79: 27 | BM79: 28 | BN79: 15 | BO79: 10 | BP79: 17 | BQ79: 14 | BR79: 9 | BS79: 10 | BT79: 17 | BU79: 22 | BV79: 11 | BW79: 3 | BX79: 8 | BY79: 9 | BZ79: 17 | CA79: 17 | CB79: 7 | CC79: 5 | CD79: 5 | CE79: 4 | CF79: 7 | CG79: 12 | CH79: 8 | CI79: 5 | CJ79: 23 | CK79: 23 | CL79: 19 | CM79: 17 | CN79: 4 | CO79: 5 | CP79: 21 | CQ79: 33 | CR79: 15 | CS79: 1 | CT79: 2 | CU79: 1 | CV79: 6 | CW79: 6 | CX79: 0 | CY79: 0 | CZ79: 0 | DA79: 0 | DB79: 0 | DC79: 0 | DD79: 0 | DE79: 0 | DF79: 1 | DG79: 1 | DH79: 0 | DI79: 0 | DJ79: 0 | DK79: 0 | DL79: 0 | DM79: 0 | DN79: 0 | DO79: 0 | DP79: 0 | DQ79: 0 | DR79: 0 | DS79: 0 | DT79: 0 | DU79: 0 | DV79: 0 | DW79: 0 | DX79: 0 | DY79: 0 | DZ79: 0 | EA79: 0 | EB79: 0 | EC79: 0 | ED79: 0 | EE79: 0 | EF79: 0 | EG79: 0 | EH79: 0 | EI79: 0 | EJ79: 0
A80: ED_ASS521_00070 | C80: Kiosk Mounted ; < = 22kV ; < = 60 kVA ; Multiple Phase | N80: 50 | Y80: 7.071067812 | AJ80: 3 | AK80: 6 | AL80: 0 | AM80: 0 | AN80: 0 | AO80: 0 | AP80: 0 | AQ80: 0 | AR80: 0 | AS80: 0 | AT80: 0 | AU80: 0 | AV80: 0 | AW80: 0 | AX80: 0 | AY80: 0 | AZ80: 0 | BA80: 0 | BB80: 0 | BC80: 0 | BD80: 0 | BE80: 0 | BF80: 0 | BG80: 0 | BH80: 0 | BI80: 0 | BJ80: 1 | BK80: 1 | BL80: 1 | BM80: 0 | BN80: 0 | BO80: 0 | BP80: 0 | BQ80: 0 | BR80: 0 | BS80: 0 | BT80: 0 | BU80: 0 | BV80: 0 | BW80: 0 | BX80: 0 | BY80: 0 | BZ80: 0 | CA80: 0 | CB80: 0 | CC80: 0 | CD80: 0 | CE80: 0 | CF80: 0 | CG80: 0 | CH80: 0 | CI80: 0 | CJ80: 1 | CK80: 1 | CL80: 1 | CM80: 1 | CN80: 0 | CO80: 0 | CP80: 1 | CQ80: 2 | CR80: 1 | CS80: 0 | CT80: 0 | CU80: 0 | CV80: 0 | CW80: 0 | CX80: 0 | CY80: 0 | CZ80: 0 | DA80: 0 | DB80: 0 | DC80: 0 | DD80: 0 | DE80: 0 | DF80: 0 | DG80: 0 | DH80: 0 | DI80: 0 | DJ80: 0 | DK80: 0 | DL80: 0 | DM80: 0 | DN80: 0 | DO80: 0 | DP80: 0 | DQ80: 0 | DR80: 0 | DS80: 0 | DT80: 0 | DU80: 0 | DV80: 0 | DW80: 0 | DX80: 0 | DY80: 0 | DZ80: 0 | EA80: 0 | EB80: 0 | EC80: 0 | ED80: 0 | EE80: 0 | EF80: 0 | EG80: 0 | EH80: 0 | EI80: 0 | EJ80: 0
A81: ED_ASS521_00071 | C81: Kiosk Mounted ; < = 22kV ; > 60 kVA and < = 600 kVA ; Multiple Phase | N81: 50 | Y81: 7.071067812 | AJ81: 211 | AK81: 193 | AL81: 82 | AM81: 161 | AN81: 237 | AO81: 174 | AP81: 46 | AQ81: 21 | AR81: 31 | AS81: 22 | AT81: 16 | AU81: 5 | AV81: 7 | AW81: 7 | AX81: 2 | AY81: 2 | AZ81: 2 | BA81: 23 | BB81: 23 | BC81: 28 | BD81: 52 | BE81: 47 | BF81: 56 | BG81: 61 | BH81: 42 | BI81: 33 | BJ81: 35 | BK81: 35 | BL81: 43 | BM81: 49 | BN81: 41 | BO81: 21 | BP81: 27 | BQ81: 28 | BR81: 23 | BS81: 24 | BT81: 18 | BU81: 20 | BV81: 24 | BW81: 25 | BX81: 20 | BY81: 16 | BZ81: 9 | CA81: 3 | CB81: 11 | CC81: 7 | CD81: 2 | CE81: 4 | CF81: 7 | CG81: 14 | CH81: 15 | CI81: 3 | CJ81: 6 | CK81: 6 | CL81: 15 | CM81: 16 | CN81: 2 | CO81: 5 | CP81: 11 | CQ81: 22 | CR81: 14 | CS81: 1 | CT81: 1 | CU81: 1 | CV81: 1 | CW81: 1 | CX81: 0 | CY81: 0 | CZ81: 0 | DA81: 0 | DB81: 0 | DC81: 0 | DD81: 0 | DE81: 0 | DF81: 0 | DG81: 0 | DH81: 0 | DI81: 0 | DJ81: 0 | DK81: 0 | DL81: 0 | DM81: 0 | DN81: 0 | DO81: 0 | DP81: 0 | DQ81: 0 | DR81: 0 | DS81: 0 | DT81: 0 | DU81: 0 | DV81: 0 | DW81: 0 | DX81: 0 | DY81: 0 | DZ81: 0 | EA81: 0 | EB81: 0 | EC81: 0 | ED81: 0 | EE81: 0 | EF81: 0 | EG81: 0 | EH81: 0 | EI81: 0 | EJ81: 0
A82: ED_ASS521_00072 | C82: Kiosk Mounted ; < = 22kV ; > 600 kVA ; Multiple Phase | N82: 50 | Y82: 7.071067812 | AJ82: 59 | AK82: 38 | AL82: 23 | AM82: 33 | AN82: 41 | AO82: 28 | AP82: 7 | AQ82: 7 | AR82: 8 | AS82: 3 | AT82: 1 | AU82: 1 | AV82: 2 | AW82: 3 | AX82: 3 | AY82: 1 | AZ82: 0 | BA82: 5 | BB82: 5 | BC82: 4 | BD82: 6 | BE82: 5 | BF82: 4 | BG82: 4 | BH82: 5 | BI82: 5 | BJ82: 1 | BK82: 2 | BL82: 3 | BM82: 3 | BN82: 2 | BO82: 1 | BP82: 3 | BQ82: 4 | BR82: 4 | BS82: 3 | BT82: 2 | BU82: 3 | BV82: 2 | BW82: 0 | BX82: 0 | BY82: 0 | BZ82: 2 | CA82: 2 | CB82: 1 | CC82: 1 | CD82: 0 | CE82: 2 | CF82: 2 | CG82: 3 | CH82: 3 | CI82: 1 | CJ82: 4 | CK82: 4 | CL82: 2 | CM82: 2 | CN82: 0 | CO82: 0 | CP82: 3 | CQ82: 7 | CR82: 4 | CS82: 0 | CT82: 0 | CU82: 0 | CV82: 1 | CW82: 1 | CX82: 0 | CY82: 0 | CZ82: 0 | DA82: 0 | DB82: 0 | DC82: 0 | DD82: 0 | DE82: 0 | DF82: 0 | DG82: 0 | DH82: 0 | DI82: 0 | DJ82: 0 | DK82: 0 | DL82: 0 | DM82: 0 | DN82: 0 | DO82: 0 | DP82: 0 | DQ82: 0 | DR82: 0 | DS82: 0 | DT82: 0 | DU82: 0 | DV82: 0 | DW82: 0 | DX82: 0 | DY82: 0 | DZ82: 0 | EA82: 0 | EB82: 0 | EC82: 0 | ED82: 0 | EE82: 0 | EF82: 0 | EG82: 0 | EH82: 0 | EI82: 0 | EJ82: 0
A83: ED_ASS521_00073 | C83: Ground Outdoor / Indoor Chamber Mounted; ˂ 22 kV ; < = 60 kVA ; Single Phase | N83: 50 | Y83: 7.071067812 | AJ83: 0 | AK83: 0 | AL83: 0 | AM83: 0 | AN83: 0 | AO83: 0 | AP83: 0 | AQ83: 0 | AR83: 0 | AS83: 0 | AT83: 0 | AU83: 0 | AV83: 0 | AW83: 0 | AX83: 0 | AY83: 0 | AZ83: 0 | BA83: 0 | BB83: 0 | BC83: 0 | BD83: 0 | BE83: 0 | BF83: 0 | BG83: 0 | BH83: 0 | BI83: 0 | BJ83: 0 | BK83: 1 | BL83: 2 | BM83: 1 | BN83: 0 | BO83: 0 | BP83: 0 | BQ83: 0 | BR83: 0 | BS83: 0 | BT83: 0 | BU83: 0 | BV83: 0 | BW83: 0 | BX83: 0 | BY83: 0 | BZ83: 1 | CA83: 1 | CB83: 0 | CC83: 0 | CD83: 0 | CE83: 0 | CF83: 0 | CG83: 0 | CH83: 0 | CI83: 0 | CJ83: 0 | CK83: 1 | CL83: 1 | CM83: 1 | CN83: 0 | CO83: 0 | CP83: 0 | CQ83: 1 | CR83: 1 | CS83: 0 | CT83: 0 | CU83: 0 | CV83: 0 | CW83: 0 | CX83: 0 | CY83: 0 | CZ83: 0 | DA83: 0 | DB83: 0 | DC83: 0 | DD83: 0 | DE83: 0 | DF83: 0 | DG83: 0 | DH83: 0 | DI83: 0 | DJ83: 0 | DK83: 0 | DL83: 0 | DM83: 0 | DN83: 0 | DO83: 0 | DP83: 0 | DQ83: 0 | DR83: 0 | DS83: 0 | DT83: 0 | DU83: 0 | DV83: 0 | DW83: 0 | DX83: 0 | DY83: 0 | DZ83: 0 | EA83: 0 | EB83: 0 | EC83: 0 | ED83: 0 | EE83: 0 | EF83: 0 | EG83: 0 | EH83: 0 | EI83: 0 | EJ83: 0
A84: ED_ASS521_00074 | C84: Ground Outdoor / Indoor Chamber Mounted; ˂ 22 kV ; > 60 kVA and < = 600 kVA ; Single Phase | N84: 50 | Y84: 7.071067812 | AJ84: 0 | AK84: 0 | AL84: 0 | AM84: 0 | AN84: 0 | AO84: 1 | AP84: 2 | AQ84: 1 | AR84: 2 | AS84: 2 | AT84: 1 | AU84: 1 | AV84: 1 | AW84: 2 | AX84: 3 | AY84: 5 | AZ84: 4 | BA84: 4 | BB84: 2 | BC84: 1 | BD84: 1 | BE84: 1 | BF84: 2 | BG84: 3 | BH84: 2 | BI84: 2 | BJ84: 3 | BK84: 5 | BL84: 7 | BM84: 9 | BN84: 9 | BO84: 7 | BP84: 15 | BQ84: 17 | BR84: 8 | BS84: 4 | BT84: 2 | BU84: 3 | BV84: 6 | BW84: 25 | BX84: 27 | BY84: 12 | BZ84: 20 | CA84: 21 | CB84: 17 | CC84: 17 | CD84: 17 | CE84: 17 | CF84: 14 | CG84: 14 | CH84: 10 | CI84: 5 | CJ84: 4 | CK84: 3 | CL84: 5 | CM84: 4 | CN84: 1 | CO84: 3 | CP84: 5 | CQ84: 6 | CR84: 3 | CS84: 0 | CT84: 0 | CU84: 0 | CV84: 1 | CW84: 1 | CX84: 0 | CY84: 0 | CZ84: 0 | DA84: 0 | DB84: 0 | DC84: 0 | DD84: 0 | DE84: 0 | DF84: 0 | DG84: 0 | DH84: 0 | DI84: 0 | DJ84: 0 | DK84: 0 | DL84: 0 | DM84: 0 | DN84: 0 | DO84: 0 | DP84: 0 | DQ84: 0 | DR84: 0 | DS84: 0 | DT84: 0 | DU84: 0 | DV84: 0 | DW84: 0 | DX84: 0 | DY84: 0 | DZ84: 0 | EA84: 0 | EB84: 0 | EC84: 0 | ED84: 0 | EE84: 0 | EF84: 0 | EG84: 0 | EH84: 0 | EI84: 0 | EJ84: 0
A85: ED_ASS521_00075 | C85: Ground Outdoor / Indoor Chamber Mounted; ˂ 22 kV ; > 600 kVA ; Single Phase | N85: 50 | Y85: 7.071067812 | AJ85: 0 | AK85: 0 | AL85: 0 | AM85: 0 | AN85: 0 | AO85: 0 | AP85: 0 | AQ85: 0 | AR85: 0 | AS85: 0 | AT85: 0 | AU85: 1 | AV85: 2 | AW85: 2 | AX85: 2 | AY85: 1 | AZ85: 1 | BA85: 2 | BB85: 2 | BC85: 4 | BD85: 5 | BE85: 4 | BF85: 3 | BG85: 3 | BH85: 2 | BI85: 5 | BJ85: 5 | BK85: 4 | BL85: 8 | BM85: 7 | BN85: 6 | BO85: 7 | BP85: 9 | BQ85: 9 | BR85: 8 | BS85: 7 | BT85: 3 | BU85: 3 | BV85: 4 | BW85: 7 | BX85: 7 | BY85: 5 | BZ85: 3 | CA85: 1 | CB85: 5 | CC85: 6 | CD85: 4 | CE85: 5 | CF85: 4 | CG85: 2 | CH85: 0 | CI85: 0 | CJ85: 7 | CK85: 8 | CL85: 2 | CM85: 2 | CN85: 0 | CO85: 0 | CP85: 2 | CQ85: 2 | CR85: 0 | CS85: 0 | CT85: 1 | CU85: 1 | CV85: 2 | CW85: 2 | CX85: 0 | CY85: 0 | CZ85: 0 | DA85: 0 | DB85: 0 | DC85: 0 | DD85: 0 | DE85: 0 | DF85: 0 | DG85: 0 | DH85: 0 | DI85: 0 | DJ85: 0 | DK85: 0 | DL85: 0 | DM85: 0 | DN85: 0 | DO85: 0 | DP85: 0 | DQ85: 0 | DR85: 0 | DS85: 0 | DT85: 0 | DU85: 0 | DV85: 0 | DW85: 0 | DX85: 0 | DY85: 0 | DZ85: 0 | EA85: 0 | EB85: 0 | EC85: 0 | ED85: 0 | EE85: 0 | EF85: 0 | EG85: 0 | EH85: 0 | EI85: 0 | EJ85: 0
A86: ED_ASS521_00076 | C86: Ground Outdoor / Indoor Chamber Mounted; ˂ 22 kV ; < = 60 kVA ; Multiple Phase | N86: 50 | Y86: 7.071067812 | AJ86: 0 | AK86: 0 | AL86: 0 | AM86: 0 | AN86: 0 | AO86: 0 | AP86: 0 | AQ86: 0 | AR86: 0 | AS86: 0 | AT86: 0 | AU86: 0 | AV86: 0 | AW86: 0 | AX86: 0 | AY86: 0 | AZ86: 0 | BA86: 0 | BB86: 0 | BC86: 0 | BD86: 0 | BE86: 0 | BF86: 0 | BG86: 0 | BH86: 0 | BI86: 0 | BJ86: 0 | BK86: 0 | BL86: 0 | BM86: 0 | BN86: 0 | BO86: 0 | BP86: 0 | BQ86: 0 | BR86: 0 | BS86: 0 | BT86: 0 | BU86: 0 | BV86: 0 | BW86: 0 | BX86: 0 | BY86: 0 | BZ86: 0 | CA86: 0 | CB86: 0 | CC86: 0 | CD86: 0 | CE86: 0 | CF86: 0 | CG86: 0 | CH86: 0 | CI86: 0 | CJ86: 0 | CK86: 0 | CL86: 0 | CM86: 0 | CN86: 0 | CO86: 0 | CP86: 0 | CQ86: 0 | CR86: 0 | CS86: 0 | CT86: 0 | CU86: 0 | CV86: 0 | CW86: 0 | CX86: 0 | CY86: 0 | CZ86: 0 | DA86: 0 | DB86: 0 | DC86: 0 | DD86: 0 | DE86: 0 | DF86: 0 | DG86: 0 | DH86: 0 | DI86: 0 | DJ86: 0 | DK86: 0 | DL86: 0 | DM86: 0 | DN86: 0 | DO86: 0 | DP86: 0 | DQ86: 0 | DR86: 0 | DS86: 0 | DT86: 0 | DU86: 0 | DV86: 0 | DW86: 0 | DX86: 0 | DY86: 0 | DZ86: 0 | EA86: 0 | EB86: 0 | EC86: 0 | ED86: 0 | EE86: 0 | EF86: 0 | EG86: 0 | EH86: 0 | EI86: 0 | EJ86: 0
A87: ED_ASS521_00077 | C87: Ground Outdoor / Indoor Chamber Mounted; ˂ 22 kV ; > 60 kVA and < = 600 kVA ; Multiple Phase | N87: 64 | Y87: 8 | AJ87: 0 | AK87: 0 | AL87: 0 | AM87: 0 | AN87: 0 | AO87: 0 | AP87: 0 | AQ87: 1 | AR87: 1 | AS87: 0 | AT87: 0 | AU87: 0 | AV87: 0 | AW87: 0 | AX87: 0 | AY87: 0 | AZ87: 0 | BA87: 0 | BB87: 0 | BC87: 0 | BD87: 0 | BE87: 0 | BF87: 0 | BG87: 0 | BH87: 0 | BI87: 0 | BJ87: 0 | BK87: 0 | BL87: 0 | BM87: 0 | BN87: 0 | BO87: 0 | BP87: 0 | BQ87: 0 | BR87: 0 | BS87: 0 | BT87: 0 | BU87: 0 | BV87: 0 | BW87: 0 | BX87: 0 | BY87: 0 | BZ87: 0 | CA87: 0 | CB87: 0 | CC87: 0 | CD87: 1 | CE87: 0 | CF87: 0 | CG87: 0 | CH87: 0 | CI87: 0 | CJ87: 0 | CK87: 0 | CL87: 0 | CM87: 2 | CN87: 0 | CO87: 0 | CP87: 0 | CQ87: 0 | CR87: 0 | CS87: 0 | CT87: 1 | CU87: 1 | CV87: 0 | CW87: 0 | CX87: 0 | CY87: 0 | CZ87: 0 | DA87: 0 | DB87: 0 | DC87: 0 | DD87: 0 | DE87: 0 | DF87: 0 | DG87: 0 | DH87: 0 | DI87: 0 | DJ87: 0 | DK87: 0 | DL87: 0 | DM87: 0 | DN87: 0 | DO87: 0 | DP87: 0 | DQ87: 0 | DR87: 0 | DS87: 0 | DT87: 0 | DU87: 0 | DV87: 0 | DW87: 0 | DX87: 0 | DY87: 0 | DZ87: 0 | EA87: 0 | EB87: 0 | EC87: 0 | ED87: 0 | EE87: 0 | EF87: 0 | EG87: 0 | EH87: 0 | EI87: 0 | EJ87: 0
A88: ED_ASS521_00078 | C88: Ground Outdoor / Indoor Chamber Mounted; ˂ 22 kV ; > 600 kVA ; Multiple Phase | N88: 64 | Y88: 8 | AJ88: 0 | AK88: 0 | AL88: 0 | AM88: 0 | AN88: 0 | AO88: 0 | AP88: 0 | AQ88: 0 | AR88: 3 | AS88: 0 | AT88: 0 | AU88: 0 | AV88: 0 | AW88: 0 | AX88: 0 | AY88: 2 | AZ88: 0 | BA88: 0 | BB88: 0 | BC88: 0 | BD88: 0 | BE88: 0 | BF88: 0 | BG88: 3 | BH88: 0 | BI88: 0 | BJ88: 4 | BK88: 2 | BL88: 0 | BM88: 8 | BN88: 0 | BO88: 5 | BP88: 1 | BQ88: 2 | BR88: 2 | BS88: 3 | BT88: 3 | BU88: 4 | BV88: 1 | BW88: 2 | BX88: 2 | BY88: 1 | BZ88: 1 | CA88: 11 | CB88: 5 | CC88: 2 | CD88: 1 | CE88: 5 | CF88: 3 | CG88: 2 | CH88: 7 | CI88: 1 | CJ88: 1 | CK88: 1 | CL88: 0 | CM88: 0 | CN88: 0 | CO88: 0 | CP88: 0 | CQ88: 0 | CR88: 0 | CS88: 0 | CT88: 0 | CU88: 0 | CV88: 0 | CW88: 0 | CX88: 0 | CY88: 0 | CZ88: 0 | DA88: 0 | DB88: 0 | DC88: 0 | DD88: 0 | DE88: 0 | DF88: 0 | DG88: 0 | DH88: 0 | DI88: 0 | DJ88: 0 | DK88: 0 | DL88: 0 | DM88: 0 | DN88: 0 | DO88: 0 | DP88: 0 | DQ88: 0 | DR88: 0 | DS88: 0 | DT88: 0 | DU88: 0 | DV88: 0 | DW88: 0 | DX88: 0 | DY88: 0 | DZ88: 0 | EA88: 0 | EB88: 0 | EC88: 0 | ED88: 0 | EE88: 0 | EF88: 0 | EG88: 0 | EH88: 0 | EI88: 0 | EJ88: 0
A89: ED_ASS521_00079 | C89: Ground Outdoor / Indoor Chamber Mounted; > = 22 kV & < = 33 kV ; < = 15 MVA | N89: 64 | Y89: 8 | AJ89: 2 | AK89: 2 | AL89: 6 | AM89: 10 | AN89: 6 | AO89: 7 | AP89: 5 | AQ89: 3 | AR89: 5 | AS89: 2 | AT89: 3 | AU89: 6 | AV89: 4 | AW89: 11 | AX89: 15 | AY89: 7 | AZ89: 3 | BA89: 4 | BB89: 3 | BC89: 5 | BD89: 2 | BE89: 2 | BF89: 1 | BG89: 16 | BH89: 4 | BI89: 5 | BJ89: 11 | BK89: 38 | BL89: 4 | BM89: 10 | BN89: 1 | BO89: 11 | BP89: 20 | BQ89: 2 | BR89: 4 | BS89: 5 | BT89: 5 | BU89: 2 | BV89: 8 | BW89: 8 | BX89: 15 | BY89: 2 | BZ89: 4 | CA89: 1 | CB89: 5 | CC89: 21 | CD89: 4 | CE89: 1 | CF89: 17 | CG89: 11 | CH89: 1 | CI89: 7 | CJ89: 10 | CK89: 7 | CL89: 3 | CM89: 1 | CN89: 5 | CO89: 6 | CP89: 14 | CQ89: 11 | CR89: 8 | CS89: 3 | CT89: 1 | CU89: 6 | CV89: 1 | CW89: 2 | CX89: 0 | CY89: 1 | CZ89: 0 | DA89: 0 | DB89: 0 | DC89: 0 | DD89: 0 | DE89: 0 | DF89: 0 | DG89: 0 | DH89: 0 | DI89: 0 | DJ89: 0 | DK89: 0 | DL89: 0 | DM89: 0 | DN89: 0 | DO89: 0 | DP89: 0 | DQ89: 0 | DR89: 0 | DS89: 0 | DT89: 0 | DU89: 0 | DV89: 0 | DW89: 0 | DX89: 0 | DY89: 0 | DZ89: 0 | EA89: 0 | EB89: 0 | EC89: 0 | ED89: 0 | EE89: 0 | EF89: 0 | EG89: 0 | EH89: 0 | EI89: 0 | EJ89: 0
A90: ED_ASS521_00080 | C90: Ground Outdoor / Indoor Chamber Mounted; > = 22 kV & < = 33 kV ; > 15 MVA and < = 40 MVA | N90: 64 | Y90: 8 | AJ90: 0 | AK90: 1 | AL90: 0 | AM90: 0 | AN90: 0 | AO90: 0 | AP90: 0 | AQ90: 0 | AR90: 0 | AS90: 1 | AT90: 0 | AU90: 0 | AV90: 0 | AW90: 1 | AX90: 0 | AY90: 0 | AZ90: 0 | BA90: 0 | BB90: 0 | BC90: 0 | BD90: 0 | BE90: 0 | BF90: 0 | BG90: 0 | BH90: 0 | BI90: 0 | BJ90: 0 | BK90: 1 | BL90: 0 | BM90: 0 | BN90: 0 | BO90: 0 | BP90: 1 | BQ90: 0 | BR90: 0 | BS90: 0 | BT90: 0 | BU90: 0 | BV90: 0 | BW90: 0 | BX90: 0 | BY90: 0 | BZ90: 0 | CA90: 0 | CB90: 0 | CC90: 0 | CD90: 0 | CE90: 0 | CF90: 0 | CG90: 0 | CH90: 0 | CI90: 0 | CJ90: 0 | CK90: 0 | CL90: 0 | CM90: 0 | CN90: 0 | CO90: 0 | CP90: 0 | CQ90: 0 | CR90: 0 | CS90: 0 | CT90: 0 | CU90: 0 | CV90: 0 | CW90: 0 | CX90: 0 | CY90: 0 | CZ90: 0 | DA90: 0 | DB90: 0 | DC90: 0 | DD90: 0 | DE90: 0 | DF90: 0 | DG90: 0 | DH90: 0 | DI90: 0 | DJ90: 0 | DK90: 0 | DL90: 0 | DM90: 0 | DN90: 0 | DO90: 0 | DP90: 0 | DQ90: 0 | DR90: 0 | DS90: 0 | DT90: 0 | DU90: 0 | DV90: 0 | DW90: 0 | DX90: 0 | DY90: 0 | DZ90: 0 | EA90: 0 | EB90: 0 | EC90: 0 | ED90: 0 | EE90: 0 | EF90: 0 | EG90: 0 | EH90: 0 | EI90: 0 | EJ90: 0
A91: ED_ASS521_00081 | C91: Ground Outdoor / Indoor Chamber Mounted; > = 22 kV & < = 33 kV ; > 40 MVA | N91: 0 | Y91: 0 | AJ91: 0 | AK91: 0 | AL91: 0 | AM91: 0 | AN91: 0 | AO91: 0 | AP91: 0 | AQ91: 0 | AR91: 0 | AS91: 0 | AT91: 0 | AU91: 0 | AV91: 0 | AW91: 0 | AX91: 0 | AY91: 0 | AZ91: 0 | BA91: 0 | BB91: 0 | BC91: 0 | BD91: 0 | BE91: 0 | BF91: 0 | BG91: 0 | BH91: 0 | BI91: 0 | BJ91: 0 | BK91: 0 | BL91: 0 | BM91: 0 | BN91: 0 | BO91: 0 | BP91: 0 | BQ91: 0 | BR91: 0 | BS91: 0 | BT91: 0 | BU91: 0 | BV91: 0 | BW91: 0 | BX91: 0 | BY91: 0 | BZ91: 0 | CA91: 0 | CB91: 0 | CC91: 0 | CD91: 0 | CE91: 0 | CF91: 0 | CG91: 0 | CH91: 0 | CI91: 0 | CJ91: 0 | CK91: 0 | CL91: 0 | CM91: 0 | CN91: 0 | CO91: 0 | CP91: 0 | CQ91: 0 | CR91: 0 | CS91: 0 | CT91: 0 | CU91: 0 | CV91: 0 | CW91: 0 | CX91: 0 | CY91: 0 | CZ91: 0 | DA91: 0 | DB91: 0 | DC91: 0 | DD91: 0 | DE91: 0 | DF91: 0 | DG91: 0 | DH91: 0 | DI91: 0 | DJ91: 0 | DK91: 0 | DL91: 0 | DM91: 0 | DN91: 0 | DO91: 0 | DP91: 0 | DQ91: 0 | DR91: 0 | DS91: 0 | DT91: 0 | DU91: 0 | DV91: 0 | DW91: 0 | DX91: 0 | DY91: 0 | DZ91: 0 | EA91: 0 | EB91: 0 | EC91: 0 | ED91: 0 | EE91: 0 | EF91: 0 | EG91: 0 | EH91: 0 | EI91: 0 | EJ91: 0
A92: ED_ASS521_00082 | C92: Ground Outdoor / Indoor Chamber Mounted; > 33 kV & < = 66 kV ; < = 15 MVA | N92: 64 | Y92: 8 | AJ92: 2 | AK92: 4 | AL92: 0 | AM92: 0 | AN92: 4 | AO92: 3 | AP92: 0 | AQ92: 4 | AR92: 0 | AS92: 0 | AT92: 0 | AU92: 1 | AV92: 0 | AW92: 0 | AX92: 5 | AY92: 0 | AZ92: 1 | BA92: 0 | BB92: 0 | BC92: 0 | BD92: 0 | BE92: 0 | BF92: 0 | BG92: 3 | BH92: 1 | BI92: 2 | BJ92: 1 | BK92: 2 | BL92: 5 | BM92: 0 | BN92: 0 | BO92: 9 | BP92: 0 | BQ92: 0 | BR92: 1 | BS92: 0 | BT92: 5 | BU92: 5 | BV92: 0 | BW92: 0 | BX92: 3 | BY92: 0 | BZ92: 0 | CA92: 3 | CB92: 0 | CC92: 11 | CD92: 7 | CE92: 5 | CF92: 7 | CG92: 5 | CH92: 5 | CI92: 19 | CJ92: 5 | CK92: 14 | CL92: 5 | CM92: 0 | CN92: 2 | CO92: 5 | CP92: 0 | CQ92: 2 | CR92: 6 | CS92: 2 | CT92: 0 | CU92: 2 | CV92: 1 | CW92: 0 | CX92: 0 | CY92: 0 | CZ92: 0 | DA92: 0 | DB92: 0 | DC92: 0 | DD92: 1 | DE92: 0 | DF92: 0 | DG92: 0 | DH92: 0 | DI92: 0 | DJ92: 0 | DK92: 0 | DL92: 0 | DM92: 0 | DN92: 0 | DO92: 0 | DP92: 0 | DQ92: 0 | DR92: 0 | DS92: 0 | DT92: 0 | DU92: 0 | DV92: 0 | DW92: 0 | DX92: 0 | DY92: 0 | DZ92: 0 | EA92: 0 | EB92: 0 | EC92: 0 | ED92: 0 | EE92: 0 | EF92: 0 | EG92: 0 | EH92: 0 | EI92: 0 | EJ92: 0
A93: ED_ASS521_00083 | C93: Ground Outdoor / Indoor Chamber Mounted; > 33 kV & < = 66 kV ; > 15 MVA and < = 40 MVA | N93: 64 | Y93: 8 | AJ93: 0 | AK93: 2 | AL93: 1 | AM93: 8 | AN93: 4 | AO93: 4 | AP93: 4 | AQ93: 2 | AR93: 4 | AS93: 2 | AT93: 5 | AU93: 2 | AV93: 5 | AW93: 4 | AX93: 4 | AY93: 0 | AZ93: 1 | BA93: 0 | BB93: 0 | BC93: 2 | BD93: 0 | BE93: 3 | BF93: 0 | BG93: 1 | BH93: 5 | BI93: 1 | BJ93: 3 | BK93: 0 | BL93: 1 | BM93: 4 | BN93: 0 | BO93: 2 | BP93: 4 | BQ93: 2 | BR93: 0 | BS93: 4 | BT93: 1 | BU93: 4 | BV93: 0 | BW93: 0 | BX93: 0 | BY93: 0 | BZ93: 1 | CA93: 4 | CB93: 0 | CC93: 5 | CD93: 6 | CE93: 4 | CF93: 3 | CG93: 0 | CH93: 0 | CI93: 0 | CJ93: 0 | CK93: 0 | CL93: 0 | CM93: 0 | CN93: 0 | CO93: 0 | CP93: 3 | CQ93: 3 | CR93: 0 | CS93: 0 | CT93: 0 | CU93: 0 | CV93: 0 | CW93: 0 | CX93: 0 | CY93: 0 | CZ93: 0 | DA93: 0 | DB93: 0 | DC93: 0 | DD93: 0 | DE93: 0 | DF93: 0 | DG93: 0 | DH93: 0 | DI93: 0 | DJ93: 0 | DK93: 0 | DL93: 0 | DM93: 0 | DN93: 0 | DO93: 0 | DP93: 0 | DQ93: 0 | DR93: 0 | DS93: 0 | DT93: 0 | DU93: 0 | DV93: 0 | DW93: 0 | DX93: 0 | DY93: 0 | DZ93: 0 | EA93: 0 | EB93: 0 | EC93: 0 | ED93: 0 | EE93: 0 | EF93: 0 | EG93: 0 | EH93: 0 | EI93: 0 | EJ93: 0
A94: ED_ASS521_00084 | C94: Ground Outdoor / Indoor Chamber Mounted; > 33 kV & < = 66 kV ; > 40 MVA | N94: 0 | Y94: 0 | AJ94: 0 | AK94: 0 | AL94: 0 | AM94: 0 | AN94: 0 | AO94: 0 | AP94: 0 | AQ94: 0 | AR94: 0 | AS94: 0 | AT94: 0 | AU94: 0 | AV94: 0 | AW94: 0 | AX94: 0 | AY94: 0 | AZ94: 0 | BA94: 0 | BB94: 0 | BC94: 0 | BD94: 0 | BE94: 0 | BF94: 0 | BG94: 0 | BH94: 0 | BI94: 0 | BJ94: 0 | BK94: 0 | BL94: 0 | BM94: 0 | BN94: 0 | BO94: 0 | BP94: 0 | BQ94: 0 | BR94: 0 | BS94: 0 | BT94: 0 | BU94: 0 | BV94: 0 | BW94: 0 | BX94: 0 | BY94: 0 | BZ94: 0 | CA94: 0 | CB94: 0 | CC94: 0 | CD94: 0 | CE94: 0 | CF94: 0 | CG94: 0 | CH94: 0 | CI94: 0 | CJ94: 0 | CK94: 0 | CL94: 0 | CM94: 0 | CN94: 0 | CO94: 0 | CP94: 0 | CQ94: 0 | CR94: 0 | CS94: 0 | CT94: 0 | CU94: 0 | CV94: 0 | CW94: 0 | CX94: 0 | CY94: 0 | CZ94: 0 | DA94: 0 | DB94: 0 | DC94: 0 | DD94: 0 | DE94: 0 | DF94: 0 | DG94: 0 | DH94: 0 | DI94: 0 | DJ94: 0 | DK94: 0 | DL94: 0 | DM94: 0 | DN94: 0 | DO94: 0 | DP94: 0 | DQ94: 0 | DR94: 0 | DS94: 0 | DT94: 0 | DU94: 0 | DV94: 0 | DW94: 0 | DX94: 0 | DY94: 0 | DZ94: 0 | EA94: 0 | EB94: 0 | EC94: 0 | ED94: 0 | EE94: 0 | EF94: 0 | EG94: 0 | EH94: 0 | EI94: 0 | EJ94: 0
A95: ED_ASS521_00085 | C95: Ground Outdoor / Indoor Chamber Mounted; > 66 kV & < = 132 kV ; < = 100 MVA | N95: 0 | Y95: 0 | AJ95: 0 | AK95: 0 | AL95: 0 | AM95: 0 | AN95: 0 | AO95: 0 | AP95: 0 | AQ95: 0 | AR95: 0 | AS95: 0 | AT95: 0 | AU95: 0 | AV95: 0 | AW95: 0 | AX95: 0 | AY95: 0 | AZ95: 0 | BA95: 0 | BB95: 0 | BC95: 0 | BD95: 0 | BE95: 0 | BF95: 0 | BG95: 0 | BH95: 0 | BI95: 0 | BJ95: 0 | BK95: 0 | BL95: 0 | BM95: 0 | BN95: 0 | BO95: 0 | BP95: 0 | BQ95: 0 | BR95: 0 | BS95: 0 | BT95: 0 | BU95: 0 | BV95: 0 | BW95: 0 | BX95: 0 | BY95: 0 | BZ95: 0 | CA95: 0 | CB95: 0 | CC95: 0 | CD95: 0 | CE95: 0 | CF95: 0 | CG95: 0 | CH95: 0 | CI95: 0 | CJ95: 0 | CK95: 0 | CL95: 0 | CM95: 0 | CN95: 0 | CO95: 0 | CP95: 0 | CQ95: 0 | CR95: 0 | CS95: 0 | CT95: 0 | CU95: 0 | CV95: 0 | CW95: 0 | CX95: 0 | CY95: 0 | CZ95: 0 | DA95: 0 | DB95: 0 | DC95: 0 | DD95: 0 | DE95: 0 | DF95: 0 | DG95: 0 | DH95: 0 | DI95: 0 | DJ95: 0 | DK95: 0 | DL95: 0 | DM95: 0 | DN95: 0 | DO95: 0 | DP95: 0 | DQ95: 0 | DR95: 0 | DS95: 0 | DT95: 0 | DU95: 0 | DV95: 0 | DW95: 0 | DX95: 0 | DY95: 0 | DZ95: 0 | EA95: 0 | EB95: 0 | EC95: 0 | ED95: 0 | EE95: 0 | EF95: 0 | EG95: 0 | EH95: 0 | EI95: 0 | EJ95: 0
A96: ED_ASS521_00086 | C96: Ground Outdoor / Indoor Chamber Mounted; > 66 kV & < = 132 kV ; > 100 MVA | N96: 0 | Y96: 0 | AJ96: 0 | AK96: 0 | AL96: 0 | AM96: 0 | AN96: 0 | AO96: 0 | AP96: 0 | AQ96: 0 | AR96: 0 | AS96: 0 | AT96: 0 | AU96: 0 | AV96: 0 | AW96: 0 | AX96: 0 | AY96: 0 | AZ96: 0 | BA96: 0 | BB96: 0 | BC96: 0 | BD96: 0 | BE96: 0 | BF96: 0 | BG96: 0 | BH96: 0 | BI96: 0 | BJ96: 0 | BK96: 0 | BL96: 0 | BM96: 0 | BN96: 0 | BO96: 0 | BP96: 0 | BQ96: 0 | BR96: 0 | BS96: 0 | BT96: 0 | BU96: 0 | BV96: 0 | BW96: 0 | BX96: 0 | BY96: 0 | BZ96: 0 | CA96: 0 | CB96: 0 | CC96: 0 | CD96: 0 | CE96: 0 | CF96: 0 | CG96: 0 | CH96: 0 | CI96: 0 | CJ96: 0 | CK96: 0 | CL96: 0 | CM96: 0 | CN96: 0 | CO96: 0 | CP96: 0 | CQ96: 0 | CR96: 0 | CS96: 0 | CT96: 0 | CU96: 0 | CV96: 0 | CW96: 0 | CX96: 0 | CY96: 0 | CZ96: 0 | DA96: 0 | DB96: 0 | DC96: 0 | DD96: 0 | DE96: 0 | DF96: 0 | DG96: 0 | DH96: 0 | DI96: 0 | DJ96: 0 | DK96: 0 | DL96: 0 | DM96: 0 | DN96: 0 | DO96: 0 | DP96: 0 | DQ96: 0 | DR96: 0 | DS96: 0 | DT96: 0 | DU96: 0 | DV96: 0 | DW96: 0 | DX96: 0 | DY96: 0 | DZ96: 0 | EA96: 0 | EB96: 0 | EC96: 0 | ED96: 0 | EE96: 0 | EF96: 0 | EG96: 0 | EH96: 0 | EI96: 0 | EJ96: 0
A97: ED_ASS521_00087 | C97: Ground Outdoor / Indoor Chamber Mounted; > 132 kV ; < = 100 MVA | N97: 0 | Y97: 0 | AJ97: 0 | AK97: 0 | AL97: 0 | AM97: 0 | AN97: 0 | AO97: 0 | AP97: 0 | AQ97: 0 | AR97: 0 | AS97: 0 | AT97: 0 | AU97: 0 | AV97: 0 | AW97: 0 | AX97: 0 | AY97: 0 | AZ97: 0 | BA97: 0 | BB97: 0 | BC97: 0 | BD97: 0 | BE97: 0 | BF97: 0 | BG97: 0 | BH97: 0 | BI97: 0 | BJ97: 0 | BK97: 0 | BL97: 0 | BM97: 0 | BN97: 0 | BO97: 0 | BP97: 0 | BQ97: 0 | BR97: 0 | BS97: 0 | BT97: 0 | BU97: 0 | BV97: 0 | BW97: 0 | BX97: 0 | BY97: 0 | BZ97: 0 | CA97: 0 | CB97: 0 | CC97: 0 | CD97: 0 | CE97: 0 | CF97: 0 | CG97: 0 | CH97: 0 | CI97: 0 | CJ97: 0 | CK97: 0 | CL97: 0 | CM97: 0 | CN97: 0 | CO97: 0 | CP97: 0 | CQ97: 0 | CR97: 0 | CS97: 0 | CT97: 0 | CU97: 0 | CV97: 0 | CW97: 0 | CX97: 0 | CY97: 0 | CZ97: 0 | DA97: 0 | DB97: 0 | DC97: 0 | DD97: 0 | DE97: 0 | DF97: 0 | DG97: 0 | DH97: 0 | DI97: 0 | DJ97: 0 | DK97: 0 | DL97: 0 | DM97: 0 | DN97: 0 | DO97: 0 | DP97: 0 | DQ97: 0 | DR97: 0 | DS97: 0 | DT97: 0 | DU97: 0 | DV97: 0 | DW97: 0 | DX97: 0 | DY97: 0 | DZ97: 0 | EA97: 0 | EB97: 0 | EC97: 0 | ED97: 0 | EE97: 0 | EF97: 0 | EG97: 0 | EH97: 0 | EI97: 0 | EJ97: 0
A98: ED_ASS521_00088 | C98: Ground Outdoor / Indoor Chamber Mounted; > 132 kV ; > 100 MVA | N98: 0 | Y98: 0 | AJ98: 0 | AK98: 0 | AL98: 0 | AM98: 0 | AN98: 0 | AO98: 0 | AP98: 0 | AQ98: 0 | AR98: 0 | AS98: 0 | AT98: 0 | AU98: 0 | AV98: 0 | AW98: 0 | AX98: 0 | AY98: 0 | AZ98: 0 | BA98: 0 | BB98: 0 | BC98: 0 | BD98: 0 | BE98: 0 | BF98: 0 | BG98: 0 | BH98: 0 | BI98: 0 | BJ98: 0 | BK98: 0 | BL98: 0 | BM98: 0 | BN98: 0 | BO98: 0 | BP98: 0 | BQ98: 0 | BR98: 0 | BS98: 0 | BT98: 0 | BU98: 0 | BV98: 0 | BW98: 0 | BX98: 0 | BY98: 0 | BZ98: 0 | CA98: 0 | CB98: 0 | CC98: 0 | CD98: 0 | CE98: 0 | CF98: 0 | CG98: 0 | CH98: 0 | CI98: 0 | CJ98: 0 | CK98: 0 | CL98: 0 | CM98: 0 | CN98: 0 | CO98: 0 | CP98: 0 | CQ98: 0 | CR98: 0 | CS98: 0 | CT98: 0 | CU98: 0 | CV98: 0 | CW98: 0 | CX98: 0 | CY98: 0 | CZ98: 0 | DA98: 0 | DB98: 0 | DC98: 0 | DD98: 0 | DE98: 0 | DF98: 0 | DG98: 0 | DH98: 0 | DI98: 0 | DJ98: 0 | DK98: 0 | DL98: 0 | DM98: 0 | DN98: 0 | DO98: 0 | DP98: 0 | DQ98: 0 | DR98: 0 | DS98: 0 | DT98: 0 | DU98: 0 | DV98: 0 | DW98: 0 | DX98: 0 | DY98: 0 | DZ98: 0 | EA98: 0 | EB98: 0 | EC98: 0 | ED98: 0 | EE98: 0 | EF98: 0 | EG98: 0 | EH98: 0 | EI98: 0 | EJ98: 0
A99: ED_ASS521_00089 | C99: Other | E99: DNSP NAME | F99: REPEX | G99: TRANSFORMERS | H99: =C99 -> Other | I99: DESCRIPTOR METRIC | J99: MEAN ECONOMIC LIFE | K99: YEARS | L99: NUMBER
A100: ED_ASS521_00090 | B100: SWITCHGEAR BY: HIGHEST OPERATING VOLTAGE ; SWITCH FUNCTION | C100: ˂ = 11 kV ; Fuse | E100: DNSP NAME | F100: REPEX | G100: SWITCHGEAR | H100: ˂ = 11 kV ; Fuse | I100: DESCRIPTOR METRIC | J100: MEAN ECONOMIC LIFE | K100: YEARS | L100: NUMBER | N100: 0 | Y100: 0 | AJ100: 0 | AK100: 0 | AL100: 0 | AM100: 0 | AN100: 0 | AO100: 0 | AP100: 0 | AQ100: 0 | AR100: 0 | AS100: 0 | AT100: 0 | AU100: 0 | AV100: 0 | AW100: 0 | AX100: 0 | AY100: 0 | AZ100: 0 | BA100: 0 | BB100: 0 | BC100: 0 | BD100: 0 | BE100: 0 | BF100: 0 | BG100: 0 | BH100: 0 | BI100: 0 | BJ100: 0 | BK100: 0 | BL100: 0 | BM100: 0 | BN100: 0 | BO100: 0 | BP100: 0 | BQ100: 0 | BR100: 0 | BS100: 0 | BT100: 0 | BU100: 0 | BV100: 0 | BW100: 0 | BX100: 0 | BY100: 0 | BZ100: 0 | CA100: 0 | CB100: 0 | CC100: 0 | CD100: 0 | CE100: 0 | CF100: 0 | CG100: 0 | CH100: 0 | CI100: 0 | CJ100: 0 | CK100: 0 | CL100: 0 | CM100: 0 | CN100: 0 | CO100: 0 | CP100: 0 | CQ100: 0 | CR100: 0 | CS100: 0 | CT100: 0 | CU100: 0 | CV100: 0 | CW100: 0 | CX100: 0 | CY100: 0 | CZ100: 0 | DA100: 0 | DB100: 0 | DC100: 0 | DD100: 0 | DE100: 0 | DF100: 0 | DG100: 0 | DH100: 0 | DI100: 0 | DJ100: 0 | DK100: 0 | DL100: 0 | DM100: 0 | DN100: 0 | DO100: 0 | DP100: 0 | DQ100: 0 | DR100: 0 | DS100: 0 | DT100: 0 | DU100: 0 | DV100: 0 | DW100: 0 | DX100: 0 | DY100: 0 | DZ100: 0 | EA100: 0 | EB100: 0 | EC100: 0 | ED100: 0 | EE100: 0 | EF100: 0 | EG100: 0 | EH100: 0 | EI100: 0 | EJ100: 0
A101: ED_ASS521_00091 | C101: ˂ = 11 kV ; Switch | E101: DNSP NAME | F101: REPEX | G101: SWITCHGEAR | H101: ˂ = 11 kV ; Switch | I101: DESCRIPTOR METRIC | J101: MEAN ECONOMIC LIFE | K101: YEARS | L101: NUMBER | N101: 69 | Y101: 8.306623863 | AJ101: 0 | AK101: 22 | AL101: 38 | AM101: 16 | AN101: 3 | AO101: 5 | AP101: 7 | AQ101: 16 | AR101: 2 | AS101: 1 | AT101: 2 | AU101: 1 | AV101: 1 | AW101: 5 | AX101: 0 | AY101: 0 | AZ101: 0 | BA101: 0 | BB101: 4 | BC101: 11 | BD101: 0 | BE101: 2 | BF101: 0 | BG101: 7 | BH101: 13 | BI101: 29 | BJ101: 9 | BK101: 0 | BL101: 18 | BM101: 0 | BN101: 10 | BO101: 35 | BP101: 23 | BQ101: 14 | BR101: 26 | BS101: 27 | BT101: 2 | BU101: 46 | BV101: 20 | BW101: 29 | BX101: 7 | BY101: 6 | BZ101: 76 | CA101: 50 | CB101: 116 | CC101: 146 | CD101: 94 | CE101: 88 | CF101: 112 | CG101: 153 | CH101: 28 | CI101: 33 | CJ101: 8 | CK101: 9 | CL101: 0 | CM101: 3 | CN101: 5 | CO101: 79 | CP101: 3 | CQ101: 34 | CR101: 0 | CS101: 0 | CT101: 3 | CU101: 0 | CV101: 3 | CW101: 0 | CX101: 0 | CY101: 0 | CZ101: 0 | DA101: 0 | DB101: 0 | DC101: 11 | DD101: 0 | DE101: 8 | DF101: 0 | DG101: 0 | DH101: 0 | DI101: 0 | DJ101: 0 | DK101: 0 | DL101: 0 | DM101: 0 | DN101: 0 | DO101: 0 | DP101: 0 | DQ101: 0 | DR101: 0 | DS101: 0 | DT101: 0 | DU101: 0 | DV101: 0 | DW101: 0 | DX101: 0 | DY101: 0 | DZ101: 0 | EA101: 0 | EB101: 0 | EC101: 0 | ED101: 0 | EE101: 0 | EF101: 0 | EG101: 0 | EH101: 0 | EI101: 0 | EJ101: 0
A102: ED_ASS521_00092 | C102: ˂ = 11 kV ; Circuit Breaker | N102: 66 | Y102: 8.124038405 | AJ102: 0 | AK102: 14 | AL102: 73 | AM102: 135 | AN102: 34 | AO102: 21 | AP102: 32 | AQ102: 13 | AR102: 32 | AS102: 13 | AT102: 13 | AU102: 17 | AV102: 29 | AW102: 31 | AX102: 10 | AY102: 4 | AZ102: 32 | BA102: 11 | BB102: 10 | BC102: 0 | BD102: 0 | BE102: 6 | BF102: 4 | BG102: 9 | BH102: 20 | BI102: 28 | BJ102: 0 | BK102: 26 | BL102: 0 | BM102: 31 | BN102: 0 | BO102: 0 | BP102: 4 | BQ102: 0 | BR102: 0 | BS102: 0 | BT102: 0 | BU102: 0 | BV102: 2 | BW102: 11 | BX102: 0 | BY102: 0 | BZ102: 0 | CA102: 37 | CB102: 43 | CC102: 45 | CD102: 40 | CE102: 14 | CF102: 78 | CG102: 58 | CH102: 2 | CI102: 85 | CJ102: 20 | CK102: 21 | CL102: 15 | CM102: 0 | CN102: 0 | CO102: 47 | CP102: 2 | CQ102: 10 | CR102: 0 | CS102: 9 | CT102: 20 | CU102: 0 | CV102: 17 | CW102: 0 | CX102: 0 | CY102: 0 | CZ102: 0 | DA102: 0 | DB102: 0 | DC102: 0 | DD102: 0 | DE102: 0 | DF102: 0 | DG102: 0 | DH102: 0 | DI102: 0 | DJ102: 0 | DK102: 0 | DL102: 0 | DM102: 0 | DN102: 0 | DO102: 0 | DP102: 0 | DQ102: 0 | DR102: 0 | DS102: 0 | DT102: 0 | DU102: 0 | DV102: 0 | DW102: 0 | DX102: 0 | DY102: 0 | DZ102: 0 | EA102: 0 | EB102: 0 | EC102: 0 | ED102: 0 | EE102: 0 | EF102: 0 | EG102: 0 | EH102: 0 | EI102: 0 | EJ102: 0
A103: ED_ASS521_00093 | C103: > 11 kV & < = 22 kV ; Switch | N103: 66 | Y103: 8.124038405 | AJ103: 0 | AK103: 0 | AL103: 0 | AM103: 0 | AN103: 0 | AO103: 0 | AP103: 0 | AQ103: 0 | AR103: 0 | AS103: 0 | AT103: 0 | AU103: 0 | AV103: 0 | AW103: 0 | AX103: 0 | AY103: 0 | AZ103: 0 | BA103: 0 | BB103: 0 | BC103: 0 | BD103: 0 | BE103: 0 | BF103: 0 | BG103: 0 | BH103: 0 | BI103: 0 | BJ103: 0 | BK103: 0 | BL103: 0 | BM103: 0 | BN103: 0 | BO103: 0 | BP103: 0 | BQ103: 0 | BR103: 0 | BS103: 0 | BT103: 0 | BU103: 0 | BV103: 0 | BW103: 0 | BX103: 0 | BY103: 0 | BZ103: 0 | CA103: 0 | CB103: 0 | CC103: 0 | CD103: 0 | CE103: 0 | CF103: 10 | CG103: 0 | CH103: 0 | CI103: 0 | CJ103: 0 | CK103: 0 | CL103: 0 | CM103: 0 | CN103: 0 | CO103: 0 | CP103: 0 | CQ103: 0 | CR103: 0 | CS103: 0 | CT103: 0 | CU103: 0 | CV103: 0 | CW103: 0 | CX103: 0 | CY103: 0 | CZ103: 0 | DA103: 0 | DB103: 0 | DC103: 0 | DD103: 0 | DE103: 0 | DF103: 0 | DG103: 0 | DH103: 0 | DI103: 0 | DJ103: 0 | DK103: 0 | DL103: 0 | DM103: 0 | DN103: 0 | DO103: 0 | DP103: 0 | DQ103: 0 | DR103: 0 | DS103: 0 | DT103: 0 | DU103: 0 | DV103: 0 | DW103: 0 | DX103: 0 | DY103: 0 | DZ103: 0 | EA103: 0 | EB103: 0 | EC103: 0 | ED103: 0 | EE103: 0 | EF103: 0 | EG103: 0 | EH103: 0 | EI103: 0 | EJ103: 0
A104: ED_ASS521_00094 | C104: > 11 kV & < = 22 kV ; Circuit Breaker | N104: 0 | Y104: 0 | AJ104: 0 | AK104: 0 | AL104: 0 | AM104: 0 | AN104: 0 | AO104: 0 | AP104: 0 | AQ104: 0 | AR104: 0 | AS104: 0 | AT104: 0 | AU104: 0 | AV104: 0 | AW104: 0 | AX104: 0 | AY104: 0 | AZ104: 0 | BA104: 0 | BB104: 0 | BC104: 0 | BD104: 0 | BE104: 0 | BF104: 0 | BG104: 0 | BH104: 0 | BI104: 0 | BJ104: 0 | BK104: 0 | BL104: 0 | BM104: 0 | BN104: 0 | BO104: 0 | BP104: 0 | BQ104: 0 | BR104: 0 | BS104: 0 | BT104: 0 | BU104: 0 | BV104: 0 | BW104: 0 | BX104: 0 | BY104: 0 | BZ104: 0 | CA104: 0 | CB104: 0 | CC104: 0 | CD104: 0 | CE104: 0 | CF104: 0 | CG104: 0 | CH104: 0 | CI104: 0 | CJ104: 0 | CK104: 0 | CL104: 0 | CM104: 0 | CN104: 0 | CO104: 0 | CP104: 0 | CQ104: 0 | CR104: 0 | CS104: 0 | CT104: 0 | CU104: 0 | CV104: 0 | CW104: 0 | CX104: 0 | CY104: 0 | CZ104: 0 | DA104: 0 | DB104: 0 | DC104: 0 | DD104: 0 | DE104: 0 | DF104: 0 | DG104: 0 | DH104: 0 | DI104: 0 | DJ104: 0 | DK104: 0 | DL104: 0 | DM104: 0 | DN104: 0 | DO104: 0 | DP104: 0 | DQ104: 0 | DR104: 0 | DS104: 0 | DT104: 0 | DU104: 0 | DV104: 0 | DW104: 0 | DX104: 0 | DY104: 0 | DZ104: 0 | EA104: 0 | EB104: 0 | EC104: 0 | ED104: 0 | EE104: 0 | EF104: 0 | EG104: 0 | EH104: 0 | EI104: 0 | EJ104: 0
A105: ED_ASS521_00095 | C105: > 22 kV & < = 33 kV ; Switch | N105: 69 | Y105: 8.306623863 | AJ105: 2 | AK105: 59 | AL105: 45 | AM105: 36 | AN105: 33 | AO105: 38 | AP105: 5 | AQ105: 6 | AR105: 15 | AS105: 20 | AT105: 20 | AU105: 18 | AV105: 6 | AW105: 9 | AX105: 9 | AY105: 4 | AZ105: 0 | BA105: 0 | BB105: 0 | BC105: 9 | BD105: 0 | BE105: 0 | BF105: 3 | BG105: 17 | BH105: 14 | BI105: 4 | BJ105: 6 | BK105: 0 | BL105: 10 | BM105: 3 | BN105: 3 | BO105: 15 | BP105: 4 | BQ105: 3 | BR105: 11 | BS105: 8 | BT105: 7 | BU105: 7 | BV105: 6 | BW105: 13 | BX105: 2 | BY105: 17 | BZ105: 45 | CA105: 19 | CB105: 8 | CC105: 21 | CD105: 78 | CE105: 39 | CF105: 71 | CG105: 57 | CH105: 33 | CI105: 17 | CJ105: 4 | CK105: 3 | CL105: 0 | CM105: 0 | CN105: 7 | CO105: 28 | CP105: 24 | CQ105: 35 | CR105: 8 | CS105: 1 | CT105: 1 | CU105: 0 | CV105: 1 | CW105: 0 | CX105: 0 | CY105: 0 | CZ105: 0 | DA105: 0 | DB105: 0 | DC105: 4 | DD105: 0 | DE105: 4 | DF105: 4 | DG105: 0 | DH105: 0 | DI105: 0 | DJ105: 0 | DK105: 0 | DL105: 0 | DM105: 0 | DN105: 0 | DO105: 0 | DP105: 0 | DQ105: 0 | DR105: 0 | DS105: 0 | DT105: 0 | DU105: 0 | DV105: 0 | DW105: 0 | DX105: 0 | DY105: 0 | DZ105: 0 | EA105: 0 | EB105: 0 | EC105: 0 | ED105: 0 | EE105: 0 | EF105: 0 | EG105: 0 | EH105: 0 | EI105: 0 | EJ105: 0
A106: ED_ASS521_00096 | C106: > 22 kV & < = 33 kV ; Circuit Breaker | N106: 66 | Y106: 8.124038405 | AJ106: 0 | AK106: 9 | AL106: 23 | AM106: 17 | AN106: 14 | AO106: 8 | AP106: 5 | AQ106: 2 | AR106: 10 | AS106: 8 | AT106: 10 | AU106: 7 | AV106: 7 | AW106: 2 | AX106: 0 | AY106: 3 | AZ106: 0 | BA106: 0 | BB106: 0 | BC106: 0 | BD106: 0 | BE106: 0 | BF106: 0 | BG106: 0 | BH106: 0 | BI106: 10 | BJ106: 2 | BK106: 0 | BL106: 0 | BM106: 0 | BN106: 0 | BO106: 0 | BP106: 0 | BQ106: 0 | BR106: 0 | BS106: 0 | BT106: 0 | BU106: 0 | BV106: 0 | BW106: 0 | BX106: 0 | BY106: 0 | BZ106: 0 | CA106: 0 | CB106: 0 | CC106: 0 | CD106: 0 | CE106: 20 | CF106: 18 | CG106: 0 | CH106: 5 | CI106: 0 | CJ106: 2 | CK106: 0 | CL106: 9 | CM106: 0 | CN106: 3 | CO106: 27 | CP106: 0 | CQ106: 0 | CR106: 0 | CS106: 20 | CT106: 0 | CU106: 0 | CV106: 4 | CW106: 0 | CX106: 0 | CY106: 0 | CZ106: 5 | DA106: 0 | DB106: 2 | DC106: 0 | DD106: 0 | DE106: 0 | DF106: 0 | DG106: 0 | DH106: 0 | DI106: 0 | DJ106: 1 | DK106: 0 | DL106: 0 | DM106: 0 | DN106: 0 | DO106: 0 | DP106: 0 | DQ106: 0 | DR106: 0 | DS106: 0 | DT106: 0 | DU106: 0 | DV106: 0 | DW106: 0 | DX106: 0 | DY106: 0 | DZ106: 0 | EA106: 0 | EB106: 0 | EC106: 0 | ED106: 0 | EE106: 0 | EF106: 0 | EG106: 0 | EH106: 0 | EI106: 0 | EJ106: 0
A107: ED_ASS521_00097 | C107: > 33 kV & < = 66 kV ; Switch | N107: 69 | Y107: 8.306623863 | AJ107: 11 | AK107: 71 | AL107: 84 | AM107: 72 | AN107: 82 | AO107: 69 | AP107: 18 | AQ107: 24 | AR107: 18 | AS107: 18 | AT107: 11 | AU107: 7 | AV107: 20 | AW107: 23 | AX107: 12 | AY107: 3 | AZ107: 2 | BA107: 9 | BB107: 1 | BC107: 12 | BD107: 0 | BE107: 0 | BF107: 0 | BG107: 31 | BH107: 13 | BI107: 0 | BJ107: 2 | BK107: 25 | BL107: 10 | BM107: 4 | BN107: 0 | BO107: 1 | BP107: 5 | BQ107: 0 | BR107: 0 | BS107: 20 | BT107: 10 | BU107: 7 | BV107: 16 | BW107: 4 | BX107: 3 | BY107: 0 | BZ107: 13 | CA107: 10 | CB107: 86 | CC107: 77 | CD107: 55 | CE107: 48 | CF107: 30 | CG107: 68 | CH107: 35 | CI107: 64 | CJ107: 21 | CK107: 25 | CL107: 4 | CM107: 0 | CN107: 30 | CO107: 33 | CP107: 0 | CQ107: 38 | CR107: 15 | CS107: 9 | CT107: 12 | CU107: 0 | CV107: 0 | CW107: 0 | CX107: 0 | CY107: 0 | CZ107: 0 | DA107: 0 | DB107: 0 | DC107: 0 | DD107: 0 | DE107: 0 | DF107: 7 | DG107: 0 | DH107: 0 | DI107: 6 | DJ107: 15 | DK107: 0 | DL107: 0 | DM107: 0 | DN107: 6 | DO107: 0 | DP107: 0 | DQ107: 0 | DR107: 0 | DS107: 0 | DT107: 0 | DU107: 0 | DV107: 0 | DW107: 0 | DX107: 0 | DY107: 0 | DZ107: 0 | EA107: 0 | EB107: 0 | EC107: 0 | ED107: 0 | EE107: 0 | EF107: 0 | EG107: 0 | EH107: 0 | EI107: 0 | EJ107: 0
A108: ED_ASS521_00098 | C108: > 33 kV & < = 66 kV ; Circuit Breaker | N108: 66 | Y108: 8.124038405 | AJ108: 5 | AK108: 8 | AL108: 16 | AM108: 41 | AN108: 40 | AO108: 30 | AP108: 15 | AQ108: 24 | AR108: 16 | AS108: 20 | AT108: 11 | AU108: 2 | AV108: 12 | AW108: 12 | AX108: 8 | AY108: 8 | AZ108: 2 | BA108: 7 | BB108: 1 | BC108: 1 | BD108: 1 | BE108: 0 | BF108: 0 | BG108: 2 | BH108: 8 | BI108: 0 | BJ108: 13 | BK108: 6 | BL108: 4 | BM108: 2 | BN108: 12 | BO108: 11 | BP108: 0 | BQ108: 10 | BR108: 0 | BS108: 0 | BT108: 0 | BU108: 0 | BV108: 0 | BW108: 0 | BX108: 0 | BY108: 0 | BZ108: 2 | CA108: 9 | CB108: 11 | CC108: 24 | CD108: 6 | CE108: 6 | CF108: 3 | CG108: 0 | CH108: 16 | CI108: 13 | CJ108: 0 | CK108: 0 | CL108: 0 | CM108: 0 | CN108: 2 | CO108: 7 | CP108: 0 | CQ108: 0 | CR108: 3 | CS108: 8 | CT108: 0 | CU108: 8 | CV108: 0 | CW108: 0 | CX108: 0 | CY108: 1 | CZ108: 0 | DA108: 0 | DB108: 0 | DC108: 0 | DD108: 0 | DE108: 0 | DF108: 0 | DG108: 0 | DH108: 0 | DI108: 0 | DJ108: 0 | DK108: 0 | DL108: 0 | DM108: 0 | DN108: 0 | DO108: 0 | DP108: 0 | DQ108: 0 | DR108: 0 | DS108: 0 | DT108: 0 | DU108: 0 | DV108: 0 | DW108: 0 | DX108: 0 | DY108: 0 | DZ108: 0 | EA108: 0 | EB108: 0 | EC108: 0 | ED108: 0 | EE108: 0 | EF108: 0 | EG108: 0 | EH108: 0 | EI108: 0 | EJ108: 0
A109: ED_ASS521_00099 | C109: > 66 kV & < = 132 kV ; Switch | N109: 0 | Y109: 0 | AJ109: 0 | AK109: 0 | AL109: 0 | AM109: 0 | AN109: 0 | AO109: 0 | AP109: 0 | AQ109: 0 | AR109: 0 | AS109: 0 | AT109: 0 | AU109: 0 | AV109: 0 | AW109: 0 | AX109: 0 | AY109: 0 | AZ109: 0 | BA109: 0 | BB109: 0 | BC109: 0 | BD109: 0 | BE109: 0 | BF109: 0 | BG109: 0 | BH109: 0 | BI109: 0 | BJ109: 0 | BK109: 0 | BL109: 0 | BM109: 0 | BN109: 0 | BO109: 0 | BP109: 0 | BQ109: 0 | BR109: 0 | BS109: 0 | BT109: 0 | BU109: 0 | BV109: 0 | BW109: 0 | BX109: 0 | BY109: 0 | BZ109: 0 | CA109: 0 | CB109: 0 | CC109: 0 | CD109: 0 | CE109: 0 | CF109: 0 | CG109: 0 | CH109: 0 | CI109: 0 | CJ109: 0 | CK109: 0 | CL109: 0 | CM109: 0 | CN109: 0 | CO109: 0 | CP109: 0 | CQ109: 0 | CR109: 0 | CS109: 0 | CT109: 0 | CU109: 0 | CV109: 0 | CW109: 0 | CX109: 0 | CY109: 0 | CZ109: 0 | DA109: 0 | DB109: 0 | DC109: 0 | DD109: 0 | DE109: 0 | DF109: 0 | DG109: 0 | DH109: 0 | DI109: 0 | DJ109: 0 | DK109: 0 | DL109: 0 | DM109: 0 | DN109: 0 | DO109: 0 | DP109: 0 | DQ109: 0 | DR109: 0 | DS109: 0 | DT109: 0 | DU109: 0 | DV109: 0 | DW109: 0 | DX109: 0 | DY109: 0 | DZ109: 0 | EA109: 0 | EB109: 0 | EC109: 0 | ED109: 0 | EE109: 0 | EF109: 0 | EG109: 0 | EH109: 0 | EI109: 0 | EJ109: 0
A110: ED_ASS521_00100 | C110: > 66 kV & < = 132 kV ; Circuit Breaker | N110: 0 | Y110: 0 | AJ110: 0 | AK110: 0 | AL110: 0 | AM110: 0 | AN110: 0 | AO110: 0 | AP110: 0 | AQ110: 0 | AR110: 0 | AS110: 0 | AT110: 0 | AU110: 0 | AV110: 0 | AW110: 0 | AX110: 0 | AY110: 0 | AZ110: 0 | BA110: 0 | BB110: 0 | BC110: 0 | BD110: 0 | BE110: 0 | BF110: 0 | BG110: 0 | BH110: 0 | BI110: 0 | BJ110: 0 | BK110: 0 | BL110: 0 | BM110: 0 | BN110: 0 | BO110: 0 | BP110: 0 | BQ110: 0 | BR110: 0 | BS110: 0 | BT110: 0 | BU110: 0 | BV110: 0 | BW110: 0 | BX110: 0 | BY110: 0 | BZ110: 0 | CA110: 0 | CB110: 0 | CC110: 0 | CD110: 0 | CE110: 0 | CF110: 0 | CG110: 0 | CH110: 0 | CI110: 0 | CJ110: 0 | CK110: 0 | CL110: 0 | CM110: 0 | CN110: 0 | CO110: 0 | CP110: 0 | CQ110: 0 | CR110: 0 | CS110: 0 | CT110: 0 | CU110: 0 | CV110: 0 | CW110: 0 | CX110: 0 | CY110: 0 | CZ110: 0 | DA110: 0 | DB110: 0 | DC110: 0 | DD110: 0 | DE110: 0 | DF110: 0 | DG110: 0 | DH110: 0 | DI110: 0 | DJ110: 0 | DK110: 0 | DL110: 0 | DM110: 0 | DN110: 0 | DO110: 0 | DP110: 0 | DQ110: 0 | DR110: 0 | DS110: 0 | DT110: 0 | DU110: 0 | DV110: 0 | DW110: 0 | DX110: 0 | DY110: 0 | DZ110: 0 | EA110: 0 | EB110: 0 | EC110: 0 | ED110: 0 | EE110: 0 | EF110: 0 | EG110: 0 | EH110: 0 | EI110: 0 | EJ110: 0
A111: ED_ASS521_00101 | C111: > 132 kV ; Switch | N111: 0 | Y111: 0 | AJ111: 0 | AK111: 0 | AL111: 0 | AM111: 0 | AN111: 0 | AO111: 0 | AP111: 0 | AQ111: 0 | AR111: 0 | AS111: 0 | AT111: 0 | AU111: 0 | AV111: 0 | AW111: 0 | AX111: 0 | AY111: 0 | AZ111: 0 | BA111: 0 | BB111: 0 | BC111: 0 | BD111: 0 | BE111: 0 | BF111: 0 | BG111: 0 | BH111: 0 | BI111: 0 | BJ111: 0 | BK111: 0 | BL111: 0 | BM111: 0 | BN111: 0 | BO111: 0 | BP111: 0 | BQ111: 0 | BR111: 0 | BS111: 0 | BT111: 0 | BU111: 0 | BV111: 0 | BW111: 0 | BX111: 0 | BY111: 0 | BZ111: 0 | CA111: 0 | CB111: 0 | CC111: 0 | CD111: 0 | CE111: 0 | CF111: 0 | CG111: 0 | CH111: 0 | CI111: 0 | CJ111: 0 | CK111: 0 | CL111: 0 | CM111: 0 | CN111: 0 | CO111: 0 | CP111: 0 | CQ111: 0 | CR111: 0 | CS111: 0 | CT111: 0 | CU111: 0 | CV111: 0 | CW111: 0 | CX111: 0 | CY111: 0 | CZ111: 0 | DA111: 0 | DB111: 0 | DC111: 0 | DD111: 0 | DE111: 0 | DF111: 0 | DG111: 0 | DH111: 0 | DI111: 0 | DJ111: 0 | DK111: 0 | DL111: 0 | DM111: 0 | DN111: 0 | DO111: 0 | DP111: 0 | DQ111: 0 | DR111: 0 | DS111: 0 | DT111: 0 | DU111: 0 | DV111: 0 | DW111: 0 | DX111: 0 | DY111: 0 | DZ111: 0 | EA111: 0 | EB111: 0 | EC111: 0 | ED111: 0 | EE111: 0 | EF111: 0 | EG111: 0 | EH111: 0 | EI111: 0 | EJ111: 0
A112: ED_ASS521_00102 | C112: > 132 kV ; Circuit Breaker | N112: 0 | Y112: 0 | AJ112: 0 | AK112: 0 | AL112: 0 | AM112: 0 | AN112: 0 | AO112: 0 | AP112: 0 | AQ112: 0 | AR112: 0 | AS112: 0 | AT112: 0 | AU112: 0 | AV112: 0 | AW112: 0 | AX112: 0 | AY112: 0 | AZ112: 0 | BA112: 0 | BB112: 0 | BC112: 0 | BD112: 0 | BE112: 0 | BF112: 0 | BG112: 0 | BH112: 0 | BI112: 0 | BJ112: 0 | BK112: 0 | BL112: 0 | BM112: 0 | BN112: 0 | BO112: 0 | BP112: 0 | BQ112: 0 | BR112: 0 | BS112: 0 | BT112: 0 | BU112: 0 | BV112: 0 | BW112: 0 | BX112: 0 | BY112: 0 | BZ112: 0 | CA112: 0 | CB112: 0 | CC112: 0 | CD112: 0 | CE112: 0 | CF112: 0 | CG112: 0 | CH112: 0 | CI112: 0 | CJ112: 0 | CK112: 0 | CL112: 0 | CM112: 0 | CN112: 0 | CO112: 0 | CP112: 0 | CQ112: 0 | CR112: 0 | CS112: 0 | CT112: 0 | CU112: 0 | CV112: 0 | CW112: 0 | CX112: 0 | CY112: 0 | CZ112: 0 | DA112: 0 | DB112: 0 | DC112: 0 | DD112: 0 | DE112: 0 | DF112: 0 | DG112: 0 | DH112: 0 | DI112: 0 | DJ112: 0 | DK112: 0 | DL112: 0 | DM112: 0 | DN112: 0 | DO112: 0 | DP112: 0 | DQ112: 0 | DR112: 0 | DS112: 0 | DT112: 0 | DU112: 0 | DV112: 0 | DW112: 0 | DX112: 0 | DY112: 0 | DZ112: 0 | EA112: 0 | EB112: 0 | EC112: 0 | ED112: 0 | EE112: 0 | EF112: 0 | EG112: 0 | EH112: 0 | EI112: 0 | EJ112: 0
A113: ED_ASS521_00103 | C113: Other | E113: DNSP NAME | F113: REPEX | G113: SWITCHGEAR | H113: Other | I113: DESCRIPTOR METRIC | J113: MEAN ECONOMIC LIFE | K113: YEARS | L113: NUMBER
A114: ED_ASS521_00104 | B114: PUBLIC LIGHTING BY: ASSET TYPE ; LIGHTING OBLIGATION | C114: Luminaires ; Major Road | E114: DNSP NAME | F114: REPEX | G114: PUBLIC LIGHTING | H114: Luminaires ; Major Road | I114: DESCRIPTOR METRIC | J114: MEAN ECONOMIC LIFE | K114: YEARS | L114: NUMBER
A115: ED_ASS521_00105 | C115: Luminaires ; Minor Road | E115: DNSP NAME | F115: REPEX | G115: PUBLIC LIGHTING | H115: Luminaires ; Minor Road | I115: DESCRIPTOR METRIC | J115: MEAN ECONOMIC LIFE | K115: YEARS | L115: NUMBER
A116: ED_ASS521_00106 | C116: Brackets ; Major Road | E116: DNSP NAME | F116: REPEX | G116: PUBLIC LIGHTING | H116: Brackets ; Major Road | I116: DESCRIPTOR METRIC | J116: MEAN ECONOMIC LIFE | K116: YEARS | L116: NUMBER
A117: ED_ASS521_00107 | C117: Brackets ; Minor Road | E117: DNSP NAME | F117: REPEX | G117: PUBLIC LIGHTING | H117: Brackets ; Minor Road | I117: DESCRIPTOR METRIC | J117: MEAN ECONOMIC LIFE | K117: YEARS | L117: NUMBER
A118: ED_ASS521_00108 | C118: Lamps ; Major Road | E118: DNSP NAME | F118: REPEX | G118: PUBLIC LIGHTING | H118: Lamps ; Major Road | I118: DESCRIPTOR METRIC | J118: MEAN ECONOMIC LIFE | K118: YEARS | L118: NUMBER
A119: ED_ASS521_00109 | C119: Lamps ; Minor Road | E119: DNSP NAME | F119: REPEX | G119: PUBLIC LIGHTING | H119: Lamps ; Minor Road | I119: DESCRIPTOR METRIC | J119: MEAN ECONOMIC LIFE | K119: YEARS | L119: NUMBER
A120: ED_ASS521_00110 | C120: Poles / Columns ; Major Road | E120: DNSP NAME | F120: REPEX | G120: PUBLIC LIGHTING | H120: Poles / Columns ; Major Road | I120: DESCRIPTOR METRIC | J120: MEAN ECONOMIC LIFE | K120: YEARS | L120: NUMBER
A121: ED_ASS521_00111 | C121: Poles / Columns ; Minor Road | E121: DNSP NAME | F121: REPEX | G121: PUBLIC LIGHTING | H121: Poles / Columns ; Minor Road | I121: DESCRIPTOR METRIC | J121: MEAN ECONOMIC LIFE | K121: YEARS | L121: NUMBER
A122: ED_ASS521_00112 | C122: Other | E122: DNSP NAME | F122: REPEX | G122: PUBLIC LIGHTING | H122: Other | I122: DESCRIPTOR METRIC | J122: MEAN ECONOMIC LIFE | K122: YEARS | L122: NUMBER
A123: ED_ASS521_00113 | B123: SCADA, NETWORK CONTROL AND PROTECTION SYSTEMS BY: FUNCTION | C123: Field Devices | E123: DNSP NAME | F123: REPEX | G123: SCADA AND PROTECTION | H123: Field Devices | I123: DESCRIPTOR METRIC | J123: MEAN ECONOMIC LIFE | K123: YEARS | L123: NUMBER | N123: 35.743 | Y123: 15.47288448 | AJ123: 275 | AK123: 252 | AL123: 146 | AM123: 148 | AN123: 154 | AO123: 154 | AP123: 153 | AQ123: 158 | AR123: 156 | AS123: 173 | AT123: 124 | AU123: 137 | AV123: 138 | AW123: 124 | AX123: 94 | AY123: 146 | AZ123: 44 | BA123: 46 | BB123: 15 | BC123: 36 | BD123: 44 | BE123: 185 | BF123: 424 | BG123: 374 | BH123: 340 | BI123: 356 | BJ123: 334 | BK123: 284 | BL123: 288 | BM123: 248 | BN123: 241 | BO123: 184 | BP123: 186 | BQ123: 183 | BR123: 211 | BS123: 212 | BT123: 210 | BU123: 208 | BV123: 232 | BW123: 202 | BX123: 191 | BY123: 239 | BZ123: 297 | CA123: 300 | CB123: 314 | CC123: 297 | CD123: 506 | CE123: 429 | CF123: 749 | CG123: 616 | CH123: 233 | CI123: 164 | CJ123: 131 | CK123: 118 | CL123: 111 | CM123: 118 | CN123: 109 | CO123: 91 | CP123: 12 | CQ123: 21 | CR123: 2 | CS123: 1 | CT123: 0 | CU123: 1 | CV123: 0 | CW123: 1 | CX123: 0 | CY123: 1 | CZ123: 0 | DA123: 0 | DB123: 0 | DC123: 0 | DD123: 0 | DE123: 0 | DF123: 0 | DG123: 0 | DH123: 1 | DI123: 2 | DJ123: 1 | DK123: 2 | DL123: 0 | DM123: 2 | DN123: 0 | DO123: 1 | DP123: 0 | DQ123: 1 | DR123: 0 | DS123: 10 | DT123: 0 | DU123: 0 | DV123: 0 | DW123: 0 | DX123: 0 | DY123: 0 | DZ123: 0 | EA123: 0 | EB123: 0 | EC123: 0 | ED123: 0 | EE123: 0 | EF123: 0 | EG123: 0 | EH123: 0 | EI123: 0 | EJ123: 0
A124: ED_ASS521_00114 | C124: Local Network Wiring Assets | E124: DNSP NAME | F124: REPEX | G124: SCADA AND PROTECTION | H124: Local Network Wiring Assets | I124: DESCRIPTOR METRIC | J124: MEAN ECONOMIC LIFE | K124: YEARS | L124: NUMBER | N124: 0 | Y124: 0 | AJ124: 0 | AK124: 0 | AL124: 0 | AM124: 0 | AN124: 0 | AO124: 0 | AP124: 0 | AQ124: 0 | AR124: 0 | AS124: 0 | AT124: 0 | AU124: 0 | AV124: 0 | AW124: 0 | AX124: 0 | AY124: 0 | AZ124: 0 | BA124: 0 | BB124: 0 | BC124: 0 | BD124: 0 | BE124: 0 | BF124: 0 | BG124: 0 | BH124: 0 | BI124: 0 | BJ124: 0 | BK124: 0 | BL124: 0 | BM124: 0 | BN124: 0 | BO124: 0 | BP124: 0 | BQ124: 0 | BR124: 0 | BS124: 0 | BT124: 0 | BU124: 0 | BV124: 0 | BW124: 0 | BX124: 0 | BY124: 0 | BZ124: 0 | CA124: 0 | CB124: 0 | CC124: 0 | CD124: 0 | CE124: 0 | CF124: 0 | CG124: 0 | CH124: 0 | CI124: 0 | CJ124: 0 | CK124: 0 | CL124: 0 | CM124: 0 | CN124: 0 | CO124: 0 | CP124: 0 | CQ124: 0 | CR124: 0 | CS124: 0 | CT124: 0 | CU124: 0 | CV124: 0 | CW124: 0 | CX124: 0 | CY124: 0 | CZ124: 0 | DA124: 0 | DB124: 0 | DC124: 0 | DD124: 0 | DE124: 0 | DF124: 0 | DG124: 0 | DH124: 0 | DI124: 0 | DJ124: 0 | DK124: 0 | DL124: 0 | DM124: 0 | DN124: 0 | DO124: 0 | DP124: 0 | DQ124: 0 | DR124: 0 | DS124: 0 | DT124: 0 | DU124: 0 | DV124: 0 | DW124: 0 | DX124: 0 | DY124: 0 | DZ124: 0 | EA124: 0 | EB124: 0 | EC124: 0 | ED124: 0 | EE124: 0 | EF124: 0 | EG124: 0 | EH124: 0 | EI124: 0 | EJ124: 0
A125: ED_ASS521_00115 | C125: Communications Network Assets | E125: DNSP NAME | F125: REPEX | G125: SCADA AND PROTECTION | H125: Communications Network Assets | I125: DESCRIPTOR METRIC | J125: MEAN ECONOMIC LIFE | K125: YEARS | L125: NUMBER | N125: 10 | Y125: 3.2 | AJ125: 207 | AK125: 142 | AL125: 415 | AM125: 274 | AN125: 283 | AO125: 202 | AP125: 88 | AQ125: 63 | AR125: 275 | AS125: 194 | AT125: 44 | AU125: 61 | AV125: 13 | AW125: 20 | AX125: 0 | AY125: 0 | AZ125: 1 | BA125: 12 | BB125: 0 | BC125: 3 | BD125: 14 | BE125: 3 | BF125: 26 | BG125: 1 | BH125: 2 | BI125: 4 | BJ125: 0 | BK125: 0 | BL125: 0 | BM125: 7 | BN125: 1 | BO125: 4 | BP125: 3 | BQ125: 3 | BR125: 0 | BS125: 0 | BT125: 0 | BU125: 0 | BV125: 0 | BW125: 0 | BX125: 0 | BY125: 0 | BZ125: 0 | CA125: 0 | CB125: 0 | CC125: 0 | CD125: 0 | CE125: 0 | CF125: 0 | CG125: 0 | CH125: 0 | CI125: 0 | CJ125: 0 | CK125: 0 | CL125: 0 | CM125: 0 | CN125: 0 | CO125: 0 | CP125: 0 | CQ125: 0 | CR125: 0 | CS125: 0 | CT125: 0 | CU125: 0 | CV125: 0 | CW125: 0 | CX125: 0 | CY125: 0 | CZ125: 0 | DA125: 0 | DB125: 0 | DC125: 0 | DD125: 0 | DE125: 0 | DF125: 0 | DG125: 0 | DH125: 0 | DI125: 0 | DJ125: 0 | DK125: 0 | DL125: 0 | DM125: 0 | DN125: 0 | DO125: 0 | DP125: 0 | DQ125: 0 | DR125: 0 | DS125: 0 | DT125: 0 | DU125: 0 | DV125: 0 | DW125: 0 | DX125: 0 | DY125: 0 | DZ125: 0 | EA125: 0 | EB125: 0 | EC125: 0 | ED125: 0 | EE125: 0 | EF125: 0 | EG125: 0 | EH125: 0 | EI125: 0 | EJ125: 0
A126: ED_ASS521_00116 | C126: Master Station Assets | E126: DNSP NAME | F126: REPEX | G126: SCADA AND PROTECTION | H126: Master Station Assets | I126: DESCRIPTOR METRIC | J126: MEAN ECONOMIC LIFE | K126: YEARS | L126: NUMBER | N126: 0 | Y126: 0 | AJ126: 0 | AK126: 0 | AL126: 0 | AM126: 0 | AN126: 0 | AO126: 0 | AP126: 0 | AQ126: 0 | AR126: 0 | AS126: 0 | AT126: 0 | AU126: 0 | AV126: 0 | AW126: 0 | AX126: 0 | AY126: 0 | AZ126: 0 | BA126: 0 | BB126: 0 | BC126: 0 | BD126: 0 | BE126: 0 | BF126: 0 | BG126: 0 | BH126: 0 | BI126: 0 | BJ126: 0 | BK126: 0 | BL126: 0 | BM126: 0 | BN126: 0 | BO126: 0 | BP126: 0 | BQ126: 0 | BR126: 0 | BS126: 0 | BT126: 0 | BU126: 0 | BV126: 0 | BW126: 0 | BX126: 0 | BY126: 0 | BZ126: 0 | CA126: 0 | CB126: 0 | CC126: 0 | CD126: 0 | CE126: 0 | CF126: 0 | CG126: 0 | CH126: 0 | CI126: 0 | CJ126: 0 | CK126: 0 | CL126: 0 | CM126: 0 | CN126: 0 | CO126: 0 | CP126: 0 | CQ126: 0 | CR126: 0 | CS126: 0 | CT126: 0 | CU126: 0 | CV126: 0 | CW126: 0 | CX126: 0 | CY126: 0 | CZ126: 0 | DA126: 0 | DB126: 0 | DC126: 0 | DD126: 0 | DE126: 0 | DF126: 0 | DG126: 0 | DH126: 0 | DI126: 0 | DJ126: 0 | DK126: 0 | DL126: 0 | DM126: 0 | DN126: 0 | DO126: 0 | DP126: 0 | DQ126: 0 | DR126: 0 | DS126: 0 | DT126: 0 | DU126: 0 | DV126: 0 | DW126: 0 | DX126: 0 | DY126: 0 | DZ126: 0 | EA126: 0 | EB126: 0 | EC126: 0 | ED126: 0 | EE126: 0 | EF126: 0 | EG126: 0 | EH126: 0 | EI126: 0 | EJ126: 0
A127: ED_ASS521_00117 | C127: Communications Site Infrastructure | N127: 25 | Y127: 5 | AJ127: 2 | AK127: 0 | AL127: 0 | AM127: 1 | AN127: 0 | AO127: 0 | AP127: 1 | AQ127: 3 | AR127: 7 | AS127: 1 | AT127: 5 | AU127: 8 | AV127: 5 | AW127: 2 | AX127: 0 | AY127: 0 | AZ127: 1 | BA127: 0 | BB127: 0 | BC127: 0 | BD127: 0 | BE127: 0 | BF127: 0 | BG127: 2 | BH127: 1 | BI127: 4 | BJ127: 1 | BK127: 7 | BL127: 0 | BM127: 3 | BN127: 1 | BO127: 1 | BP127: 0 | BQ127: 0 | BR127: 6 | BS127: 0 | BT127: 1 | BU127: 0 | BV127: 1 | BW127: 1 | BX127: 1 | BY127: 0 | BZ127: 0 | CA127: 0 | CB127: 2 | CC127: 0 | CD127: 1 | CE127: 0 | CF127: 0 | CG127: 0 | CH127: 0 | CI127: 0 | CJ127: 0 | CK127: 0 | CL127: 0 | CM127: 0 | CN127: 0 | CO127: 0 | CP127: 0 | CQ127: 0 | CR127: 0 | CS127: 0 | CT127: 0 | CU127: 0 | CV127: 0 | CW127: 0 | CX127: 0 | CY127: 0 | CZ127: 0 | DA127: 0 | DB127: 0 | DC127: 0 | DD127: 0 | DE127: 0 | DF127: 0 | DG127: 0 | DH127: 0 | DI127: 0 | DJ127: 0 | DK127: 0 | DL127: 0 | DM127: 0 | DN127: 0 | DO127: 0 | DP127: 0 | DQ127: 0 | DR127: 0 | DS127: 0 | DT127: 0 | DU127: 0 | DV127: 0 | DW127: 0 | DX127: 0 | DY127: 0 | DZ127: 0 | EA127: 0 | EB127: 0 | EC127: 0 | ED127: 0 | EE127: 0 | EF127: 0 | EG127: 0 | EH127: 0 | EI127: 0 | EJ127: 0
A128: ED_ASS521_00118 | C128: Communications Linear Assets | N128: 30 | Y128: 5.5 | AJ128: 92.931 | AK128: 91.675 | AL128: 210.8 | AM128: 205.9 | AN128: 186.56 | AO128: 180.9 | AP128: 172.8 | AQ128: 157.9 | AR128: 182 | AS128: 163.9 | AT128: 153.95 | AU128: 170.4 | AV128: 90.8 | AW128: 82.91 | AX128: 26.63 | AY128: 25.21 | AZ128: 23.31 | BA128: 24.55 | BB128: 8.74 | BC128: 1.46 | BD128: 2.91 | BE128: 4.37 | BF128: 4.37 | BG128: 7.28 | BH128: 26.22 | BI128: 4.37 | BJ128: 7.28 | BK128: 5.83 | BL128: 5.83 | BM128: 2.91 | BN128: 2.91 | BO128: 11.65 | BP128: 8.74 | BQ128: 10.2 | BR128: 2.91 | BS128: 5.83 | BT128: 17.48 | BU128: 17.48 | BV128: 13.11 | BW128: 8.74 | BX128: 1.46 | BY128: 0 | BZ128: 1.46 | CA128: 16.02 | CB128: 29.13 | CC128: 29.13 | CD128: 21.85 | CE128: 23.31 | CF128: 13.11 | CG128: 32.05 | CH128: 7.28 | CI128: 1.46 | CJ128: 13.11 | CK128: 0 | CL128: 7.28 | CM128: 0 | CN128: 1.46 | CO128: 7.28 | CP128: 5.83 | CQ128: 11.65 | CR128: 0 | CS128: 0 | CT128: 0 | CU128: 0 | CV128: 0 | CW128: 0 | CX128: 0 | CY128: 0 | CZ128: 0 | DA128: 8.74 | DB128: 0 | DC128: 0 | DD128: 0 | DE128: 0 | DF128: 0 | DG128: 0 | DH128: 0 | DI128: 0 | DJ128: 0 | DK128: 0 | DL128: 0 | DM128: 0 | DN128: 0 | DO128: 0 | DP128: 0 | DQ128: 0 | DR128: 0 | DS128: 0 | DT128: 0 | DU128: 0 | DV128: 0 | DW128: 0 | DX128: 0 | DY128: 0 | DZ128: 0 | EA128: 0 | EB128: 0 | EC128: 0 | ED128: 0 | EE128: 0 | EF128: 0 | EG128: 0 | EH128: 0 | EI128: 0 | EJ128: 0
A129: ED_ASS521_00119 | C129: AFLC | E129: DNSP NAME | F129: REPEX | G129: SCADA AND PROTECTION | H129: AFLC | I129: DESCRIPTOR METRIC | J129: MEAN ECONOMIC LIFE | K129: YEARS | L129: NUMBER | N129: 0 | Y129: 0 | AJ129: 0 | AK129: 0 | AL129: 0 | AM129: 0 | AN129: 0 | AO129: 0 | AP129: 0 | AQ129: 0 | AR129: 0 | AS129: 0 | AT129: 0 | AU129: 0 | AV129: 0 | AW129: 0 | AX129: 0 | AY129: 0 | AZ129: 0 | BA129: 0 | BB129: 0 | BC129: 0 | BD129: 0 | BE129: 0 | BF129: 0 | BG129: 0 | BH129: 0 | BI129: 0 | BJ129: 0 | BK129: 0 | BL129: 0 | BM129: 0 | BN129: 0 | BO129: 0 | BP129: 0 | BQ129: 0 | BR129: 0 | BS129: 0 | BT129: 0 | BU129: 0 | BV129: 0 | BW129: 0 | BX129: 0 | BY129: 0 | BZ129: 0 | CA129: 0 | CB129: 0 | CC129: 0 | CD129: 0 | CE129: 0 | CF129: 0 | CG129: 0 | CH129: 0 | CI129: 0 | CJ129: 0 | CK129: 0 | CL129: 0 | CM129: 0 | CN129: 0 | CO129: 0 | CP129: 0 | CQ129: 0 | CR129: 0 | CS129: 0 | CT129: 0 | CU129: 0 | CV129: 0 | CW129: 0 | CX129: 0 | CY129: 0 | CZ129: 0 | DA129: 0 | DB129: 0 | DC129: 0 | DD129: 0 | DE129: 0 | DF129: 0 | DG129: 0 | DH129: 0 | DI129: 0 | DJ129: 0 | DK129: 0 | DL129: 0 | DM129: 0 | DN129: 0 | DO129: 0 | DP129: 0 | DQ129: 0 | DR129: 0 | DS129: 0 | DT129: 0 | DU129: 0 | DV129: 0 | DW129: 0 | DX129: 0 | DY129: 0 | DZ129: 0 | EA129: 0 | EB129: 0 | EC129: 0 | ED129: 0 | EE129: 0 | EF129: 0 | EG129: 0 | EH129: 0 | EI129: 0 | EJ129: 0
A130: ED_ASS521_00120 | C130: Other | E130: DNSP NAME | F130: REPEX | G130: PUBLIC LIGHTING | H130: Other | I130: DESCRIPTOR METRIC | J130: MEAN ECONOMIC LIFE | K130: YEARS | L130: NUMBER | N130: 12 | Y130: 3.464101615 | AJ130: 33 | AK130: 23 | AL130: 22 | AM130: 14 | AN130: 8 | AO130: 18 | AP130: 18 | AQ130: 16 | AR130: 24 | AS130: 34 | AT130: 29 | AU130: 28 | AV130: 14 | AW130: 22 | AX130: 0 | AY130: 16 | AZ130: 0 | BA130: 0 | BB130: 0 | BC130: 0 | BD130: 0 | BE130: 0 | BF130: 0 | BG130: 0 | BH130: 0 | BI130: 0 | BJ130: 0 | BK130: 0 | BL130: 0 | BM130: 0 | BN130: 0 | BO130: 0 | BP130: 0 | BQ130: 0 | BR130: 0 | BS130: 0 | BT130: 0 | BU130: 0 | BV130: 0 | BW130: 0 | BX130: 0 | BY130: 0 | BZ130: 0 | CA130: 0 | CB130: 0 | CC130: 0 | CD130: 0 | CE130: 0 | CF130: 0 | CG130: 0 | CH130: 0 | CI130: 0 | CJ130: 0 | CK130: 0 | CL130: 0 | CM130: 0 | CN130: 0 | CO130: 0 | CP130: 0 | CQ130: 0 | CR130: 0 | CS130: 0 | CT130: 0 | CU130: 0 | CV130: 0 | CW130: 0 | CX130: 0 | CY130: 0 | CZ130: 0 | DA130: 0 | DB130: 0 | DC130: 0 | DD130: 0 | DE130: 0 | DF130: 0 | DG130: 0 | DH130: 0 | DI130: 0 | DJ130: 0 | DK130: 0 | DL130: 0 | DM130: 0 | DN130: 0 | DO130: 0 | DP130: 0 | DQ130: 0 | DR130: 0 | DS130: 0 | DT130: 0 | DU130: 0 | DV130: 0 | DW130: 0 | DX130: 0 | DY130: 0 | DZ130: 0 | EA130: 0 | EB130: 0 | EC130: 0 | ED130: 0 | EE130: 0 | EF130: 0 | EG130: 0 | EH130: 0 | EI130: 0 | EJ130: 0
A131: ED_ASS521_00121 | B131: OTHER BY: DNSP DEFINED | C131: ˂ ≈ 11 kV ; STOBIE POLE | E131: DNSP NAME | F131: REPEX | G131: OTHER | H131: ˂ ≈ 11 kV ; STOBIE POLE | I131: DESCRIPTOR METRIC | J131: MEAN ECONOMIC LIFE | K131: YEARS | L131: NUMBER | N131: 73 | Y131: 8.544 | AJ131: 3139 | AK131: 3118.926536 | AL131: 3112.915113 | AM131: 1993.788566 | AN131: 1557.96422 | AO131: 1445.747187 | AP131: 1465.787166 | AQ131: 1412.684361 | AR131: 1206.769021 | AS131: 1094.078952 | AT131: 1080.052299 | AU131: 1164.454815 | AV131: 1072.037068 | AW131: 1287.446386 | AX131: 1552.700498 | AY131: 1691.213618 | AZ131: 1136.158912 | BA131: 487.9271517 | BB131: 1844.5049 | BC131: 2409.328248 | BD131: 2367.498685 | BE131: 2510.770928 | BF131: 3992.460201 | BG131: 5188.861695 | BH131: 5072.6637 | BI131: 5629.556854 | BJ131: 6161.896064 | BK131: 4866.732279 | BL131: 5115.064096 | BM131: 5875.765761 | BN131: 6568.994358 | BO131: 7086.590559 | BP131: 6317.149806 | BQ131: 6283.755344 | BR131: 6965.279644 | BS131: 7315.331112 | BT131: 7964.897105 | BU131: 9420.878389 | BV131: 9545.724237 | BW131: 9045.08912 | BX131: 9833.729048 | BY131: 9286.643917 | BZ131: 9446.59865 | CA131: 11850.8699 | CB131: 13039.19085 | CC131: 12419.30711 | CD131: 12247.6911 | CE131: 12247.77211 | CF131: 15398.17219 | CG131: 18015.47373 | CH131: 17112.355 | CI131: 18187.55523 | CJ131: 18844.00133 | CK131: 18189.15168 | CL131: 17722.02122 | CM131: 15369.41946 | CN131: 15056.06015 | CO131: 14362.38998 | CP131: 14613.50416 | CQ131: 16844.84334 | CR131: 13657.86257 | CS131: 11682.5069 | CT131: 12333.26669 | CU131: 8180.364879 | CV131: 4469.211438 | CW131: 3632.607199 | CX131: 1549.53714 | CY131: 1167.463665 | CZ131: 1122.452811 | DA131: 1190.874501 | DB131: 1197.39472 | DC131: 830.6476422 | DD131: 1044.166385 | DE131: 1595.62292 | DF131: 2556.172029 | DG131: 3099.069597 | DH131: 3049.52738 | DI131: 2447.095663 | DJ131: 3382.930893 | DK131: 3854.31241 | DL131: 2553.710614 | DM131: 1253.860413 | DN131: 465.4096824 | DO131: 50.42594084 | DP131: 0 | DQ131: 0 | DR131: 0 | DS131: 0 | DT131: 0 | DU131: 0 | DV131: 0 | DW131: 0 | DX131: 0 | DY131: 0 | DZ131: 0 | EA131: 0 | EB131: 0 | EC131: 0 | ED131: 0 | EE131: 0 | EF131: 0 | EG131: 0 | EH131: 0 | EI131: 0 | EJ131: 0
A132: ED_ASS521_00122 | C132: > 11 kV & <≈ 33 kV ; STOBIE POLE | N132: 73 | Y132: 8.544 | AJ132: 221 | AK132: 298.5673331 | AL132: 250.4759506 | AM132: 344.654908 | AN132: 267.5083152 | AO132: 228.4340669 | AP132: 269.5121228 | AQ132: 307.5844673 | AR132: 303.5768521 | AS132: 123.0299646 | AT132: 147.2798589 | AU132: 146.2779551 | AV132: 157.2988969 | AW132: 141.0481177 | AX132: 149.2836665 | AY132: 217.4131251 | AZ132: 148.2817627 | BA132: 38.07234448 | BB132: 480.9138251 | BC132: 876.6658269 | BD132: 884.6810574 | BE132: 560.0642254 | BF132: 1113.115124 | BG132: 1492.836665 | BH132: 1419.699592 | BI132: 1586.741664 | BJ132: 1534.990858 | BK132: 1362.637285 | BL132: 1610.787356 | BM132: 2084.630145 | BN132: 2107.710001 | BO132: 1679.60746 | BP132: 1633.542912 | BQ132: 1700.990006 | BR132: 1636.591903 | BS132: 1379.621536 | BT132: 1209.651042 | BU132: 1555.355968 | BV132: 2453.445756 | BW132: 4404.80626 | BX132: 4932.685632 | BY132: 4785.069986 | BZ132: 4836.779171 | CA132: 5088.225603 | CB132: 6267.147639 | CC132: 6330.891894 | CD132: 5982.704586 | CE132: 6034.254133 | CF132: 6648.508636 | CG132: 6615.34924 | CH132: 5756.542856 | CI132: 7226.295408 | CJ132: 8070.94902 | CK132: 6330.20803 | CL132: 5230.969888 | CM132: 5250.039441 | CN132: 3852.48064 | CO132: 2159.996806 | CP132: 1682.561938 | CQ132: 1529.167417 | CR132: 1137.734967 | CS132: 1042.224497 | CT132: 1135.504854 | CU132: 3113.68991 | CV132: 2900.309976 | CW132: 380.1340155 | CX132: 41.69837415 | CY132: 77.51782978 | CZ132: 116.7330603 | DA132: 140.1907494 | DB132: 68.5486913 | DC132: 27.00137342 | DD132: 290.6167769 | DE132: 505.3710519 | DF132: 262.1048408 | DG132: 184.10842 | DH132: 516.8658936 | DI132: 828.8127025 | DJ132: 616.7480456 | DK132: 324.8594265 | DL132: 405.346986 | DM132: 236.6140301 | DN132: 185.2183596 | DO132: 150.3080929 | DP132: 0 | DQ132: 0 | DR132: 0 | DS132: 0 | DT132: 0 | DU132: 0 | DV132: 0 | DW132: 0 | DX132: 0 | DY132: 0 | DZ132: 0 | EA132: 0 | EB132: 0 | EC132: 0 | ED132: 0 | EE132: 0 | EF132: 0 | EG132: 0 | EH132: 0 | EI132: 0 | EJ132: 0
